Workbook

Sheet Menu
D2: Nombre Estudiantes Noveno Semestre
A7: No olvide dar click en botón SALIR cuando termine de ver sus notas

Sheet Notas1 (hidden)
A3: 1. SABER 45% | B3: Dra. Daza | E3: Dra. Rubiano
A4: a. Casos Clínicos | B4: 0.25 | D4: =AVERAGE(C4:C8)*25% ->  | E4: 0.25 | G4: =AVERAGE(F4:F8)*25% -> 
A5: b. Seminarios
A6: c. Revisiones de tema
A7: d. Club de Revistas
A8: e. Rondas - Juntas
A10: f. Examen Escrito en la última semana de rotación | B10: 0.25 | D10: =C10*25% -> 0 | E10: 0.25 | G10: =F10*25% -> 0
A12: 2. HACER 45%
A13: a. Manejo de la historia clínica | B13: 0.45 | D13: =AVERAGE(C13:C15)*45% ->  | E13: 0.45 | G13: =AVERAGE(F13:F15)*45% -> 
A14: b. Destrezas y manualidades especificas
A15: c. Criterio clínico y terapéutico
A16: 3. EJECUCIÓN DEL DESEMPEÑO 10%
A17: a. Capacidad para tomar decisiones | B17: 0.05 | D17: =AVERAGE(C17:C18)*5% ->  | E17: 0.05 | G17: =AVERAGE(F17:F18)*5% -> 
A18: b. Relaciones humanas, trabajo en equipo
A20: NOTA DEFINITIVA | D20: =D4+D10+D13+D17 ->  | G20: =G4+G10+G13+G17 ->  | H20: =AVERAGE(D20:G20) -> 
A23: 1. SABER 45% | B23: Dra. Bedoya | E23: Dr. Gaviria
A24: a. Casos Clínicos | B24: 0.25 | D24: =AVERAGE(C24:C28)*25% ->  | E24: 0.25 | G24: =AVERAGE(F24:F28)*25% -> 
A25: b. Seminarios
A26: c. Revisiones de tema
A27: d. Club de Revistas
A28: e. Rondas - Juntas
A30: f. Examen Escrito en la última semana de rotación | B30: 0.25 | D30: =C30*25% -> 0 | E30: 0.25 | G30: =F30*25% -> 0
A32: 2. HACER 45%
A33: a. Manejo de la historia clínica | B33: 0.45 | D33: =AVERAGE(C33:C35)*45% ->  | E33: 0.45 | G33: =AVERAGE(F33:F35)*45% -> 
A34: b. Destrezas y manualidades especificas
A35: c. Criterio clínico y terapéutico
A36: 3. EJECUCIÓN DEL DESEMPEÑO 10%
A37: a. Capacidad para tomar decisiones | B37: 0.05 | D37: =AVERAGE(C37:C38)*5% ->  | E37: 0.05 | G37: =AVERAGE(F37:F38)*5% -> 
A38: b. Relaciones humanas, trabajo en equipo
A40: NOTA DEFINITIVA | D40: =D24+D30+D33+D37 ->  | G40: =G24+G30+G33+G37 ->  | H40: =AVERAGE(D40:G40) -> 
A43: 1. SABER 45% | B43: Dra. Olaya | E43: Dra. Galeano
A44: a. Casos Clínicos | B44: 0.25 | D44: =AVERAGE(C44:C48)*25% ->  | E44: 0.25 | G44: =AVERAGE(F44:F48)*25% -> 
A45: b. Seminarios
A46: c. Revisiones de tema
A47: d. Club de Revistas
A48: e. Rondas - Juntas
A50: f. Examen Escrito en la última semana de rotación | B50: 0.25 | D50: =C50*25% -> 0 | E50: 0.25 | G50: =F50*25% -> 0
A52: 2. HACER 45%
A53: a. Manejo de la historia clínica | B53: 0.45 | D53: =AVERAGE(C53:C55)*45% ->  | E53: 0.45 | G53: =AVERAGE(F53:F55)*45% -> 
A54: b. Destrezas y manualidades especificas
A55: c. Criterio clínico y terapéutico
A56: 3. EJECUCIÓN DEL DESEMPEÑO 10%
A57: a. Capacidad para tomar decisiones | B57: 0.05 | D57: =AVERAGE(C57:C58)*5% ->  | E57: 0.05 | G57: =AVERAGE(F57:F58)*5% -> 
A58: b. Relaciones humanas, trabajo en equipo
A60: NOTA DEFINITIVA | D60: =D44+D50+D53+D57 ->  | G60: =G44+G50+G53+G57 ->  | H60: =AVERAGE(D60:G60) -> 
A63: 1. SABER 45% | B63: Dr. Moya | E63: Dra. Henao
A64: a. Casos Clínicos | B64: 0.25 | D64: =AVERAGE(C64:C68)*25% ->  | E64: 0.25 | G64: =AVERAGE(F64:F68)*25% -> 
A65: b. Seminarios
A66: c. Revisiones de tema
A67: d. Club de Revistas
A68: e. Rondas - Juntas
A70: f. Examen Escrito en la última semana de rotación | B70: 0.25 | D70: =C70*25% -> 0 | E70: 0.25 | G70: =F70*25% -> 0
A72: 2. HACER 45%
A73: a. Manejo de la historia clínica | B73: 0.45 | D73: =AVERAGE(C73:C75)*45% ->  | E73: 0.45 | G73: =AVERAGE(F73:F75)*45% -> 
A74: b. Destrezas y manualidades especificas
A75: c. Criterio clínico y terapéutico
A76: 3. EJECUCIÓN DEL DESEMPEÑO 10%
A77: a. Capacidad para tomar decisiones | B77: 0.05 | D77: =AVERAGE(C77:C78)*5% ->  | E77: 0.05 | G77: =AVERAGE(F77:F78)*5% -> 
A78: b. Relaciones humanas, trabajo en equipo
A80: NOTA DEFINITIVA | D80: =D64+D70+D73+D77 ->  | G80: =G64+G70+G73+G77 ->  | H80: =AVERAGE(D80:G80) -> 
A83: 1. SABER 45% | B83: Dr. León | E83: Dr. Benavides
A84: a. Casos Clínicos | B84: 0.25 | E84: 0.25 | G84: =AVERAGE(F84:F88)*25% -> 
A85: b. Seminarios
A86: c. Revisiones de tema
A87: d. Club de Revistas
A88: e. Rondas - Juntas
A90: f. Examen Escrito en la última semana de rotación | B90: 0.25 | E90: 0.25 | G90: =F90*25% -> 0
A92: 2. HACER 45%
A93: a. Manejo de la historia clínica | B93: 0.45 | E93: 0.45 | G93: =AVERAGE(F93:F95)*45% -> 
A94: b. Destrezas y manualidades especificas
A95: c. Criterio clínico y terapéutico
A96: 3. EJECUCIÓN DEL DESEMPEÑO 10%
A97: a. Capacidad para tomar decisiones | B97: 0.05 | E97: 0.05 | G97: =AVERAGE(F97:F98)*5% -> 
A98: b. Relaciones humanas, trabajo en equipo
A100: NOTA DEFINITIVA | G100: =G84+G90+G93+G97 ->  | H100: =AVERAGE(D100:G100) -> 
A103: 1. SABER 45% | B103: Armida | E103: Dr.Marin
A104: a. Casos Clínicos | B104: 0.25 | D104: =AVERAGE(C104:C108)*25% ->  | E104: 0.25 | G104: =AVERAGE(F104:F108)*25% -> 
A105: b. Seminarios
A106: c. Revisiones de tema
A107: d. Club de Revistas
A108: e. Rondas - Juntas
A110: f. Examen Escrito en la última semana de rotación | B110: 0.25 | D110: =C110*25% -> 0 | E110: 0.25 | G110: =F110*25% -> 0
A112: 2. HACER 45%
A113: a. Manejo de la historia clínica | B113: 0.45 | D113: =AVERAGE(C113:C115)*45% ->  | E113: 0.45 | G113: =AVERAGE(F113:F115)*45% -> 
A114: b. Destrezas y manualidades especificas
A115: c. Criterio clínico y terapéutico
A116: 3. EJECUCIÓN DEL DESEMPEÑO 10%
A117: a. Capacidad para tomar decisiones | B117: 0.05 | D117: =AVERAGE(C117:C118)*5% ->  | E117: 0.05 | G117: =AVERAGE(F117:F118)*5% -> 
A118: b. Relaciones humanas, trabajo en equipo
A120: NOTA DEFINITIVA | D120: =D104+D110+D113+D117 ->  | G120: =G104+G110+G113+G117 ->  | H120: =AVERAGE(D120:G120) -> 

Sheet Notas12 (hidden)
A4: 1. SABER 45% | B4: Dra. Daza | E4: Dra. Rubiano
A5: a. Casos Clínicos | B5: 0.25 | D5: =AVERAGE(C5:C9)*25% ->  | E5: 0.25 | G5: =AVERAGE(F5:F9)*25% -> 
A6: b. Seminarios
A7: c. Revisiones de tema
A8: d. Club de Revistas
A9: e. Rondas - Juntas
A11: f. Examen Escrito en la última semana de rotación | B11: 0.25 | D11: =C11*25% -> 0 | E11: 0.25 | G11: =F11*25% -> 0
A13: 2. HACER 45%
A14: a. Manejo de la historia clínica | B14: 0.45 | D14: =AVERAGE(C14:C16)*45% ->  | E14: 0.45 | G14: =AVERAGE(F14:F16)*45% -> 
A15: b. Destrezas y manualidades especificas
A16: c. Criterio clínico y terapéutico
A17: 3. EJECUCIÓN DEL DESEMPEÑO 10%
A18: a. Capacidad para tomar decisiones | B18: 0.05 | D18: =AVERAGE(C18:C19)*5% ->  | E18: 0.05 | G18: =AVERAGE(F18:F19)*5% -> 
A19: b. Relaciones humanas, trabajo en equipo
A21: NOTA DEFINITIVA | D21: =D5+D11+D14+D18 ->  | G21: =G5+G11+G14+G18 ->  | H21: =AVERAGE(D21:G21) -> 
A24: 1. SABER 45% | B24: Dra. Bedoya | E24: Dr. Gaviria
A25: a. Casos Clínicos | B25: 0.25 | D25: =AVERAGE(C25:C29)*25% ->  | E25: 0.25 | G25: =AVERAGE(F25:F29)*25% -> 
A26: b. Seminarios
A27: c. Revisiones de tema
A28: d. Club de Revistas
A29: e. Rondas - Juntas
A31: f. Examen Escrito en la última semana de rotación | B31: 0.25 | D31: =C31*25% -> 0 | E31: 0.25 | G31: =F31*25% -> 0
A33: 2. HACER 45%
A34: a. Manejo de la historia clínica | B34: 0.45 | D34: =AVERAGE(C34:C36)*45% ->  | E34: 0.45 | G34: =AVERAGE(F34:F36)*45% -> 
A35: b. Destrezas y manualidades especificas
A36: c. Criterio clínico y terapéutico
A37: 3. EJECUCIÓN DEL DESEMPEÑO 10%
A38: a. Capacidad para tomar decisiones | B38: 0.05 | D38: =AVERAGE(C38:C39)*5% ->  | E38: 0.05 | G38: =AVERAGE(F38:F39)*5% -> 
A39: b. Relaciones humanas, trabajo en equipo
A41: NOTA DEFINITIVA | D41: =D25+D31+D34+D38 ->  | G41: =G25+G31+G34+G38 ->  | H41: =AVERAGE(D41:G41) -> 
A44: 1. SABER 45% | B44: Dra. Olaya | E44: Dra. Galeano
A45: a. Casos Clínicos | B45: 0.25 | D45: =AVERAGE(C45:C49)*25% ->  | E45: 0.25 | G45: =AVERAGE(F45:F49)*25% -> 
A46: b. Seminarios
A47: c. Revisiones de tema
A48: d. Club de Revistas
A49: e. Rondas - Juntas
A51: f. Examen Escrito en la última semana de rotación | B51: 0.25 | D51: =C51*25% -> 0 | E51: 0.25 | G51: =F51*25% -> 0
A53: 2. HACER 45%
A54: a. Manejo de la historia clínica | B54: 0.45 | D54: =AVERAGE(C54:C56)*45% ->  | E54: 0.45 | G54: =AVERAGE(F54:F56)*45% -> 
A55: b. Destrezas y manualidades especificas
A56: c. Criterio clínico y terapéutico
A57: 3. EJECUCIÓN DEL DESEMPEÑO 10%
A58: a. Capacidad para tomar decisiones | B58: 0.05 | D58: =AVERAGE(C58:C59)*5% ->  | E58: 0.05 | G58: =AVERAGE(F58:F59)*5% -> 
A59: b. Relaciones humanas, trabajo en equipo
A61: NOTA DEFINITIVA | D61: =D45+D51+D54+D58 ->  | G61: =G45+G51+G54+G58 ->  | H61: =AVERAGE(D61:G61) -> 
A64: 1. SABER 45% | B64: Dr. Moya | E64: Dra. Henao
A65: a. Casos Clínicos | B65: 0.25 | D65: =AVERAGE(C65:C69)*25% ->  | E65: 0.25 | G65: =AVERAGE(F65:F69)*25% -> 
A66: b. Seminarios
A67: c. Revisiones de tema
A68: d. Club de Revistas
A69: e. Rondas - Juntas
A71: f. Examen Escrito en la última semana de rotación | B71: 0.25 | D71: =C71*25% -> 0 | E71: 0.25 | G71: =F71*25% -> 0
A73: 2. HACER 45%
A74: a. Manejo de la historia clínica | B74: 0.45 | D74: =AVERAGE(C74:C76)*45% ->  | E74: 0.45 | G74: =AVERAGE(F74:F76)*45% -> 
A75: b. Destrezas y manualidades especificas
A76: c. Criterio clínico y terapéutico
A77: 3. EJECUCIÓN DEL DESEMPEÑO 10%
A78: a. Capacidad para tomar decisiones | B78: 0.05 | D78: =AVERAGE(C78:C79)*5% ->  | E78: 0.05 | G78: =AVERAGE(F78:F79)*5% -> 
A79: b. Relaciones humanas, trabajo en equipo
A81: NOTA DEFINITIVA | D81: =D65+D71+D74+D78 ->  | G81: =G65+G71+G74+G78 ->  | H81: =AVERAGE(D81:G81) -> 
A84: 1. SABER 45% | B84: Dr. León | E84: Dr. Benavides
A85: a. Casos Clínicos | B85: 0.25 | E85: 0.25 | G85: =AVERAGE(F85:F89)*25% -> 
A86: b. Seminarios
A87: c. Revisiones de tema
A88: d. Club de Revistas
A89: e. Rondas - Juntas
A91: f. Examen Escrito en la última semana de rotación | B91: 0.25 | E91: 0.25 | G91: =F91*25% -> 0
A93: 2. HACER 45%
A94: a. Manejo de la historia clínica | B94: 0.45 | E94: 0.45 | G94: =AVERAGE(F94:F96)*45% -> 
A95: b. Destrezas y manualidades especificas
A96: c. Criterio clínico y terapéutico
A97: 3. EJECUCIÓN DEL DESEMPEÑO 10%
A98: a. Capacidad para tomar decisiones | B98: 0.05 | E98: 0.05 | G98: =AVERAGE(F98:F99)*5% -> 
A99: b. Relaciones humanas, trabajo en equipo
A101: NOTA DEFINITIVA | G101: =G85+G91+G94+G98 ->  | H101: =AVERAGE(D101:G101) -> 
A104: 1. SABER 45% | B104: Armida | E104: Dr.Marin
A105: a. Casos Clínicos | B105: 0.25 | D105: =AVERAGE(C105:C109)*25% ->  | E105: 0.25 | G105: =AVERAGE(F105:F109)*25% -> 
A106: b. Seminarios
A107: c. Revisiones de tema
A108: d. Club de Revistas
A109: e. Rondas - Juntas
A111: f. Examen Escrito en la última semana de rotación | B111: 0.25 | D111: =C111*25% -> 0 | E111: 0.25 | G111: =F111*25% -> 0
A113: 2. HACER 45%
A114: a. Manejo de la historia clínica | B114: 0.45 | D114: =AVERAGE(C114:C116)*45% ->  | E114: 0.45 | G114: =AVERAGE(F114:F116)*45% -> 
A115: b. Destrezas y manualidades especificas
A116: c. Criterio clínico y terapéutico
A117: 3. EJECUCIÓN DEL DESEMPEÑO 10%
A118: a. Capacidad para tomar decisiones | B118: 0.05 | D118: =AVERAGE(C118:C119)*5% ->  | E118: 0.05 | G118: =AVERAGE(F118:F119)*5% -> 
A119: b. Relaciones humanas, trabajo en equipo
A121: NOTA DEFINITIVA | D121: =D105+D111+D114+D118 ->  | G121: =G105+G111+G114+G118 ->  | H121: =AVERAGE(D121:G121) -> 

Sheet Notas18 (hidden)
A4: 1. SABER 45% | B4: Dra. Daza | E4: Dra. Rubiano
A5: a. Casos Clínicos | B5: 0.25 | D5: =AVERAGE(C5:C9)*25% ->  | E5: 0.25 | G5: =AVERAGE(F5:F9)*25% -> 
A6: b. Seminarios
A7: c. Revisiones de tema
A8: d. Club de Revistas
A9: e. Rondas - Juntas
A11: f. Examen Escrito en la última semana de rotación | B11: 0.25 | D11: =C11*25% -> 0 | E11: 0.25 | G11: =F11*25% -> 0
A13: 2. HACER 45%
A14: a. Manejo de la historia clínica | B14: 0.45 | D14: =AVERAGE(C14:C16)*45% ->  | E14: 0.45 | G14: =AVERAGE(F14:F16)*45% -> 
A15: b. Destrezas y manualidades especificas
A16: c. Criterio clínico y terapéutico
A17: 3. EJECUCIÓN DEL DESEMPEÑO 10%
A18: a. Capacidad para tomar decisiones | B18: 0.05 | D18: =AVERAGE(C18:C19)*5% ->  | E18: 0.05 | G18: =AVERAGE(F18:F19)*5% -> 
A19: b. Relaciones humanas, trabajo en equipo
A21: NOTA DEFINITIVA | D21: =D5+D11+D14+D18 ->  | G21: =G5+G11+G14+G18 ->  | H21: =AVERAGE(D21:G21) -> 
A24: 1. SABER 45% | B24: Dra. Bedoya | E24: Dr. Gaviria
A25: a. Casos Clínicos | B25: 0.25 | D25: =AVERAGE(C25:C29)*25% ->  | E25: 0.25 | G25: =AVERAGE(F25:F29)*25% -> 
A26: b. Seminarios
A27: c. Revisiones de tema
A28: d. Club de Revistas
A29: e. Rondas - Juntas
A31: f. Examen Escrito en la última semana de rotación | B31: 0.25 | D31: =C31*25% -> 0 | E31: 0.25 | G31: =F31*25% -> 0
A33: 2. HACER 45%
A34: a. Manejo de la historia clínica | B34: 0.45 | D34: =AVERAGE(C34:C36)*45% ->  | E34: 0.45 | G34: =AVERAGE(F34:F36)*45% -> 
A35: b. Destrezas y manualidades especificas
A36: c. Criterio clínico y terapéutico
A37: 3. EJECUCIÓN DEL DESEMPEÑO 10%
A38: a. Capacidad para tomar decisiones | B38: 0.05 | D38: =AVERAGE(C38:C39)*5% ->  | E38: 0.05 | G38: =AVERAGE(F38:F39)*5% -> 
A39: b. Relaciones humanas, trabajo en equipo
A41: NOTA DEFINITIVA | D41: =D25+D31+D34+D38 ->  | G41: =G25+G31+G34+G38 ->  | H41: =AVERAGE(D41:G41) -> 
A44: 1. SABER 45% | B44: Dra. Olaya | E44: Dra. Galeano
A45: a. Casos Clínicos | B45: 0.25 | D45: =AVERAGE(C45:C49)*25% ->  | E45: 0.25 | G45: =AVERAGE(F45:F49)*25% -> 
A46: b. Seminarios
A47: c. Revisiones de tema
A48: d. Club de Revistas
A49: e. Rondas - Juntas
A51: f. Examen Escrito en la última semana de rotación | B51: 0.25 | D51: =C51*25% -> 0 | E51: 0.25 | G51: =F51*25% -> 0
A53: 2. HACER 45%
A54: a. Manejo de la historia clínica | B54: 0.45 | D54: =AVERAGE(C54:C56)*45% ->  | E54: 0.45 | G54: =AVERAGE(F54:F56)*45% -> 
A55: b. Destrezas y manualidades especificas
A56: c. Criterio clínico y terapéutico
A57: 3. EJECUCIÓN DEL DESEMPEÑO 10%
A58: a. Capacidad para tomar decisiones | B58: 0.05 | D58: =AVERAGE(C58:C59)*5% ->  | E58: 0.05 | G58: =AVERAGE(F58:F59)*5% -> 
A59: b. Relaciones humanas, trabajo en equipo
A61: NOTA DEFINITIVA | D61: =D45+D51+D54+D58 ->  | G61: =G45+G51+G54+G58 ->  | H61: =AVERAGE(D61:G61) -> 
A64: 1. SABER 45% | B64: Dr. Moya | E64: Dra. Henao
A65: a. Casos Clínicos | B65: 0.25 | D65: =AVERAGE(C65:C69)*25% ->  | E65: 0.25 | G65: =AVERAGE(F65:F69)*25% -> 
A66: b. Seminarios
A67: c. Revisiones de tema
A68: d. Club de Revistas
A69: e. Rondas - Juntas
A71: f. Examen Escrito en la última semana de rotación | B71: 0.25 | D71: =C71*25% -> 0 | E71: 0.25 | G71: =F71*25% -> 0
A73: 2. HACER 45%
A74: a. Manejo de la historia clínica | B74: 0.45 | D74: =AVERAGE(C74:C76)*45% ->  | E74: 0.45 | G74: =AVERAGE(F74:F76)*45% -> 
A75: b. Destrezas y manualidades especificas
A76: c. Criterio clínico y terapéutico
A77: 3. EJECUCIÓN DEL DESEMPEÑO 10%
A78: a. Capacidad para tomar decisiones | B78: 0.05 | D78: =AVERAGE(C78:C79)*5% ->  | E78: 0.05 | G78: =AVERAGE(F78:F79)*5% -> 
A79: b. Relaciones humanas, trabajo en equipo
A81: NOTA DEFINITIVA | D81: =D65+D71+D74+D78 ->  | G81: =G65+G71+G74+G78 ->  | H81: =AVERAGE(D81:G81) -> 
A84: 1. SABER 45% | B84: Dr. León | E84: Dr. Benavides
A85: a. Casos Clínicos | B85: 0.25 | E85: 0.25 | G85: =AVERAGE(F85:F89)*25% -> 
A86: b. Seminarios
A87: c. Revisiones de tema
A88: d. Club de Revistas
A89: e. Rondas - Juntas
A91: f. Examen Escrito en la última semana de rotación | B91: 0.25 | E91: 0.25 | G91: =F91*25% -> 0
A93: 2. HACER 45%
A94: a. Manejo de la historia clínica | B94: 0.45 | E94: 0.45 | G94: =AVERAGE(F94:F96)*45% -> 
A95: b. Destrezas y manualidades especificas
A96: c. Criterio clínico y terapéutico
A97: 3. EJECUCIÓN DEL DESEMPEÑO 10%
A98: a. Capacidad para tomar decisiones | B98: 0.05 | E98: 0.05 | G98: =AVERAGE(F98:F99)*5% -> 
A99: b. Relaciones humanas, trabajo en equipo
A101: NOTA DEFINITIVA | G101: =G85+G91+G94+G98 ->  | H101: =AVERAGE(D101:G101) -> 
A104: 1. SABER 45% | B104: Armida | E104: Dr.Marin
A105: a. Casos Clínicos | B105: 0.25 | D105: =AVERAGE(C105:C109)*25% ->  | E105: 0.25 | G105: =AVERAGE(F105:F109)*25% -> 
A106: b. Seminarios
A107: c. Revisiones de tema
A108: d. Club de Revistas
A109: e. Rondas - Juntas
A111: f. Examen Escrito en la última semana de rotación | B111: 0.25 | D111: =C111*25% -> 0 | E111: 0.25 | G111: =F111*25% -> 0
A113: 2. HACER 45%
A114: a. Manejo de la historia clínica | B114: 0.45 | D114: =AVERAGE(C114:C116)*45% ->  | E114: 0.45 | G114: =AVERAGE(F114:F116)*45% -> 
A115: b. Destrezas y manualidades especificas
A116: c. Criterio clínico y terapéutico
A117: 3. EJECUCIÓN DEL DESEMPEÑO 10%
A118: a. Capacidad para tomar decisiones | B118: 0.05 | D118: =AVERAGE(C118:C119)*5% ->  | E118: 0.05 | G118: =AVERAGE(F118:F119)*5% -> 
A119: b. Relaciones humanas, trabajo en equipo
A121: NOTA DEFINITIVA | D121: =D105+D111+D114+D118 ->  | G121: =G105+G111+G114+G118 ->  | H121: =AVERAGE(D121:G121) -> 
A122: NOTA DEFINITIVA | D122: =D106+D112+D115+D119 -> 0 | G122: =G106+G112+G115+G119 -> 0 | H122: =AVERAGE(D122:G122) -> 0

Sheet Notas24 (hidden)
A4: 1. SABER 45% | B4: Dra. Daza | E4: Dra. Rubiano
A5: a. Casos Clínicos | B5: 0.25 | D5: =AVERAGE(C5:C9)*25% ->  | E5: 0.25 | G5: =AVERAGE(F5:F9)*25% -> 
A6: b. Seminarios
A7: c. Revisiones de tema
A8: d. Club de Revistas
A9: e. Rondas - Juntas
A11: f. Examen Escrito en la última semana de rotación | B11: 0.25 | D11: =C11*25% -> 0 | E11: 0.25 | G11: =F11*25% -> 0
A13: 2. HACER 45%
A14: a. Manejo de la historia clínica | B14: 0.45 | D14: =AVERAGE(C14:C16)*45% ->  | E14: 0.45 | G14: =AVERAGE(F14:F16)*45% -> 
A15: b. Destrezas y manualidades especificas
A16: c. Criterio clínico y terapéutico
A17: 3. EJECUCIÓN DEL DESEMPEÑO 10%
A18: a. Capacidad para tomar decisiones | B18: 0.05 | D18: =AVERAGE(C18:C19)*5% ->  | E18: 0.05 | G18: =AVERAGE(F18:F19)*5% -> 
A19: b. Relaciones humanas, trabajo en equipo
A21: NOTA DEFINITIVA | D21: =D5+D11+D14+D18 ->  | G21: =G5+G11+G14+G18 ->  | H21: =AVERAGE(D21:G21) -> 
A24: 1. SABER 45% | B24: Dra. Bedoya | E24: Dr. Gaviria
A25: a. Casos Clínicos | B25: 0.25 | D25: =AVERAGE(C25:C29)*25% ->  | E25: 0.25 | G25: =AVERAGE(F25:F29)*25% -> 
A26: b. Seminarios
A27: c. Revisiones de tema
A28: d. Club de Revistas
A29: e. Rondas - Juntas
A31: f. Examen Escrito en la última semana de rotación | B31: 0.25 | D31: =C31*25% -> 0 | E31: 0.25 | G31: =F31*25% -> 0
A33: 2. HACER 45%
A34: a. Manejo de la historia clínica | B34: 0.45 | D34: =AVERAGE(C34:C36)*45% ->  | E34: 0.45 | G34: =AVERAGE(F34:F36)*45% -> 
A35: b. Destrezas y manualidades especificas
A36: c. Criterio clínico y terapéutico
A37: 3. EJECUCIÓN DEL DESEMPEÑO 10%
A38: a. Capacidad para tomar decisiones | B38: 0.05 | D38: =AVERAGE(C38:C39)*5% ->  | E38: 0.05 | G38: =AVERAGE(F38:F39)*5% -> 
A39: b. Relaciones humanas, trabajo en equipo
A41: NOTA DEFINITIVA | D41: =D25+D31+D34+D38 ->  | G41: =G25+G31+G34+G38 ->  | H41: =AVERAGE(D41:G41) -> 
A44: 1. SABER 45% | B44: Dra. Olaya | E44: Dra. Galeano
A45: a. Casos Clínicos | B45: 0.25 | D45: =AVERAGE(C45:C49)*25% ->  | E45: 0.25 | G45: =AVERAGE(F45:F49)*25% -> 
A46: b. Seminarios
A47: c. Revisiones de tema
A48: d. Club de Revistas
A49: e. Rondas - Juntas
A51: f. Examen Escrito en la última semana de rotación | B51: 0.25 | D51: =C51*25% -> 0 | E51: 0.25 | G51: =F51*25% -> 0
A53: 2. HACER 45%
A54: a. Manejo de la historia clínica | B54: 0.45 | D54: =AVERAGE(C54:C56)*45% ->  | E54: 0.45 | G54: =AVERAGE(F54:F56)*45% -> 
A55: b. Destrezas y manualidades especificas
A56: c. Criterio clínico y terapéutico
A57: 3. EJECUCIÓN DEL DESEMPEÑO 10%
A58: a. Capacidad para tomar decisiones | B58: 0.05 | D58: =AVERAGE(C58:C59)*5% ->  | E58: 0.05 | G58: =AVERAGE(F58:F59)*5% -> 
A59: b. Relaciones humanas, trabajo en equipo
A61: NOTA DEFINITIVA | D61: =D45+D51+D54+D58 ->  | G61: =G45+G51+G54+G58 ->  | H61: =AVERAGE(D61:G61) -> 
A64: 1. SABER 45% | B64: Dr. Moya | E64: Dra. Henao
A65: a. Casos Clínicos | B65: 0.25 | D65: =AVERAGE(C65:C69)*25% ->  | E65: 0.25 | G65: =AVERAGE(F65:F69)*25% -> 
A66: b. Seminarios
A67: c. Revisiones de tema
A68: d. Club de Revistas
A69: e. Rondas - Juntas
A71: f. Examen Escrito en la última semana de rotación | B71: 0.25 | D71: =C71*25% -> 0 | E71: 0.25 | G71: =F71*25% -> 0
A73: 2. HACER 45%
A74: a. Manejo de la historia clínica | B74: 0.45 | D74: =AVERAGE(C74:C76)*45% ->  | E74: 0.45 | G74: =AVERAGE(F74:F76)*45% -> 
A75: b. Destrezas y manualidades especificas
A76: c. Criterio clínico y terapéutico
A77: 3. EJECUCIÓN DEL DESEMPEÑO 10%
A78: a. Capacidad para tomar decisiones | B78: 0.05 | D78: =AVERAGE(C78:C79)*5% ->  | E78: 0.05 | G78: =AVERAGE(F78:F79)*5% -> 
A79: b. Relaciones humanas, trabajo en equipo
A81: NOTA DEFINITIVA | D81: =D65+D71+D74+D78 ->  | G81: =G65+G71+G74+G78 ->  | H81: =AVERAGE(D81:G81) -> 
A84: 1. SABER 45% | B84: Dr. León | E84: Dr. Benavides
A85: a. Casos Clínicos | B85: 0.25 | E85: 0.25 | G85: =AVERAGE(F85:F89)*25% -> 
A86: b. Seminarios
A87: c. Revisiones de tema
A88: d. Club de Revistas
A89: e. Rondas - Juntas
A91: f. Examen Escrito en la última semana de rotación | B91: 0.25 | E91: 0.25 | G91: =F91*25% -> 0
A93: 2. HACER 45%
A94: a. Manejo de la historia clínica | B94: 0.45 | E94: 0.45 | G94: =AVERAGE(F94:F96)*45% -> 
A95: b. Destrezas y manualidades especificas
A96: c. Criterio clínico y terapéutico
A97: 3. EJECUCIÓN DEL DESEMPEÑO 10%
A98: a. Capacidad para tomar decisiones | B98: 0.05 | E98: 0.05 | G98: =AVERAGE(F98:F99)*5% -> 
A99: b. Relaciones humanas, trabajo en equipo
A101: NOTA DEFINITIVA | G101: =G85+G91+G94+G98 ->  | H101: =AVERAGE(D101:G101) -> 
A104: 1. SABER 45% | B104: Armida | E104: Dr.Marin
A105: a. Casos Clínicos | B105: 0.25 | D105: =AVERAGE(C105:C109)*25% ->  | E105: 0.25 | G105: =AVERAGE(F105:F109)*25% -> 
A106: b. Seminarios
A107: c. Revisiones de tema
A108: d. Club de Revistas
A109: e. Rondas - Juntas
A111: f. Examen Escrito en la última semana de rotación | B111: 0.25 | D111: =C111*25% -> 0 | E111: 0.25 | G111: =F111*25% -> 0
A113: 2. HACER 45%
A114: a. Manejo de la historia clínica | B114: 0.45 | D114: =AVERAGE(C114:C116)*45% ->  | E114: 0.45 | G114: =AVERAGE(F114:F116)*45% -> 
A115: b. Destrezas y manualidades especificas
A116: c. Criterio clínico y terapéutico
A117: 3. EJECUCIÓN DEL DESEMPEÑO 10%
A118: a. Capacidad para tomar decisiones | B118: 0.05 | D118: =AVERAGE(C118:C119)*5% ->  | E118: 0.05 | G118: =AVERAGE(F118:F119)*5% -> 
A119: b. Relaciones humanas, trabajo en equipo
A121: NOTA DEFINITIVA | D121: =D105+D111+D114+D118 ->  | G121: =G105+G111+G114+G118 ->  | H121: =AVERAGE(D121:G121) -> 

Sheet Notas25 (hidden)
A4: 1. SABER 45% | B4: Dra. Daza | E4: Dra. Rubiano
A5: a. Casos Clínicos | B5: 0.25 | D5: =AVERAGE(C5:C9)*25% ->  | E5: 0.25 | G5: =AVERAGE(F5:F9)*25% -> 
A6: b. Seminarios
A7: c. Revisiones de tema
A8: d. Club de Revistas
A9: e. Rondas - Juntas
A11: f. Examen Escrito en la última semana de rotación | B11: 0.25 | D11: =C11*25% -> 0 | E11: 0.25 | G11: =F11*25% -> 0
A13: 2. HACER 45%
A14: a. Manejo de la historia clínica | B14: 0.45 | D14: =AVERAGE(C14:C16)*45% ->  | E14: 0.45 | G14: =AVERAGE(F14:F16)*45% -> 
A15: b. Destrezas y manualidades especificas
A16: c. Criterio clínico y terapéutico
A17: 3. EJECUCIÓN DEL DESEMPEÑO 10%
A18: a. Capacidad para tomar decisiones | B18: 0.05 | D18: =AVERAGE(C18:C19)*5% ->  | E18: 0.05 | G18: =AVERAGE(F18:F19)*5% -> 
A19: b. Relaciones humanas, trabajo en equipo
A21: NOTA DEFINITIVA | D21: =D5+D11+D14+D18 ->  | G21: =G5+G11+G14+G18 ->  | H21: =AVERAGE(D21:G21) -> 
A24: 1. SABER 45% | B24: Dra. Bedoya | E24: Dr. Gaviria
A25: a. Casos Clínicos | B25: 0.25 | D25: =AVERAGE(C25:C29)*25% ->  | E25: 0.25 | G25: =AVERAGE(F25:F29)*25% -> 
A26: b. Seminarios
A27: c. Revisiones de tema
A28: d. Club de Revistas
A29: e. Rondas - Juntas
A31: f. Examen Escrito en la última semana de rotación | B31: 0.25 | D31: =C31*25% -> 0 | E31: 0.25 | G31: =F31*25% -> 0
A33: 2. HACER 45%
A34: a. Manejo de la historia clínica | B34: 0.45 | D34: =AVERAGE(C34:C36)*45% ->  | E34: 0.45 | G34: =AVERAGE(F34:F36)*45% -> 
A35: b. Destrezas y manualidades especificas
A36: c. Criterio clínico y terapéutico
A37: 3. EJECUCIÓN DEL DESEMPEÑO 10%
A38: a. Capacidad para tomar decisiones | B38: 0.05 | D38: =AVERAGE(C38:C39)*5% ->  | E38: 0.05 | G38: =AVERAGE(F38:F39)*5% -> 
A39: b. Relaciones humanas, trabajo en equipo
A41: NOTA DEFINITIVA | D41: =D25+D31+D34+D38 ->  | G41: =G25+G31+G34+G38 ->  | H41: =AVERAGE(D41:G41) -> 
A44: 1. SABER 45% | B44: Dra. Olaya | E44: Dra. Galeano
A45: a. Casos Clínicos | B45: 0.25 | D45: =AVERAGE(C45:C49)*25% ->  | E45: 0.25 | G45: =AVERAGE(F45:F49)*25% -> 
A46: b. Seminarios
A47: c. Revisiones de tema
A48: d. Club de Revistas
A49: e. Rondas - Juntas
A51: f. Examen Escrito en la última semana de rotación | B51: 0.25 | D51: =C51*25% -> 0 | E51: 0.25 | G51: =F51*25% -> 0
A53: 2. HACER 45%
A54: a. Manejo de la historia clínica | B54: 0.45 | D54: =AVERAGE(C54:C56)*45% ->  | E54: 0.45 | G54: =AVERAGE(F54:F56)*45% -> 
A55: b. Destrezas y manualidades especificas
A56: c. Criterio clínico y terapéutico
A57: 3. EJECUCIÓN DEL DESEMPEÑO 10%
A58: a. Capacidad para tomar decisiones | B58: 0.05 | D58: =AVERAGE(C58:C59)*5% ->  | E58: 0.05 | G58: =AVERAGE(F58:F59)*5% -> 
A59: b. Relaciones humanas, trabajo en equipo
A61: NOTA DEFINITIVA | D61: =D45+D51+D54+D58 ->  | G61: =G45+G51+G54+G58 ->  | H61: =AVERAGE(D61:G61) -> 
A64: 1. SABER 45% | B64: Dr. Moya | E64: Dra. Henao
A65: a. Casos Clínicos | B65: 0.25 | D65: =AVERAGE(C65:C69)*25% ->  | E65: 0.25 | G65: =AVERAGE(F65:F69)*25% -> 
A66: b. Seminarios
A67: c. Revisiones de tema
A68: d. Club de Revistas
A69: e. Rondas - Juntas
A71: f. Examen Escrito en la última semana de rotación | B71: 0.25 | D71: =C71*25% -> 0 | E71: 0.25 | G71: =F71*25% -> 0
A73: 2. HACER 45%
A74: a. Manejo de la historia clínica | B74: 0.45 | D74: =AVERAGE(C74:C76)*45% ->  | E74: 0.45 | G74: =AVERAGE(F74:F76)*45% -> 
A75: b. Destrezas y manualidades especificas
A76: c. Criterio clínico y terapéutico
A77: 3. EJECUCIÓN DEL DESEMPEÑO 10%
A78: a. Capacidad para tomar decisiones | B78: 0.05 | D78: =AVERAGE(C78:C79)*5% ->  | E78: 0.05 | G78: =AVERAGE(F78:F79)*5% -> 
A79: b. Relaciones humanas, trabajo en equipo
A81: NOTA DEFINITIVA | D81: =D65+D71+D74+D78 ->  | G81: =G65+G71+G74+G78 ->  | H81: =AVERAGE(D81:G81) -> 
A84: 1. SABER 45% | B84: Dr. León | E84: Dr. Benavides
A85: a. Casos Clínicos | B85: 0.25 | E85: 0.25 | G85: =AVERAGE(F85:F89)*25% -> 
A86: b. Seminarios
A87: c. Revisiones de tema
A88: d. Club de Revistas
A89: e. Rondas - Juntas
A91: f. Examen Escrito en la última semana de rotación | B91: 0.25 | E91: 0.25 | G91: =F91*25% -> 0
A93: 2. HACER 45%
A94: a. Manejo de la historia clínica | B94: 0.45 | E94: 0.45 | G94: =AVERAGE(F94:F96)*45% -> 
A95: b. Destrezas y manualidades especificas
A96: c. Criterio clínico y terapéutico
A97: 3. EJECUCIÓN DEL DESEMPEÑO 10%
A98: a. Capacidad para tomar decisiones | B98: 0.05 | E98: 0.05 | G98: =AVERAGE(F98:F99)*5% -> 
A99: b. Relaciones humanas, trabajo en equipo
A101: NOTA DEFINITIVA | G101: =G85+G91+G94+G98 ->  | H101: =AVERAGE(D101:G101) -> 
A104: 1. SABER 45% | B104: Armida | E104: Dr.Marin
A105: a. Casos Clínicos | B105: 0.25 | D105: =AVERAGE(C105:C109)*25% ->  | E105: 0.25 | G105: =AVERAGE(F105:F109)*25% -> 
A106: b. Seminarios
A107: c. Revisiones de tema
A108: d. Club de Revistas
A109: e. Rondas - Juntas
A111: f. Examen Escrito en la última semana de rotación | B111: 0.25 | D111: =C111*25% -> 0 | E111: 0.25 | G111: =F111*25% -> 0
A113: 2. HACER 45%
A114: a. Manejo de la historia clínica | B114: 0.45 | D114: =AVERAGE(C114:C116)*45% ->  | E114: 0.45 | G114: =AVERAGE(F114:F116)*45% -> 
A115: b. Destrezas y manualidades especificas
A116: c. Criterio clínico y terapéutico
A117: 3. EJECUCIÓN DEL DESEMPEÑO 10%
A118: a. Capacidad para tomar decisiones | B118: 0.05 | D118: =AVERAGE(C118:C119)*5% ->  | E118: 0.05 | G118: =AVERAGE(F118:F119)*5% -> 
A119: b. Relaciones humanas, trabajo en equipo
A121: NOTA DEFINITIVA | D121: =D105+D111+D114+D118 ->  | G121: =G105+G111+G114+G118 ->  | H121: =AVERAGE(D121:G121) -> 

Sheet Notas26 (hidden)
A3: 1. SABER 45% | B3: Dra. Daza | E3: Dra. Rubiano
A4: a. Casos Clínicos | B4: 0.25 | D4: =AVERAGE(C4:C8)*25% ->  | E4: 0.25 | G4: =AVERAGE(F4:F8)*25% -> 
A5: b. Seminarios
A6: c. Revisiones de tema
A7: d. Club de Revistas
A8: e. Rondas - Juntas
A10: f. Examen Escrito en la última semana de rotación | B10: 0.25 | D10: =C10*25% -> 0 | E10: 0.25 | G10: =F10*25% -> 0
A12: 2. HACER 45%
A13: a. Manejo de la historia clínica | B13: 0.45 | D13: =AVERAGE(C13:C15)*45% ->  | E13: 0.45 | G13: =AVERAGE(F13:F15)*45% -> 
A14: b. Destrezas y manualidades especificas
A15: c. Criterio clínico y terapéutico
A16: 3. EJECUCIÓN DEL DESEMPEÑO 10%
A17: a. Capacidad para tomar decisiones | B17: 0.05 | D17: =AVERAGE(C17:C18)*5% ->  | E17: 0.05 | G17: =AVERAGE(F17:F18)*5% -> 
A18: b. Relaciones humanas, trabajo en equipo
A20: NOTA DEFINITIVA | D20: =D4+D10+D13+D17 ->  | G20: =G4+G10+G13+G17 ->  | H20: =AVERAGE(D20:G20) -> 
A23: 1. SABER 45% | B23: Dra. Bedoya | E23: Dr. Gaviria
A24: a. Casos Clínicos | B24: 0.25 | D24: =AVERAGE(C24:C28)*25% ->  | E24: 0.25 | G24: =AVERAGE(F24:F28)*25% -> 
A25: b. Seminarios
A26: c. Revisiones de tema
A27: d. Club de Revistas
A28: e. Rondas - Juntas
A30: f. Examen Escrito en la última semana de rotación | B30: 0.25 | D30: =C30*25% -> 0 | E30: 0.25 | G30: =F30*25% -> 0
A32: 2. HACER 45%
A33: a. Manejo de la historia clínica | B33: 0.45 | D33: =AVERAGE(C33:C35)*45% ->  | E33: 0.45 | G33: =AVERAGE(F33:F35)*45% -> 
A34: b. Destrezas y manualidades especificas
A35: c. Criterio clínico y terapéutico
A36: 3. EJECUCIÓN DEL DESEMPEÑO 10%
A37: a. Capacidad para tomar decisiones | B37: 0.05 | D37: =AVERAGE(C37:C38)*5% ->  | E37: 0.05 | G37: =AVERAGE(F37:F38)*5% -> 
A38: b. Relaciones humanas, trabajo en equipo
A40: NOTA DEFINITIVA | D40: =D24+D30+D33+D37 ->  | G40: =G24+G30+G33+G37 ->  | H40: =AVERAGE(D40:G40) -> 
A43: 1. SABER 45% | B43: Dra. Olaya | E43: Dra. Galeano
A44: a. Casos Clínicos | B44: 0.25 | D44: =AVERAGE(C44:C48)*25% ->  | E44: 0.25 | G44: =AVERAGE(F44:F48)*25% -> 
A45: b. Seminarios
A46: c. Revisiones de tema
A47: d. Club de Revistas
A48: e. Rondas - Juntas
A50: f. Examen Escrito en la última semana de rotación | B50: 0.25 | D50: =C50*25% -> 0 | E50: 0.25 | G50: =F50*25% -> 0
A52: 2. HACER 45%
A53: a. Manejo de la historia clínica | B53: 0.45 | D53: =AVERAGE(C53:C55)*45% ->  | E53: 0.45 | G53: =AVERAGE(F53:F55)*45% -> 
A54: b. Destrezas y manualidades especificas
A55: c. Criterio clínico y terapéutico
A56: 3. EJECUCIÓN DEL DESEMPEÑO 10%
A57: a. Capacidad para tomar decisiones | B57: 0.05 | D57: =AVERAGE(C57:C58)*5% ->  | E57: 0.05 | G57: =AVERAGE(F57:F58)*5% -> 
A58: b. Relaciones humanas, trabajo en equipo
A60: NOTA DEFINITIVA | D60: =D44+D50+D53+D57 ->  | G60: =G44+G50+G53+G57 ->  | H60: =AVERAGE(D60:G60) -> 
A63: 1. SABER 45% | B63: Dr. Moya | E63: Dra. Henao
A64: a. Casos Clínicos | B64: 0.25 | D64: =AVERAGE(C64:C68)*25% ->  | E64: 0.25 | G64: =AVERAGE(F64:F68)*25% -> 
A65: b. Seminarios
A66: c. Revisiones de tema
A67: d. Club de Revistas
A68: e. Rondas - Juntas
A70: f. Examen Escrito en la última semana de rotación | B70: 0.25 | D70: =C70*25% -> 0 | E70: 0.25 | G70: =F70*25% -> 0
A72: 2. HACER 45%
A73: a. Manejo de la historia clínica | B73: 0.45 | D73: =AVERAGE(C73:C75)*45% ->  | E73: 0.45 | G73: =AVERAGE(F73:F75)*45% -> 
A74: b. Destrezas y manualidades especificas
A75: c. Criterio clínico y terapéutico
A76: 3. EJECUCIÓN DEL DESEMPEÑO 10%
A77: a. Capacidad para tomar decisiones | B77: 0.05 | D77: =AVERAGE(C77:C78)*5% ->  | E77: 0.05 | G77: =AVERAGE(F77:F78)*5% -> 
A78: b. Relaciones humanas, trabajo en equipo
A80: NOTA DEFINITIVA | D80: =D64+D70+D73+D77 ->  | G80: =G64+G70+G73+G77 ->  | H80: =AVERAGE(D80:G80) -> 
A83: 1. SABER 45% | B83: Dr. León | E83: Dr. Benavides
A84: a. Casos Clínicos | B84: 0.25 | E84: 0.25 | G84: =AVERAGE(F84:F88)*25% -> 
A85: b. Seminarios
A86: c. Revisiones de tema
A87: d. Club de Revistas
A88: e. Rondas - Juntas
A90: f. Examen Escrito en la última semana de rotación | B90: 0.25 | E90: 0.25 | G90: =F90*25% -> 0
A92: 2. HACER 45%
A93: a. Manejo de la historia clínica | B93: 0.45 | E93: 0.45 | G93: =AVERAGE(F93:F95)*45% -> 
A94: b. Destrezas y manualidades especificas
A95: c. Criterio clínico y terapéutico
A96: 3. EJECUCIÓN DEL DESEMPEÑO 10%
A97: a. Capacidad para tomar decisiones | B97: 0.05 | E97: 0.05 | G97: =AVERAGE(F97:F98)*5% -> 
A98: b. Relaciones humanas, trabajo en equipo
A100: NOTA DEFINITIVA | G100: =G84+G90+G93+G97 ->  | H100: =AVERAGE(D100:G100) -> 
A103: 1. SABER 45% | B103: Armida | E103: Dr.Marin
A104: a. Casos Clínicos | B104: 0.25 | D104: =AVERAGE(C104:C108)*25% ->  | E104: 0.25 | G104: =AVERAGE(F104:F108)*25% -> 
A105: b. Seminarios
A106: c. Revisiones de tema
A107: d. Club de Revistas
A108: e. Rondas - Juntas
A110: f. Examen Escrito en la última semana de rotación | B110: 0.25 | D110: =C110*25% -> 0 | E110: 0.25 | G110: =F110*25% -> 0
A112: 2. HACER 45%
A113: a. Manejo de la historia clínica | B113: 0.45 | D113: =AVERAGE(C113:C115)*45% ->  | E113: 0.45 | G113: =AVERAGE(F113:F115)*45% -> 
A114: b. Destrezas y manualidades especificas
A115: c. Criterio clínico y terapéutico
A116: 3. EJECUCIÓN DEL DESEMPEÑO 10%
A117: a. Capacidad para tomar decisiones | B117: 0.05 | D117: =AVERAGE(C117:C118)*5% ->  | E117: 0.05 | G117: =AVERAGE(F117:F118)*5% -> 
A118: b. Relaciones humanas, trabajo en equipo
A120: NOTA DEFINITIVA | D120: =D104+D110+D113+D117 ->  | G120: =G104+G110+G113+G117 ->  | H120: =AVERAGE(D120:G120) -> 

Sheet Notas27 (hidden)
A3: 1. SABER 45% | B3: Dra. Daza | E3: Dra. Rubiano
A4: a. Casos Clínicos | B4: 0.25 | D4: =AVERAGE(C4:C8)*25% ->  | E4: 0.25 | G4: =AVERAGE(F4:F8)*25% -> 
A5: b. Seminarios
A6: c. Revisiones de tema
A7: d. Club de Revistas
A8: e. Rondas - Juntas
A10: f. Examen Escrito en la última semana de rotación | B10: 0.25 | D10: =C10*25% -> 0 | E10: 0.25 | G10: =F10*25% -> 0
A12: 2. HACER 45%
A13: a. Manejo de la historia clínica | B13: 0.45 | D13: =AVERAGE(C13:C15)*45% ->  | E13: 0.45 | G13: =AVERAGE(F13:F15)*45% -> 
A14: b. Destrezas y manualidades especificas
A15: c. Criterio clínico y terapéutico
A16: 3. EJECUCIÓN DEL DESEMPEÑO 10%
A17: a. Capacidad para tomar decisiones | B17: 0.05 | D17: =AVERAGE(C17:C18)*5% ->  | E17: 0.05 | G17: =AVERAGE(F17:F18)*5% -> 
A18: b. Relaciones humanas, trabajo en equipo
A20: NOTA DEFINITIVA | D20: =D4+D10+D13+D17 ->  | G20: =G4+G10+G13+G17 ->  | H20: =AVERAGE(D20:G20) -> 
A23: 1. SABER 45% | B23: Dra. Bedoya | E23: Dr. Gaviria
A24: a. Casos Clínicos | B24: 0.25 | D24: =AVERAGE(C24:C28)*25% ->  | E24: 0.25 | G24: =AVERAGE(F24:F28)*25% -> 
A25: b. Seminarios
A26: c. Revisiones de tema
A27: d. Club de Revistas
A28: e. Rondas - Juntas
A30: f. Examen Escrito en la última semana de rotación | B30: 0.25 | D30: =C30*25% -> 0 | E30: 0.25 | G30: =F30*25% -> 0
A32: 2. HACER 45%
A33: a. Manejo de la historia clínica | B33: 0.45 | D33: =AVERAGE(C33:C35)*45% ->  | E33: 0.45 | G33: =AVERAGE(F33:F35)*45% -> 
A34: b. Destrezas y manualidades especificas
A35: c. Criterio clínico y terapéutico
A36: 3. EJECUCIÓN DEL DESEMPEÑO 10%
A37: a. Capacidad para tomar decisiones | B37: 0.05 | D37: =AVERAGE(C37:C38)*5% ->  | E37: 0.05 | G37: =AVERAGE(F37:F38)*5% -> 
A38: b. Relaciones humanas, trabajo en equipo
A40: NOTA DEFINITIVA | D40: =D24+D30+D33+D37 ->  | G40: =G24+G30+G33+G37 ->  | H40: =AVERAGE(D40:G40) -> 
A43: 1. SABER 45% | B43: Dra. Olaya | E43: Dra. Galeano
A44: a. Casos Clínicos | B44: 0.25 | D44: =AVERAGE(C44:C48)*25% ->  | E44: 0.25 | G44: =AVERAGE(F44:F48)*25% -> 
A45: b. Seminarios
A46: c. Revisiones de tema
A47: d. Club de Revistas
A48: e. Rondas - Juntas
A50: f. Examen Escrito en la última semana de rotación | B50: 0.25 | D50: =C50*25% -> 0 | E50: 0.25 | G50: =F50*25% -> 0
A52: 2. HACER 45%
A53: a. Manejo de la historia clínica | B53: 0.45 | D53: =AVERAGE(C53:C55)*45% ->  | E53: 0.45 | G53: =AVERAGE(F53:F55)*45% -> 
A54: b. Destrezas y manualidades especificas
A55: c. Criterio clínico y terapéutico
A56: 3. EJECUCIÓN DEL DESEMPEÑO 10%
A57: a. Capacidad para tomar decisiones | B57: 0.05 | D57: =AVERAGE(C57:C58)*5% ->  | E57: 0.05 | G57: =AVERAGE(F57:F58)*5% -> 
A58: b. Relaciones humanas, trabajo en equipo
A60: NOTA DEFINITIVA | D60: =D44+D50+D53+D57 ->  | G60: =G44+G50+G53+G57 ->  | H60: =AVERAGE(D60:G60) -> 
A63: 1. SABER 45% | B63: Dr. Moya | E63: Dra. Henao
A64: a. Casos Clínicos | B64: 0.25 | D64: =AVERAGE(C64:C68)*25% ->  | E64: 0.25 | G64: =AVERAGE(F64:F68)*25% -> 
A65: b. Seminarios
A66: c. Revisiones de tema
A67: d. Club de Revistas
A68: e. Rondas - Juntas
A70: f. Examen Escrito en la última semana de rotación | B70: 0.25 | D70: =C70*25% -> 0 | E70: 0.25 | G70: =F70*25% -> 0
A72: 2. HACER 45%
A73: a. Manejo de la historia clínica | B73: 0.45 | D73: =AVERAGE(C73:C75)*45% ->  | E73: 0.45 | G73: =AVERAGE(F73:F75)*45% -> 
A74: b. Destrezas y manualidades especificas
A75: c. Criterio clínico y terapéutico
A76: 3. EJECUCIÓN DEL DESEMPEÑO 10%
A77: a. Capacidad para tomar decisiones | B77: 0.05 | D77: =AVERAGE(C77:C78)*5% ->  | E77: 0.05 | G77: =AVERAGE(F77:F78)*5% -> 
A78: b. Relaciones humanas, trabajo en equipo
A80: NOTA DEFINITIVA | D80: =D64+D70+D73+D77 ->  | G80: =G64+G70+G73+G77 ->  | H80: =AVERAGE(D80:G80) -> 
A83: 1. SABER 45% | B83: Dr. León | E83: Dr. Benavides
A84: a. Casos Clínicos | B84: 0.25 | E84: 0.25 | G84: =AVERAGE(F84:F88)*25% -> 
A85: b. Seminarios
A86: c. Revisiones de tema
A87: d. Club de Revistas
A88: e. Rondas - Juntas
A90: f. Examen Escrito en la última semana de rotación | B90: 0.25 | E90: 0.25 | G90: =F90*25% -> 0
A92: 2. HACER 45%
A93: a. Manejo de la historia clínica | B93: 0.45 | E93: 0.45 | G93: =AVERAGE(F93:F95)*45% -> 
A94: b. Destrezas y manualidades especificas
A95: c. Criterio clínico y terapéutico
A96: 3. EJECUCIÓN DEL DESEMPEÑO 10%
A97: a. Capacidad para tomar decisiones | B97: 0.05 | E97: 0.05 | G97: =AVERAGE(F97:F98)*5% -> 
A98: b. Relaciones humanas, trabajo en equipo
A100: NOTA DEFINITIVA | G100: =G84+G90+G93+G97 ->  | H100: =AVERAGE(D100:G100) -> 
A103: 1. SABER 45% | B103: Armida | E103: Dr.Marin
A104: a. Casos Clínicos | B104: 0.25 | D104: =AVERAGE(C104:C108)*25% ->  | E104: 0.25 | G104: =AVERAGE(F104:F108)*25% -> 
A105: b. Seminarios
A106: c. Revisiones de tema
A107: d. Club de Revistas
A108: e. Rondas - Juntas
A110: f. Examen Escrito en la última semana de rotación | B110: 0.25 | D110: =C110*25% -> 0 | E110: 0.25 | G110: =F110*25% -> 0
A112: 2. HACER 45%
A113: a. Manejo de la historia clínica | B113: 0.45 | D113: =AVERAGE(C113:C115)*45% ->  | E113: 0.45 | G113: =AVERAGE(F113:F115)*45% -> 
A114: b. Destrezas y manualidades especificas
A115: c. Criterio clínico y terapéutico
A116: 3. EJECUCIÓN DEL DESEMPEÑO 10%
A117: a. Capacidad para tomar decisiones | B117: 0.05 | D117: =AVERAGE(C117:C118)*5% ->  | E117: 0.05 | G117: =AVERAGE(F117:F118)*5% -> 
A118: b. Relaciones humanas, trabajo en equipo
A120: NOTA DEFINITIVA | D120: =D104+D110+D113+D117 ->  | G120: =G104+G110+G113+G117 ->  | H120: =AVERAGE(D120:G120) -> 

Sheet Notas28 (hidden)
A4: 1. SABER 45% | B4: Dra. Daza | E4: Dra. Rubiano
A5: a. Casos Clínicos | B5: 0.25 | D5: =AVERAGE(C5:C9)*25% ->  | E5: 0.25 | G5: =AVERAGE(F5:F9)*25% -> 
A6: b. Seminarios
A7: c. Revisiones de tema
A8: d. Club de Revistas
A9: e. Rondas - Juntas
A11: f. Examen Escrito en la última semana de rotación | B11: 0.25 | D11: =C11*25% -> 0 | E11: 0.25 | G11: =F11*25% -> 0
A13: 2. HACER 45%
A14: a. Manejo de la historia clínica | B14: 0.45 | D14: =AVERAGE(C14:C16)*45% ->  | E14: 0.45 | G14: =AVERAGE(F14:F16)*45% -> 
A15: b. Destrezas y manualidades especificas
A16: c. Criterio clínico y terapéutico
A17: 3. EJECUCIÓN DEL DESEMPEÑO 10%
A18: a. Capacidad para tomar decisiones | B18: 0.05 | D18: =AVERAGE(C18:C19)*5% ->  | E18: 0.05 | G18: =AVERAGE(F18:F19)*5% -> 
A19: b. Relaciones humanas, trabajo en equipo
A21: NOTA DEFINITIVA | D21: =D5+D11+D14+D18 ->  | G21: =G5+G11+G14+G18 ->  | H21: =AVERAGE(D21:G21) -> 
A24: 1. SABER 45% | B24: Dra. Bedoya | E24: Dr. Gaviria
A25: a. Casos Clínicos | B25: 0.25 | D25: =AVERAGE(C25:C29)*25% ->  | E25: 0.25 | G25: =AVERAGE(F25:F29)*25% -> 
A26: b. Seminarios
A27: c. Revisiones de tema
A28: d. Club de Revistas
A29: e. Rondas - Juntas
A31: f. Examen Escrito en la última semana de rotación | B31: 0.25 | D31: =C31*25% -> 0 | E31: 0.25 | G31: =F31*25% -> 0
A33: 2. HACER 45%
A34: a. Manejo de la historia clínica | B34: 0.45 | D34: =AVERAGE(C34:C36)*45% ->  | E34: 0.45 | G34: =AVERAGE(F34:F36)*45% -> 
A35: b. Destrezas y manualidades especificas
A36: c. Criterio clínico y terapéutico
A37: 3. EJECUCIÓN DEL DESEMPEÑO 10%
A38: a. Capacidad para tomar decisiones | B38: 0.05 | D38: =AVERAGE(C38:C39)*5% ->  | E38: 0.05 | G38: =AVERAGE(F38:F39)*5% -> 
A39: b. Relaciones humanas, trabajo en equipo
A41: NOTA DEFINITIVA | D41: =D25+D31+D34+D38 ->  | G41: =G25+G31+G34+G38 ->  | H41: =AVERAGE(D41:G41) -> 
A44: 1. SABER 45% | B44: Dra. Olaya | E44: Dra. Galeano
A45: a. Casos Clínicos | B45: 0.25 | D45: =AVERAGE(C45:C49)*25% ->  | E45: 0.25 | G45: =AVERAGE(F45:F49)*25% -> 
A46: b. Seminarios
A47: c. Revisiones de tema
A48: d. Club de Revistas
A49: e. Rondas - Juntas
A51: f. Examen Escrito en la última semana de rotación | B51: 0.25 | D51: =C51*25% -> 0 | E51: 0.25 | G51: =F51*25% -> 0
A53: 2. HACER 45%
A54: a. Manejo de la historia clínica | B54: 0.45 | D54: =AVERAGE(C54:C56)*45% ->  | E54: 0.45 | G54: =AVERAGE(F54:F56)*45% -> 
A55: b. Destrezas y manualidades especificas
A56: c. Criterio clínico y terapéutico
A57: 3. EJECUCIÓN DEL DESEMPEÑO 10%
A58: a. Capacidad para tomar decisiones | B58: 0.05 | D58: =AVERAGE(C58:C59)*5% ->  | E58: 0.05 | G58: =AVERAGE(F58:F59)*5% -> 
A59: b. Relaciones humanas, trabajo en equipo
A61: NOTA DEFINITIVA | D61: =D45+D51+D54+D58 ->  | G61: =G45+G51+G54+G58 ->  | H61: =AVERAGE(D61:G61) -> 
A64: 1. SABER 45% | B64: Dr. Moya | E64: Dra. Henao
A65: a. Casos Clínicos | B65: 0.25 | D65: =AVERAGE(C65:C69)*25% ->  | E65: 0.25 | G65: =AVERAGE(F65:F69)*25% -> 
A66: b. Seminarios
A67: c. Revisiones de tema
A68: d. Club de Revistas
A69: e. Rondas - Juntas
A71: f. Examen Escrito en la última semana de rotación | B71: 0.25 | D71: =C71*25% -> 0 | E71: 0.25 | G71: =F71*25% -> 0
A73: 2. HACER 45%
A74: a. Manejo de la historia clínica | B74: 0.45 | D74: =AVERAGE(C74:C76)*45% ->  | E74: 0.45 | G74: =AVERAGE(F74:F76)*45% -> 
A75: b. Destrezas y manualidades especificas
A76: c. Criterio clínico y terapéutico
A77: 3. EJECUCIÓN DEL DESEMPEÑO 10%
A78: a. Capacidad para tomar decisiones | B78: 0.05 | D78: =AVERAGE(C78:C79)*5% ->  | E78: 0.05 | G78: =AVERAGE(F78:F79)*5% -> 
A79: b. Relaciones humanas, trabajo en equipo
A81: NOTA DEFINITIVA | D81: =D65+D71+D74+D78 ->  | G81: =G65+G71+G74+G78 ->  | H81: =AVERAGE(D81:G81) -> 
A84: 1. SABER 45% | B84: Dr. León | E84: Dr. Benavides
A85: a. Casos Clínicos | B85: 0.25 | E85: 0.25 | G85: =AVERAGE(F85:F89)*25% -> 
A86: b. Seminarios
A87: c. Revisiones de tema
A88: d. Club de Revistas
A89: e. Rondas - Juntas
A91: f. Examen Escrito en la última semana de rotación | B91: 0.25 | E91: 0.25 | G91: =F91*25% -> 0
A93: 2. HACER 45%
A94: a. Manejo de la historia clínica | B94: 0.45 | E94: 0.45 | G94: =AVERAGE(F94:F96)*45% -> 
A95: b. Destrezas y manualidades especificas
A96: c. Criterio clínico y terapéutico
A97: 3. EJECUCIÓN DEL DESEMPEÑO 10%
A98: a. Capacidad para tomar decisiones | B98: 0.05 | E98: 0.05 | G98: =AVERAGE(F98:F99)*5% -> 
A99: b. Relaciones humanas, trabajo en equipo
A101: NOTA DEFINITIVA | G101: =G85+G91+G94+G98 ->  | H101: =AVERAGE(D101:G101) -> 
A104: 1. SABER 45% | B104: Armida | E104: Dr.Marin
A105: a. Casos Clínicos | B105: 0.25 | D105: =AVERAGE(C105:C109)*25% ->  | E105: 0.25 | G105: =AVERAGE(F105:F109)*25% -> 
A106: b. Seminarios
A107: c. Revisiones de tema
A108: d. Club de Revistas
A109: e. Rondas - Juntas
A111: f. Examen Escrito en la última semana de rotación | B111: 0.25 | D111: =C111*25% -> 0 | E111: 0.25 | G111: =F111*25% -> 0
A113: 2. HACER 45%
A114: a. Manejo de la historia clínica | B114: 0.45 | D114: =AVERAGE(C114:C116)*45% ->  | E114: 0.45 | G114: =AVERAGE(F114:F116)*45% -> 
A115: b. Destrezas y manualidades especificas
A116: c. Criterio clínico y terapéutico
A117: 3. EJECUCIÓN DEL DESEMPEÑO 10%
A118: a. Capacidad para tomar decisiones | B118: 0.05 | D118: =AVERAGE(C118:C119)*5% ->  | E118: 0.05 | G118: =AVERAGE(F118:F119)*5% -> 
A119: b. Relaciones humanas, trabajo en equipo
A121: NOTA DEFINITIVA | D121: =D105+D111+D114+D118 ->  | G121: =G105+G111+G114+G118 ->  | H121: =AVERAGE(D121:G121) -> 

Sheet Notas29 (hidden)
A3: 1. SABER 45% | B3: Dra. Daza | E3: Dra. Rubiano
A4: a. Casos Clínicos | B4: 0.25 | D4: =AVERAGE(C4:C8)*25% ->  | E4: 0.25 | G4: =AVERAGE(F4:F8)*25% -> 
A5: b. Seminarios
A6: c. Revisiones de tema
A7: d. Club de Revistas
A8: e. Rondas - Juntas
A10: f. Examen Escrito en la última semana de rotación | B10: 0.25 | D10: =C10*25% -> 0 | E10: 0.25 | G10: =F10*25% -> 0
A12: 2. HACER 45%
A13: a. Manejo de la historia clínica | B13: 0.45 | D13: =AVERAGE(C13:C15)*45% ->  | E13: 0.45 | G13: =AVERAGE(F13:F15)*45% -> 
A14: b. Destrezas y manualidades especificas
A15: c. Criterio clínico y terapéutico
A16: 3. EJECUCIÓN DEL DESEMPEÑO 10%
A17: a. Capacidad para tomar decisiones | B17: 0.05 | D17: =AVERAGE(C17:C18)*5% ->  | E17: 0.05 | G17: =AVERAGE(F17:F18)*5% -> 
A18: b. Relaciones humanas, trabajo en equipo
A20: NOTA DEFINITIVA | D20: =D4+D10+D13+D17 ->  | G20: =G4+G10+G13+G17 ->  | H20: =AVERAGE(D20:G20) -> 
A23: 1. SABER 45% | B23: Dra. Bedoya | E23: Dr. Gaviria
A24: a. Casos Clínicos | B24: 0.25 | D24: =AVERAGE(C24:C28)*25% ->  | E24: 0.25 | G24: =AVERAGE(F24:F28)*25% -> 
A25: b. Seminarios
A26: c. Revisiones de tema
A27: d. Club de Revistas
A28: e. Rondas - Juntas
A30: f. Examen Escrito en la última semana de rotación | B30: 0.25 | D30: =C30*25% -> 0 | E30: 0.25 | G30: =F30*25% -> 0
A32: 2. HACER 45%
A33: a. Manejo de la historia clínica | B33: 0.45 | D33: =AVERAGE(C33:C35)*45% ->  | E33: 0.45 | G33: =AVERAGE(F33:F35)*45% -> 
A34: b. Destrezas y manualidades especificas
A35: c. Criterio clínico y terapéutico
A36: 3. EJECUCIÓN DEL DESEMPEÑO 10%
A37: a. Capacidad para tomar decisiones | B37: 0.05 | D37: =AVERAGE(C37:C38)*5% ->  | E37: 0.05 | G37: =AVERAGE(F37:F38)*5% -> 
A38: b. Relaciones humanas, trabajo en equipo
A40: NOTA DEFINITIVA | D40: =D24+D30+D33+D37 ->  | G40: =G24+G30+G33+G37 ->  | H40: =AVERAGE(D40:G40) -> 
A43: 1. SABER 45% | B43: Dra. Olaya | E43: Dra. Galeano
A44: a. Casos Clínicos | B44: 0.25 | D44: =AVERAGE(C44:C48)*25% ->  | E44: 0.25 | G44: =AVERAGE(F44:F48)*25% -> 
A45: b. Seminarios
A46: c. Revisiones de tema
A47: d. Club de Revistas
A48: e. Rondas - Juntas
A50: f. Examen Escrito en la última semana de rotación | B50: 0.25 | D50: =C50*25% -> 0 | E50: 0.25 | G50: =F50*25% -> 0
A52: 2. HACER 45%
A53: a. Manejo de la historia clínica | B53: 0.45 | D53: =AVERAGE(C53:C55)*45% ->  | E53: 0.45 | G53: =AVERAGE(F53:F55)*45% -> 
A54: b. Destrezas y manualidades especificas
A55: c. Criterio clínico y terapéutico
A56: 3. EJECUCIÓN DEL DESEMPEÑO 10%
A57: a. Capacidad para tomar decisiones | B57: 0.05 | D57: =AVERAGE(C57:C58)*5% ->  | E57: 0.05 | G57: =AVERAGE(F57:F58)*5% -> 
A58: b. Relaciones humanas, trabajo en equipo
A60: NOTA DEFINITIVA | D60: =D44+D50+D53+D57 ->  | G60: =G44+G50+G53+G57 ->  | H60: =AVERAGE(D60:G60) -> 
A63: 1. SABER 45% | B63: Dr. Moya | E63: Dra. Henao
A64: a. Casos Clínicos | B64: 0.25 | D64: =AVERAGE(C64:C68)*25% ->  | E64: 0.25 | G64: =AVERAGE(F64:F68)*25% -> 
A65: b. Seminarios
A66: c. Revisiones de tema
A67: d. Club de Revistas
A68: e. Rondas - Juntas
A70: f. Examen Escrito en la última semana de rotación | B70: 0.25 | D70: =C70*25% -> 0 | E70: 0.25 | G70: =F70*25% -> 0
A72: 2. HACER 45%
A73: a. Manejo de la historia clínica | B73: 0.45 | D73: =AVERAGE(C73:C75)*45% ->  | E73: 0.45 | G73: =AVERAGE(F73:F75)*45% -> 
A74: b. Destrezas y manualidades especificas
A75: c. Criterio clínico y terapéutico
A76: 3. EJECUCIÓN DEL DESEMPEÑO 10%
A77: a. Capacidad para tomar decisiones | B77: 0.05 | D77: =AVERAGE(C77:C78)*5% ->  | E77: 0.05 | G77: =AVERAGE(F77:F78)*5% -> 
A78: b. Relaciones humanas, trabajo en equipo
A80: NOTA DEFINITIVA | D80: =D64+D70+D73+D77 ->  | G80: =G64+G70+G73+G77 ->  | H80: =AVERAGE(D80:G80) -> 
A83: 1. SABER 45% | B83: Dr. León | E83: Dr. Benavides
A84: a. Casos Clínicos | B84: 0.25 | E84: 0.25 | G84: =AVERAGE(F84:F88)*25% -> 
A85: b. Seminarios
A86: c. Revisiones de tema
A87: d. Club de Revistas
A88: e. Rondas - Juntas
A90: f. Examen Escrito en la última semana de rotación | B90: 0.25 | E90: 0.25 | G90: =F90*25% -> 0
A92: 2. HACER 45%
A93: a. Manejo de la historia clínica | B93: 0.45 | E93: 0.45 | G93: =AVERAGE(F93:F95)*45% -> 
A94: b. Destrezas y manualidades especificas
A95: c. Criterio clínico y terapéutico
A96: 3. EJECUCIÓN DEL DESEMPEÑO 10%
A97: a. Capacidad para tomar decisiones | B97: 0.05 | E97: 0.05 | G97: =AVERAGE(F97:F98)*5% -> 
A98: b. Relaciones humanas, trabajo en equipo
A100: NOTA DEFINITIVA | G100: =G84+G90+G93+G97 ->  | H100: =AVERAGE(D100:G100) -> 
A103: 1. SABER 45% | B103: Armida | E103: Dr.Marin
A104: a. Casos Clínicos | B104: 0.25 | D104: =AVERAGE(C104:C108)*25% ->  | E104: 0.25 | G104: =AVERAGE(F104:F108)*25% -> 
A105: b. Seminarios
A106: c. Revisiones de tema
A107: d. Club de Revistas
A108: e. Rondas - Juntas
A110: f. Examen Escrito en la última semana de rotación | B110: 0.25 | D110: =C110*25% -> 0 | E110: 0.25 | G110: =F110*25% -> 0
A112: 2. HACER 45%
A113: a. Manejo de la historia clínica | B113: 0.45 | D113: =AVERAGE(C113:C115)*45% ->  | E113: 0.45 | G113: =AVERAGE(F113:F115)*45% -> 
A114: b. Destrezas y manualidades especificas
A115: c. Criterio clínico y terapéutico
A116: 3. EJECUCIÓN DEL DESEMPEÑO 10%
A117: a. Capacidad para tomar decisiones | B117: 0.05 | D117: =AVERAGE(C117:C118)*5% ->  | E117: 0.05 | G117: =AVERAGE(F117:F118)*5% -> 
A118: b. Relaciones humanas, trabajo en equipo
A120: NOTA DEFINITIVA | D120: =D104+D110+D113+D117 ->  | G120: =G104+G110+G113+G117 ->  | H120: =AVERAGE(D120:G120) -> 

Sheet Notas30 (hidden)
A3: 1. SABER 45% | B3: Dra. Daza | E3: Dra. Rubiano
A4: a. Casos Clínicos | B4: 0.25 | D4: =AVERAGE(C4:C8)*25% ->  | E4: 0.25 | G4: =AVERAGE(F4:F8)*25% -> 
A5: b. Seminarios
A6: c. Revisiones de tema
A7: d. Club de Revistas
A8: e. Rondas - Juntas
A10: f. Examen Escrito en la última semana de rotación | B10: 0.25 | D10: =C10*25% -> 0 | E10: 0.25 | G10: =F10*25% -> 0
A12: 2. HACER 45%
A13: a. Manejo de la historia clínica | B13: 0.45 | D13: =AVERAGE(C13:C15)*45% ->  | E13: 0.45 | G13: =AVERAGE(F13:F15)*45% -> 
A14: b. Destrezas y manualidades especificas
A15: c. Criterio clínico y terapéutico
A16: 3. EJECUCIÓN DEL DESEMPEÑO 10%
A17: a. Capacidad para tomar decisiones | B17: 0.05 | D17: =AVERAGE(C17:C18)*5% ->  | E17: 0.05 | G17: =AVERAGE(F17:F18)*5% -> 
A18: b. Relaciones humanas, trabajo en equipo
A20: NOTA DEFINITIVA | D20: =D4+D10+D13+D17 ->  | G20: =G4+G10+G13+G17 ->  | H20: =AVERAGE(D20:G20) -> 
A23: 1. SABER 45% | B23: Dra. Bedoya | E23: Dr. Gaviria
A24: a. Casos Clínicos | B24: 0.25 | D24: =AVERAGE(C24:C28)*25% ->  | E24: 0.25 | G24: =AVERAGE(F24:F28)*25% -> 
A25: b. Seminarios
A26: c. Revisiones de tema
A27: d. Club de Revistas
A28: e. Rondas - Juntas
A30: f. Examen Escrito en la última semana de rotación | B30: 0.25 | D30: =C30*25% -> 0 | E30: 0.25 | G30: =F30*25% -> 0
A32: 2. HACER 45%
A33: a. Manejo de la historia clínica | B33: 0.45 | D33: =AVERAGE(C33:C35)*45% ->  | E33: 0.45 | G33: =AVERAGE(F33:F35)*45% -> 
A34: b. Destrezas y manualidades especificas
A35: c. Criterio clínico y terapéutico
A36: 3. EJECUCIÓN DEL DESEMPEÑO 10%
A37: a. Capacidad para tomar decisiones | B37: 0.05 | D37: =AVERAGE(C37:C38)*5% ->  | E37: 0.05 | G37: =AVERAGE(F37:F38)*5% -> 
A38: b. Relaciones humanas, trabajo en equipo
A40: NOTA DEFINITIVA | D40: =D24+D30+D33+D37 ->  | G40: =G24+G30+G33+G37 ->  | H40: =AVERAGE(D40:G40) -> 
A43: 1. SABER 45% | B43: Dra. Olaya | E43: Dra. Galeano
A44: a. Casos Clínicos | B44: 0.25 | D44: =AVERAGE(C44:C48)*25% ->  | E44: 0.25 | G44: =AVERAGE(F44:F48)*25% -> 
A45: b. Seminarios
A46: c. Revisiones de tema
A47: d. Club de Revistas
A48: e. Rondas - Juntas
A50: f. Examen Escrito en la última semana de rotación | B50: 0.25 | D50: =C50*25% -> 0 | E50: 0.25 | G50: =F50*25% -> 0
A52: 2. HACER 45%
A53: a. Manejo de la historia clínica | B53: 0.45 | D53: =AVERAGE(C53:C55)*45% ->  | E53: 0.45 | G53: =AVERAGE(F53:F55)*45% -> 
A54: b. Destrezas y manualidades especificas
A55: c. Criterio clínico y terapéutico
A56: 3. EJECUCIÓN DEL DESEMPEÑO 10%
A57: a. Capacidad para tomar decisiones | B57: 0.05 | D57: =AVERAGE(C57:C58)*5% ->  | E57: 0.05 | G57: =AVERAGE(F57:F58)*5% -> 
A58: b. Relaciones humanas, trabajo en equipo
A60: NOTA DEFINITIVA | D60: =D44+D50+D53+D57 ->  | G60: =G44+G50+G53+G57 ->  | H60: =AVERAGE(D60:G60) -> 
A63: 1. SABER 45% | B63: Dr. Moya | E63: Dra. Henao
A64: a. Casos Clínicos | B64: 0.25 | D64: =AVERAGE(C64:C68)*25% ->  | E64: 0.25 | G64: =AVERAGE(F64:F68)*25% -> 
A65: b. Seminarios
A66: c. Revisiones de tema
A67: d. Club de Revistas
A68: e. Rondas - Juntas
A70: f. Examen Escrito en la última semana de rotación | B70: 0.25 | D70: =C70*25% -> 0 | E70: 0.25 | G70: =F70*25% -> 0
A72: 2. HACER 45%
A73: a. Manejo de la historia clínica | B73: 0.45 | D73: =AVERAGE(C73:C75)*45% ->  | E73: 0.45 | G73: =AVERAGE(F73:F75)*45% -> 
A74: b. Destrezas y manualidades especificas
A75: c. Criterio clínico y terapéutico
A76: 3. EJECUCIÓN DEL DESEMPEÑO 10%
A77: a. Capacidad para tomar decisiones | B77: 0.05 | D77: =AVERAGE(C77:C78)*5% ->  | E77: 0.05 | G77: =AVERAGE(F77:F78)*5% -> 
A78: b. Relaciones humanas, trabajo en equipo
A80: NOTA DEFINITIVA | D80: =D64+D70+D73+D77 ->  | G80: =G64+G70+G73+G77 ->  | H80: =AVERAGE(D80:G80) -> 
A83: 1. SABER 45% | B83: Dr. León | E83: Dr. Benavides
A84: a. Casos Clínicos | B84: 0.25 | E84: 0.25 | G84: =AVERAGE(F84:F88)*25% -> 
A85: b. Seminarios
A86: c. Revisiones de tema
A87: d. Club de Revistas
A88: e. Rondas - Juntas
A90: f. Examen Escrito en la última semana de rotación | B90: 0.25 | E90: 0.25 | G90: =F90*25% -> 0
A92: 2. HACER 45%
A93: a. Manejo de la historia clínica | B93: 0.45 | E93: 0.45 | G93: =AVERAGE(F93:F95)*45% -> 
A94: b. Destrezas y manualidades especificas
A95: c. Criterio clínico y terapéutico
A96: 3. EJECUCIÓN DEL DESEMPEÑO 10%
A97: a. Capacidad para tomar decisiones | B97: 0.05 | E97: 0.05 | G97: =AVERAGE(F97:F98)*5% -> 
A98: b. Relaciones humanas, trabajo en equipo
A100: NOTA DEFINITIVA | G100: =G84+G90+G93+G97 ->  | H100: =AVERAGE(D100:G100) -> 
A103: 1. SABER 45% | B103: Armida | E103: Dr.Marin
A104: a. Casos Clínicos | B104: 0.25 | D104: =AVERAGE(C104:C108)*25% ->  | E104: 0.25 | G104: =AVERAGE(F104:F108)*25% -> 
A105: b. Seminarios
A106: c. Revisiones de tema
A107: d. Club de Revistas
A108: e. Rondas - Juntas
A110: f. Examen Escrito en la última semana de rotación | B110: 0.25 | D110: =C110*25% -> 0 | E110: 0.25 | G110: =F110*25% -> 0
A112: 2. HACER 45%
A113: a. Manejo de la historia clínica | B113: 0.45 | D113: =AVERAGE(C113:C115)*45% ->  | E113: 0.45 | G113: =AVERAGE(F113:F115)*45% -> 
A114: b. Destrezas y manualidades especificas
A115: c. Criterio clínico y terapéutico
A116: 3. EJECUCIÓN DEL DESEMPEÑO 10%
A117: a. Capacidad para tomar decisiones | B117: 0.05 | D117: =AVERAGE(C117:C118)*5% ->  | E117: 0.05 | G117: =AVERAGE(F117:F118)*5% -> 
A118: b. Relaciones humanas, trabajo en equipo
A120: NOTA DEFINITIVA | D120: =D104+D110+D113+D117 ->  | G120: =G104+G110+G113+G117 ->  | H120: =AVERAGE(D120:G120) -> 

Sheet Notas31 (hidden)
A3: 1. SABER 45% | B3: Dra. Daza | E3: Dra. Rubiano
A4: a. Casos Clínicos | B4: 0.25 | D4: =AVERAGE(C4:C8)*25% ->  | E4: 0.25 | G4: =AVERAGE(F4:F8)*25% -> 
A5: b. Seminarios
A6: c. Revisiones de tema
A7: d. Club de Revistas
A8: e. Rondas - Juntas
A10: f. Examen Escrito en la última semana de rotación | B10: 0.25 | D10: =C10*25% -> 0 | E10: 0.25 | G10: =F10*25% -> 0
A12: 2. HACER 45%
A13: a. Manejo de la historia clínica | B13: 0.45 | D13: =AVERAGE(C13:C15)*45% ->  | E13: 0.45 | G13: =AVERAGE(F13:F15)*45% -> 
A14: b. Destrezas y manualidades especificas
A15: c. Criterio clínico y terapéutico
A16: 3. EJECUCIÓN DEL DESEMPEÑO 10%
A17: a. Capacidad para tomar decisiones | B17: 0.05 | D17: =AVERAGE(C17:C18)*5% ->  | E17: 0.05 | G17: =AVERAGE(F17:F18)*5% -> 
A18: b. Relaciones humanas, trabajo en equipo
A20: NOTA DEFINITIVA | D20: =D4+D10+D13+D17 ->  | G20: =G4+G10+G13+G17 ->  | H20: =AVERAGE(D20:G20) -> 
A23: 1. SABER 45% | B23: Dra. Bedoya | E23: Dr. Gaviria
A24: a. Casos Clínicos | B24: 0.25 | D24: =AVERAGE(C24:C28)*25% ->  | E24: 0.25 | G24: =AVERAGE(F24:F28)*25% -> 
A25: b. Seminarios
A26: c. Revisiones de tema
A27: d. Club de Revistas
A28: e. Rondas - Juntas
A30: f. Examen Escrito en la última semana de rotación | B30: 0.25 | D30: =C30*25% -> 0 | E30: 0.25 | G30: =F30*25% -> 0
A32: 2. HACER 45%
A33: a. Manejo de la historia clínica | B33: 0.45 | D33: =AVERAGE(C33:C35)*45% ->  | E33: 0.45 | G33: =AVERAGE(F33:F35)*45% -> 
A34: b. Destrezas y manualidades especificas
A35: c. Criterio clínico y terapéutico
A36: 3. EJECUCIÓN DEL DESEMPEÑO 10%
A37: a. Capacidad para tomar decisiones | B37: 0.05 | D37: =AVERAGE(C37:C38)*5% ->  | E37: 0.05 | G37: =AVERAGE(F37:F38)*5% -> 
A38: b. Relaciones humanas, trabajo en equipo
A40: NOTA DEFINITIVA | D40: =D24+D30+D33+D37 ->  | G40: =G24+G30+G33+G37 ->  | H40: =AVERAGE(D40:G40) -> 
A43: 1. SABER 45% | B43: Dra. Olaya | E43: Dra. Galeano
A44: a. Casos Clínicos | B44: 0.25 | D44: =AVERAGE(C44:C48)*25% ->  | E44: 0.25 | G44: =AVERAGE(F44:F48)*25% -> 
A45: b. Seminarios
A46: c. Revisiones de tema
A47: d. Club de Revistas
A48: e. Rondas - Juntas
A50: f. Examen Escrito en la última semana de rotación | B50: 0.25 | D50: =C50*25% -> 0 | E50: 0.25 | G50: =F50*25% -> 0
A52: 2. HACER 45%
A53: a. Manejo de la historia clínica | B53: 0.45 | D53: =AVERAGE(C53:C55)*45% ->  | E53: 0.45 | G53: =AVERAGE(F53:F55)*45% -> 
A54: b. Destrezas y manualidades especificas
A55: c. Criterio clínico y terapéutico
A56: 3. EJECUCIÓN DEL DESEMPEÑO 10%
A57: a. Capacidad para tomar decisiones | B57: 0.05 | D57: =AVERAGE(C57:C58)*5% ->  | E57: 0.05 | G57: =AVERAGE(F57:F58)*5% -> 
A58: b. Relaciones humanas, trabajo en equipo
A60: NOTA DEFINITIVA | D60: =D44+D50+D53+D57 ->  | G60: =G44+G50+G53+G57 ->  | H60: =AVERAGE(D60:G60) -> 
A63: 1. SABER 45% | B63: Dr. Moya | E63: Dra. Henao
A64: a. Casos Clínicos | B64: 0.25 | D64: =AVERAGE(C64:C68)*25% ->  | E64: 0.25 | G64: =AVERAGE(F64:F68)*25% -> 
A65: b. Seminarios
A66: c. Revisiones de tema
A67: d. Club de Revistas
A68: e. Rondas - Juntas
A70: f. Examen Escrito en la última semana de rotación | B70: 0.25 | D70: =C70*25% -> 0 | E70: 0.25 | G70: =F70*25% -> 0
A72: 2. HACER 45%
A73: a. Manejo de la historia clínica | B73: 0.45 | D73: =AVERAGE(C73:C75)*45% ->  | E73: 0.45 | G73: =AVERAGE(F73:F75)*45% -> 
A74: b. Destrezas y manualidades especificas
A75: c. Criterio clínico y terapéutico
A76: 3. EJECUCIÓN DEL DESEMPEÑO 10%
A77: a. Capacidad para tomar decisiones | B77: 0.05 | D77: =AVERAGE(C77:C78)*5% ->  | E77: 0.05 | G77: =AVERAGE(F77:F78)*5% -> 
A78: b. Relaciones humanas, trabajo en equipo
A80: NOTA DEFINITIVA | D80: =D64+D70+D73+D77 ->  | G80: =G64+G70+G73+G77 ->  | H80: =AVERAGE(D80:G80) -> 
A83: 1. SABER 45% | B83: Dr. León | E83: Dr. Benavides
A84: a. Casos Clínicos | B84: 0.25 | E84: 0.25 | G84: =AVERAGE(F84:F88)*25% -> 
A85: b. Seminarios
A86: c. Revisiones de tema
A87: d. Club de Revistas
A88: e. Rondas - Juntas
A90: f. Examen Escrito en la última semana de rotación | B90: 0.25 | E90: 0.25 | G90: =F90*25% -> 0
A92: 2. HACER 45%
A93: a. Manejo de la historia clínica | B93: 0.45 | E93: 0.45 | G93: =AVERAGE(F93:F95)*45% -> 
A94: b. Destrezas y manualidades especificas
A95: c. Criterio clínico y terapéutico
A96: 3. EJECUCIÓN DEL DESEMPEÑO 10%
A97: a. Capacidad para tomar decisiones | B97: 0.05 | E97: 0.05 | G97: =AVERAGE(F97:F98)*5% -> 
A98: b. Relaciones humanas, trabajo en equipo
A100: NOTA DEFINITIVA | G100: =G84+G90+G93+G97 ->  | H100: =AVERAGE(D100:G100) -> 
A103: 1. SABER 45% | B103: Armida | E103: Dr.Marin
A104: a. Casos Clínicos | B104: 0.25 | D104: =AVERAGE(C104:C108)*25% ->  | E104: 0.25 | G104: =AVERAGE(F104:F108)*25% -> 
A105: b. Seminarios
A106: c. Revisiones de tema
A107: d. Club de Revistas
A108: e. Rondas - Juntas
A110: f. Examen Escrito en la última semana de rotación | B110: 0.25 | D110: =C110*25% -> 0 | E110: 0.25 | G110: =F110*25% -> 0
A112: 2. HACER 45%
A113: a. Manejo de la historia clínica | B113: 0.45 | D113: =AVERAGE(C113:C115)*45% ->  | E113: 0.45 | G113: =AVERAGE(F113:F115)*45% -> 
A114: b. Destrezas y manualidades especificas
A115: c. Criterio clínico y terapéutico
A116: 3. EJECUCIÓN DEL DESEMPEÑO 10%
A117: a. Capacidad para tomar decisiones | B117: 0.05 | D117: =AVERAGE(C117:C118)*5% ->  | E117: 0.05 | G117: =AVERAGE(F117:F118)*5% -> 
A118: b. Relaciones humanas, trabajo en equipo
A120: NOTA DEFINITIVA | D120: =D104+D110+D113+D117 ->  | G120: =G104+G110+G113+G117 ->  | H120: =AVERAGE(D120:G120) -> 

Sheet Notas32 (hidden)
A3: 1. SABER 45% | B3: Dra. Daza | E3: Dra. Rubiano
A4: a. Casos Clínicos | B4: 0.25 | D4: =AVERAGE(C4:C8)*25% ->  | E4: 0.25 | G4: =AVERAGE(F4:F8)*25% -> 
A5: b. Seminarios
A6: c. Revisiones de tema
A7: d. Club de Revistas
A8: e. Rondas - Juntas
A10: f. Examen Escrito en la última semana de rotación | B10: 0.25 | D10: =C10*25% -> 0 | E10: 0.25 | G10: =F10*25% -> 0
A12: 2. HACER 45%
A13: a. Manejo de la historia clínica | B13: 0.45 | D13: =AVERAGE(C13:C15)*45% ->  | E13: 0.45 | G13: =AVERAGE(F13:F15)*45% -> 
A14: b. Destrezas y manualidades especificas
A15: c. Criterio clínico y terapéutico
A16: 3. EJECUCIÓN DEL DESEMPEÑO 10%
A17: a. Capacidad para tomar decisiones | B17: 0.05 | D17: =AVERAGE(C17:C18)*5% ->  | E17: 0.05 | G17: =AVERAGE(F17:F18)*5% -> 
A18: b. Relaciones humanas, trabajo en equipo
A20: NOTA DEFINITIVA | D20: =D4+D10+D13+D17 ->  | G20: =G4+G10+G13+G17 ->  | H20: =AVERAGE(D20:G20) -> 
A23: 1. SABER 45% | B23: Dra. Bedoya | E23: Dr. Gaviria
A24: a. Casos Clínicos | B24: 0.25 | D24: =AVERAGE(C24:C28)*25% ->  | E24: 0.25 | G24: =AVERAGE(F24:F28)*25% -> 
A25: b. Seminarios
A26: c. Revisiones de tema
A27: d. Club de Revistas
A28: e. Rondas - Juntas
A30: f. Examen Escrito en la última semana de rotación | B30: 0.25 | D30: =C30*25% -> 0 | E30: 0.25 | G30: =F30*25% -> 0
A32: 2. HACER 45%
A33: a. Manejo de la historia clínica | B33: 0.45 | D33: =AVERAGE(C33:C35)*45% ->  | E33: 0.45 | G33: =AVERAGE(F33:F35)*45% -> 
A34: b. Destrezas y manualidades especificas
A35: c. Criterio clínico y terapéutico
A36: 3. EJECUCIÓN DEL DESEMPEÑO 10%
A37: a. Capacidad para tomar decisiones | B37: 0.05 | D37: =AVERAGE(C37:C38)*5% ->  | E37: 0.05 | G37: =AVERAGE(F37:F38)*5% -> 
A38: b. Relaciones humanas, trabajo en equipo
A40: NOTA DEFINITIVA | D40: =D24+D30+D33+D37 ->  | G40: =G24+G30+G33+G37 ->  | H40: =AVERAGE(D40:G40) -> 
A43: 1. SABER 45% | B43: Dra. Olaya | E43: Dra. Galeano
A44: a. Casos Clínicos | B44: 0.25 | D44: =AVERAGE(C44:C48)*25% ->  | E44: 0.25 | G44: =AVERAGE(F44:F48)*25% -> 
A45: b. Seminarios
A46: c. Revisiones de tema
A47: d. Club de Revistas
A48: e. Rondas - Juntas
A50: f. Examen Escrito en la última semana de rotación | B50: 0.25 | D50: =C50*25% -> 0 | E50: 0.25 | G50: =F50*25% -> 0
A52: 2. HACER 45%
A53: a. Manejo de la historia clínica | B53: 0.45 | D53: =AVERAGE(C53:C55)*45% ->  | E53: 0.45 | G53: =AVERAGE(F53:F55)*45% -> 
A54: b. Destrezas y manualidades especificas
A55: c. Criterio clínico y terapéutico
A56: 3. EJECUCIÓN DEL DESEMPEÑO 10%
A57: a. Capacidad para tomar decisiones | B57: 0.05 | D57: =AVERAGE(C57:C58)*5% ->  | E57: 0.05 | G57: =AVERAGE(F57:F58)*5% -> 
A58: b. Relaciones humanas, trabajo en equipo
A60: NOTA DEFINITIVA | D60: =D44+D50+D53+D57 ->  | G60: =G44+G50+G53+G57 ->  | H60: =AVERAGE(D60:G60) -> 
A63: 1. SABER 45% | B63: Dr. Moya | E63: Dra. Henao
A64: a. Casos Clínicos | B64: 0.25 | D64: =AVERAGE(C64:C68)*25% ->  | E64: 0.25 | G64: =AVERAGE(F64:F68)*25% -> 
A65: b. Seminarios
A66: c. Revisiones de tema
A67: d. Club de Revistas
A68: e. Rondas - Juntas
A70: f. Examen Escrito en la última semana de rotación | B70: 0.25 | D70: =C70*25% -> 0 | E70: 0.25 | G70: =F70*25% -> 0
A72: 2. HACER 45%
A73: a. Manejo de la historia clínica | B73: 0.45 | D73: =AVERAGE(C73:C75)*45% ->  | E73: 0.45 | G73: =AVERAGE(F73:F75)*45% -> 
A74: b. Destrezas y manualidades especificas
A75: c. Criterio clínico y terapéutico
A76: 3. EJECUCIÓN DEL DESEMPEÑO 10%
A77: a. Capacidad para tomar decisiones | B77: 0.05 | D77: =AVERAGE(C77:C78)*5% ->  | E77: 0.05 | G77: =AVERAGE(F77:F78)*5% -> 
A78: b. Relaciones humanas, trabajo en equipo
A80: NOTA DEFINITIVA | D80: =D64+D70+D73+D77 ->  | G80: =G64+G70+G73+G77 ->  | H80: =AVERAGE(D80:G80) -> 
A83: 1. SABER 45% | B83: Dr. León | E83: Dr. Benavides
A84: a. Casos Clínicos | B84: 0.25 | E84: 0.25 | G84: =AVERAGE(F84:F88)*25% -> 
A85: b. Seminarios
A86: c. Revisiones de tema
A87: d. Club de Revistas
A88: e. Rondas - Juntas
A90: f. Examen Escrito en la última semana de rotación | B90: 0.25 | E90: 0.25 | G90: =F90*25% -> 0
A92: 2. HACER 45%
A93: a. Manejo de la historia clínica | B93: 0.45 | E93: 0.45 | G93: =AVERAGE(F93:F95)*45% -> 
A94: b. Destrezas y manualidades especificas
A95: c. Criterio clínico y terapéutico
A96: 3. EJECUCIÓN DEL DESEMPEÑO 10%
A97: a. Capacidad para tomar decisiones | B97: 0.05 | E97: 0.05 | G97: =AVERAGE(F97:F98)*5% -> 
A98: b. Relaciones humanas, trabajo en equipo
A100: NOTA DEFINITIVA | G100: =G84+G90+G93+G97 ->  | H100: =AVERAGE(D100:G100) -> 
A103: 1. SABER 45% | B103: Armida | E103: Dr.Marin
A104: a. Casos Clínicos | B104: 0.25 | D104: =AVERAGE(C104:C108)*25% ->  | E104: 0.25 | G104: =AVERAGE(F104:F108)*25% -> 
A105: b. Seminarios
A106: c. Revisiones de tema
A107: d. Club de Revistas
A108: e. Rondas - Juntas
A110: f. Examen Escrito en la última semana de rotación | B110: 0.25 | D110: =C110*25% -> 0 | E110: 0.25 | G110: =F110*25% -> 0
A112: 2. HACER 45%
A113: a. Manejo de la historia clínica | B113: 0.45 | D113: =AVERAGE(C113:C115)*45% ->  | E113: 0.45 | G113: =AVERAGE(F113:F115)*45% -> 
A114: b. Destrezas y manualidades especificas
A115: c. Criterio clínico y terapéutico
A116: 3. EJECUCIÓN DEL DESEMPEÑO 10%
A117: a. Capacidad para tomar decisiones | B117: 0.05 | D117: =AVERAGE(C117:C118)*5% ->  | E117: 0.05 | G117: =AVERAGE(F117:F118)*5% -> 
A118: b. Relaciones humanas, trabajo en equipo
A120: NOTA DEFINITIVA | D120: =D104+D110+D113+D117 ->  | G120: =G104+G110+G113+G117 ->  | H120: =AVERAGE(D120:G120) -> 

Sheet Notas33 (hidden)
A3: 1. SABER 45% | B3: Dra. Daza | E3: Dra. Rubiano
A4: a. Casos Clínicos | B4: 0.25 | D4: =AVERAGE(C4:C8)*25% -> 1.05 | E4: 0.25 | G4: =AVERAGE(F4:F8)*25% -> 0.95
A5: b. Seminarios
A6: c. Revisiones de tema | C6: 4.2 | F6: 3.8
A7: d. Club de Revistas
A8: e. Rondas - Juntas
A10: f. Examen Escrito en la última semana de rotación | B10: 0.25 | C10: 3.93 | D10: =C10*25% -> 0.9825 | E10: 0.25 | F10: 4.25 | G10: =F10*25% -> 1.0625
A12: 2. HACER 45%
A13: a. Manejo de la historia clínica | B13: 0.45 | C13: 4.2 | D13: =AVERAGE(C13:C15)*45% -> 1.89 | E13: 0.45 | G13: =AVERAGE(F13:F15)*45% -> 1.575
A14: b. Destrezas y manualidades especificas
A15: c. Criterio clínico y terapéutico | F15: 3.5
A16: 3. EJECUCIÓN DEL DESEMPEÑO 10%
A17: a. Capacidad para tomar decisiones | B17: 0.05 | C17: 5 | D17: =AVERAGE(C17:C18)*5% -> 0.25 | E17: 0.05 | G17: =AVERAGE(F17:F18)*5% -> 0.25
A18: b. Relaciones humanas, trabajo en equipo | C18: 5 | F18: 5
A20: NOTA DEFINITIVA | D20: =D4+D10+D13+D17 -> 4.1725 | G20: =G4+G10+G13+G17 -> 3.8375 | H20: =AVERAGE(D20:G20) -> 4.005
A23: 1. SABER 45% | B23: Dra. Bedoya | E23: Dr. Gaviria
A24: a. Casos Clínicos | B24: 0.25 | C24: 5 | D24: =AVERAGE(C24:C28)*25% -> 1.25 | E24: 0.25 | F24: 4.3 | G24: =AVERAGE(F24:F28)*25% -> 1.1
A25: b. Seminarios | C25: 5 | F25: 4.3
A26: c. Revisiones de tema | C26: 5 | F26: 4.5
A27: d. Club de Revistas | C27: 5 | F27: 4.5
A28: e. Rondas - Juntas | C28: 5
A30: f. Examen Escrito en la última semana de rotación | B30: 0.25 | C30: 5 | D30: =C30*25% -> 1.25 | E30: 0.25 | F30: 4.5 | G30: =F30*25% -> 1.125
A32: 2. HACER 45%
A33: a. Manejo de la historia clínica | B33: 0.45 | C33: 4 | D33: =AVERAGE(C33:C35)*45% -> 1.8 | E33: 0.45 | F33: 4 | G33: =AVERAGE(F33:F35)*45% -> 1.875
A34: b. Destrezas y manualidades especificas | C34: 4 | F34: 4
A35: c. Criterio clínico y terapéutico | C35: 4 | F35: 4.5
A36: 3. EJECUCIÓN DEL DESEMPEÑO 10%
A37: a. Capacidad para tomar decisiones | B37: 0.05 | C37: 4 | D37: =AVERAGE(C37:C38)*5% -> 0.225 | E37: 0.05 | F37: 5 | G37: =AVERAGE(F37:F38)*5% -> 0.25
A38: b. Relaciones humanas, trabajo en equipo | C38: 5 | F38: 5
A40: NOTA DEFINITIVA | D40: =D24+D30+D33+D37 -> 4.525 | G40: =G24+G30+G33+G37 -> 4.35 | H40: =AVERAGE(D40:G40) -> 4.4375
A43: 1. SABER 45% | B43: Dra. Olaya | E43: Dr. Marín
A44: a. Casos Clínicos | B44: 0.25 | C44: 4 | D44: =AVERAGE(C44:C48)*25% -> 0.9875 | E44: 0.25 | G44: =AVERAGE(F44:F48)*25% -> 1.075
A45: b. Seminarios | C45: 3.9
A46: c. Revisiones de tema
A47: d. Club de Revistas
A48: e. Rondas - Juntas | F48: 4.3
A50: f. Examen Escrito en la última semana de rotación | B50: 0.25 | C50: 4 | D50: =C50*25% -> 1 | E50: 0.25 | F50: 4.3 | G50: =F50*25% -> 1.075
A52: 2. HACER 45%
A53: a. Manejo de la historia clínica | B53: 0.45 | C53: 4.2 | D53: =AVERAGE(C53:C55)*45% -> 1.845 | E53: 0.45 | G53: =AVERAGE(F53:F55)*45% -> 1.8
A54: b. Destrezas y manualidades especificas | C54: 4
A55: c. Criterio clínico y terapéutico | F55: 4
A56: 3. EJECUCIÓN DEL DESEMPEÑO 10%
A57: a. Capacidad para tomar decisiones | B57: 0.05 | C57: 5 | D57: =AVERAGE(C57:C58)*5% -> 0.25 | E57: 0.05 | G57: =AVERAGE(F57:F58)*5% -> 0.225
A58: b. Relaciones humanas, trabajo en equipo | C58: 5 | F58: 4.5
A60: NOTA DEFINITIVA | D60: =D44+D50+D53+D57 -> 4.0825 | G60: =G44+G50+G53+G57 -> 4.175 | H60: =AVERAGE(D60:G60) -> 4.12875
A63: 1. SABER 45% | B63: Dra. Daza | E63: Dra. Rubiano
A64: a. Casos Clínicos | B64: 0.25 | D64: =AVERAGE(C64:C68)*25% ->  | E64: 0.25 | G64: =AVERAGE(F64:F68)*25% -> 
A65: b. Seminarios
A66: c. Revisiones de tema
A67: d. Club de Revistas
A68: e. Rondas - Juntas
A70: f. Examen Escrito en la última semana de rotación | B70: 0.25 | D70: =C70*25% -> 0 | E70: 0.25 | G70: =F70*25% -> 0
A72: 2. HACER 45%
A73: a. Manejo de la historia clínica | B73: 0.45 | D73: =AVERAGE(C73:C75)*45% ->  | E73: 0.45 | G73: =AVERAGE(F73:F75)*45% -> 
A74: b. Destrezas y manualidades especificas
A75: c. Criterio clínico y terapéutico
A76: 3. EJECUCIÓN DEL DESEMPEÑO 10%
A77: a. Capacidad para tomar decisiones | B77: 0.05 | D77: =AVERAGE(C77:C78)*5% ->  | E77: 0.05 | G77: =AVERAGE(F77:F78)*5% -> 
A78: b. Relaciones humanas, trabajo en equipo
A80: NOTA DEFINITIVA | D80: =D64+D70+D73+D77 ->  | G80: =G64+G70+G73+G77 ->  | H80: =AVERAGE(D80:G80) -> 
A83: 1. SABER 45% | B83: Dra. Bedoya | E83: Dr. Gaviria
A84: a. Casos Clínicos | B84: 0.25 | D84: =AVERAGE(C84:C88)*25% ->  | E84: 0.25 | G84: =AVERAGE(F84:F88)*25% -> 
A85: b. Seminarios
A86: c. Revisiones de tema
A87: d. Club de Revistas
A88: e. Rondas - Juntas
A90: f. Examen Escrito en la última semana de rotación | B90: 0.25 | D90: =C90*25% -> 0 | E90: 0.25 | G90: =F90*25% -> 0
A92: 2. HACER 45%
A93: a. Manejo de la historia clínica | B93: 0.45 | D93: =AVERAGE(C93:C95)*45% ->  | E93: 0.45 | G93: =AVERAGE(F93:F95)*45% -> 
A94: b. Destrezas y manualidades especificas
A95: c. Criterio clínico y terapéutico
A96: 3. EJECUCIÓN DEL DESEMPEÑO 10%
A97: a. Capacidad para tomar decisiones | B97: 0.05 | D97: =AVERAGE(C97:C98)*5% ->  | E97: 0.05 | G97: =AVERAGE(F97:F98)*5% -> 
A98: b. Relaciones humanas, trabajo en equipo
A100: NOTA DEFINITIVA | D100: =D84+D90+D93+D97 ->  | G100: =G84+G90+G93+G97 ->  | H100: =AVERAGE(D100:G100) -> 
A103: 1. SABER 45% | B103: Dra. Olaya | E103: Dra. Galeano
A104: a. Casos Clínicos | B104: 0.25 | D104: =AVERAGE(C104:C108)*25% ->  | E104: 0.25 | G104: =AVERAGE(F104:F108)*25% -> 
A105: b. Seminarios
A106: c. Revisiones de tema
A107: d. Club de Revistas
A108: e. Rondas - Juntas
A110: f. Examen Escrito en la última semana de rotación | B110: 0.25 | D110: =C110*25% -> 0 | E110: 0.25 | G110: =F110*25% -> 0
A112: 2. HACER 45%
A113: a. Manejo de la historia clínica | B113: 0.45 | D113: =AVERAGE(C113:C115)*45% ->  | E113: 0.45 | G113: =AVERAGE(F113:F115)*45% -> 
A114: b. Destrezas y manualidades especificas
A115: c. Criterio clínico y terapéutico
A116: 3. EJECUCIÓN DEL DESEMPEÑO 10%
A117: a. Capacidad para tomar decisiones | B117: 0.05 | D117: =AVERAGE(C117:C118)*5% ->  | E117: 0.05 | G117: =AVERAGE(F117:F118)*5% -> 
A118: b. Relaciones humanas, trabajo en equipo
A120: NOTA DEFINITIVA | D120: =D104+D110+D113+D117 ->  | G120: =G104+G110+G113+G117 ->  | H120: =AVERAGE(D120:G120) -> 
A123: 1. SABER 45% | B123: Dr. Moya | E123: Dra. Henao
A124: a. Casos Clínicos | B124: 0.25 | D124: =AVERAGE(C124:C128)*25% ->  | E124: 0.25 | G124: =AVERAGE(F124:F128)*25% -> 
A125: b. Seminarios
A126: c. Revisiones de tema
A127: d. Club de Revistas
A128: e. Rondas - Juntas
A130: f. Examen Escrito en la última semana de rotación | B130: 0.25 | D130: =C130*25% -> 0 | E130: 0.25 | G130: =F130*25% -> 0
A132: 2. HACER 45%
A133: a. Manejo de la historia clínica | B133: 0.45 | D133: =AVERAGE(C133:C135)*45% ->  | E133: 0.45 | G133: =AVERAGE(F133:F135)*45% -> 
A134: b. Destrezas y manualidades especificas
A135: c. Criterio clínico y terapéutico
A136: 3. EJECUCIÓN DEL DESEMPEÑO 10%
A137: a. Capacidad para tomar decisiones | B137: 0.05 | D137: =AVERAGE(C137:C138)*5% ->  | E137: 0.05 | G137: =AVERAGE(F137:F138)*5% -> 
A138: b. Relaciones humanas, trabajo en equipo
A140: NOTA DEFINITIVA | D140: =D124+D130+D133+D137 ->  | G140: =G124+G130+G133+G137 ->  | H140: =AVERAGE(D140:G140) -> 
A143: 1. SABER 45% | B143: Dr. León | E143: Dr. Benavides
A144: a. Casos Clínicos | B144: 0.25 | E144: 0.25 | G144: =AVERAGE(F144:F148)*25% -> 
A145: b. Seminarios
A146: c. Revisiones de tema
A147: d. Club de Revistas
A148: e. Rondas - Juntas
A150: f. Examen Escrito en la última semana de rotación | B150: 0.25 | E150: 0.25 | G150: =F150*25% -> 0
A152: 2. HACER 45%
A153: a. Manejo de la historia clínica | B153: 0.45 | E153: 0.45 | G153: =AVERAGE(F153:F155)*45% -> 
A154: b. Destrezas y manualidades especificas
A155: c. Criterio clínico y terapéutico
A156: 3. EJECUCIÓN DEL DESEMPEÑO 10%
A157: a. Capacidad para tomar decisiones | B157: 0.05 | E157: 0.05 | G157: =AVERAGE(F157:F158)*5% -> 
A158: b. Relaciones humanas, trabajo en equipo
A160: NOTA DEFINITIVA | G160: =G144+G150+G153+G157 ->  | H160: =AVERAGE(D160:G160) -> 
A163: 1. SABER 45% | B163: Armida | E163: Dr.Marin
A164: a. Casos Clínicos | B164: 0.25 | D164: =AVERAGE(C164:C168)*25% ->  | E164: 0.25 | G164: =AVERAGE(F164:F168)*25% -> 
A165: b. Seminarios
A166: c. Revisiones de tema
A167: d. Club de Revistas
A168: e. Rondas - Juntas
A170: f. Examen Escrito en la última semana de rotación | B170: 0.25 | D170: =C170*25% -> 0 | E170: 0.25 | G170: =F170*25% -> 0
A172: 2. HACER 45%
A173: a. Manejo de la historia clínica | B173: 0.45 | D173: =AVERAGE(C173:C175)*45% ->  | E173: 0.45 | G173: =AVERAGE(F173:F175)*45% -> 
A174: b. Destrezas y manualidades especificas
A175: c. Criterio clínico y terapéutico
A176: 3. EJECUCIÓN DEL DESEMPEÑO 10%
A177: a. Capacidad para tomar decisiones | B177: 0.05 | D177: =AVERAGE(C177:C178)*5% ->  | E177: 0.05 | G177: =AVERAGE(F177:F178)*5% -> 
A178: b. Relaciones humanas, trabajo en equipo
A180: NOTA DEFINITIVA | D180: =D164+D170+D173+D177 ->  | G180: =G164+G170+G173+G177 ->  | H180: =AVERAGE(D180:G180) -> 

Sheet Notas34 (hidden)
A3: 1. SABER 45% | B3: Dra. Daza | E3: Dra. Rubiano
A4: a. Casos Clínicos | B4: 0.25 | D4: =AVERAGE(C4:C8)*25% -> 1 | E4: 0.25 | G4: =AVERAGE(F4:F8)*25% -> 0.95
A5: b. Seminarios
A6: c. Revisiones de tema | C6: 4 | F6: 3.8
A7: d. Club de Revistas
A8: e. Rondas - Juntas
A10: f. Examen Escrito en la última semana de rotación | B10: 0.25 | C10: 3.57 | D10: =C10*25% -> 0.8925 | E10: 0.25 | F10: 2 | G10: =F10*25% -> 0.5
A12: 2. HACER 45%
A13: a. Manejo de la historia clínica | B13: 0.45 | C13: 4.1 | D13: =AVERAGE(C13:C15)*45% -> 1.845 | E13: 0.45 | G13: =AVERAGE(F13:F15)*45% -> 1.575
A14: b. Destrezas y manualidades especificas
A15: c. Criterio clínico y terapéutico | F15: 3.5
A16: 3. EJECUCIÓN DEL DESEMPEÑO 10%
A17: a. Capacidad para tomar decisiones | B17: 0.05 | C17: 5 | D17: =AVERAGE(C17:C18)*5% -> 0.25 | E17: 0.05 | G17: =AVERAGE(F17:F18)*5% -> 0.25
A18: b. Relaciones humanas, trabajo en equipo | C18: 5 | F18: 5
A20: NOTA DEFINITIVA | D20: =D4+D10+D13+D17 -> 3.9875 | G20: =G4+G10+G13+G17 -> 3.275 | H20: =AVERAGE(D20:G20) -> 3.63125
A23: 1. SABER 45% | B23: Dra. Bedoya | E23: Dr. Gaviria
A24: a. Casos Clínicos | B24: 0.25 | C24: 2 | D24: =AVERAGE(C24:C28)*25% -> 0.6 | E24: 0.25 | F24: 3.8 | G24: =AVERAGE(F24:F28)*25% -> 0.9625
A25: b. Seminarios | C25: 2.5 | F25: 3.8
A26: c. Revisiones de tema | C26: 2.5 | F26: 3.8
A27: d. Club de Revistas | C27: 2.5 | F27: 4
A28: e. Rondas - Juntas | C28: 2.5
A30: f. Examen Escrito en la última semana de rotación | B30: 0.25 | C30: 3 | D30: =C30*25% -> 0.75 | E30: 0.25 | F30: 2.5 | G30: =F30*25% -> 0.625
A32: 2. HACER 45%
A33: a. Manejo de la historia clínica | B33: 0.45 | C33: 2.5 | D33: =AVERAGE(C33:C35)*45% -> 1.35 | E33: 0.45 | F33: 4 | G33: =AVERAGE(F33:F35)*45% -> 1.8
A34: b. Destrezas y manualidades especificas | C34: 3.5 | F34: 4
A35: c. Criterio clínico y terapéutico | C35: 3 | F35: 4
A36: 3. EJECUCIÓN DEL DESEMPEÑO 10%
A37: a. Capacidad para tomar decisiones | B37: 0.05 | C37: 2 | D37: =AVERAGE(C37:C38)*5% -> 0.175 | E37: 0.05 | F37: 5 | G37: =AVERAGE(F37:F38)*5% -> 0.25
A38: b. Relaciones humanas, trabajo en equipo | C38: 5 | F38: 5
A40: NOTA DEFINITIVA | D40: =D24+D30+D33+D37 -> 2.875 | G40: =G24+G30+G33+G37 -> 3.6375 | H40: =AVERAGE(D40:G40) -> 3.25625
A43: 1. SABER 45% | B43: Dra. Olaya | E43: Dr. Marín
A44: a. Casos Clínicos | B44: 0.25 | C44: 4.3 | D44: =AVERAGE(C44:C48)*25% -> 1.0625 | E44: 0.25 | G44: =AVERAGE(F44:F48)*25% -> 1.05
A45: b. Seminarios | C45: 4.2
A46: c. Revisiones de tema
A47: d. Club de Revistas
A48: e. Rondas - Juntas | F48: 4.2
A50: f. Examen Escrito en la última semana de rotación | B50: 0.25 | C50: 4.1 | D50: =C50*25% -> 1.025 | E50: 0.25 | F50: 4.1 | G50: =F50*25% -> 1.025
A52: 2. HACER 45%
A53: a. Manejo de la historia clínica | B53: 0.45 | C53: 4 | D53: =AVERAGE(C53:C55)*45% -> 1.8 | E53: 0.45 | G53: =AVERAGE(F53:F55)*45% -> 1.935
A54: b. Destrezas y manualidades especificas | C54: 4
A55: c. Criterio clínico y terapéutico | F55: 4.3
A56: 3. EJECUCIÓN DEL DESEMPEÑO 10%
A57: a. Capacidad para tomar decisiones | B57: 0.05 | C57: 5 | D57: =AVERAGE(C57:C58)*5% -> 0.25 | E57: 0.05 | G57: =AVERAGE(F57:F58)*5% -> 0.22
A58: b. Relaciones humanas, trabajo en equipo | C58: 5 | F58: 4.4
A60: NOTA DEFINITIVA | D60: =D44+D50+D53+D57 -> 4.1375 | G60: =G44+G50+G53+G57 -> 4.23 | H60: =AVERAGE(D60:G60) -> 4.18375
A63: 1. SABER 45% | B63: Dra. Daza | E63: Dra. Rubiano
A64: a. Casos Clínicos | B64: 0.25 | D64: =AVERAGE(C64:C68)*25% ->  | E64: 0.25 | G64: =AVERAGE(F64:F68)*25% -> 
A65: b. Seminarios
A66: c. Revisiones de tema
A67: d. Club de Revistas
A68: e. Rondas - Juntas
A70: f. Examen Escrito en la última semana de rotación | B70: 0.25 | D70: =C70*25% -> 0 | E70: 0.25 | G70: =F70*25% -> 0
A72: 2. HACER 45%
A73: a. Manejo de la historia clínica | B73: 0.45 | D73: =AVERAGE(C73:C75)*45% ->  | E73: 0.45 | G73: =AVERAGE(F73:F75)*45% -> 
A74: b. Destrezas y manualidades especificas
A75: c. Criterio clínico y terapéutico
A76: 3. EJECUCIÓN DEL DESEMPEÑO 10%
A77: a. Capacidad para tomar decisiones | B77: 0.05 | D77: =AVERAGE(C77:C78)*5% ->  | E77: 0.05 | G77: =AVERAGE(F77:F78)*5% -> 
A78: b. Relaciones humanas, trabajo en equipo
A80: NOTA DEFINITIVA | D80: =D64+D70+D73+D77 ->  | G80: =G64+G70+G73+G77 ->  | H80: =AVERAGE(D80:G80) -> 
A83: 1. SABER 45% | B83: Dra. Bedoya | E83: Dr. Gaviria
A84: a. Casos Clínicos | B84: 0.25 | D84: =AVERAGE(C84:C88)*25% ->  | E84: 0.25 | G84: =AVERAGE(F84:F88)*25% -> 
A85: b. Seminarios
A86: c. Revisiones de tema
A87: d. Club de Revistas
A88: e. Rondas - Juntas
A90: f. Examen Escrito en la última semana de rotación | B90: 0.25 | D90: =C90*25% -> 0 | E90: 0.25 | G90: =F90*25% -> 0
A92: 2. HACER 45%
A93: a. Manejo de la historia clínica | B93: 0.45 | D93: =AVERAGE(C93:C95)*45% ->  | E93: 0.45 | G93: =AVERAGE(F93:F95)*45% -> 
A94: b. Destrezas y manualidades especificas
A95: c. Criterio clínico y terapéutico
A96: 3. EJECUCIÓN DEL DESEMPEÑO 10%
A97: a. Capacidad para tomar decisiones | B97: 0.05 | D97: =AVERAGE(C97:C98)*5% ->  | E97: 0.05 | G97: =AVERAGE(F97:F98)*5% -> 
A98: b. Relaciones humanas, trabajo en equipo
A100: NOTA DEFINITIVA | D100: =D84+D90+D93+D97 ->  | G100: =G84+G90+G93+G97 ->  | H100: =AVERAGE(D100:G100) -> 
A103: 1. SABER 45% | B103: Dra. Olaya | E103: Dra. Galeano
A104: a. Casos Clínicos | B104: 0.25 | D104: =AVERAGE(C104:C108)*25% ->  | E104: 0.25 | G104: =AVERAGE(F104:F108)*25% -> 
A105: b. Seminarios
A106: c. Revisiones de tema
A107: d. Club de Revistas
A108: e. Rondas - Juntas
A110: f. Examen Escrito en la última semana de rotación | B110: 0.25 | D110: =C110*25% -> 0 | E110: 0.25 | G110: =F110*25% -> 0
A112: 2. HACER 45%
A113: a. Manejo de la historia clínica | B113: 0.45 | D113: =AVERAGE(C113:C115)*45% ->  | E113: 0.45 | G113: =AVERAGE(F113:F115)*45% -> 
A114: b. Destrezas y manualidades especificas
A115: c. Criterio clínico y terapéutico
A116: 3. EJECUCIÓN DEL DESEMPEÑO 10%
A117: a. Capacidad para tomar decisiones | B117: 0.05 | D117: =AVERAGE(C117:C118)*5% ->  | E117: 0.05 | G117: =AVERAGE(F117:F118)*5% -> 
A118: b. Relaciones humanas, trabajo en equipo
A120: NOTA DEFINITIVA | D120: =D104+D110+D113+D117 ->  | G120: =G104+G110+G113+G117 ->  | H120: =AVERAGE(D120:G120) -> 
A123: 1. SABER 45% | B123: Dr. Moya | E123: Dra. Henao
A124: a. Casos Clínicos | B124: 0.25 | D124: =AVERAGE(C124:C128)*25% ->  | E124: 0.25 | G124: =AVERAGE(F124:F128)*25% -> 
A125: b. Seminarios
A126: c. Revisiones de tema
A127: d. Club de Revistas
A128: e. Rondas - Juntas
A130: f. Examen Escrito en la última semana de rotación | B130: 0.25 | D130: =C130*25% -> 0 | E130: 0.25 | G130: =F130*25% -> 0
A132: 2. HACER 45%
A133: a. Manejo de la historia clínica | B133: 0.45 | D133: =AVERAGE(C133:C135)*45% ->  | E133: 0.45 | G133: =AVERAGE(F133:F135)*45% -> 
A134: b. Destrezas y manualidades especificas
A135: c. Criterio clínico y terapéutico
A136: 3. EJECUCIÓN DEL DESEMPEÑO 10%
A137: a. Capacidad para tomar decisiones | B137: 0.05 | D137: =AVERAGE(C137:C138)*5% ->  | E137: 0.05 | G137: =AVERAGE(F137:F138)*5% -> 
A138: b. Relaciones humanas, trabajo en equipo
A140: NOTA DEFINITIVA | D140: =D124+D130+D133+D137 ->  | G140: =G124+G130+G133+G137 ->  | H140: =AVERAGE(D140:G140) -> 
A143: 1. SABER 45% | B143: Dr. León | E143: Dr. Benavides
A144: a. Casos Clínicos | B144: 0.25 | E144: 0.25 | G144: =AVERAGE(F144:F148)*25% -> 
A145: b. Seminarios
A146: c. Revisiones de tema
A147: d. Club de Revistas
A148: e. Rondas - Juntas
A150: f. Examen Escrito en la última semana de rotación | B150: 0.25 | E150: 0.25 | G150: =F150*25% -> 0
A152: 2. HACER 45%
A153: a. Manejo de la historia clínica | B153: 0.45 | E153: 0.45 | G153: =AVERAGE(F153:F155)*45% -> 
A154: b. Destrezas y manualidades especificas
A155: c. Criterio clínico y terapéutico
A156: 3. EJECUCIÓN DEL DESEMPEÑO 10%
A157: a. Capacidad para tomar decisiones | B157: 0.05 | E157: 0.05 | G157: =AVERAGE(F157:F158)*5% -> 
A158: b. Relaciones humanas, trabajo en equipo
A160: NOTA DEFINITIVA | G160: =G144+G150+G153+G157 ->  | H160: =AVERAGE(D160:G160) -> 
A163: 1. SABER 45% | B163: Armida | E163: Dr.Marin
A164: a. Casos Clínicos | B164: 0.25 | D164: =AVERAGE(C164:C168)*25% ->  | E164: 0.25 | G164: =AVERAGE(F164:F168)*25% -> 
A165: b. Seminarios
A166: c. Revisiones de tema
A167: d. Club de Revistas
A168: e. Rondas - Juntas
A170: f. Examen Escrito en la última semana de rotación | B170: 0.25 | D170: =C170*25% -> 0 | E170: 0.25 | G170: =F170*25% -> 0
A172: 2. HACER 45%
A173: a. Manejo de la historia clínica | B173: 0.45 | D173: =AVERAGE(C173:C175)*45% ->  | E173: 0.45 | G173: =AVERAGE(F173:F175)*45% -> 
A174: b. Destrezas y manualidades especificas
A175: c. Criterio clínico y terapéutico
A176: 3. EJECUCIÓN DEL DESEMPEÑO 10%
A177: a. Capacidad para tomar decisiones | B177: 0.05 | D177: =AVERAGE(C177:C178)*5% ->  | E177: 0.05 | G177: =AVERAGE(F177:F178)*5% -> 
A178: b. Relaciones humanas, trabajo en equipo
A180: NOTA DEFINITIVA | D180: =D164+D170+D173+D177 ->  | G180: =G164+G170+G173+G177 ->  | H180: =AVERAGE(D180:G180) -> 

Sheet Notas35 (hidden)
A3: 1. SABER 45% | B3: Dra. Daza | E3: Dra. Rubiano
A4: a. Casos Clínicos | B4: 0.25 | D4: =AVERAGE(C4:C8)*25% ->  | E4: 0.25 | G4: =AVERAGE(F4:F8)*25% -> 
A5: b. Seminarios
A6: c. Revisiones de tema
A7: d. Club de Revistas
A8: e. Rondas - Juntas
A10: f. Examen Escrito en la última semana de rotación | B10: 0.25 | D10: =C10*25% -> 0 | E10: 0.25 | G10: =F10*25% -> 0
A12: 2. HACER 45%
A13: a. Manejo de la historia clínica | B13: 0.45 | D13: =AVERAGE(C13:C15)*45% ->  | E13: 0.45 | G13: =AVERAGE(F13:F15)*45% -> 
A14: b. Destrezas y manualidades especificas
A15: c. Criterio clínico y terapéutico
A16: 3. EJECUCIÓN DEL DESEMPEÑO 10%
A17: a. Capacidad para tomar decisiones | B17: 0.05 | D17: =AVERAGE(C17:C18)*5% ->  | E17: 0.05 | G17: =AVERAGE(F17:F18)*5% -> 
A18: b. Relaciones humanas, trabajo en equipo
A20: NOTA DEFINITIVA | D20: =D4+D10+D13+D17 ->  | G20: =G4+G10+G13+G17 ->  | H20: =AVERAGE(D20:G20) -> 
A23: 1. SABER 45% | B23: Dra. Bedoya | E23: Dr. Gaviria
A24: a. Casos Clínicos | B24: 0.25 | D24: =AVERAGE(C24:C28)*25% ->  | E24: 0.25 | G24: =AVERAGE(F24:F28)*25% -> 
A25: b. Seminarios
A26: c. Revisiones de tema
A27: d. Club de Revistas
A28: e. Rondas - Juntas
A30: f. Examen Escrito en la última semana de rotación | B30: 0.25 | D30: =C30*25% -> 0 | E30: 0.25 | G30: =F30*25% -> 0
A32: 2. HACER 45%
A33: a. Manejo de la historia clínica | B33: 0.45 | D33: =AVERAGE(C33:C35)*45% ->  | E33: 0.45 | G33: =AVERAGE(F33:F35)*45% -> 
A34: b. Destrezas y manualidades especificas
A35: c. Criterio clínico y terapéutico
A36: 3. EJECUCIÓN DEL DESEMPEÑO 10%
A37: a. Capacidad para tomar decisiones | B37: 0.05 | D37: =AVERAGE(C37:C38)*5% ->  | E37: 0.05 | G37: =AVERAGE(F37:F38)*5% -> 
A38: b. Relaciones humanas, trabajo en equipo
A40: NOTA DEFINITIVA | D40: =D24+D30+D33+D37 ->  | G40: =G24+G30+G33+G37 ->  | H40: =AVERAGE(D40:G40) -> 
A43: 1. SABER 45% | B43: Dra. Olaya | E43: Dra. Galeano
A44: a. Casos Clínicos | B44: 0.25 | D44: =AVERAGE(C44:C48)*25% ->  | E44: 0.25 | G44: =AVERAGE(F44:F48)*25% -> 
A45: b. Seminarios
A46: c. Revisiones de tema
A47: d. Club de Revistas
A48: e. Rondas - Juntas
A50: f. Examen Escrito en la última semana de rotación | B50: 0.25 | D50: =C50*25% -> 0 | E50: 0.25 | G50: =F50*25% -> 0
A52: 2. HACER 45%
A53: a. Manejo de la historia clínica | B53: 0.45 | D53: =AVERAGE(C53:C55)*45% ->  | E53: 0.45 | G53: =AVERAGE(F53:F55)*45% -> 
A54: b. Destrezas y manualidades especificas
A55: c. Criterio clínico y terapéutico
A56: 3. EJECUCIÓN DEL DESEMPEÑO 10%
A57: a. Capacidad para tomar decisiones | B57: 0.05 | D57: =AVERAGE(C57:C58)*5% ->  | E57: 0.05 | G57: =AVERAGE(F57:F58)*5% -> 
A58: b. Relaciones humanas, trabajo en equipo
A60: NOTA DEFINITIVA | D60: =D44+D50+D53+D57 ->  | G60: =G44+G50+G53+G57 ->  | H60: =AVERAGE(D60:G60) -> 
A63: 1. SABER 45% | B63: Dr. Moya | E63: Dra. Henao
A64: a. Casos Clínicos | B64: 0.25 | D64: =AVERAGE(C64:C68)*25% ->  | E64: 0.25 | G64: =AVERAGE(F64:F68)*25% -> 
A65: b. Seminarios
A66: c. Revisiones de tema
A67: d. Club de Revistas
A68: e. Rondas - Juntas
A70: f. Examen Escrito en la última semana de rotación | B70: 0.25 | D70: =C70*25% -> 0 | E70: 0.25 | G70: =F70*25% -> 0
A72: 2. HACER 45%
A73: a. Manejo de la historia clínica | B73: 0.45 | D73: =AVERAGE(C73:C75)*45% ->  | E73: 0.45 | G73: =AVERAGE(F73:F75)*45% -> 
A74: b. Destrezas y manualidades especificas
A75: c. Criterio clínico y terapéutico
A76: 3. EJECUCIÓN DEL DESEMPEÑO 10%
A77: a. Capacidad para tomar decisiones | B77: 0.05 | D77: =AVERAGE(C77:C78)*5% ->  | E77: 0.05 | G77: =AVERAGE(F77:F78)*5% -> 
A78: b. Relaciones humanas, trabajo en equipo
A80: NOTA DEFINITIVA | D80: =D64+D70+D73+D77 ->  | G80: =G64+G70+G73+G77 ->  | H80: =AVERAGE(D80:G80) -> 
A83: 1. SABER 45% | B83: Dr. León | E83: Dr. Benavides
A84: a. Casos Clínicos | B84: 0.25 | E84: 0.25 | G84: =AVERAGE(F84:F88)*25% -> 
A85: b. Seminarios
A86: c. Revisiones de tema
A87: d. Club de Revistas
A88: e. Rondas - Juntas
A90: f. Examen Escrito en la última semana de rotación | B90: 0.25 | E90: 0.25 | G90: =F90*25% -> 0
A92: 2. HACER 45%
A93: a. Manejo de la historia clínica | B93: 0.45 | E93: 0.45 | G93: =AVERAGE(F93:F95)*45% -> 
A94: b. Destrezas y manualidades especificas
A95: c. Criterio clínico y terapéutico
A96: 3. EJECUCIÓN DEL DESEMPEÑO 10%
A97: a. Capacidad para tomar decisiones | B97: 0.05 | E97: 0.05 | G97: =AVERAGE(F97:F98)*5% -> 
A98: b. Relaciones humanas, trabajo en equipo
A100: NOTA DEFINITIVA | G100: =G84+G90+G93+G97 ->  | H100: =AVERAGE(D100:G100) -> 
A103: 1. SABER 45% | B103: Armida | E103: Dr.Marin
A104: a. Casos Clínicos | B104: 0.25 | D104: =AVERAGE(C104:C108)*25% ->  | E104: 0.25 | G104: =AVERAGE(F104:F108)*25% -> 
A105: b. Seminarios
A106: c. Revisiones de tema
A107: d. Club de Revistas
A108: e. Rondas - Juntas
A110: f. Examen Escrito en la última semana de rotación | B110: 0.25 | D110: =C110*25% -> 0 | E110: 0.25 | G110: =F110*25% -> 0
A112: 2. HACER 45%
A113: a. Manejo de la historia clínica | B113: 0.45 | D113: =AVERAGE(C113:C115)*45% ->  | E113: 0.45 | G113: =AVERAGE(F113:F115)*45% -> 
A114: b. Destrezas y manualidades especificas
A115: c. Criterio clínico y terapéutico
A116: 3. EJECUCIÓN DEL DESEMPEÑO 10%
A117: a. Capacidad para tomar decisiones | B117: 0.05 | D117: =AVERAGE(C117:C118)*5% ->  | E117: 0.05 | G117: =AVERAGE(F117:F118)*5% -> 
A118: b. Relaciones humanas, trabajo en equipo
A120: NOTA DEFINITIVA | D120: =D104+D110+D113+D117 ->  | G120: =G104+G110+G113+G117 ->  | H120: =AVERAGE(D120:G120) -> 

Sheet Notas36 (hidden)
A3: 1. SABER 45% | B3: Dra. Daza | E3: Dra. Rubiano
A4: a. Casos Clínicos | B4: 0.25 | D4: =AVERAGE(C4:C8)*25% ->  | E4: 0.25 | G4: =AVERAGE(F4:F8)*25% -> 
A5: b. Seminarios
A6: c. Revisiones de tema
A7: d. Club de Revistas
A8: e. Rondas - Juntas
A10: f. Examen Escrito en la última semana de rotación | B10: 0.25 | D10: =C10*25% -> 0 | E10: 0.25 | G10: =F10*25% -> 0
A12: 2. HACER 45%
A13: a. Manejo de la historia clínica | B13: 0.45 | D13: =AVERAGE(C13:C15)*45% ->  | E13: 0.45 | G13: =AVERAGE(F13:F15)*45% -> 
A14: b. Destrezas y manualidades especificas
A15: c. Criterio clínico y terapéutico
A16: 3. EJECUCIÓN DEL DESEMPEÑO 10%
A17: a. Capacidad para tomar decisiones | B17: 0.05 | D17: =AVERAGE(C17:C18)*5% ->  | E17: 0.05 | G17: =AVERAGE(F17:F18)*5% -> 
A18: b. Relaciones humanas, trabajo en equipo
A20: NOTA DEFINITIVA | D20: =D4+D10+D13+D17 ->  | G20: =G4+G10+G13+G17 ->  | H20: =AVERAGE(D20:G20) -> 
A23: 1. SABER 45% | B23: Dra. Bedoya | E23: Dr. Gaviria
A24: a. Casos Clínicos | B24: 0.25 | D24: =AVERAGE(C24:C28)*25% ->  | E24: 0.25 | G24: =AVERAGE(F24:F28)*25% -> 
A25: b. Seminarios
A26: c. Revisiones de tema
A27: d. Club de Revistas
A28: e. Rondas - Juntas
A30: f. Examen Escrito en la última semana de rotación | B30: 0.25 | D30: =C30*25% -> 0 | E30: 0.25 | G30: =F30*25% -> 0
A32: 2. HACER 45%
A33: a. Manejo de la historia clínica | B33: 0.45 | D33: =AVERAGE(C33:C35)*45% ->  | E33: 0.45 | G33: =AVERAGE(F33:F35)*45% -> 
A34: b. Destrezas y manualidades especificas
A35: c. Criterio clínico y terapéutico
A36: 3. EJECUCIÓN DEL DESEMPEÑO 10%
A37: a. Capacidad para tomar decisiones | B37: 0.05 | D37: =AVERAGE(C37:C38)*5% ->  | E37: 0.05 | G37: =AVERAGE(F37:F38)*5% -> 
A38: b. Relaciones humanas, trabajo en equipo
A40: NOTA DEFINITIVA | D40: =D24+D30+D33+D37 ->  | G40: =G24+G30+G33+G37 ->  | H40: =AVERAGE(D40:G40) -> 
A43: 1. SABER 45% | B43: Dra. Olaya | E43: Dra. Galeano
A44: a. Casos Clínicos | B44: 0.25 | D44: =AVERAGE(C44:C48)*25% ->  | E44: 0.25 | G44: =AVERAGE(F44:F48)*25% -> 
A45: b. Seminarios
A46: c. Revisiones de tema
A47: d. Club de Revistas
A48: e. Rondas - Juntas
A50: f. Examen Escrito en la última semana de rotación | B50: 0.25 | D50: =C50*25% -> 0 | E50: 0.25 | G50: =F50*25% -> 0
A52: 2. HACER 45%
A53: a. Manejo de la historia clínica | B53: 0.45 | D53: =AVERAGE(C53:C55)*45% ->  | E53: 0.45 | G53: =AVERAGE(F53:F55)*45% -> 
A54: b. Destrezas y manualidades especificas
A55: c. Criterio clínico y terapéutico
A56: 3. EJECUCIÓN DEL DESEMPEÑO 10%
A57: a. Capacidad para tomar decisiones | B57: 0.05 | D57: =AVERAGE(C57:C58)*5% ->  | E57: 0.05 | G57: =AVERAGE(F57:F58)*5% -> 
A58: b. Relaciones humanas, trabajo en equipo
A60: NOTA DEFINITIVA | D60: =D44+D50+D53+D57 ->  | G60: =G44+G50+G53+G57 ->  | H60: =AVERAGE(D60:G60) -> 
A63: 1. SABER 45% | B63: Dr. Moya | E63: Dra. Henao
A64: a. Casos Clínicos | B64: 0.25 | D64: =AVERAGE(C64:C68)*25% ->  | E64: 0.25 | G64: =AVERAGE(F64:F68)*25% -> 
A65: b. Seminarios
A66: c. Revisiones de tema
A67: d. Club de Revistas
A68: e. Rondas - Juntas
A70: f. Examen Escrito en la última semana de rotación | B70: 0.25 | D70: =C70*25% -> 0 | E70: 0.25 | G70: =F70*25% -> 0
A72: 2. HACER 45%
A73: a. Manejo de la historia clínica | B73: 0.45 | D73: =AVERAGE(C73:C75)*45% ->  | E73: 0.45 | G73: =AVERAGE(F73:F75)*45% -> 
A74: b. Destrezas y manualidades especificas
A75: c. Criterio clínico y terapéutico
A76: 3. EJECUCIÓN DEL DESEMPEÑO 10%
A77: a. Capacidad para tomar decisiones | B77: 0.05 | D77: =AVERAGE(C77:C78)*5% ->  | E77: 0.05 | G77: =AVERAGE(F77:F78)*5% -> 
A78: b. Relaciones humanas, trabajo en equipo
A80: NOTA DEFINITIVA | D80: =D64+D70+D73+D77 ->  | G80: =G64+G70+G73+G77 ->  | H80: =AVERAGE(D80:G80) -> 
A83: 1. SABER 45% | B83: Dr. León | E83: Dr. Benavides
A84: a. Casos Clínicos | B84: 0.25 | E84: 0.25 | G84: =AVERAGE(F84:F88)*25% -> 
A85: b. Seminarios
A86: c. Revisiones de tema
A87: d. Club de Revistas
A88: e. Rondas - Juntas
A90: f. Examen Escrito en la última semana de rotación | B90: 0.25 | E90: 0.25 | G90: =F90*25% -> 0
A92: 2. HACER 45%
A93: a. Manejo de la historia clínica | B93: 0.45 | E93: 0.45 | G93: =AVERAGE(F93:F95)*45% -> 
A94: b. Destrezas y manualidades especificas
A95: c. Criterio clínico y terapéutico
A96: 3. EJECUCIÓN DEL DESEMPEÑO 10%
A97: a. Capacidad para tomar decisiones | B97: 0.05 | E97: 0.05 | G97: =AVERAGE(F97:F98)*5% -> 
A98: b. Relaciones humanas, trabajo en equipo
A100: NOTA DEFINITIVA | G100: =G84+G90+G93+G97 ->  | H100: =AVERAGE(D100:G100) -> 
A103: 1. SABER 45% | B103: Armida | E103: Dr.Marin
A104: a. Casos Clínicos | B104: 0.25 | D104: =AVERAGE(C104:C108)*25% ->  | E104: 0.25 | G104: =AVERAGE(F104:F108)*25% -> 
A105: b. Seminarios
A106: c. Revisiones de tema
A107: d. Club de Revistas
A108: e. Rondas - Juntas
A110: f. Examen Escrito en la última semana de rotación | B110: 0.25 | D110: =C110*25% -> 0 | E110: 0.25 | G110: =F110*25% -> 0
A112: 2. HACER 45%
A113: a. Manejo de la historia clínica | B113: 0.45 | D113: =AVERAGE(C113:C115)*45% ->  | E113: 0.45 | G113: =AVERAGE(F113:F115)*45% -> 
A114: b. Destrezas y manualidades especificas
A115: c. Criterio clínico y terapéutico
A116: 3. EJECUCIÓN DEL DESEMPEÑO 10%
A117: a. Capacidad para tomar decisiones | B117: 0.05 | D117: =AVERAGE(C117:C118)*5% ->  | E117: 0.05 | G117: =AVERAGE(F117:F118)*5% -> 
A118: b. Relaciones humanas, trabajo en equipo
A120: NOTA DEFINITIVA | D120: =D104+D110+D113+D117 ->  | G120: =G104+G110+G113+G117 ->  | H120: =AVERAGE(D120:G120) -> 

Sheet Notas37 (hidden)
A3: 1. SABER 45% | B3: Dra. Daza | E3: Dra. Rubiano
A4: a. Casos Clínicos | B4: 0.25 | D4: =AVERAGE(C4:C8)*25% ->  | E4: 0.25 | G4: =AVERAGE(F4:F8)*25% -> 
A5: b. Seminarios
A6: c. Revisiones de tema
A7: d. Club de Revistas
A8: e. Rondas - Juntas
A10: f. Examen Escrito en la última semana de rotación | B10: 0.25 | D10: =C10*25% -> 0 | E10: 0.25 | G10: =F10*25% -> 0
A12: 2. HACER 45%
A13: a. Manejo de la historia clínica | B13: 0.45 | D13: =AVERAGE(C13:C15)*45% ->  | E13: 0.45 | G13: =AVERAGE(F13:F15)*45% -> 
A14: b. Destrezas y manualidades especificas
A15: c. Criterio clínico y terapéutico
A16: 3. EJECUCIÓN DEL DESEMPEÑO 10%
A17: a. Capacidad para tomar decisiones | B17: 0.05 | D17: =AVERAGE(C17:C18)*5% ->  | E17: 0.05 | G17: =AVERAGE(F17:F18)*5% -> 
A18: b. Relaciones humanas, trabajo en equipo
A20: NOTA DEFINITIVA | D20: =D4+D10+D13+D17 ->  | G20: =G4+G10+G13+G17 ->  | H20: =AVERAGE(D20:G20) -> 
A23: 1. SABER 45% | B23: Dra. Bedoya | E23: Dr. Gaviria
A24: a. Casos Clínicos | B24: 0.25 | D24: =AVERAGE(C24:C28)*25% ->  | E24: 0.25 | G24: =AVERAGE(F24:F28)*25% -> 
A25: b. Seminarios
A26: c. Revisiones de tema
A27: d. Club de Revistas
A28: e. Rondas - Juntas
A30: f. Examen Escrito en la última semana de rotación | B30: 0.25 | D30: =C30*25% -> 0 | E30: 0.25 | G30: =F30*25% -> 0
A32: 2. HACER 45%
A33: a. Manejo de la historia clínica | B33: 0.45 | D33: =AVERAGE(C33:C35)*45% ->  | E33: 0.45 | G33: =AVERAGE(F33:F35)*45% -> 
A34: b. Destrezas y manualidades especificas
A35: c. Criterio clínico y terapéutico
A36: 3. EJECUCIÓN DEL DESEMPEÑO 10%
A37: a. Capacidad para tomar decisiones | B37: 0.05 | D37: =AVERAGE(C37:C38)*5% ->  | E37: 0.05 | G37: =AVERAGE(F37:F38)*5% -> 
A38: b. Relaciones humanas, trabajo en equipo
A40: NOTA DEFINITIVA | D40: =D24+D30+D33+D37 ->  | G40: =G24+G30+G33+G37 ->  | H40: =AVERAGE(D40:G40) -> 
A43: 1. SABER 45% | B43: Dra. Olaya | E43: Dra. Galeano
A44: a. Casos Clínicos | B44: 0.25 | D44: =AVERAGE(C44:C48)*25% ->  | E44: 0.25 | G44: =AVERAGE(F44:F48)*25% -> 
A45: b. Seminarios
A46: c. Revisiones de tema
A47: d. Club de Revistas
A48: e. Rondas - Juntas
A50: f. Examen Escrito en la última semana de rotación | B50: 0.25 | D50: =C50*25% -> 0 | E50: 0.25 | G50: =F50*25% -> 0
A52: 2. HACER 45%
A53: a. Manejo de la historia clínica | B53: 0.45 | D53: =AVERAGE(C53:C55)*45% ->  | E53: 0.45 | G53: =AVERAGE(F53:F55)*45% -> 
A54: b. Destrezas y manualidades especificas
A55: c. Criterio clínico y terapéutico
A56: 3. EJECUCIÓN DEL DESEMPEÑO 10%
A57: a. Capacidad para tomar decisiones | B57: 0.05 | D57: =AVERAGE(C57:C58)*5% ->  | E57: 0.05 | G57: =AVERAGE(F57:F58)*5% -> 
A58: b. Relaciones humanas, trabajo en equipo
A60: NOTA DEFINITIVA | D60: =D44+D50+D53+D57 ->  | G60: =G44+G50+G53+G57 ->  | H60: =AVERAGE(D60:G60) -> 
A63: 1. SABER 45% | B63: Dr. Moya | E63: Dra. Henao
A64: a. Casos Clínicos | B64: 0.25 | D64: =AVERAGE(C64:C68)*25% ->  | E64: 0.25 | G64: =AVERAGE(F64:F68)*25% -> 
A65: b. Seminarios
A66: c. Revisiones de tema
A67: d. Club de Revistas
A68: e. Rondas - Juntas
A70: f. Examen Escrito en la última semana de rotación | B70: 0.25 | D70: =C70*25% -> 0 | E70: 0.25 | G70: =F70*25% -> 0
A72: 2. HACER 45%
A73: a. Manejo de la historia clínica | B73: 0.45 | D73: =AVERAGE(C73:C75)*45% ->  | E73: 0.45 | G73: =AVERAGE(F73:F75)*45% -> 
A74: b. Destrezas y manualidades especificas
A75: c. Criterio clínico y terapéutico
A76: 3. EJECUCIÓN DEL DESEMPEÑO 10%
A77: a. Capacidad para tomar decisiones | B77: 0.05 | D77: =AVERAGE(C77:C78)*5% ->  | E77: 0.05 | G77: =AVERAGE(F77:F78)*5% -> 
A78: b. Relaciones humanas, trabajo en equipo
A80: NOTA DEFINITIVA | D80: =D64+D70+D73+D77 ->  | G80: =G64+G70+G73+G77 ->  | H80: =AVERAGE(D80:G80) -> 
A83: 1. SABER 45% | B83: Dr. León | E83: Dr. Benavides
A84: a. Casos Clínicos | B84: 0.25 | E84: 0.25 | G84: =AVERAGE(F84:F88)*25% -> 
A85: b. Seminarios
A86: c. Revisiones de tema
A87: d. Club de Revistas
A88: e. Rondas - Juntas
A90: f. Examen Escrito en la última semana de rotación | B90: 0.25 | E90: 0.25 | G90: =F90*25% -> 0
A92: 2. HACER 45%
A93: a. Manejo de la historia clínica | B93: 0.45 | E93: 0.45 | G93: =AVERAGE(F93:F95)*45% -> 
A94: b. Destrezas y manualidades especificas
A95: c. Criterio clínico y terapéutico
A96: 3. EJECUCIÓN DEL DESEMPEÑO 10%
A97: a. Capacidad para tomar decisiones | B97: 0.05 | E97: 0.05 | G97: =AVERAGE(F97:F98)*5% -> 
A98: b. Relaciones humanas, trabajo en equipo
A100: NOTA DEFINITIVA | G100: =G84+G90+G93+G97 ->  | H100: =AVERAGE(D100:G100) -> 
A103: 1. SABER 45% | B103: Armida | E103: Dr.Marin
A104: a. Casos Clínicos | B104: 0.25 | D104: =AVERAGE(C104:C108)*25% ->  | E104: 0.25 | G104: =AVERAGE(F104:F108)*25% -> 
A105: b. Seminarios
A106: c. Revisiones de tema
A107: d. Club de Revistas
A108: e. Rondas - Juntas
A110: f. Examen Escrito en la última semana de rotación | B110: 0.25 | D110: =C110*25% -> 0 | E110: 0.25 | G110: =F110*25% -> 0
A112: 2. HACER 45%
A113: a. Manejo de la historia clínica | B113: 0.45 | D113: =AVERAGE(C113:C115)*45% ->  | E113: 0.45 | G113: =AVERAGE(F113:F115)*45% -> 
A114: b. Destrezas y manualidades especificas
A115: c. Criterio clínico y terapéutico
A116: 3. EJECUCIÓN DEL DESEMPEÑO 10%
A117: a. Capacidad para tomar decisiones | B117: 0.05 | D117: =AVERAGE(C117:C118)*5% ->  | E117: 0.05 | G117: =AVERAGE(F117:F118)*5% -> 
A118: b. Relaciones humanas, trabajo en equipo
A120: NOTA DEFINITIVA | D120: =D104+D110+D113+D117 ->  | G120: =G104+G110+G113+G117 ->  | H120: =AVERAGE(D120:G120) -> 

Sheet Notas38 (hidden)
A3: 1. SABER 45% | B3: Dra. Daza | E3: Dra. Rubiano
A4: a. Casos Clínicos | B4: 0.25 | D4: =AVERAGE(C4:C8)*25% ->  | E4: 0.25 | G4: =AVERAGE(F4:F8)*25% -> 
A5: b. Seminarios
A6: c. Revisiones de tema
A7: d. Club de Revistas
A8: e. Rondas - Juntas
A10: f. Examen Escrito en la última semana de rotación | B10: 0.25 | D10: =C10*25% -> 0 | E10: 0.25 | G10: =F10*25% -> 0
A12: 2. HACER 45%
A13: a. Manejo de la historia clínica | B13: 0.45 | D13: =AVERAGE(C13:C15)*45% ->  | E13: 0.45 | G13: =AVERAGE(F13:F15)*45% -> 
A14: b. Destrezas y manualidades especificas
A15: c. Criterio clínico y terapéutico
A16: 3. EJECUCIÓN DEL DESEMPEÑO 10%
A17: a. Capacidad para tomar decisiones | B17: 0.05 | D17: =AVERAGE(C17:C18)*5% ->  | E17: 0.05 | G17: =AVERAGE(F17:F18)*5% -> 
A18: b. Relaciones humanas, trabajo en equipo
A20: NOTA DEFINITIVA | D20: =D4+D10+D13+D17 ->  | G20: =G4+G10+G13+G17 ->  | H20: =AVERAGE(D20:G20) -> 
A23: 1. SABER 45% | B23: Dra. Bedoya | E23: Dr. Gaviria
A24: a. Casos Clínicos | B24: 0.25 | D24: =AVERAGE(C24:C28)*25% ->  | E24: 0.25 | G24: =AVERAGE(F24:F28)*25% -> 
A25: b. Seminarios
A26: c. Revisiones de tema
A27: d. Club de Revistas
A28: e. Rondas - Juntas
A30: f. Examen Escrito en la última semana de rotación | B30: 0.25 | D30: =C30*25% -> 0 | E30: 0.25 | G30: =F30*25% -> 0
A32: 2. HACER 45%
A33: a. Manejo de la historia clínica | B33: 0.45 | D33: =AVERAGE(C33:C35)*45% ->  | E33: 0.45 | G33: =AVERAGE(F33:F35)*45% -> 
A34: b. Destrezas y manualidades especificas
A35: c. Criterio clínico y terapéutico
A36: 3. EJECUCIÓN DEL DESEMPEÑO 10%
A37: a. Capacidad para tomar decisiones | B37: 0.05 | D37: =AVERAGE(C37:C38)*5% ->  | E37: 0.05 | G37: =AVERAGE(F37:F38)*5% -> 
A38: b. Relaciones humanas, trabajo en equipo
A40: NOTA DEFINITIVA | D40: =D24+D30+D33+D37 ->  | G40: =G24+G30+G33+G37 ->  | H40: =AVERAGE(D40:G40) -> 
A43: 1. SABER 45% | B43: Dra. Olaya | E43: Dra. Galeano
A44: a. Casos Clínicos | B44: 0.25 | D44: =AVERAGE(C44:C48)*25% ->  | E44: 0.25 | G44: =AVERAGE(F44:F48)*25% -> 
A45: b. Seminarios
A46: c. Revisiones de tema
A47: d. Club de Revistas
A48: e. Rondas - Juntas
A50: f. Examen Escrito en la última semana de rotación | B50: 0.25 | D50: =C50*25% -> 0 | E50: 0.25 | G50: =F50*25% -> 0
A52: 2. HACER 45%
A53: a. Manejo de la historia clínica | B53: 0.45 | D53: =AVERAGE(C53:C55)*45% ->  | E53: 0.45 | G53: =AVERAGE(F53:F55)*45% -> 
A54: b. Destrezas y manualidades especificas
A55: c. Criterio clínico y terapéutico
A56: 3. EJECUCIÓN DEL DESEMPEÑO 10%
A57: a. Capacidad para tomar decisiones | B57: 0.05 | D57: =AVERAGE(C57:C58)*5% ->  | E57: 0.05 | G57: =AVERAGE(F57:F58)*5% -> 
A58: b. Relaciones humanas, trabajo en equipo
A60: NOTA DEFINITIVA | D60: =D44+D50+D53+D57 ->  | G60: =G44+G50+G53+G57 ->  | H60: =AVERAGE(D60:G60) -> 
A63: 1. SABER 45% | B63: Dr. Moya | E63: Dra. Henao
A64: a. Casos Clínicos | B64: 0.25 | D64: =AVERAGE(C64:C68)*25% ->  | E64: 0.25 | G64: =AVERAGE(F64:F68)*25% -> 
A65: b. Seminarios
A66: c. Revisiones de tema
A67: d. Club de Revistas
A68: e. Rondas - Juntas
A70: f. Examen Escrito en la última semana de rotación | B70: 0.25 | D70: =C70*25% -> 0 | E70: 0.25 | G70: =F70*25% -> 0
A72: 2. HACER 45%
A73: a. Manejo de la historia clínica | B73: 0.45 | D73: =AVERAGE(C73:C75)*45% ->  | E73: 0.45 | G73: =AVERAGE(F73:F75)*45% -> 
A74: b. Destrezas y manualidades especificas
A75: c. Criterio clínico y terapéutico
A76: 3. EJECUCIÓN DEL DESEMPEÑO 10%
A77: a. Capacidad para tomar decisiones | B77: 0.05 | D77: =AVERAGE(C77:C78)*5% ->  | E77: 0.05 | G77: =AVERAGE(F77:F78)*5% -> 
A78: b. Relaciones humanas, trabajo en equipo
A80: NOTA DEFINITIVA | D80: =D64+D70+D73+D77 ->  | G80: =G64+G70+G73+G77 ->  | H80: =AVERAGE(D80:G80) -> 
A83: 1. SABER 45% | B83: Dr. León | E83: Dr. Benavides
A84: a. Casos Clínicos | B84: 0.25 | E84: 0.25 | G84: =AVERAGE(F84:F88)*25% -> 
A85: b. Seminarios
A86: c. Revisiones de tema
A87: d. Club de Revistas
A88: e. Rondas - Juntas
A90: f. Examen Escrito en la última semana de rotación | B90: 0.25 | E90: 0.25 | G90: =F90*25% -> 0
A92: 2. HACER 45%
A93: a. Manejo de la historia clínica | B93: 0.45 | E93: 0.45 | G93: =AVERAGE(F93:F95)*45% -> 
A94: b. Destrezas y manualidades especificas
A95: c. Criterio clínico y terapéutico
A96: 3. EJECUCIÓN DEL DESEMPEÑO 10%
A97: a. Capacidad para tomar decisiones | B97: 0.05 | E97: 0.05 | G97: =AVERAGE(F97:F98)*5% -> 
A98: b. Relaciones humanas, trabajo en equipo
A100: NOTA DEFINITIVA | G100: =G84+G90+G93+G97 ->  | H100: =AVERAGE(D100:G100) -> 
A103: 1. SABER 45% | B103: Armida | E103: Dr.Marin
A104: a. Casos Clínicos | B104: 0.25 | D104: =AVERAGE(C104:C108)*25% ->  | E104: 0.25 | G104: =AVERAGE(F104:F108)*25% -> 
A105: b. Seminarios
A106: c. Revisiones de tema
A107: d. Club de Revistas
A108: e. Rondas - Juntas
A110: f. Examen Escrito en la última semana de rotación | B110: 0.25 | D110: =C110*25% -> 0 | E110: 0.25 | G110: =F110*25% -> 0
A112: 2. HACER 45%
A113: a. Manejo de la historia clínica | B113: 0.45 | D113: =AVERAGE(C113:C115)*45% ->  | E113: 0.45 | G113: =AVERAGE(F113:F115)*45% -> 
A114: b. Destrezas y manualidades especificas
A115: c. Criterio clínico y terapéutico
A116: 3. EJECUCIÓN DEL DESEMPEÑO 10%
A117: a. Capacidad para tomar decisiones | B117: 0.05 | D117: =AVERAGE(C117:C118)*5% ->  | E117: 0.05 | G117: =AVERAGE(F117:F118)*5% -> 
A118: b. Relaciones humanas, trabajo en equipo
A120: NOTA DEFINITIVA | D120: =D104+D110+D113+D117 ->  | G120: =G104+G110+G113+G117 ->  | H120: =AVERAGE(D120:G120) -> 

Sheet Notas19 (hidden)
A3: 1. SABER 45% | B3: Dra. Daza | E3: Dra. Rubiano
A4: a. Casos Clínicos | B4: 0.25 | D4: =AVERAGE(C4:C8)*25% ->  | E4: 0.25 | G4: =AVERAGE(F4:F8)*25% -> 
A5: b. Seminarios
A6: c. Revisiones de tema
A7: d. Club de Revistas
A8: e. Rondas - Juntas
A10: f. Examen Escrito en la última semana de rotación | B10: 0.25 | D10: =C10*25% -> 0 | E10: 0.25 | G10: =F10*25% -> 0
A12: 2. HACER 45%
A13: a. Manejo de la historia clínica | B13: 0.45 | D13: =AVERAGE(C13:C15)*45% ->  | E13: 0.45 | G13: =AVERAGE(F13:F15)*45% -> 
A14: b. Destrezas y manualidades especificas
A15: c. Criterio clínico y terapéutico
A16: 3. EJECUCIÓN DEL DESEMPEÑO 10%
A17: a. Capacidad para tomar decisiones | B17: 0.05 | D17: =AVERAGE(C17:C18)*5% ->  | E17: 0.05 | G17: =AVERAGE(F17:F18)*5% -> 
A18: b. Relaciones humanas, trabajo en equipo
A20: NOTA DEFINITIVA | D20: =D4+D10+D13+D17 ->  | G20: =G4+G10+G13+G17 ->  | H20: =AVERAGE(D20:G20) -> 
A23: 1. SABER 45% | B23: Dra. Bedoya | E23: Dr. Gaviria
A24: a. Casos Clínicos | B24: 0.25 | D24: =AVERAGE(C24:C28)*25% ->  | E24: 0.25 | G24: =AVERAGE(F24:F28)*25% -> 
A25: b. Seminarios
A26: c. Revisiones de tema
A27: d. Club de Revistas
A28: e. Rondas - Juntas
A30: f. Examen Escrito en la última semana de rotación | B30: 0.25 | D30: =C30*25% -> 0 | E30: 0.25 | G30: =F30*25% -> 0
A32: 2. HACER 45%
A33: a. Manejo de la historia clínica | B33: 0.45 | D33: =AVERAGE(C33:C35)*45% ->  | E33: 0.45 | G33: =AVERAGE(F33:F35)*45% -> 
A34: b. Destrezas y manualidades especificas
A35: c. Criterio clínico y terapéutico
A36: 3. EJECUCIÓN DEL DESEMPEÑO 10%
A37: a. Capacidad para tomar decisiones | B37: 0.05 | D37: =AVERAGE(C37:C38)*5% ->  | E37: 0.05 | G37: =AVERAGE(F37:F38)*5% -> 
A38: b. Relaciones humanas, trabajo en equipo
A40: NOTA DEFINITIVA | D40: =D24+D30+D33+D37 ->  | G40: =G24+G30+G33+G37 ->  | H40: =AVERAGE(D40:G40) -> 
A43: 1. SABER 45% | B43: Dra. Olaya | E43: Dra. Galeano
A44: a. Casos Clínicos | B44: 0.25 | D44: =AVERAGE(C44:C48)*25% ->  | E44: 0.25 | G44: =AVERAGE(F44:F48)*25% -> 
A45: b. Seminarios
A46: c. Revisiones de tema
A47: d. Club de Revistas
A48: e. Rondas - Juntas
A50: f. Examen Escrito en la última semana de rotación | B50: 0.25 | D50: =C50*25% -> 0 | E50: 0.25 | G50: =F50*25% -> 0
A52: 2. HACER 45%
A53: a. Manejo de la historia clínica | B53: 0.45 | D53: =AVERAGE(C53:C55)*45% ->  | E53: 0.45 | G53: =AVERAGE(F53:F55)*45% -> 
A54: b. Destrezas y manualidades especificas
A55: c. Criterio clínico y terapéutico
A56: 3. EJECUCIÓN DEL DESEMPEÑO 10%
A57: a. Capacidad para tomar decisiones | B57: 0.05 | D57: =AVERAGE(C57:C58)*5% ->  | E57: 0.05 | G57: =AVERAGE(F57:F58)*5% -> 
A58: b. Relaciones humanas, trabajo en equipo
A60: NOTA DEFINITIVA | D60: =D44+D50+D53+D57 ->  | G60: =G44+G50+G53+G57 ->  | H60: =AVERAGE(D60:G60) -> 
A63: 1. SABER 45% | B63: Dr. Moya | E63: Dra. Henao
A64: a. Casos Clínicos | B64: 0.25 | D64: =AVERAGE(C64:C68)*25% ->  | E64: 0.25 | G64: =AVERAGE(F64:F68)*25% -> 
A65: b. Seminarios
A66: c. Revisiones de tema
A67: d. Club de Revistas
A68: e. Rondas - Juntas
A70: f. Examen Escrito en la última semana de rotación | B70: 0.25 | D70: =C70*25% -> 0 | E70: 0.25 | G70: =F70*25% -> 0
A72: 2. HACER 45%
A73: a. Manejo de la historia clínica | B73: 0.45 | D73: =AVERAGE(C73:C75)*45% ->  | E73: 0.45 | G73: =AVERAGE(F73:F75)*45% -> 
A74: b. Destrezas y manualidades especificas
A75: c. Criterio clínico y terapéutico
A76: 3. EJECUCIÓN DEL DESEMPEÑO 10%
A77: a. Capacidad para tomar decisiones | B77: 0.05 | D77: =AVERAGE(C77:C78)*5% ->  | E77: 0.05 | G77: =AVERAGE(F77:F78)*5% -> 
A78: b. Relaciones humanas, trabajo en equipo
A80: NOTA DEFINITIVA | D80: =D64+D70+D73+D77 ->  | G80: =G64+G70+G73+G77 ->  | H80: =AVERAGE(D80:G80) -> 
A83: 1. SABER 45% | B83: Dr. León | E83: Dr. Benavides
A84: a. Casos Clínicos | B84: 0.25 | E84: 0.25 | G84: =AVERAGE(F84:F88)*25% -> 
A85: b. Seminarios
A86: c. Revisiones de tema
A87: d. Club de Revistas
A88: e. Rondas - Juntas
A90: f. Examen Escrito en la última semana de rotación | B90: 0.25 | E90: 0.25 | G90: =F90*25% -> 0
A92: 2. HACER 45%
A93: a. Manejo de la historia clínica | B93: 0.45 | E93: 0.45 | G93: =AVERAGE(F93:F95)*45% -> 
A94: b. Destrezas y manualidades especificas
A95: c. Criterio clínico y terapéutico
A96: 3. EJECUCIÓN DEL DESEMPEÑO 10%
A97: a. Capacidad para tomar decisiones | B97: 0.05 | E97: 0.05 | G97: =AVERAGE(F97:F98)*5% -> 
A98: b. Relaciones humanas, trabajo en equipo
A100: NOTA DEFINITIVA | G100: =G84+G90+G93+G97 ->  | H100: =AVERAGE(D100:G100) -> 
A103: 1. SABER 45% | B103: Armida | E103: Dr.Marin
A104: a. Casos Clínicos | B104: 0.25 | D104: =AVERAGE(C104:C108)*25% ->  | E104: 0.25 | G104: =AVERAGE(F104:F108)*25% -> 
A105: b. Seminarios
A106: c. Revisiones de tema
A107: d. Club de Revistas
A108: e. Rondas - Juntas
A110: f. Examen Escrito en la última semana de rotación | B110: 0.25 | D110: =C110*25% -> 0 | E110: 0.25 | G110: =F110*25% -> 0
A112: 2. HACER 45%
A113: a. Manejo de la historia clínica | B113: 0.45 | D113: =AVERAGE(C113:C115)*45% ->  | E113: 0.45 | G113: =AVERAGE(F113:F115)*45% -> 
A114: b. Destrezas y manualidades especificas
A115: c. Criterio clínico y terapéutico
A116: 3. EJECUCIÓN DEL DESEMPEÑO 10%
A117: a. Capacidad para tomar decisiones | B117: 0.05 | D117: =AVERAGE(C117:C118)*5% ->  | E117: 0.05 | G117: =AVERAGE(F117:F118)*5% -> 
A118: b. Relaciones humanas, trabajo en equipo
A120: NOTA DEFINITIVA | D120: =D104+D110+D113+D117 ->  | G120: =G104+G110+G113+G117 ->  | H120: =AVERAGE(D120:G120) -> 
A122: NOTA DEFINITIVA | D122: =D106+D112+D115+D119 -> 0 | G122: =G106+G112+G115+G119 -> 0 | H122: =AVERAGE(D122:G122) -> 0

Sheet Notas20 (hidden)
A3: 1. SABER 45% | B3: Dra. Daza | E3: Dra. Rubiano
A4: a. Casos Clínicos | B4: 0.25 | D4: =AVERAGE(C4:C8)*25% ->  | E4: 0.25 | G4: =AVERAGE(F4:F8)*25% -> 
A5: b. Seminarios
A6: c. Revisiones de tema
A7: d. Club de Revistas
A8: e. Rondas - Juntas
A10: f. Examen Escrito en la última semana de rotación | B10: 0.25 | D10: =C10*25% -> 0 | E10: 0.25 | G10: =F10*25% -> 0
A12: 2. HACER 45%
A13: a. Manejo de la historia clínica | B13: 0.45 | D13: =AVERAGE(C13:C15)*45% ->  | E13: 0.45 | G13: =AVERAGE(F13:F15)*45% -> 
A14: b. Destrezas y manualidades especificas
A15: c. Criterio clínico y terapéutico
A16: 3. EJECUCIÓN DEL DESEMPEÑO 10%
A17: a. Capacidad para tomar decisiones | B17: 0.05 | D17: =AVERAGE(C17:C18)*5% ->  | E17: 0.05 | G17: =AVERAGE(F17:F18)*5% -> 
A18: b. Relaciones humanas, trabajo en equipo
A20: NOTA DEFINITIVA | D20: =D4+D10+D13+D17 ->  | G20: =G4+G10+G13+G17 ->  | H20: =AVERAGE(D20:G20) -> 
A23: 1. SABER 45% | B23: Dra. Bedoya | E23: Dr. Gaviria
A24: a. Casos Clínicos | B24: 0.25 | D24: =AVERAGE(C24:C28)*25% ->  | E24: 0.25 | G24: =AVERAGE(F24:F28)*25% -> 
A25: b. Seminarios
A26: c. Revisiones de tema
A27: d. Club de Revistas
A28: e. Rondas - Juntas
A30: f. Examen Escrito en la última semana de rotación | B30: 0.25 | D30: =C30*25% -> 0 | E30: 0.25 | G30: =F30*25% -> 0
A32: 2. HACER 45%
A33: a. Manejo de la historia clínica | B33: 0.45 | D33: =AVERAGE(C33:C35)*45% ->  | E33: 0.45 | G33: =AVERAGE(F33:F35)*45% -> 
A34: b. Destrezas y manualidades especificas
A35: c. Criterio clínico y terapéutico
A36: 3. EJECUCIÓN DEL DESEMPEÑO 10%
A37: a. Capacidad para tomar decisiones | B37: 0.05 | D37: =AVERAGE(C37:C38)*5% ->  | E37: 0.05 | G37: =AVERAGE(F37:F38)*5% -> 
A38: b. Relaciones humanas, trabajo en equipo
A40: NOTA DEFINITIVA | D40: =D24+D30+D33+D37 ->  | G40: =G24+G30+G33+G37 ->  | H40: =AVERAGE(D40:G40) -> 
A43: 1. SABER 45% | B43: Dra. Olaya | E43: Dra. Galeano
A44: a. Casos Clínicos | B44: 0.25 | D44: =AVERAGE(C44:C48)*25% ->  | E44: 0.25 | G44: =AVERAGE(F44:F48)*25% -> 
A45: b. Seminarios
A46: c. Revisiones de tema
A47: d. Club de Revistas
A48: e. Rondas - Juntas
A50: f. Examen Escrito en la última semana de rotación | B50: 0.25 | D50: =C50*25% -> 0 | E50: 0.25 | G50: =F50*25% -> 0
A52: 2. HACER 45%
A53: a. Manejo de la historia clínica | B53: 0.45 | D53: =AVERAGE(C53:C55)*45% ->  | E53: 0.45 | G53: =AVERAGE(F53:F55)*45% -> 
A54: b. Destrezas y manualidades especificas
A55: c. Criterio clínico y terapéutico
A56: 3. EJECUCIÓN DEL DESEMPEÑO 10%
A57: a. Capacidad para tomar decisiones | B57: 0.05 | D57: =AVERAGE(C57:C58)*5% ->  | E57: 0.05 | G57: =AVERAGE(F57:F58)*5% -> 
A58: b. Relaciones humanas, trabajo en equipo
A60: NOTA DEFINITIVA | D60: =D44+D50+D53+D57 ->  | G60: =G44+G50+G53+G57 ->  | H60: =AVERAGE(D60:G60) -> 
A63: 1. SABER 45% | B63: Dr. Moya | E63: Dra. Henao
A64: a. Casos Clínicos | B64: 0.25 | D64: =AVERAGE(C64:C68)*25% ->  | E64: 0.25 | G64: =AVERAGE(F64:F68)*25% -> 
A65: b. Seminarios
A66: c. Revisiones de tema
A67: d. Club de Revistas
A68: e. Rondas - Juntas
A70: f. Examen Escrito en la última semana de rotación | B70: 0.25 | D70: =C70*25% -> 0 | E70: 0.25 | G70: =F70*25% -> 0
A72: 2. HACER 45%
A73: a. Manejo de la historia clínica | B73: 0.45 | D73: =AVERAGE(C73:C75)*45% ->  | E73: 0.45 | G73: =AVERAGE(F73:F75)*45% -> 
A74: b. Destrezas y manualidades especificas
A75: c. Criterio clínico y terapéutico
A76: 3. EJECUCIÓN DEL DESEMPEÑO 10%
A77: a. Capacidad para tomar decisiones | B77: 0.05 | D77: =AVERAGE(C77:C78)*5% ->  | E77: 0.05 | G77: =AVERAGE(F77:F78)*5% -> 
A78: b. Relaciones humanas, trabajo en equipo
A80: NOTA DEFINITIVA | D80: =D64+D70+D73+D77 ->  | G80: =G64+G70+G73+G77 ->  | H80: =AVERAGE(D80:G80) -> 
A83: 1. SABER 45% | B83: Dr. León | E83: Dr. Benavides
A84: a. Casos Clínicos | B84: 0.25 | E84: 0.25 | G84: =AVERAGE(F84:F88)*25% -> 
A85: b. Seminarios
A86: c. Revisiones de tema
A87: d. Club de Revistas
A88: e. Rondas - Juntas
A90: f. Examen Escrito en la última semana de rotación | B90: 0.25 | E90: 0.25 | G90: =F90*25% -> 0
A92: 2. HACER 45%
A93: a. Manejo de la historia clínica | B93: 0.45 | E93: 0.45 | G93: =AVERAGE(F93:F95)*45% -> 
A94: b. Destrezas y manualidades especificas
A95: c. Criterio clínico y terapéutico
A96: 3. EJECUCIÓN DEL DESEMPEÑO 10%
A97: a. Capacidad para tomar decisiones | B97: 0.05 | E97: 0.05 | G97: =AVERAGE(F97:F98)*5% -> 
A98: b. Relaciones humanas, trabajo en equipo
A100: NOTA DEFINITIVA | G100: =G84+G90+G93+G97 ->  | H100: =AVERAGE(D100:G100) -> 
A103: 1. SABER 45% | B103: Armida | E103: Dr.Marin
A104: a. Casos Clínicos | B104: 0.25 | D104: =AVERAGE(C104:C108)*25% ->  | E104: 0.25 | G104: =AVERAGE(F104:F108)*25% -> 
A105: b. Seminarios
A106: c. Revisiones de tema
A107: d. Club de Revistas
A108: e. Rondas - Juntas
A110: f. Examen Escrito en la última semana de rotación | B110: 0.25 | D110: =C110*25% -> 0 | E110: 0.25 | G110: =F110*25% -> 0
A112: 2. HACER 45%
A113: a. Manejo de la historia clínica | B113: 0.45 | D113: =AVERAGE(C113:C115)*45% ->  | E113: 0.45 | G113: =AVERAGE(F113:F115)*45% -> 
A114: b. Destrezas y manualidades especificas
A115: c. Criterio clínico y terapéutico
A116: 3. EJECUCIÓN DEL DESEMPEÑO 10%
A117: a. Capacidad para tomar decisiones | B117: 0.05 | D117: =AVERAGE(C117:C118)*5% ->  | E117: 0.05 | G117: =AVERAGE(F117:F118)*5% -> 
A118: b. Relaciones humanas, trabajo en equipo
A120: NOTA DEFINITIVA | D120: =D104+D110+D113+D117 ->  | G120: =G104+G110+G113+G117 ->  | H120: =AVERAGE(D120:G120) -> 
A122: NOTA DEFINITIVA | D122: =D106+D112+D115+D119 -> 0 | G122: =G106+G112+G115+G119 -> 0 | H122: =AVERAGE(D122:G122) -> 0

Sheet Notas21 (hidden)
A3: 1. SABER 45% | B3: Dra. Daza | E3: Dra. Rubiano
A4: a. Casos Clínicos | B4: 0.25 | D4: =AVERAGE(C4:C8)*25% ->  | E4: 0.25 | G4: =AVERAGE(F4:F8)*25% -> 
A5: b. Seminarios
A6: c. Revisiones de tema
A7: d. Club de Revistas
A8: e. Rondas - Juntas
A10: f. Examen Escrito en la última semana de rotación | B10: 0.25 | D10: =C10*25% -> 0 | E10: 0.25 | G10: =F10*25% -> 0
A12: 2. HACER 45%
A13: a. Manejo de la historia clínica | B13: 0.45 | D13: =AVERAGE(C13:C15)*45% ->  | E13: 0.45 | G13: =AVERAGE(F13:F15)*45% -> 
A14: b. Destrezas y manualidades especificas
A15: c. Criterio clínico y terapéutico
A16: 3. EJECUCIÓN DEL DESEMPEÑO 10%
A17: a. Capacidad para tomar decisiones | B17: 0.05 | D17: =AVERAGE(C17:C18)*5% ->  | E17: 0.05 | G17: =AVERAGE(F17:F18)*5% -> 
A18: b. Relaciones humanas, trabajo en equipo
A20: NOTA DEFINITIVA | D20: =D4+D10+D13+D17 ->  | G20: =G4+G10+G13+G17 ->  | H20: =AVERAGE(D20:G20) -> 
A23: 1. SABER 45% | B23: Dra. Bedoya | E23: Dr. Gaviria
A24: a. Casos Clínicos | B24: 0.25 | D24: =AVERAGE(C24:C28)*25% ->  | E24: 0.25 | G24: =AVERAGE(F24:F28)*25% -> 
A25: b. Seminarios
A26: c. Revisiones de tema
A27: d. Club de Revistas
A28: e. Rondas - Juntas
A30: f. Examen Escrito en la última semana de rotación | B30: 0.25 | D30: =C30*25% -> 0 | E30: 0.25 | G30: =F30*25% -> 0
A32: 2. HACER 45%
A33: a. Manejo de la historia clínica | B33: 0.45 | D33: =AVERAGE(C33:C35)*45% ->  | E33: 0.45 | G33: =AVERAGE(F33:F35)*45% -> 
A34: b. Destrezas y manualidades especificas
A35: c. Criterio clínico y terapéutico
A36: 3. EJECUCIÓN DEL DESEMPEÑO 10%
A37: a. Capacidad para tomar decisiones | B37: 0.05 | D37: =AVERAGE(C37:C38)*5% ->  | E37: 0.05 | G37: =AVERAGE(F37:F38)*5% -> 
A38: b. Relaciones humanas, trabajo en equipo
A40: NOTA DEFINITIVA | D40: =D24+D30+D33+D37 ->  | G40: =G24+G30+G33+G37 ->  | H40: =AVERAGE(D40:G40) -> 
A43: 1. SABER 45% | B43: Dra. Olaya | E43: Dra. Galeano
A44: a. Casos Clínicos | B44: 0.25 | D44: =AVERAGE(C44:C48)*25% ->  | E44: 0.25 | G44: =AVERAGE(F44:F48)*25% -> 
A45: b. Seminarios
A46: c. Revisiones de tema
A47: d. Club de Revistas
A48: e. Rondas - Juntas
A50: f. Examen Escrito en la última semana de rotación | B50: 0.25 | D50: =C50*25% -> 0 | E50: 0.25 | G50: =F50*25% -> 0
A52: 2. HACER 45%
A53: a. Manejo de la historia clínica | B53: 0.45 | D53: =AVERAGE(C53:C55)*45% ->  | E53: 0.45 | G53: =AVERAGE(F53:F55)*45% -> 
A54: b. Destrezas y manualidades especificas
A55: c. Criterio clínico y terapéutico
A56: 3. EJECUCIÓN DEL DESEMPEÑO 10%
A57: a. Capacidad para tomar decisiones | B57: 0.05 | D57: =AVERAGE(C57:C58)*5% ->  | E57: 0.05 | G57: =AVERAGE(F57:F58)*5% -> 
A58: b. Relaciones humanas, trabajo en equipo
A60: NOTA DEFINITIVA | D60: =D44+D50+D53+D57 ->  | G60: =G44+G50+G53+G57 ->  | H60: =AVERAGE(D60:G60) -> 
A63: 1. SABER 45% | B63: Dr. Moya | E63: Dra. Henao
A64: a. Casos Clínicos | B64: 0.25 | D64: =AVERAGE(C64:C68)*25% ->  | E64: 0.25 | G64: =AVERAGE(F64:F68)*25% -> 
A65: b. Seminarios
A66: c. Revisiones de tema
A67: d. Club de Revistas
A68: e. Rondas - Juntas
A70: f. Examen Escrito en la última semana de rotación | B70: 0.25 | D70: =C70*25% -> 0 | E70: 0.25 | G70: =F70*25% -> 0
A72: 2. HACER 45%
A73: a. Manejo de la historia clínica | B73: 0.45 | D73: =AVERAGE(C73:C75)*45% ->  | E73: 0.45 | G73: =AVERAGE(F73:F75)*45% -> 
A74: b. Destrezas y manualidades especificas
A75: c. Criterio clínico y terapéutico
A76: 3. EJECUCIÓN DEL DESEMPEÑO 10%
A77: a. Capacidad para tomar decisiones | B77: 0.05 | D77: =AVERAGE(C77:C78)*5% ->  | E77: 0.05 | G77: =AVERAGE(F77:F78)*5% -> 
A78: b. Relaciones humanas, trabajo en equipo
A80: NOTA DEFINITIVA | D80: =D64+D70+D73+D77 ->  | G80: =G64+G70+G73+G77 ->  | H80: =AVERAGE(D80:G80) -> 
A83: 1. SABER 45% | B83: Dr. León | E83: Dr. Benavides
A84: a. Casos Clínicos | B84: 0.25 | E84: 0.25 | G84: =AVERAGE(F84:F88)*25% -> 
A85: b. Seminarios
A86: c. Revisiones de tema
A87: d. Club de Revistas
A88: e. Rondas - Juntas
A90: f. Examen Escrito en la última semana de rotación | B90: 0.25 | E90: 0.25 | G90: =F90*25% -> 0
A92: 2. HACER 45%
A93: a. Manejo de la historia clínica | B93: 0.45 | E93: 0.45 | G93: =AVERAGE(F93:F95)*45% -> 
A94: b. Destrezas y manualidades especificas
A95: c. Criterio clínico y terapéutico
A96: 3. EJECUCIÓN DEL DESEMPEÑO 10%
A97: a. Capacidad para tomar decisiones | B97: 0.05 | E97: 0.05 | G97: =AVERAGE(F97:F98)*5% -> 
A98: b. Relaciones humanas, trabajo en equipo
A100: NOTA DEFINITIVA | G100: =G84+G90+G93+G97 ->  | H100: =AVERAGE(D100:G100) -> 
A103: 1. SABER 45% | B103: Armida | E103: Dr.Marin
A104: a. Casos Clínicos | B104: 0.25 | D104: =AVERAGE(C104:C108)*25% ->  | E104: 0.25 | G104: =AVERAGE(F104:F108)*25% -> 
A105: b. Seminarios
A106: c. Revisiones de tema
A107: d. Club de Revistas
A108: e. Rondas - Juntas
A110: f. Examen Escrito en la última semana de rotación | B110: 0.25 | D110: =C110*25% -> 0 | E110: 0.25 | G110: =F110*25% -> 0
A112: 2. HACER 45%
A113: a. Manejo de la historia clínica | B113: 0.45 | D113: =AVERAGE(C113:C115)*45% ->  | E113: 0.45 | G113: =AVERAGE(F113:F115)*45% -> 
A114: b. Destrezas y manualidades especificas
A115: c. Criterio clínico y terapéutico
A116: 3. EJECUCIÓN DEL DESEMPEÑO 10%
A117: a. Capacidad para tomar decisiones | B117: 0.05 | D117: =AVERAGE(C117:C118)*5% ->  | E117: 0.05 | G117: =AVERAGE(F117:F118)*5% -> 
A118: b. Relaciones humanas, trabajo en equipo
A120: NOTA DEFINITIVA | D120: =D104+D110+D113+D117 ->  | G120: =G104+G110+G113+G117 ->  | H120: =AVERAGE(D120:G120) -> 
A122: NOTA DEFINITIVA | D122: =D106+D112+D115+D119 -> 0 | G122: =G106+G112+G115+G119 -> 0 | H122: =AVERAGE(D122:G122) -> 0

Sheet Notas22 (hidden)
A3: 1. SABER 45% | B3: Dra. Daza | E3: Dra. Rubiano
A4: a. Casos Clínicos | B4: 0.25 | D4: =AVERAGE(C4:C8)*25% ->  | E4: 0.25 | G4: =AVERAGE(F4:F8)*25% -> 
A5: b. Seminarios
A6: c. Revisiones de tema
A7: d. Club de Revistas
A8: e. Rondas - Juntas
A10: f. Examen Escrito en la última semana de rotación | B10: 0.25 | D10: =C10*25% -> 0 | E10: 0.25 | G10: =F10*25% -> 0
A12: 2. HACER 45%
A13: a. Manejo de la historia clínica | B13: 0.45 | D13: =AVERAGE(C13:C15)*45% ->  | E13: 0.45 | G13: =AVERAGE(F13:F15)*45% -> 
A14: b. Destrezas y manualidades especificas
A15: c. Criterio clínico y terapéutico
A16: 3. EJECUCIÓN DEL DESEMPEÑO 10%
A17: a. Capacidad para tomar decisiones | B17: 0.05 | D17: =AVERAGE(C17:C18)*5% ->  | E17: 0.05 | G17: =AVERAGE(F17:F18)*5% -> 
A18: b. Relaciones humanas, trabajo en equipo
A20: NOTA DEFINITIVA | D20: =D4+D10+D13+D17 ->  | G20: =G4+G10+G13+G17 ->  | H20: =AVERAGE(D20:G20) -> 
A23: 1. SABER 45% | B23: Dra. Bedoya | E23: Dr. Gaviria
A24: a. Casos Clínicos | B24: 0.25 | D24: =AVERAGE(C24:C28)*25% ->  | E24: 0.25 | G24: =AVERAGE(F24:F28)*25% -> 
A25: b. Seminarios
A26: c. Revisiones de tema
A27: d. Club de Revistas
A28: e. Rondas - Juntas
A30: f. Examen Escrito en la última semana de rotación | B30: 0.25 | D30: =C30*25% -> 0 | E30: 0.25 | G30: =F30*25% -> 0
A32: 2. HACER 45%
A33: a. Manejo de la historia clínica | B33: 0.45 | D33: =AVERAGE(C33:C35)*45% ->  | E33: 0.45 | G33: =AVERAGE(F33:F35)*45% -> 
A34: b. Destrezas y manualidades especificas
A35: c. Criterio clínico y terapéutico
A36: 3. EJECUCIÓN DEL DESEMPEÑO 10%
A37: a. Capacidad para tomar decisiones | B37: 0.05 | D37: =AVERAGE(C37:C38)*5% ->  | E37: 0.05 | G37: =AVERAGE(F37:F38)*5% -> 
A38: b. Relaciones humanas, trabajo en equipo
A40: NOTA DEFINITIVA | D40: =D24+D30+D33+D37 ->  | G40: =G24+G30+G33+G37 ->  | H40: =AVERAGE(D40:G40) -> 
A43: 1. SABER 45% | B43: Dra. Olaya | E43: Dra. Galeano
A44: a. Casos Clínicos | B44: 0.25 | D44: =AVERAGE(C44:C48)*25% ->  | E44: 0.25 | G44: =AVERAGE(F44:F48)*25% -> 
A45: b. Seminarios
A46: c. Revisiones de tema
A47: d. Club de Revistas
A48: e. Rondas - Juntas
A50: f. Examen Escrito en la última semana de rotación | B50: 0.25 | D50: =C50*25% -> 0 | E50: 0.25 | G50: =F50*25% -> 0
A52: 2. HACER 45%
A53: a. Manejo de la historia clínica | B53: 0.45 | D53: =AVERAGE(C53:C55)*45% ->  | E53: 0.45 | G53: =AVERAGE(F53:F55)*45% -> 
A54: b. Destrezas y manualidades especificas
A55: c. Criterio clínico y terapéutico
A56: 3. EJECUCIÓN DEL DESEMPEÑO 10%
A57: a. Capacidad para tomar decisiones | B57: 0.05 | D57: =AVERAGE(C57:C58)*5% ->  | E57: 0.05 | G57: =AVERAGE(F57:F58)*5% -> 
A58: b. Relaciones humanas, trabajo en equipo
A60: NOTA DEFINITIVA | D60: =D44+D50+D53+D57 ->  | G60: =G44+G50+G53+G57 ->  | H60: =AVERAGE(D60:G60) -> 
A63: 1. SABER 45% | B63: Dr. Moya | E63: Dra. Henao
A64: a. Casos Clínicos | B64: 0.25 | D64: =AVERAGE(C64:C68)*25% ->  | E64: 0.25 | G64: =AVERAGE(F64:F68)*25% -> 
A65: b. Seminarios
A66: c. Revisiones de tema
A67: d. Club de Revistas
A68: e. Rondas - Juntas
A70: f. Examen Escrito en la última semana de rotación | B70: 0.25 | D70: =C70*25% -> 0 | E70: 0.25 | G70: =F70*25% -> 0
A72: 2. HACER 45%
A73: a. Manejo de la historia clínica | B73: 0.45 | D73: =AVERAGE(C73:C75)*45% ->  | E73: 0.45 | G73: =AVERAGE(F73:F75)*45% -> 
A74: b. Destrezas y manualidades especificas
A75: c. Criterio clínico y terapéutico
A76: 3. EJECUCIÓN DEL DESEMPEÑO 10%
A77: a. Capacidad para tomar decisiones | B77: 0.05 | D77: =AVERAGE(C77:C78)*5% ->  | E77: 0.05 | G77: =AVERAGE(F77:F78)*5% -> 
A78: b. Relaciones humanas, trabajo en equipo
A80: NOTA DEFINITIVA | D80: =D64+D70+D73+D77 ->  | G80: =G64+G70+G73+G77 ->  | H80: =AVERAGE(D80:G80) -> 
A83: 1. SABER 45% | B83: Dr. León | E83: Dr. Benavides
A84: a. Casos Clínicos | B84: 0.25 | E84: 0.25 | G84: =AVERAGE(F84:F88)*25% -> 
A85: b. Seminarios
A86: c. Revisiones de tema
A87: d. Club de Revistas
A88: e. Rondas - Juntas
A90: f. Examen Escrito en la última semana de rotación | B90: 0.25 | E90: 0.25 | G90: =F90*25% -> 0
A92: 2. HACER 45%
A93: a. Manejo de la historia clínica | B93: 0.45 | E93: 0.45 | G93: =AVERAGE(F93:F95)*45% -> 
A94: b. Destrezas y manualidades especificas
A95: c. Criterio clínico y terapéutico
A96: 3. EJECUCIÓN DEL DESEMPEÑO 10%
A97: a. Capacidad para tomar decisiones | B97: 0.05 | E97: 0.05 | G97: =AVERAGE(F97:F98)*5% -> 
A98: b. Relaciones humanas, trabajo en equipo
A100: NOTA DEFINITIVA | G100: =G84+G90+G93+G97 ->  | H100: =AVERAGE(D100:G100) -> 
A103: 1. SABER 45% | B103: Armida | E103: Dr.Marin
A104: a. Casos Clínicos | B104: 0.25 | D104: =AVERAGE(C104:C108)*25% ->  | E104: 0.25 | G104: =AVERAGE(F104:F108)*25% -> 
A105: b. Seminarios
A106: c. Revisiones de tema
A107: d. Club de Revistas
A108: e. Rondas - Juntas
A110: f. Examen Escrito en la última semana de rotación | B110: 0.25 | D110: =C110*25% -> 0 | E110: 0.25 | G110: =F110*25% -> 0
A112: 2. HACER 45%
A113: a. Manejo de la historia clínica | B113: 0.45 | D113: =AVERAGE(C113:C115)*45% ->  | E113: 0.45 | G113: =AVERAGE(F113:F115)*45% -> 
A114: b. Destrezas y manualidades especificas
A115: c. Criterio clínico y terapéutico
A116: 3. EJECUCIÓN DEL DESEMPEÑO 10%
A117: a. Capacidad para tomar decisiones | B117: 0.05 | D117: =AVERAGE(C117:C118)*5% ->  | E117: 0.05 | G117: =AVERAGE(F117:F118)*5% -> 
A118: b. Relaciones humanas, trabajo en equipo
A120: NOTA DEFINITIVA | D120: =D104+D110+D113+D117 ->  | G120: =G104+G110+G113+G117 ->  | H120: =AVERAGE(D120:G120) -> 

Sheet Notas23 (hidden)
A3: 1. SABER 45% | B3: Dra. Daza | E3: Dra. Rubiano
A4: a. Casos Clínicos | B4: 0.25 | D4: =AVERAGE(C4:C8)*25% ->  | E4: 0.25 | G4: =AVERAGE(F4:F8)*25% -> 
A5: b. Seminarios
A6: c. Revisiones de tema
A7: d. Club de Revistas
A8: e. Rondas - Juntas
A10: f. Examen Escrito en la última semana de rotación | B10: 0.25 | D10: =C10*25% -> 0 | E10: 0.25 | G10: =F10*25% -> 0
A12: 2. HACER 45%
A13: a. Manejo de la historia clínica | B13: 0.45 | D13: =AVERAGE(C13:C15)*45% ->  | E13: 0.45 | G13: =AVERAGE(F13:F15)*45% -> 
A14: b. Destrezas y manualidades especificas
A15: c. Criterio clínico y terapéutico
A16: 3. EJECUCIÓN DEL DESEMPEÑO 10%
A17: a. Capacidad para tomar decisiones | B17: 0.05 | D17: =AVERAGE(C17:C18)*5% ->  | E17: 0.05 | G17: =AVERAGE(F17:F18)*5% -> 
A18: b. Relaciones humanas, trabajo en equipo
A20: NOTA DEFINITIVA | D20: =D4+D10+D13+D17 ->  | G20: =G4+G10+G13+G17 ->  | H20: =AVERAGE(D20:G20) -> 
A23: 1. SABER 45% | B23: Dra. Bedoya | E23: Dr. Gaviria
A24: a. Casos Clínicos | B24: 0.25 | D24: =AVERAGE(C24:C28)*25% ->  | E24: 0.25 | G24: =AVERAGE(F24:F28)*25% -> 
A25: b. Seminarios
A26: c. Revisiones de tema
A27: d. Club de Revistas
A28: e. Rondas - Juntas
A30: f. Examen Escrito en la última semana de rotación | B30: 0.25 | D30: =C30*25% -> 0 | E30: 0.25 | G30: =F30*25% -> 0
A32: 2. HACER 45%
A33: a. Manejo de la historia clínica | B33: 0.45 | D33: =AVERAGE(C33:C35)*45% ->  | E33: 0.45 | G33: =AVERAGE(F33:F35)*45% -> 
A34: b. Destrezas y manualidades especificas
A35: c. Criterio clínico y terapéutico
A36: 3. EJECUCIÓN DEL DESEMPEÑO 10%
A37: a. Capacidad para tomar decisiones | B37: 0.05 | D37: =AVERAGE(C37:C38)*5% ->  | E37: 0.05 | G37: =AVERAGE(F37:F38)*5% -> 
A38: b. Relaciones humanas, trabajo en equipo
A40: NOTA DEFINITIVA | D40: =D24+D30+D33+D37 ->  | G40: =G24+G30+G33+G37 ->  | H40: =AVERAGE(D40:G40) -> 
A43: 1. SABER 45% | B43: Dra. Olaya | E43: Dra. Galeano
A44: a. Casos Clínicos | B44: 0.25 | D44: =AVERAGE(C44:C48)*25% ->  | E44: 0.25 | G44: =AVERAGE(F44:F48)*25% -> 
A45: b. Seminarios
A46: c. Revisiones de tema
A47: d. Club de Revistas
A48: e. Rondas - Juntas
A50: f. Examen Escrito en la última semana de rotación | B50: 0.25 | D50: =C50*25% -> 0 | E50: 0.25 | G50: =F50*25% -> 0
A52: 2. HACER 45%
A53: a. Manejo de la historia clínica | B53: 0.45 | D53: =AVERAGE(C53:C55)*45% ->  | E53: 0.45 | G53: =AVERAGE(F53:F55)*45% -> 
A54: b. Destrezas y manualidades especificas
A55: c. Criterio clínico y terapéutico
A56: 3. EJECUCIÓN DEL DESEMPEÑO 10%
A57: a. Capacidad para tomar decisiones | B57: 0.05 | D57: =AVERAGE(C57:C58)*5% ->  | E57: 0.05 | G57: =AVERAGE(F57:F58)*5% -> 
A58: b. Relaciones humanas, trabajo en equipo
A60: NOTA DEFINITIVA | D60: =D44+D50+D53+D57 ->  | G60: =G44+G50+G53+G57 ->  | H60: =AVERAGE(D60:G60) -> 
A63: 1. SABER 45% | B63: Dr. Moya | E63: Dra. Henao
A64: a. Casos Clínicos | B64: 0.25 | D64: =AVERAGE(C64:C68)*25% ->  | E64: 0.25 | G64: =AVERAGE(F64:F68)*25% -> 
A65: b. Seminarios
A66: c. Revisiones de tema
A67: d. Club de Revistas
A68: e. Rondas - Juntas
A70: f. Examen Escrito en la última semana de rotación | B70: 0.25 | D70: =C70*25% -> 0 | E70: 0.25 | G70: =F70*25% -> 0
A72: 2. HACER 45%
A73: a. Manejo de la historia clínica | B73: 0.45 | D73: =AVERAGE(C73:C75)*45% ->  | E73: 0.45 | G73: =AVERAGE(F73:F75)*45% -> 
A74: b. Destrezas y manualidades especificas
A75: c. Criterio clínico y terapéutico
A76: 3. EJECUCIÓN DEL DESEMPEÑO 10%
A77: a. Capacidad para tomar decisiones | B77: 0.05 | D77: =AVERAGE(C77:C78)*5% ->  | E77: 0.05 | G77: =AVERAGE(F77:F78)*5% -> 
A78: b. Relaciones humanas, trabajo en equipo
A80: NOTA DEFINITIVA | D80: =D64+D70+D73+D77 ->  | G80: =G64+G70+G73+G77 ->  | H80: =AVERAGE(D80:G80) -> 
A83: 1. SABER 45% | B83: Dr. León | E83: Dr. Benavides
A84: a. Casos Clínicos | B84: 0.25 | E84: 0.25 | G84: =AVERAGE(F84:F88)*25% -> 
A85: b. Seminarios
A86: c. Revisiones de tema
A87: d. Club de Revistas
A88: e. Rondas - Juntas
A90: f. Examen Escrito en la última semana de rotación | B90: 0.25 | E90: 0.25 | G90: =F90*25% -> 0
A92: 2. HACER 45%
A93: a. Manejo de la historia clínica | B93: 0.45 | E93: 0.45 | G93: =AVERAGE(F93:F95)*45% -> 
A94: b. Destrezas y manualidades especificas
A95: c. Criterio clínico y terapéutico
A96: 3. EJECUCIÓN DEL DESEMPEÑO 10%
A97: a. Capacidad para tomar decisiones | B97: 0.05 | E97: 0.05 | G97: =AVERAGE(F97:F98)*5% -> 
A98: b. Relaciones humanas, trabajo en equipo
A100: NOTA DEFINITIVA | G100: =G84+G90+G93+G97 ->  | H100: =AVERAGE(D100:G100) -> 
A103: 1. SABER 45% | B103: Armida | E103: Dr.Marin
A104: a. Casos Clínicos | B104: 0.25 | D104: =AVERAGE(C104:C108)*25% ->  | E104: 0.25 | G104: =AVERAGE(F104:F108)*25% -> 
A105: b. Seminarios
A106: c. Revisiones de tema
A107: d. Club de Revistas
A108: e. Rondas - Juntas
A110: f. Examen Escrito en la última semana de rotación | B110: 0.25 | D110: =C110*25% -> 0 | E110: 0.25 | G110: =F110*25% -> 0
A112: 2. HACER 45%
A113: a. Manejo de la historia clínica | B113: 0.45 | D113: =AVERAGE(C113:C115)*45% ->  | E113: 0.45 | G113: =AVERAGE(F113:F115)*45% -> 
A114: b. Destrezas y manualidades especificas
A115: c. Criterio clínico y terapéutico
A116: 3. EJECUCIÓN DEL DESEMPEÑO 10%
A117: a. Capacidad para tomar decisiones | B117: 0.05 | D117: =AVERAGE(C117:C118)*5% ->  | E117: 0.05 | G117: =AVERAGE(F117:F118)*5% -> 
A118: b. Relaciones humanas, trabajo en equipo
A120: NOTA DEFINITIVA | D120: =D104+D110+D113+D117 ->  | G120: =G104+G110+G113+G117 ->  | H120: =AVERAGE(D120:G120) -> 

Sheet Notas17 (hidden)
A4: 1. SABER 45% | B4: Dra. Daza | E4: Dra. Rubiano
A5: a. Casos Clínicos | B5: 0.25 | D5: =AVERAGE(C5:C9)*25% ->  | E5: 0.25 | G5: =AVERAGE(F5:F9)*25% -> 
A6: b. Seminarios
A7: c. Revisiones de tema
A8: d. Club de Revistas
A9: e. Rondas - Juntas
A11: f. Examen Escrito en la última semana de rotación | B11: 0.25 | D11: =C11*25% -> 0 | E11: 0.25 | G11: =F11*25% -> 0
A13: 2. HACER 45%
A14: a. Manejo de la historia clínica | B14: 0.45 | D14: =AVERAGE(C14:C16)*45% ->  | E14: 0.45 | G14: =AVERAGE(F14:F16)*45% -> 
A15: b. Destrezas y manualidades especificas
A16: c. Criterio clínico y terapéutico
A17: 3. EJECUCIÓN DEL DESEMPEÑO 10%
A18: a. Capacidad para tomar decisiones | B18: 0.05 | D18: =AVERAGE(C18:C19)*5% ->  | E18: 0.05 | G18: =AVERAGE(F18:F19)*5% -> 
A19: b. Relaciones humanas, trabajo en equipo
A21: NOTA DEFINITIVA | D21: =D5+D11+D14+D18 ->  | G21: =G5+G11+G14+G18 ->  | H21: =AVERAGE(D21:G21) -> 
A24: 1. SABER 45% | B24: Dra. Bedoya | E24: Dr. Gaviria
A25: a. Casos Clínicos | B25: 0.25 | D25: =AVERAGE(C25:C29)*25% ->  | E25: 0.25 | G25: =AVERAGE(F25:F29)*25% -> 
A26: b. Seminarios
A27: c. Revisiones de tema
A28: d. Club de Revistas
A29: e. Rondas - Juntas
A31: f. Examen Escrito en la última semana de rotación | B31: 0.25 | D31: =C31*25% -> 0 | E31: 0.25 | G31: =F31*25% -> 0
A33: 2. HACER 45%
A34: a. Manejo de la historia clínica | B34: 0.45 | D34: =AVERAGE(C34:C36)*45% ->  | E34: 0.45 | G34: =AVERAGE(F34:F36)*45% -> 
A35: b. Destrezas y manualidades especificas
A36: c. Criterio clínico y terapéutico
A37: 3. EJECUCIÓN DEL DESEMPEÑO 10%
A38: a. Capacidad para tomar decisiones | B38: 0.05 | D38: =AVERAGE(C38:C39)*5% ->  | E38: 0.05 | G38: =AVERAGE(F38:F39)*5% -> 
A39: b. Relaciones humanas, trabajo en equipo
A41: NOTA DEFINITIVA | D41: =D25+D31+D34+D38 ->  | G41: =G25+G31+G34+G38 ->  | H41: =AVERAGE(D41:G41) -> 
A44: 1. SABER 45% | B44: Dra. Olaya | E44: Dra. Galeano
A45: a. Casos Clínicos | B45: 0.25 | D45: =AVERAGE(C45:C49)*25% ->  | E45: 0.25 | G45: =AVERAGE(F45:F49)*25% -> 
A46: b. Seminarios
A47: c. Revisiones de tema
A48: d. Club de Revistas
A49: e. Rondas - Juntas
A51: f. Examen Escrito en la última semana de rotación | B51: 0.25 | D51: =C51*25% -> 0 | E51: 0.25 | G51: =F51*25% -> 0
A53: 2. HACER 45%
A54: a. Manejo de la historia clínica | B54: 0.45 | D54: =AVERAGE(C54:C56)*45% ->  | E54: 0.45 | G54: =AVERAGE(F54:F56)*45% -> 
A55: b. Destrezas y manualidades especificas
A56: c. Criterio clínico y terapéutico
A57: 3. EJECUCIÓN DEL DESEMPEÑO 10%
A58: a. Capacidad para tomar decisiones | B58: 0.05 | D58: =AVERAGE(C58:C59)*5% ->  | E58: 0.05 | G58: =AVERAGE(F58:F59)*5% -> 
A59: b. Relaciones humanas, trabajo en equipo
A61: NOTA DEFINITIVA | D61: =D45+D51+D54+D58 ->  | G61: =G45+G51+G54+G58 ->  | H61: =AVERAGE(D61:G61) -> 
A64: 1. SABER 45% | B64: Dr. Moya | E64: Dra. Henao
A65: a. Casos Clínicos | B65: 0.25 | D65: =AVERAGE(C65:C69)*25% ->  | E65: 0.25 | G65: =AVERAGE(F65:F69)*25% -> 
A66: b. Seminarios
A67: c. Revisiones de tema
A68: d. Club de Revistas
A69: e. Rondas - Juntas
A71: f. Examen Escrito en la última semana de rotación | B71: 0.25 | D71: =C71*25% -> 0 | E71: 0.25 | G71: =F71*25% -> 0
A73: 2. HACER 45%
A74: a. Manejo de la historia clínica | B74: 0.45 | D74: =AVERAGE(C74:C76)*45% ->  | E74: 0.45 | G74: =AVERAGE(F74:F76)*45% -> 
A75: b. Destrezas y manualidades especificas
A76: c. Criterio clínico y terapéutico
A77: 3. EJECUCIÓN DEL DESEMPEÑO 10%
A78: a. Capacidad para tomar decisiones | B78: 0.05 | D78: =AVERAGE(C78:C79)*5% ->  | E78: 0.05 | G78: =AVERAGE(F78:F79)*5% -> 
A79: b. Relaciones humanas, trabajo en equipo
A81: NOTA DEFINITIVA | D81: =D65+D71+D74+D78 ->  | G81: =G65+G71+G74+G78 ->  | H81: =AVERAGE(D81:G81) -> 
A84: 1. SABER 45% | B84: Dr. León | E84: Dr. Benavides
A85: a. Casos Clínicos | B85: 0.25 | E85: 0.25 | G85: =AVERAGE(F85:F89)*25% -> 
A86: b. Seminarios
A87: c. Revisiones de tema
A88: d. Club de Revistas
A89: e. Rondas - Juntas
A91: f. Examen Escrito en la última semana de rotación | B91: 0.25 | E91: 0.25 | G91: =F91*25% -> 0
A93: 2. HACER 45%
A94: a. Manejo de la historia clínica | B94: 0.45 | E94: 0.45 | G94: =AVERAGE(F94:F96)*45% -> 
A95: b. Destrezas y manualidades especificas
A96: c. Criterio clínico y terapéutico
A97: 3. EJECUCIÓN DEL DESEMPEÑO 10%
A98: a. Capacidad para tomar decisiones | B98: 0.05 | E98: 0.05 | G98: =AVERAGE(F98:F99)*5% -> 
A99: b. Relaciones humanas, trabajo en equipo
A101: NOTA DEFINITIVA | G101: =G85+G91+G94+G98 ->  | H101: =AVERAGE(D101:G101) -> 
A104: 1. SABER 45% | B104: Armida | E104: Dr.Marin
A105: a. Casos Clínicos | B105: 0.25 | D105: =AVERAGE(C105:C109)*25% ->  | E105: 0.25 | G105: =AVERAGE(F105:F109)*25% -> 
A106: b. Seminarios
A107: c. Revisiones de tema
A108: d. Club de Revistas
A109: e. Rondas - Juntas
A111: f. Examen Escrito en la última semana de rotación | B111: 0.25 | D111: =C111*25% -> 0 | E111: 0.25 | G111: =F111*25% -> 0
A113: 2. HACER 45%
A114: a. Manejo de la historia clínica | B114: 0.45 | D114: =AVERAGE(C114:C116)*45% ->  | E114: 0.45 | G114: =AVERAGE(F114:F116)*45% -> 
A115: b. Destrezas y manualidades especificas
A116: c. Criterio clínico y terapéutico
A117: 3. EJECUCIÓN DEL DESEMPEÑO 10%
A118: a. Capacidad para tomar decisiones | B118: 0.05 | D118: =AVERAGE(C118:C119)*5% ->  | E118: 0.05 | G118: =AVERAGE(F118:F119)*5% -> 
A119: b. Relaciones humanas, trabajo en equipo
A121: NOTA DEFINITIVA | D121: =D105+D111+D114+D118 ->  | G121: =G105+G111+G114+G118 ->  | H121: =AVERAGE(D121:G121) -> 
A122: NOTA DEFINITIVA | D122: =D106+D112+D115+D119 -> 0 | G122: =G106+G112+G115+G119 -> 0 | H122: =AVERAGE(D122:G122) -> 0

Sheet Notas13 (hidden)
A3: 1. SABER 45% | B3: Dra. Daza | E3: Dra. Rubiano
A4: a. Casos Clínicos | B4: 0.25 | D4: =AVERAGE(C4:C8)*25% ->  | E4: 0.25 | G4: =AVERAGE(F4:F8)*25% -> 
A5: b. Seminarios
A6: c. Revisiones de tema
A7: d. Club de Revistas
A8: e. Rondas - Juntas
A10: f. Examen Escrito en la última semana de rotación | B10: 0.25 | D10: =C10*25% -> 0 | E10: 0.25 | G10: =F10*25% -> 0
A12: 2. HACER 45%
A13: a. Manejo de la historia clínica | B13: 0.45 | D13: =AVERAGE(C13:C15)*45% ->  | E13: 0.45 | G13: =AVERAGE(F13:F15)*45% -> 
A14: b. Destrezas y manualidades especificas
A15: c. Criterio clínico y terapéutico
A16: 3. EJECUCIÓN DEL DESEMPEÑO 10%
A17: a. Capacidad para tomar decisiones | B17: 0.05 | D17: =AVERAGE(C17:C18)*5% ->  | E17: 0.05 | G17: =AVERAGE(F17:F18)*5% -> 
A18: b. Relaciones humanas, trabajo en equipo
A20: NOTA DEFINITIVA | D20: =D4+D10+D13+D17 ->  | G20: =G4+G10+G13+G17 ->  | H20: =AVERAGE(D20:G20) -> 
A23: 1. SABER 45% | B23: Dra. Bedoya | E23: Dr. Gaviria
A24: a. Casos Clínicos | B24: 0.25 | D24: =AVERAGE(C24:C28)*25% ->  | E24: 0.25 | G24: =AVERAGE(F24:F28)*25% -> 
A25: b. Seminarios
A26: c. Revisiones de tema
A27: d. Club de Revistas
A28: e. Rondas - Juntas
A30: f. Examen Escrito en la última semana de rotación | B30: 0.25 | D30: =C30*25% -> 0 | E30: 0.25 | G30: =F30*25% -> 0
A32: 2. HACER 45%
A33: a. Manejo de la historia clínica | B33: 0.45 | D33: =AVERAGE(C33:C35)*45% ->  | E33: 0.45 | G33: =AVERAGE(F33:F35)*45% -> 
A34: b. Destrezas y manualidades especificas
A35: c. Criterio clínico y terapéutico
A36: 3. EJECUCIÓN DEL DESEMPEÑO 10%
A37: a. Capacidad para tomar decisiones | B37: 0.05 | D37: =AVERAGE(C37:C38)*5% ->  | E37: 0.05 | G37: =AVERAGE(F37:F38)*5% -> 
A38: b. Relaciones humanas, trabajo en equipo
A40: NOTA DEFINITIVA | D40: =D24+D30+D33+D37 ->  | G40: =G24+G30+G33+G37 ->  | H40: =AVERAGE(D40:G40) -> 
A43: 1. SABER 45% | B43: Dra. Olaya | E43: Dra. Galeano
A44: a. Casos Clínicos | B44: 0.25 | D44: =AVERAGE(C44:C48)*25% ->  | E44: 0.25 | G44: =AVERAGE(F44:F48)*25% -> 
A45: b. Seminarios
A46: c. Revisiones de tema
A47: d. Club de Revistas
A48: e. Rondas - Juntas
A50: f. Examen Escrito en la última semana de rotación | B50: 0.25 | D50: =C50*25% -> 0 | E50: 0.25 | G50: =F50*25% -> 0
A52: 2. HACER 45%
A53: a. Manejo de la historia clínica | B53: 0.45 | D53: =AVERAGE(C53:C55)*45% ->  | E53: 0.45 | G53: =AVERAGE(F53:F55)*45% -> 
A54: b. Destrezas y manualidades especificas
A55: c. Criterio clínico y terapéutico
A56: 3. EJECUCIÓN DEL DESEMPEÑO 10%
A57: a. Capacidad para tomar decisiones | B57: 0.05 | D57: =AVERAGE(C57:C58)*5% ->  | E57: 0.05 | G57: =AVERAGE(F57:F58)*5% -> 
A58: b. Relaciones humanas, trabajo en equipo
A60: NOTA DEFINITIVA | D60: =D44+D50+D53+D57 ->  | G60: =G44+G50+G53+G57 ->  | H60: =AVERAGE(D60:G60) -> 
A63: 1. SABER 45% | B63: Dr. Moya | E63: Dra. Henao
A64: a. Casos Clínicos | B64: 0.25 | D64: =AVERAGE(C64:C68)*25% ->  | E64: 0.25 | G64: =AVERAGE(F64:F68)*25% -> 
A65: b. Seminarios
A66: c. Revisiones de tema
A67: d. Club de Revistas
A68: e. Rondas - Juntas
A70: f. Examen Escrito en la última semana de rotación | B70: 0.25 | D70: =C70*25% -> 0 | E70: 0.25 | G70: =F70*25% -> 0
A72: 2. HACER 45%
A73: a. Manejo de la historia clínica | B73: 0.45 | D73: =AVERAGE(C73:C75)*45% ->  | E73: 0.45 | G73: =AVERAGE(F73:F75)*45% -> 
A74: b. Destrezas y manualidades especificas
A75: c. Criterio clínico y terapéutico
A76: 3. EJECUCIÓN DEL DESEMPEÑO 10%
A77: a. Capacidad para tomar decisiones | B77: 0.05 | D77: =AVERAGE(C77:C78)*5% ->  | E77: 0.05 | G77: =AVERAGE(F77:F78)*5% -> 
A78: b. Relaciones humanas, trabajo en equipo
A80: NOTA DEFINITIVA | D80: =D64+D70+D73+D77 ->  | G80: =G64+G70+G73+G77 ->  | H80: =AVERAGE(D80:G80) -> 
A83: 1. SABER 45% | B83: Dr. León | E83: Dr. Benavides
A84: a. Casos Clínicos | B84: 0.25 | E84: 0.25 | G84: =AVERAGE(F84:F88)*25% -> 
A85: b. Seminarios
A86: c. Revisiones de tema
A87: d. Club de Revistas
A88: e. Rondas - Juntas
A90: f. Examen Escrito en la última semana de rotación | B90: 0.25 | E90: 0.25 | G90: =F90*25% -> 0
A92: 2. HACER 45%
A93: a. Manejo de la historia clínica | B93: 0.45 | E93: 0.45 | G93: =AVERAGE(F93:F95)*45% -> 
A94: b. Destrezas y manualidades especificas
A95: c. Criterio clínico y terapéutico
A96: 3. EJECUCIÓN DEL DESEMPEÑO 10%
A97: a. Capacidad para tomar decisiones | B97: 0.05 | E97: 0.05 | G97: =AVERAGE(F97:F98)*5% -> 
A98: b. Relaciones humanas, trabajo en equipo
A100: NOTA DEFINITIVA | G100: =G84+G90+G93+G97 ->  | H100: =AVERAGE(D100:G100) -> 
A103: 1. SABER 45% | B103: Armida | E103: Dr.Marin
A104: a. Casos Clínicos | B104: 0.25 | D104: =AVERAGE(C104:C108)*25% ->  | E104: 0.25 | G104: =AVERAGE(F104:F108)*25% -> 
A105: b. Seminarios
A106: c. Revisiones de tema
A107: d. Club de Revistas
A108: e. Rondas - Juntas
A110: f. Examen Escrito en la última semana de rotación | B110: 0.25 | D110: =C110*25% -> 0 | E110: 0.25 | G110: =F110*25% -> 0
A112: 2. HACER 45%
A113: a. Manejo de la historia clínica | B113: 0.45 | D113: =AVERAGE(C113:C115)*45% ->  | E113: 0.45 | G113: =AVERAGE(F113:F115)*45% -> 
A114: b. Destrezas y manualidades especificas
A115: c. Criterio clínico y terapéutico
A116: 3. EJECUCIÓN DEL DESEMPEÑO 10%
A117: a. Capacidad para tomar decisiones | B117: 0.05 | D117: =AVERAGE(C117:C118)*5% ->  | E117: 0.05 | G117: =AVERAGE(F117:F118)*5% -> 
A118: b. Relaciones humanas, trabajo en equipo
A120: NOTA DEFINITIVA | D120: =D104+D110+D113+D117 ->  | G120: =G104+G110+G113+G117 ->  | H120: =AVERAGE(D120:G120) -> 

Sheet Notas14 (hidden)
A3: 1. SABER 45% | B3: Dra. Daza | E3: Dra. Rubiano
A4: a. Casos Clínicos | B4: 0.25 | D4: =AVERAGE(C4:C8)*25% ->  | E4: 0.25 | G4: =AVERAGE(F4:F8)*25% -> 
A5: b. Seminarios
A6: c. Revisiones de tema
A7: d. Club de Revistas
A8: e. Rondas - Juntas
A10: f. Examen Escrito en la última semana de rotación | B10: 0.25 | D10: =C10*25% -> 0 | E10: 0.25 | G10: =F10*25% -> 0
A12: 2. HACER 45%
A13: a. Manejo de la historia clínica | B13: 0.45 | D13: =AVERAGE(C13:C15)*45% ->  | E13: 0.45 | G13: =AVERAGE(F13:F15)*45% -> 
A14: b. Destrezas y manualidades especificas
A15: c. Criterio clínico y terapéutico
A16: 3. EJECUCIÓN DEL DESEMPEÑO 10%
A17: a. Capacidad para tomar decisiones | B17: 0.05 | D17: =AVERAGE(C17:C18)*5% ->  | E17: 0.05 | G17: =AVERAGE(F17:F18)*5% -> 
A18: b. Relaciones humanas, trabajo en equipo
A20: NOTA DEFINITIVA | D20: =D4+D10+D13+D17 ->  | G20: =G4+G10+G13+G17 ->  | H20: =AVERAGE(D20:G20) -> 
A23: 1. SABER 45% | B23: Dra. Bedoya | E23: Dr. Gaviria
A24: a. Casos Clínicos | B24: 0.25 | D24: =AVERAGE(C24:C28)*25% ->  | E24: 0.25 | G24: =AVERAGE(F24:F28)*25% -> 
A25: b. Seminarios
A26: c. Revisiones de tema
A27: d. Club de Revistas
A28: e. Rondas - Juntas
A30: f. Examen Escrito en la última semana de rotación | B30: 0.25 | D30: =C30*25% -> 0 | E30: 0.25 | G30: =F30*25% -> 0
A32: 2. HACER 45%
A33: a. Manejo de la historia clínica | B33: 0.45 | D33: =AVERAGE(C33:C35)*45% ->  | E33: 0.45 | G33: =AVERAGE(F33:F35)*45% -> 
A34: b. Destrezas y manualidades especificas
A35: c. Criterio clínico y terapéutico
A36: 3. EJECUCIÓN DEL DESEMPEÑO 10%
A37: a. Capacidad para tomar decisiones | B37: 0.05 | D37: =AVERAGE(C37:C38)*5% ->  | E37: 0.05 | G37: =AVERAGE(F37:F38)*5% -> 
A38: b. Relaciones humanas, trabajo en equipo
A40: NOTA DEFINITIVA | D40: =D24+D30+D33+D37 ->  | G40: =G24+G30+G33+G37 ->  | H40: =AVERAGE(D40:G40) -> 
A43: 1. SABER 45% | B43: Dra. Olaya | E43: Dra. Galeano
A44: a. Casos Clínicos | B44: 0.25 | D44: =AVERAGE(C44:C48)*25% ->  | E44: 0.25 | G44: =AVERAGE(F44:F48)*25% -> 
A45: b. Seminarios
A46: c. Revisiones de tema
A47: d. Club de Revistas
A48: e. Rondas - Juntas
A50: f. Examen Escrito en la última semana de rotación | B50: 0.25 | D50: =C50*25% -> 0 | E50: 0.25 | G50: =F50*25% -> 0
A52: 2. HACER 45%
A53: a. Manejo de la historia clínica | B53: 0.45 | D53: =AVERAGE(C53:C55)*45% ->  | E53: 0.45 | G53: =AVERAGE(F53:F55)*45% -> 
A54: b. Destrezas y manualidades especificas
A55: c. Criterio clínico y terapéutico
A56: 3. EJECUCIÓN DEL DESEMPEÑO 10%
A57: a. Capacidad para tomar decisiones | B57: 0.05 | D57: =AVERAGE(C57:C58)*5% ->  | E57: 0.05 | G57: =AVERAGE(F57:F58)*5% -> 
A58: b. Relaciones humanas, trabajo en equipo
A60: NOTA DEFINITIVA | D60: =D44+D50+D53+D57 ->  | G60: =G44+G50+G53+G57 ->  | H60: =AVERAGE(D60:G60) -> 
A63: 1. SABER 45% | B63: Dr. Moya | E63: Dra. Henao
A64: a. Casos Clínicos | B64: 0.25 | D64: =AVERAGE(C64:C68)*25% ->  | E64: 0.25 | G64: =AVERAGE(F64:F68)*25% -> 
A65: b. Seminarios
A66: c. Revisiones de tema
A67: d. Club de Revistas
A68: e. Rondas - Juntas
A70: f. Examen Escrito en la última semana de rotación | B70: 0.25 | D70: =C70*25% -> 0 | E70: 0.25 | G70: =F70*25% -> 0
A72: 2. HACER 45%
A73: a. Manejo de la historia clínica | B73: 0.45 | D73: =AVERAGE(C73:C75)*45% ->  | E73: 0.45 | G73: =AVERAGE(F73:F75)*45% -> 
A74: b. Destrezas y manualidades especificas
A75: c. Criterio clínico y terapéutico
A76: 3. EJECUCIÓN DEL DESEMPEÑO 10%
A77: a. Capacidad para tomar decisiones | B77: 0.05 | D77: =AVERAGE(C77:C78)*5% ->  | E77: 0.05 | G77: =AVERAGE(F77:F78)*5% -> 
A78: b. Relaciones humanas, trabajo en equipo
A80: NOTA DEFINITIVA | D80: =D64+D70+D73+D77 ->  | G80: =G64+G70+G73+G77 ->  | H80: =AVERAGE(D80:G80) -> 
A83: 1. SABER 45% | B83: Dr. León | E83: Dr. Benavides
A84: a. Casos Clínicos | B84: 0.25 | E84: 0.25 | G84: =AVERAGE(F84:F88)*25% -> 
A85: b. Seminarios
A86: c. Revisiones de tema
A87: d. Club de Revistas
A88: e. Rondas - Juntas
A90: f. Examen Escrito en la última semana de rotación | B90: 0.25 | E90: 0.25 | G90: =F90*25% -> 0
A92: 2. HACER 45%
A93: a. Manejo de la historia clínica | B93: 0.45 | E93: 0.45 | G93: =AVERAGE(F93:F95)*45% -> 
A94: b. Destrezas y manualidades especificas
A95: c. Criterio clínico y terapéutico
A96: 3. EJECUCIÓN DEL DESEMPEÑO 10%
A97: a. Capacidad para tomar decisiones | B97: 0.05 | E97: 0.05 | G97: =AVERAGE(F97:F98)*5% -> 
A98: b. Relaciones humanas, trabajo en equipo
A100: NOTA DEFINITIVA | G100: =G84+G90+G93+G97 ->  | H100: =AVERAGE(D100:G100) -> 
A103: 1. SABER 45% | B103: Armida | E103: Dr.Marin
A104: a. Casos Clínicos | B104: 0.25 | D104: =AVERAGE(C104:C108)*25% ->  | E104: 0.25 | G104: =AVERAGE(F104:F108)*25% -> 
A105: b. Seminarios
A106: c. Revisiones de tema
A107: d. Club de Revistas
A108: e. Rondas - Juntas
A110: f. Examen Escrito en la última semana de rotación | B110: 0.25 | D110: =C110*25% -> 0 | E110: 0.25 | G110: =F110*25% -> 0
A112: 2. HACER 45%
A113: a. Manejo de la historia clínica | B113: 0.45 | D113: =AVERAGE(C113:C115)*45% ->  | E113: 0.45 | G113: =AVERAGE(F113:F115)*45% -> 
A114: b. Destrezas y manualidades especificas
A115: c. Criterio clínico y terapéutico
A116: 3. EJECUCIÓN DEL DESEMPEÑO 10%
A117: a. Capacidad para tomar decisiones | B117: 0.05 | D117: =AVERAGE(C117:C118)*5% ->  | E117: 0.05 | G117: =AVERAGE(F117:F118)*5% -> 
A118: b. Relaciones humanas, trabajo en equipo
A120: NOTA DEFINITIVA | D120: =D104+D110+D113+D117 ->  | G120: =G104+G110+G113+G117 ->  | H120: =AVERAGE(D120:G120) -> 

Sheet Notas15 (hidden)
A3: 1. SABER 45% | B3: Dra. Daza | E3: Dra. Rubiano
A4: a. Casos Clínicos | B4: 0.25 | D4: =AVERAGE(C4:C8)*25% ->  | E4: 0.25 | G4: =AVERAGE(F4:F8)*25% -> 
A5: b. Seminarios
A6: c. Revisiones de tema
A7: d. Club de Revistas
A8: e. Rondas - Juntas
A10: f. Examen Escrito en la última semana de rotación | B10: 0.25 | D10: =C10*25% -> 0 | E10: 0.25 | G10: =F10*25% -> 0
A12: 2. HACER 45%
A13: a. Manejo de la historia clínica | B13: 0.45 | D13: =AVERAGE(C13:C15)*45% ->  | E13: 0.45 | G13: =AVERAGE(F13:F15)*45% -> 
A14: b. Destrezas y manualidades especificas
A15: c. Criterio clínico y terapéutico
A16: 3. EJECUCIÓN DEL DESEMPEÑO 10%
A17: a. Capacidad para tomar decisiones | B17: 0.05 | D17: =AVERAGE(C17:C18)*5% ->  | E17: 0.05 | G17: =AVERAGE(F17:F18)*5% -> 
A18: b. Relaciones humanas, trabajo en equipo
A20: NOTA DEFINITIVA | D20: =D4+D10+D13+D17 ->  | G20: =G4+G10+G13+G17 ->  | H20: =AVERAGE(D20:G20) -> 
A23: 1. SABER 45% | B23: Dra. Bedoya | E23: Dr. Gaviria
A24: a. Casos Clínicos | B24: 0.25 | D24: =AVERAGE(C24:C28)*25% ->  | E24: 0.25 | G24: =AVERAGE(F24:F28)*25% -> 
A25: b. Seminarios
A26: c. Revisiones de tema
A27: d. Club de Revistas
A28: e. Rondas - Juntas
A30: f. Examen Escrito en la última semana de rotación | B30: 0.25 | D30: =C30*25% -> 0 | E30: 0.25 | G30: =F30*25% -> 0
A32: 2. HACER 45%
A33: a. Manejo de la historia clínica | B33: 0.45 | D33: =AVERAGE(C33:C35)*45% ->  | E33: 0.45 | G33: =AVERAGE(F33:F35)*45% -> 
A34: b. Destrezas y manualidades especificas
A35: c. Criterio clínico y terapéutico
A36: 3. EJECUCIÓN DEL DESEMPEÑO 10%
A37: a. Capacidad para tomar decisiones | B37: 0.05 | D37: =AVERAGE(C37:C38)*5% ->  | E37: 0.05 | G37: =AVERAGE(F37:F38)*5% -> 
A38: b. Relaciones humanas, trabajo en equipo
A40: NOTA DEFINITIVA | D40: =D24+D30+D33+D37 ->  | G40: =G24+G30+G33+G37 ->  | H40: =AVERAGE(D40:G40) -> 
A43: 1. SABER 45% | B43: Dra. Olaya | E43: Dra. Galeano
A44: a. Casos Clínicos | B44: 0.25 | D44: =AVERAGE(C44:C48)*25% ->  | E44: 0.25 | G44: =AVERAGE(F44:F48)*25% -> 
A45: b. Seminarios
A46: c. Revisiones de tema
A47: d. Club de Revistas
A48: e. Rondas - Juntas
A50: f. Examen Escrito en la última semana de rotación | B50: 0.25 | D50: =C50*25% -> 0 | E50: 0.25 | G50: =F50*25% -> 0
A52: 2. HACER 45%
A53: a. Manejo de la historia clínica | B53: 0.45 | D53: =AVERAGE(C53:C55)*45% ->  | E53: 0.45 | G53: =AVERAGE(F53:F55)*45% -> 
A54: b. Destrezas y manualidades especificas
A55: c. Criterio clínico y terapéutico
A56: 3. EJECUCIÓN DEL DESEMPEÑO 10%
A57: a. Capacidad para tomar decisiones | B57: 0.05 | D57: =AVERAGE(C57:C58)*5% ->  | E57: 0.05 | G57: =AVERAGE(F57:F58)*5% -> 
A58: b. Relaciones humanas, trabajo en equipo
A60: NOTA DEFINITIVA | D60: =D44+D50+D53+D57 ->  | G60: =G44+G50+G53+G57 ->  | H60: =AVERAGE(D60:G60) -> 
A63: 1. SABER 45% | B63: Dr. Moya | E63: Dra. Henao
A64: a. Casos Clínicos | B64: 0.25 | D64: =AVERAGE(C64:C68)*25% ->  | E64: 0.25 | G64: =AVERAGE(F64:F68)*25% -> 
A65: b. Seminarios
A66: c. Revisiones de tema
A67: d. Club de Revistas
A68: e. Rondas - Juntas
A70: f. Examen Escrito en la última semana de rotación | B70: 0.25 | D70: =C70*25% -> 0 | E70: 0.25 | G70: =F70*25% -> 0
A72: 2. HACER 45%
A73: a. Manejo de la historia clínica | B73: 0.45 | D73: =AVERAGE(C73:C75)*45% ->  | E73: 0.45 | G73: =AVERAGE(F73:F75)*45% -> 
A74: b. Destrezas y manualidades especificas
A75: c. Criterio clínico y terapéutico
A76: 3. EJECUCIÓN DEL DESEMPEÑO 10%
A77: a. Capacidad para tomar decisiones | B77: 0.05 | D77: =AVERAGE(C77:C78)*5% ->  | E77: 0.05 | G77: =AVERAGE(F77:F78)*5% -> 
A78: b. Relaciones humanas, trabajo en equipo
A80: NOTA DEFINITIVA | D80: =D64+D70+D73+D77 ->  | G80: =G64+G70+G73+G77 ->  | H80: =AVERAGE(D80:G80) -> 
A83: 1. SABER 45% | B83: Dr. León | E83: Dr. Benavides
A84: a. Casos Clínicos | B84: 0.25 | E84: 0.25 | G84: =AVERAGE(F84:F88)*25% -> 
A85: b. Seminarios
A86: c. Revisiones de tema
A87: d. Club de Revistas
A88: e. Rondas - Juntas
A90: f. Examen Escrito en la última semana de rotación | B90: 0.25 | E90: 0.25 | G90: =F90*25% -> 0
A92: 2. HACER 45%
A93: a. Manejo de la historia clínica | B93: 0.45 | E93: 0.45 | G93: =AVERAGE(F93:F95)*45% -> 
A94: b. Destrezas y manualidades especificas
A95: c. Criterio clínico y terapéutico
A96: 3. EJECUCIÓN DEL DESEMPEÑO 10%
A97: a. Capacidad para tomar decisiones | B97: 0.05 | E97: 0.05 | G97: =AVERAGE(F97:F98)*5% -> 
A98: b. Relaciones humanas, trabajo en equipo
A100: NOTA DEFINITIVA | G100: =G84+G90+G93+G97 ->  | H100: =AVERAGE(D100:G100) -> 
A103: 1. SABER 45% | B103: Armida | E103: Dr.Marin
A104: a. Casos Clínicos | B104: 0.25 | D104: =AVERAGE(C104:C108)*25% ->  | E104: 0.25 | G104: =AVERAGE(F104:F108)*25% -> 
A105: b. Seminarios
A106: c. Revisiones de tema
A107: d. Club de Revistas
A108: e. Rondas - Juntas
A110: f. Examen Escrito en la última semana de rotación | B110: 0.25 | D110: =C110*25% -> 0 | E110: 0.25 | G110: =F110*25% -> 0
A112: 2. HACER 45%
A113: a. Manejo de la historia clínica | B113: 0.45 | D113: =AVERAGE(C113:C115)*45% ->  | E113: 0.45 | G113: =AVERAGE(F113:F115)*45% -> 
A114: b. Destrezas y manualidades especificas
A115: c. Criterio clínico y terapéutico
A116: 3. EJECUCIÓN DEL DESEMPEÑO 10%
A117: a. Capacidad para tomar decisiones | B117: 0.05 | D117: =AVERAGE(C117:C118)*5% ->  | E117: 0.05 | G117: =AVERAGE(F117:F118)*5% -> 
A118: b. Relaciones humanas, trabajo en equipo
A120: NOTA DEFINITIVA | D120: =D104+D110+D113+D117 ->  | G120: =G104+G110+G113+G117 ->  | H120: =AVERAGE(D120:G120) -> 
A122: NOTA DEFINITIVA | D122: =D106+D112+D115+D119 -> 0 | G122: =G106+G112+G115+G119 -> 0 | H122: =AVERAGE(D122:G122) -> 0

Sheet Notas16 (hidden)
A3: 1. SABER 45% | B3: Dra. Daza | E3: Dra. Rubiano
A4: a. Casos Clínicos | B4: 0.25 | D4: =AVERAGE(C4:C8)*25% ->  | E4: 0.25 | G4: =AVERAGE(F4:F8)*25% -> 
A5: b. Seminarios
A6: c. Revisiones de tema
A7: d. Club de Revistas
A8: e. Rondas - Juntas
A10: f. Examen Escrito en la última semana de rotación | B10: 0.25 | D10: =C10*25% -> 0 | E10: 0.25 | G10: =F10*25% -> 0
A12: 2. HACER 45%
A13: a. Manejo de la historia clínica | B13: 0.45 | D13: =AVERAGE(C13:C15)*45% ->  | E13: 0.45 | G13: =AVERAGE(F13:F15)*45% -> 
A14: b. Destrezas y manualidades especificas
A15: c. Criterio clínico y terapéutico
A16: 3. EJECUCIÓN DEL DESEMPEÑO 10%
A17: a. Capacidad para tomar decisiones | B17: 0.05 | D17: =AVERAGE(C17:C18)*5% ->  | E17: 0.05 | G17: =AVERAGE(F17:F18)*5% -> 
A18: b. Relaciones humanas, trabajo en equipo
A20: NOTA DEFINITIVA | D20: =D4+D10+D13+D17 ->  | G20: =G4+G10+G13+G17 ->  | H20: =AVERAGE(D20:G20) -> 
A23: 1. SABER 45% | B23: Dra. Bedoya | E23: Dr. Gaviria
A24: a. Casos Clínicos | B24: 0.25 | D24: =AVERAGE(C24:C28)*25% ->  | E24: 0.25 | G24: =AVERAGE(F24:F28)*25% -> 
A25: b. Seminarios
A26: c. Revisiones de tema
A27: d. Club de Revistas
A28: e. Rondas - Juntas
A30: f. Examen Escrito en la última semana de rotación | B30: 0.25 | D30: =C30*25% -> 0 | E30: 0.25 | G30: =F30*25% -> 0
A32: 2. HACER 45%
A33: a. Manejo de la historia clínica | B33: 0.45 | D33: =AVERAGE(C33:C35)*45% ->  | E33: 0.45 | G33: =AVERAGE(F33:F35)*45% -> 
A34: b. Destrezas y manualidades especificas
A35: c. Criterio clínico y terapéutico
A36: 3. EJECUCIÓN DEL DESEMPEÑO 10%
A37: a. Capacidad para tomar decisiones | B37: 0.05 | D37: =AVERAGE(C37:C38)*5% ->  | E37: 0.05 | G37: =AVERAGE(F37:F38)*5% -> 
A38: b. Relaciones humanas, trabajo en equipo
A40: NOTA DEFINITIVA | D40: =D24+D30+D33+D37 ->  | G40: =G24+G30+G33+G37 ->  | H40: =AVERAGE(D40:G40) -> 
A43: 1. SABER 45% | B43: Dra. Olaya | E43: Dra. Galeano
A44: a. Casos Clínicos | B44: 0.25 | D44: =AVERAGE(C44:C48)*25% ->  | E44: 0.25 | G44: =AVERAGE(F44:F48)*25% -> 
A45: b. Seminarios
A46: c. Revisiones de tema
A47: d. Club de Revistas
A48: e. Rondas - Juntas
A50: f. Examen Escrito en la última semana de rotación | B50: 0.25 | D50: =C50*25% -> 0 | E50: 0.25 | G50: =F50*25% -> 0
A52: 2. HACER 45%
A53: a. Manejo de la historia clínica | B53: 0.45 | D53: =AVERAGE(C53:C55)*45% ->  | E53: 0.45 | G53: =AVERAGE(F53:F55)*45% -> 
A54: b. Destrezas y manualidades especificas
A55: c. Criterio clínico y terapéutico
A56: 3. EJECUCIÓN DEL DESEMPEÑO 10%
A57: a. Capacidad para tomar decisiones | B57: 0.05 | D57: =AVERAGE(C57:C58)*5% ->  | E57: 0.05 | G57: =AVERAGE(F57:F58)*5% -> 
A58: b. Relaciones humanas, trabajo en equipo
A60: NOTA DEFINITIVA | D60: =D44+D50+D53+D57 ->  | G60: =G44+G50+G53+G57 ->  | H60: =AVERAGE(D60:G60) -> 
A63: 1. SABER 45% | B63: Dr. Moya | E63: Dra. Henao
A64: a. Casos Clínicos | B64: 0.25 | D64: =AVERAGE(C64:C68)*25% ->  | E64: 0.25 | G64: =AVERAGE(F64:F68)*25% -> 
A65: b. Seminarios
A66: c. Revisiones de tema
A67: d. Club de Revistas
A68: e. Rondas - Juntas
A70: f. Examen Escrito en la última semana de rotación | B70: 0.25 | D70: =C70*25% -> 0 | E70: 0.25 | G70: =F70*25% -> 0
A72: 2. HACER 45%
A73: a. Manejo de la historia clínica | B73: 0.45 | D73: =AVERAGE(C73:C75)*45% ->  | E73: 0.45 | G73: =AVERAGE(F73:F75)*45% -> 
A74: b. Destrezas y manualidades especificas
A75: c. Criterio clínico y terapéutico
A76: 3. EJECUCIÓN DEL DESEMPEÑO 10%
A77: a. Capacidad para tomar decisiones | B77: 0.05 | D77: =AVERAGE(C77:C78)*5% ->  | E77: 0.05 | G77: =AVERAGE(F77:F78)*5% -> 
A78: b. Relaciones humanas, trabajo en equipo
A80: NOTA DEFINITIVA | D80: =D64+D70+D73+D77 ->  | G80: =G64+G70+G73+G77 ->  | H80: =AVERAGE(D80:G80) -> 
A83: 1. SABER 45% | B83: Dr. León | E83: Dr. Benavides
A84: a. Casos Clínicos | B84: 0.25 | E84: 0.25 | G84: =AVERAGE(F84:F88)*25% -> 
A85: b. Seminarios
A86: c. Revisiones de tema
A87: d. Club de Revistas
A88: e. Rondas - Juntas
A90: f. Examen Escrito en la última semana de rotación | B90: 0.25 | E90: 0.25 | G90: =F90*25% -> 0
A92: 2. HACER 45%
A93: a. Manejo de la historia clínica | B93: 0.45 | E93: 0.45 | G93: =AVERAGE(F93:F95)*45% -> 
A94: b. Destrezas y manualidades especificas
A95: c. Criterio clínico y terapéutico
A96: 3. EJECUCIÓN DEL DESEMPEÑO 10%
A97: a. Capacidad para tomar decisiones | B97: 0.05 | E97: 0.05 | G97: =AVERAGE(F97:F98)*5% -> 
A98: b. Relaciones humanas, trabajo en equipo
A100: NOTA DEFINITIVA | G100: =G84+G90+G93+G97 ->  | H100: =AVERAGE(D100:G100) -> 
A103: 1. SABER 45% | B103: Armida | E103: Dr.Marin
A104: a. Casos Clínicos | B104: 0.25 | D104: =AVERAGE(C104:C108)*25% ->  | E104: 0.25 | G104: =AVERAGE(F104:F108)*25% -> 
A105: b. Seminarios
A106: c. Revisiones de tema
A107: d. Club de Revistas
A108: e. Rondas - Juntas
A110: f. Examen Escrito en la última semana de rotación | B110: 0.25 | D110: =C110*25% -> 0 | E110: 0.25 | G110: =F110*25% -> 0
A112: 2. HACER 45%
A113: a. Manejo de la historia clínica | B113: 0.45 | D113: =AVERAGE(C113:C115)*45% ->  | E113: 0.45 | G113: =AVERAGE(F113:F115)*45% -> 
A114: b. Destrezas y manualidades especificas
A115: c. Criterio clínico y terapéutico
A116: 3. EJECUCIÓN DEL DESEMPEÑO 10%
A117: a. Capacidad para tomar decisiones | B117: 0.05 | D117: =AVERAGE(C117:C118)*5% ->  | E117: 0.05 | G117: =AVERAGE(F117:F118)*5% -> 
A118: b. Relaciones humanas, trabajo en equipo
A120: NOTA DEFINITIVA | D120: =D104+D110+D113+D117 ->  | G120: =G104+G110+G113+G117 ->  | H120: =AVERAGE(D120:G120) -> 
A121: NOTA DEFINITIVA | D121: =D105+D111+D114+D118 -> 0 | G121: =G105+G111+G114+G118 -> 0 | H121: =AVERAGE(D121:G121) -> 0

Sheet Notas2 (hidden)
A3: 1. SABER 45% | B3: Dra. Daza | E3: Dra. Rubiano
A4: a. Casos Clínicos | B4: 0.25 | D4: =AVERAGE(C4:C8)*25% ->  | E4: 0.25 | G4: =AVERAGE(F4:F8)*25% -> 
A5: b. Seminarios
A6: c. Revisiones de tema
A7: d. Club de Revistas
A8: e. Rondas - Juntas
A10: f. Examen Escrito en la última semana de rotación | B10: 0.25 | D10: =C10*25% -> 0 | E10: 0.25 | G10: =F10*25% -> 0
A12: 2. HACER 45%
A13: a. Manejo de la historia clínica | B13: 0.45 | D13: =AVERAGE(C13:C15)*45% ->  | E13: 0.45 | G13: =AVERAGE(F13:F15)*45% -> 
A14: b. Destrezas y manualidades especificas
A15: c. Criterio clínico y terapéutico
A16: 3. EJECUCIÓN DEL DESEMPEÑO 10%
A17: a. Capacidad para tomar decisiones | B17: 0.05 | D17: =AVERAGE(C17:C18)*5% ->  | E17: 0.05 | G17: =AVERAGE(F17:F18)*5% -> 
A18: b. Relaciones humanas, trabajo en equipo
A20: NOTA DEFINITIVA | D20: =D4+D10+D13+D17 ->  | G20: =G4+G10+G13+G17 ->  | H20: =AVERAGE(D20:G20) -> 
A23: 1. SABER 45% | B23: Dra. Bedoya | E23: Dr. Gaviria
A24: a. Casos Clínicos | B24: 0.25 | D24: =AVERAGE(C24:C28)*25% ->  | E24: 0.25 | G24: =AVERAGE(F24:F28)*25% -> 
A25: b. Seminarios
A26: c. Revisiones de tema
A27: d. Club de Revistas
A28: e. Rondas - Juntas
A30: f. Examen Escrito en la última semana de rotación | B30: 0.25 | D30: =C30*25% -> 0 | E30: 0.25 | G30: =F30*25% -> 0
A32: 2. HACER 45%
A33: a. Manejo de la historia clínica | B33: 0.45 | D33: =AVERAGE(C33:C35)*45% ->  | E33: 0.45 | G33: =AVERAGE(F33:F35)*45% -> 
A34: b. Destrezas y manualidades especificas
A35: c. Criterio clínico y terapéutico
A36: 3. EJECUCIÓN DEL DESEMPEÑO 10%
A37: a. Capacidad para tomar decisiones | B37: 0.05 | D37: =AVERAGE(C37:C38)*5% ->  | E37: 0.05 | G37: =AVERAGE(F37:F38)*5% -> 
A38: b. Relaciones humanas, trabajo en equipo
A40: NOTA DEFINITIVA | D40: =D24+D30+D33+D37 ->  | G40: =G24+G30+G33+G37 ->  | H40: =AVERAGE(D40:G40) -> 
A43: 1. SABER 45% | B43: Dra. Olaya | E43: Dra. Galeano
A44: a. Casos Clínicos | B44: 0.25 | D44: =AVERAGE(C44:C48)*25% ->  | E44: 0.25 | G44: =AVERAGE(F44:F48)*25% -> 
A45: b. Seminarios
A46: c. Revisiones de tema
A47: d. Club de Revistas
A48: e. Rondas - Juntas
A50: f. Examen Escrito en la última semana de rotación | B50: 0.25 | D50: =C50*25% -> 0 | E50: 0.25 | G50: =F50*25% -> 0
A52: 2. HACER 45%
A53: a. Manejo de la historia clínica | B53: 0.45 | D53: =AVERAGE(C53:C55)*45% ->  | E53: 0.45 | G53: =AVERAGE(F53:F55)*45% -> 
A54: b. Destrezas y manualidades especificas
A55: c. Criterio clínico y terapéutico
A56: 3. EJECUCIÓN DEL DESEMPEÑO 10%
A57: a. Capacidad para tomar decisiones | B57: 0.05 | D57: =AVERAGE(C57:C58)*5% ->  | E57: 0.05 | G57: =AVERAGE(F57:F58)*5% -> 
A58: b. Relaciones humanas, trabajo en equipo
A60: NOTA DEFINITIVA | D60: =D44+D50+D53+D57 ->  | G60: =G44+G50+G53+G57 ->  | H60: =AVERAGE(D60:G60) -> 
A63: 1. SABER 45% | B63: Dr. Moya | E63: Dra. Henao
A64: a. Casos Clínicos | B64: 0.25 | D64: =AVERAGE(C64:C68)*25% ->  | E64: 0.25 | G64: =AVERAGE(F64:F68)*25% -> 
A65: b. Seminarios
A66: c. Revisiones de tema
A67: d. Club de Revistas
A68: e. Rondas - Juntas
A70: f. Examen Escrito en la última semana de rotación | B70: 0.25 | D70: =C70*25% -> 0 | E70: 0.25 | G70: =F70*25% -> 0
A72: 2. HACER 45%
A73: a. Manejo de la historia clínica | B73: 0.45 | D73: =AVERAGE(C73:C75)*45% ->  | E73: 0.45 | G73: =AVERAGE(F73:F75)*45% -> 
A74: b. Destrezas y manualidades especificas
A75: c. Criterio clínico y terapéutico
A76: 3. EJECUCIÓN DEL DESEMPEÑO 10%
A77: a. Capacidad para tomar decisiones | B77: 0.05 | D77: =AVERAGE(C77:C78)*5% ->  | E77: 0.05 | G77: =AVERAGE(F77:F78)*5% -> 
A78: b. Relaciones humanas, trabajo en equipo
A80: NOTA DEFINITIVA | D80: =D64+D70+D73+D77 ->  | G80: =G64+G70+G73+G77 ->  | H80: =AVERAGE(D80:G80) -> 
A83: 1. SABER 45% | B83: Dr. León | E83: Dr. Benavides
A84: a. Casos Clínicos | B84: 0.25 | E84: 0.25 | G84: =AVERAGE(F84:F88)*25% -> 
A85: b. Seminarios
A86: c. Revisiones de tema
A87: d. Club de Revistas
A88: e. Rondas - Juntas
A90: f. Examen Escrito en la última semana de rotación | B90: 0.25 | E90: 0.25 | G90: =F90*25% -> 0
A92: 2. HACER 45%
A93: a. Manejo de la historia clínica | B93: 0.45 | E93: 0.45 | G93: =AVERAGE(F93:F95)*45% -> 
A94: b. Destrezas y manualidades especificas
A95: c. Criterio clínico y terapéutico
A96: 3. EJECUCIÓN DEL DESEMPEÑO 10%
A97: a. Capacidad para tomar decisiones | B97: 0.05 | E97: 0.05 | G97: =AVERAGE(F97:F98)*5% -> 
A98: b. Relaciones humanas, trabajo en equipo
A100: NOTA DEFINITIVA | G100: =G84+G90+G93+G97 ->  | H100: =AVERAGE(D100:G100) -> 
A103: 1. SABER 45% | B103: Armida | E103: Dr.Marin
A104: a. Casos Clínicos | B104: 0.25 | D104: =AVERAGE(C104:C108)*25% ->  | E104: 0.25 | G104: =AVERAGE(F104:F108)*25% -> 
A105: b. Seminarios
A106: c. Revisiones de tema
A107: d. Club de Revistas
A108: e. Rondas - Juntas
A110: f. Examen Escrito en la última semana de rotación | B110: 0.25 | D110: =C110*25% -> 0 | E110: 0.25 | G110: =F110*25% -> 0
A112: 2. HACER 45%
A113: a. Manejo de la historia clínica | B113: 0.45 | D113: =AVERAGE(C113:C115)*45% ->  | E113: 0.45 | G113: =AVERAGE(F113:F115)*45% -> 
A114: b. Destrezas y manualidades especificas
A115: c. Criterio clínico y terapéutico
A116: 3. EJECUCIÓN DEL DESEMPEÑO 10%
A117: a. Capacidad para tomar decisiones | B117: 0.05 | D117: =AVERAGE(C117:C118)*5% ->  | E117: 0.05 | G117: =AVERAGE(F117:F118)*5% -> 
A118: b. Relaciones humanas, trabajo en equipo
A120: NOTA DEFINITIVA | D120: =D104+D110+D113+D117 ->  | G120: =G104+G110+G113+G117 ->  | H120: =AVERAGE(D120:G120) -> 

Sheet Notas3 (hidden)
A3: 1. SABER 45% | B3: Dra. Daza | E3: Dra. Rubiano
A4: a. Casos Clínicos | B4: 0.25 | D4: =AVERAGE(C4:C8)*25% ->  | E4: 0.25 | G4: =AVERAGE(F4:F8)*25% -> 
A5: b. Seminarios
A6: c. Revisiones de tema
A7: d. Club de Revistas
A8: e. Rondas - Juntas
A10: f. Examen Escrito en la última semana de rotación | B10: 0.25 | D10: =C10*25% -> 0 | E10: 0.25 | G10: =F10*25% -> 0
A12: 2. HACER 45%
A13: a. Manejo de la historia clínica | B13: 0.45 | D13: =AVERAGE(C13:C15)*45% ->  | E13: 0.45 | G13: =AVERAGE(F13:F15)*45% -> 
A14: b. Destrezas y manualidades especificas
A15: c. Criterio clínico y terapéutico
A16: 3. EJECUCIÓN DEL DESEMPEÑO 10%
A17: a. Capacidad para tomar decisiones | B17: 0.05 | D17: =AVERAGE(C17:C18)*5% ->  | E17: 0.05 | G17: =AVERAGE(F17:F18)*5% -> 
A18: b. Relaciones humanas, trabajo en equipo
A20: NOTA DEFINITIVA | D20: =D4+D10+D13+D17 ->  | G20: =G4+G10+G13+G17 ->  | H20: =AVERAGE(D20:G20) -> 
A23: 1. SABER 45% | B23: Dra. Bedoya | E23: Dr. Gaviria
A24: a. Casos Clínicos | B24: 0.25 | D24: =AVERAGE(C24:C28)*25% ->  | E24: 0.25 | G24: =AVERAGE(F24:F28)*25% -> 
A25: b. Seminarios
A26: c. Revisiones de tema
A27: d. Club de Revistas
A28: e. Rondas - Juntas
A30: f. Examen Escrito en la última semana de rotación | B30: 0.25 | D30: =C30*25% -> 0 | E30: 0.25 | G30: =F30*25% -> 0
A32: 2. HACER 45%
A33: a. Manejo de la historia clínica | B33: 0.45 | D33: =AVERAGE(C33:C35)*45% ->  | E33: 0.45 | G33: =AVERAGE(F33:F35)*45% -> 
A34: b. Destrezas y manualidades especificas
A35: c. Criterio clínico y terapéutico
A36: 3. EJECUCIÓN DEL DESEMPEÑO 10%
A37: a. Capacidad para tomar decisiones | B37: 0.05 | D37: =AVERAGE(C37:C38)*5% ->  | E37: 0.05 | G37: =AVERAGE(F37:F38)*5% -> 
A38: b. Relaciones humanas, trabajo en equipo
A40: NOTA DEFINITIVA | D40: =D24+D30+D33+D37 ->  | G40: =G24+G30+G33+G37 ->  | H40: =AVERAGE(D40:G40) -> 
A43: 1. SABER 45% | B43: Dra. Olaya | E43: Dra. Galeano
A44: a. Casos Clínicos | B44: 0.25 | D44: =AVERAGE(C44:C48)*25% ->  | E44: 0.25 | G44: =AVERAGE(F44:F48)*25% -> 
A45: b. Seminarios
A46: c. Revisiones de tema
A47: d. Club de Revistas
A48: e. Rondas - Juntas
A50: f. Examen Escrito en la última semana de rotación | B50: 0.25 | D50: =C50*25% -> 0 | E50: 0.25 | G50: =F50*25% -> 0
A52: 2. HACER 45%
A53: a. Manejo de la historia clínica | B53: 0.45 | D53: =AVERAGE(C53:C55)*45% ->  | E53: 0.45 | G53: =AVERAGE(F53:F55)*45% -> 
A54: b. Destrezas y manualidades especificas
A55: c. Criterio clínico y terapéutico
A56: 3. EJECUCIÓN DEL DESEMPEÑO 10%
A57: a. Capacidad para tomar decisiones | B57: 0.05 | D57: =AVERAGE(C57:C58)*5% ->  | E57: 0.05 | G57: =AVERAGE(F57:F58)*5% -> 
A58: b. Relaciones humanas, trabajo en equipo
A60: NOTA DEFINITIVA | D60: =D44+D50+D53+D57 ->  | G60: =G44+G50+G53+G57 ->  | H60: =AVERAGE(D60:G60) -> 
A63: 1. SABER 45% | B63: Dr. Moya | E63: Dra. Henao
A64: a. Casos Clínicos | B64: 0.25 | D64: =AVERAGE(C64:C68)*25% ->  | E64: 0.25 | G64: =AVERAGE(F64:F68)*25% -> 
A65: b. Seminarios
A66: c. Revisiones de tema
A67: d. Club de Revistas
A68: e. Rondas - Juntas
A70: f. Examen Escrito en la última semana de rotación | B70: 0.25 | D70: =C70*25% -> 0 | E70: 0.25 | G70: =F70*25% -> 0
A72: 2. HACER 45%
A73: a. Manejo de la historia clínica | B73: 0.45 | D73: =AVERAGE(C73:C75)*45% ->  | E73: 0.45 | G73: =AVERAGE(F73:F75)*45% -> 
A74: b. Destrezas y manualidades especificas
A75: c. Criterio clínico y terapéutico
A76: 3. EJECUCIÓN DEL DESEMPEÑO 10%
A77: a. Capacidad para tomar decisiones | B77: 0.05 | D77: =AVERAGE(C77:C78)*5% ->  | E77: 0.05 | G77: =AVERAGE(F77:F78)*5% -> 
A78: b. Relaciones humanas, trabajo en equipo
A80: NOTA DEFINITIVA | D80: =D64+D70+D73+D77 ->  | G80: =G64+G70+G73+G77 ->  | H80: =AVERAGE(D80:G80) -> 
A83: 1. SABER 45% | B83: Dr. León | E83: Dr. Benavides
A84: a. Casos Clínicos | B84: 0.25 | E84: 0.25 | G84: =AVERAGE(F84:F88)*25% -> 
A85: b. Seminarios
A86: c. Revisiones de tema
A87: d. Club de Revistas
A88: e. Rondas - Juntas
A90: f. Examen Escrito en la última semana de rotación | B90: 0.25 | E90: 0.25 | G90: =F90*25% -> 0
A92: 2. HACER 45%
A93: a. Manejo de la historia clínica | B93: 0.45 | E93: 0.45 | G93: =AVERAGE(F93:F95)*45% -> 
A94: b. Destrezas y manualidades especificas
A95: c. Criterio clínico y terapéutico
A96: 3. EJECUCIÓN DEL DESEMPEÑO 10%
A97: a. Capacidad para tomar decisiones | B97: 0.05 | E97: 0.05 | G97: =AVERAGE(F97:F98)*5% -> 
A98: b. Relaciones humanas, trabajo en equipo
A100: NOTA DEFINITIVA | G100: =G84+G90+G93+G97 ->  | H100: =AVERAGE(D100:G100) -> 
A103: 1. SABER 45% | B103: Armida | E103: Dr.Marin
A104: a. Casos Clínicos | B104: 0.25 | D104: =AVERAGE(C104:C108)*25% ->  | E104: 0.25 | G104: =AVERAGE(F104:F108)*25% -> 
A105: b. Seminarios
A106: c. Revisiones de tema
A107: d. Club de Revistas
A108: e. Rondas - Juntas
A110: f. Examen Escrito en la última semana de rotación | B110: 0.25 | D110: =C110*25% -> 0 | E110: 0.25 | G110: =F110*25% -> 0
A112: 2. HACER 45%
A113: a. Manejo de la historia clínica | B113: 0.45 | D113: =AVERAGE(C113:C115)*45% ->  | E113: 0.45 | G113: =AVERAGE(F113:F115)*45% -> 
A114: b. Destrezas y manualidades especificas
A115: c. Criterio clínico y terapéutico
A116: 3. EJECUCIÓN DEL DESEMPEÑO 10%
A117: a. Capacidad para tomar decisiones | B117: 0.05 | D117: =AVERAGE(C117:C118)*5% ->  | E117: 0.05 | G117: =AVERAGE(F117:F118)*5% -> 
A118: b. Relaciones humanas, trabajo en equipo
A120: NOTA DEFINITIVA | D120: =D104+D110+D113+D117 ->  | G120: =G104+G110+G113+G117 ->  | H120: =AVERAGE(D120:G120) -> 

Sheet Notas4 (hidden)
A3: 1. SABER 45% | B3: Dra. Daza | E3: Dra. Rubiano
A4: a. Casos Clínicos | B4: 0.25 | D4: =AVERAGE(C4:C8)*25% ->  | E4: 0.25 | G4: =AVERAGE(F4:F8)*25% -> 
A5: b. Seminarios
A6: c. Revisiones de tema
A7: d. Club de Revistas
A8: e. Rondas - Juntas
A10: f. Examen Escrito en la última semana de rotación | B10: 0.25 | D10: =C10*25% -> 0 | E10: 0.25 | G10: =F10*25% -> 0
A12: 2. HACER 45%
A13: a. Manejo de la historia clínica | B13: 0.45 | D13: =AVERAGE(C13:C15)*45% ->  | E13: 0.45 | G13: =AVERAGE(F13:F15)*45% -> 
A14: b. Destrezas y manualidades especificas
A15: c. Criterio clínico y terapéutico
A16: 3. EJECUCIÓN DEL DESEMPEÑO 10%
A17: a. Capacidad para tomar decisiones | B17: 0.05 | D17: =AVERAGE(C17:C18)*5% ->  | E17: 0.05 | G17: =AVERAGE(F17:F18)*5% -> 
A18: b. Relaciones humanas, trabajo en equipo
A20: NOTA DEFINITIVA | D20: =D4+D10+D13+D17 ->  | G20: =G4+G10+G13+G17 ->  | H20: =AVERAGE(D20:G20) -> 
A23: 1. SABER 45% | B23: Dra. Bedoya | E23: Dr. Gaviria
A24: a. Casos Clínicos | B24: 0.25 | D24: =AVERAGE(C24:C28)*25% ->  | E24: 0.25 | G24: =AVERAGE(F24:F28)*25% -> 
A25: b. Seminarios
A26: c. Revisiones de tema
A27: d. Club de Revistas
A28: e. Rondas - Juntas
A30: f. Examen Escrito en la última semana de rotación | B30: 0.25 | D30: =C30*25% -> 0 | E30: 0.25 | G30: =F30*25% -> 0
A32: 2. HACER 45%
A33: a. Manejo de la historia clínica | B33: 0.45 | D33: =AVERAGE(C33:C35)*45% ->  | E33: 0.45 | G33: =AVERAGE(F33:F35)*45% -> 
A34: b. Destrezas y manualidades especificas
A35: c. Criterio clínico y terapéutico
A36: 3. EJECUCIÓN DEL DESEMPEÑO 10%
A37: a. Capacidad para tomar decisiones | B37: 0.05 | D37: =AVERAGE(C37:C38)*5% ->  | E37: 0.05 | G37: =AVERAGE(F37:F38)*5% -> 
A38: b. Relaciones humanas, trabajo en equipo
A40: NOTA DEFINITIVA | D40: =D24+D30+D33+D37 ->  | G40: =G24+G30+G33+G37 ->  | H40: =AVERAGE(D40:G40) -> 
A43: 1. SABER 45% | B43: Dra. Olaya | E43: Dra. Galeano
A44: a. Casos Clínicos | B44: 0.25 | D44: =AVERAGE(C44:C48)*25% ->  | E44: 0.25 | G44: =AVERAGE(F44:F48)*25% -> 
A45: b. Seminarios
A46: c. Revisiones de tema
A47: d. Club de Revistas
A48: e. Rondas - Juntas
A50: f. Examen Escrito en la última semana de rotación | B50: 0.25 | D50: =C50*25% -> 0 | E50: 0.25 | G50: =F50*25% -> 0
A52: 2. HACER 45%
A53: a. Manejo de la historia clínica | B53: 0.45 | D53: =AVERAGE(C53:C55)*45% ->  | E53: 0.45 | G53: =AVERAGE(F53:F55)*45% -> 
A54: b. Destrezas y manualidades especificas
A55: c. Criterio clínico y terapéutico
A56: 3. EJECUCIÓN DEL DESEMPEÑO 10%
A57: a. Capacidad para tomar decisiones | B57: 0.05 | D57: =AVERAGE(C57:C58)*5% ->  | E57: 0.05 | G57: =AVERAGE(F57:F58)*5% -> 
A58: b. Relaciones humanas, trabajo en equipo
A60: NOTA DEFINITIVA | D60: =D44+D50+D53+D57 ->  | G60: =G44+G50+G53+G57 ->  | H60: =AVERAGE(D60:G60) -> 
A63: 1. SABER 45% | B63: Dr. Moya | E63: Dra. Henao
A64: a. Casos Clínicos | B64: 0.25 | D64: =AVERAGE(C64:C68)*25% ->  | E64: 0.25 | G64: =AVERAGE(F64:F68)*25% -> 
A65: b. Seminarios
A66: c. Revisiones de tema
A67: d. Club de Revistas
A68: e. Rondas - Juntas
A70: f. Examen Escrito en la última semana de rotación | B70: 0.25 | D70: =C70*25% -> 0 | E70: 0.25 | G70: =F70*25% -> 0
A72: 2. HACER 45%
A73: a. Manejo de la historia clínica | B73: 0.45 | D73: =AVERAGE(C73:C75)*45% ->  | E73: 0.45 | G73: =AVERAGE(F73:F75)*45% -> 
A74: b. Destrezas y manualidades especificas
A75: c. Criterio clínico y terapéutico
A76: 3. EJECUCIÓN DEL DESEMPEÑO 10%
A77: a. Capacidad para tomar decisiones | B77: 0.05 | D77: =AVERAGE(C77:C78)*5% ->  | E77: 0.05 | G77: =AVERAGE(F77:F78)*5% -> 
A78: b. Relaciones humanas, trabajo en equipo
A80: NOTA DEFINITIVA | D80: =D64+D70+D73+D77 ->  | G80: =G64+G70+G73+G77 ->  | H80: =AVERAGE(D80:G80) -> 
A83: 1. SABER 45% | B83: Dr. León | E83: Dr. Benavides
A84: a. Casos Clínicos | B84: 0.25 | E84: 0.25 | G84: =AVERAGE(F84:F88)*25% -> 
A85: b. Seminarios
A86: c. Revisiones de tema
A87: d. Club de Revistas
A88: e. Rondas - Juntas
A90: f. Examen Escrito en la última semana de rotación | B90: 0.25 | E90: 0.25 | G90: =F90*25% -> 0
A92: 2. HACER 45%
A93: a. Manejo de la historia clínica | B93: 0.45 | E93: 0.45 | G93: =AVERAGE(F93:F95)*45% -> 
A94: b. Destrezas y manualidades especificas
A95: c. Criterio clínico y terapéutico
A96: 3. EJECUCIÓN DEL DESEMPEÑO 10%
A97: a. Capacidad para tomar decisiones | B97: 0.05 | E97: 0.05 | G97: =AVERAGE(F97:F98)*5% -> 
A98: b. Relaciones humanas, trabajo en equipo
A100: NOTA DEFINITIVA | G100: =G84+G90+G93+G97 ->  | H100: =AVERAGE(D100:G100) -> 
A103: 1. SABER 45% | B103: Armida | E103: Dr.Marin
A104: a. Casos Clínicos | B104: 0.25 | D104: =AVERAGE(C104:C108)*25% ->  | E104: 0.25 | G104: =AVERAGE(F104:F108)*25% -> 
A105: b. Seminarios
A106: c. Revisiones de tema
A107: d. Club de Revistas
A108: e. Rondas - Juntas
A110: f. Examen Escrito en la última semana de rotación | B110: 0.25 | D110: =C110*25% -> 0 | E110: 0.25 | G110: =F110*25% -> 0
A112: 2. HACER 45%
A113: a. Manejo de la historia clínica | B113: 0.45 | D113: =AVERAGE(C113:C115)*45% ->  | E113: 0.45 | G113: =AVERAGE(F113:F115)*45% -> 
A114: b. Destrezas y manualidades especificas
A115: c. Criterio clínico y terapéutico
A116: 3. EJECUCIÓN DEL DESEMPEÑO 10%
A117: a. Capacidad para tomar decisiones | B117: 0.05 | D117: =AVERAGE(C117:C118)*5% ->  | E117: 0.05 | G117: =AVERAGE(F117:F118)*5% -> 
A118: b. Relaciones humanas, trabajo en equipo
A120: NOTA DEFINITIVA | D120: =D104+D110+D113+D117 ->  | G120: =G104+G110+G113+G117 ->  | H120: =AVERAGE(D120:G120) -> 

Sheet Notas5 (hidden)
A3: 1. SABER 45% | B3: Dra. Daza | E3: Dra. Rubiano
A4: a. Casos Clínicos | B4: 0.25 | D4: =AVERAGE(C4:C8)*25% ->  | E4: 0.25 | G4: =AVERAGE(F4:F8)*25% -> 
A5: b. Seminarios
A6: c. Revisiones de tema
A7: d. Club de Revistas
A8: e. Rondas - Juntas
A10: f. Examen Escrito en la última semana de rotación | B10: 0.25 | D10: =C10*25% -> 0 | E10: 0.25 | G10: =F10*25% -> 0
A12: 2. HACER 45%
A13: a. Manejo de la historia clínica | B13: 0.45 | D13: =AVERAGE(C13:C15)*45% ->  | E13: 0.45 | G13: =AVERAGE(F13:F15)*45% -> 
A14: b. Destrezas y manualidades especificas
A15: c. Criterio clínico y terapéutico
A16: 3. EJECUCIÓN DEL DESEMPEÑO 10%
A17: a. Capacidad para tomar decisiones | B17: 0.05 | D17: =AVERAGE(C17:C18)*5% ->  | E17: 0.05 | G17: =AVERAGE(F17:F18)*5% -> 
A18: b. Relaciones humanas, trabajo en equipo
A20: NOTA DEFINITIVA | D20: =D4+D10+D13+D17 ->  | G20: =G4+G10+G13+G17 ->  | H20: =AVERAGE(D20:G20) -> 
A23: 1. SABER 45% | B23: Dra. Bedoya | E23: Dr. Gaviria
A24: a. Casos Clínicos | B24: 0.25 | D24: =AVERAGE(C24:C28)*25% ->  | E24: 0.25 | G24: =AVERAGE(F24:F28)*25% -> 
A25: b. Seminarios
A26: c. Revisiones de tema
A27: d. Club de Revistas
A28: e. Rondas - Juntas
A30: f. Examen Escrito en la última semana de rotación | B30: 0.25 | D30: =C30*25% -> 0 | E30: 0.25 | G30: =F30*25% -> 0
A32: 2. HACER 45%
A33: a. Manejo de la historia clínica | B33: 0.45 | D33: =AVERAGE(C33:C35)*45% ->  | E33: 0.45 | G33: =AVERAGE(F33:F35)*45% -> 
A34: b. Destrezas y manualidades especificas
A35: c. Criterio clínico y terapéutico
A36: 3. EJECUCIÓN DEL DESEMPEÑO 10%
A37: a. Capacidad para tomar decisiones | B37: 0.05 | D37: =AVERAGE(C37:C38)*5% ->  | E37: 0.05 | G37: =AVERAGE(F37:F38)*5% -> 
A38: b. Relaciones humanas, trabajo en equipo
A40: NOTA DEFINITIVA | D40: =D24+D30+D33+D37 ->  | G40: =G24+G30+G33+G37 ->  | H40: =AVERAGE(D40:G40) -> 
A43: 1. SABER 45% | B43: Dra. Olaya | E43: Dra. Galeano
A44: a. Casos Clínicos | B44: 0.25 | D44: =AVERAGE(C44:C48)*25% ->  | E44: 0.25 | G44: =AVERAGE(F44:F48)*25% -> 
A45: b. Seminarios
A46: c. Revisiones de tema
A47: d. Club de Revistas
A48: e. Rondas - Juntas
A50: f. Examen Escrito en la última semana de rotación | B50: 0.25 | D50: =C50*25% -> 0 | E50: 0.25 | G50: =F50*25% -> 0
A52: 2. HACER 45%
A53: a. Manejo de la historia clínica | B53: 0.45 | D53: =AVERAGE(C53:C55)*45% ->  | E53: 0.45 | G53: =AVERAGE(F53:F55)*45% -> 
A54: b. Destrezas y manualidades especificas
A55: c. Criterio clínico y terapéutico
A56: 3. EJECUCIÓN DEL DESEMPEÑO 10%
A57: a. Capacidad para tomar decisiones | B57: 0.05 | D57: =AVERAGE(C57:C58)*5% ->  | E57: 0.05 | G57: =AVERAGE(F57:F58)*5% -> 
A58: b. Relaciones humanas, trabajo en equipo
A60: NOTA DEFINITIVA | D60: =D44+D50+D53+D57 ->  | G60: =G44+G50+G53+G57 ->  | H60: =AVERAGE(D60:G60) -> 
A63: 1. SABER 45% | B63: Dr. Moya | E63: Dra. Henao
A64: a. Casos Clínicos | B64: 0.25 | D64: =AVERAGE(C64:C68)*25% ->  | E64: 0.25 | G64: =AVERAGE(F64:F68)*25% -> 
A65: b. Seminarios
A66: c. Revisiones de tema
A67: d. Club de Revistas
A68: e. Rondas - Juntas
A70: f. Examen Escrito en la última semana de rotación | B70: 0.25 | D70: =C70*25% -> 0 | E70: 0.25 | G70: =F70*25% -> 0
A72: 2. HACER 45%
A73: a. Manejo de la historia clínica | B73: 0.45 | D73: =AVERAGE(C73:C75)*45% ->  | E73: 0.45 | G73: =AVERAGE(F73:F75)*45% -> 
A74: b. Destrezas y manualidades especificas
A75: c. Criterio clínico y terapéutico
A76: 3. EJECUCIÓN DEL DESEMPEÑO 10%
A77: a. Capacidad para tomar decisiones | B77: 0.05 | D77: =AVERAGE(C77:C78)*5% ->  | E77: 0.05 | G77: =AVERAGE(F77:F78)*5% -> 
A78: b. Relaciones humanas, trabajo en equipo
A80: NOTA DEFINITIVA | D80: =D64+D70+D73+D77 ->  | G80: =G64+G70+G73+G77 ->  | H80: =AVERAGE(D80:G80) -> 
A83: 1. SABER 45% | B83: Dr. León | E83: Dr. Benavides
A84: a. Casos Clínicos | B84: 0.25 | E84: 0.25 | G84: =AVERAGE(F84:F88)*25% -> 
A85: b. Seminarios
A86: c. Revisiones de tema
A87: d. Club de Revistas
A88: e. Rondas - Juntas
A90: f. Examen Escrito en la última semana de rotación | B90: 0.25 | E90: 0.25 | G90: =F90*25% -> 0
A92: 2. HACER 45%
A93: a. Manejo de la historia clínica | B93: 0.45 | E93: 0.45 | G93: =AVERAGE(F93:F95)*45% -> 
A94: b. Destrezas y manualidades especificas
A95: c. Criterio clínico y terapéutico
A96: 3. EJECUCIÓN DEL DESEMPEÑO 10%
A97: a. Capacidad para tomar decisiones | B97: 0.05 | E97: 0.05 | G97: =AVERAGE(F97:F98)*5% -> 
A98: b. Relaciones humanas, trabajo en equipo
A100: NOTA DEFINITIVA | G100: =G84+G90+G93+G97 ->  | H100: =AVERAGE(D100:G100) -> 
A103: 1. SABER 45% | B103: Armida | E103: Dr.Marin
A104: a. Casos Clínicos | B104: 0.25 | D104: =AVERAGE(C104:C108)*25% ->  | E104: 0.25 | G104: =AVERAGE(F104:F108)*25% -> 
A105: b. Seminarios
A106: c. Revisiones de tema
A107: d. Club de Revistas
A108: e. Rondas - Juntas
A110: f. Examen Escrito en la última semana de rotación | B110: 0.25 | D110: =C110*25% -> 0 | E110: 0.25 | G110: =F110*25% -> 0
A112: 2. HACER 45%
A113: a. Manejo de la historia clínica | B113: 0.45 | D113: =AVERAGE(C113:C115)*45% ->  | E113: 0.45 | G113: =AVERAGE(F113:F115)*45% -> 
A114: b. Destrezas y manualidades especificas
A115: c. Criterio clínico y terapéutico
A116: 3. EJECUCIÓN DEL DESEMPEÑO 10%
A117: a. Capacidad para tomar decisiones | B117: 0.05 | D117: =AVERAGE(C117:C118)*5% ->  | E117: 0.05 | G117: =AVERAGE(F117:F118)*5% -> 
A118: b. Relaciones humanas, trabajo en equipo
A120: NOTA DEFINITIVA | D120: =D104+D110+D113+D117 ->  | G120: =G104+G110+G113+G117 ->  | H120: =AVERAGE(D120:G120) -> 

Sheet Notas6 (hidden)
A3: 1. SABER 45% | B3: Dra. Daza | E3: Dra. Rubiano
A4: a. Casos Clínicos | B4: 0.25 | D4: =AVERAGE(C4:C8)*25% ->  | E4: 0.25 | G4: =AVERAGE(F4:F8)*25% -> 
A5: b. Seminarios
A6: c. Revisiones de tema
A7: d. Club de Revistas
A8: e. Rondas - Juntas
A10: f. Examen Escrito en la última semana de rotación | B10: 0.25 | D10: =C10*25% -> 0 | E10: 0.25 | G10: =F10*25% -> 0
A12: 2. HACER 45%
A13: a. Manejo de la historia clínica | B13: 0.45 | D13: =AVERAGE(C13:C15)*45% ->  | E13: 0.45 | G13: =AVERAGE(F13:F15)*45% -> 
A14: b. Destrezas y manualidades especificas
A15: c. Criterio clínico y terapéutico
A16: 3. EJECUCIÓN DEL DESEMPEÑO 10%
A17: a. Capacidad para tomar decisiones | B17: 0.05 | D17: =AVERAGE(C17:C18)*5% ->  | E17: 0.05 | G17: =AVERAGE(F17:F18)*5% -> 
A18: b. Relaciones humanas, trabajo en equipo
A20: NOTA DEFINITIVA | D20: =D4+D10+D13+D17 ->  | G20: =G4+G10+G13+G17 ->  | H20: =AVERAGE(D20:G20) -> 
A23: 1. SABER 45% | B23: Dra. Bedoya | E23: Dr. Gaviria
A24: a. Casos Clínicos | B24: 0.25 | D24: =AVERAGE(C24:C28)*25% ->  | E24: 0.25 | G24: =AVERAGE(F24:F28)*25% -> 
A25: b. Seminarios
A26: c. Revisiones de tema
A27: d. Club de Revistas
A28: e. Rondas - Juntas
A30: f. Examen Escrito en la última semana de rotación | B30: 0.25 | D30: =C30*25% -> 0 | E30: 0.25 | G30: =F30*25% -> 0
A32: 2. HACER 45%
A33: a. Manejo de la historia clínica | B33: 0.45 | D33: =AVERAGE(C33:C35)*45% ->  | E33: 0.45 | G33: =AVERAGE(F33:F35)*45% -> 
A34: b. Destrezas y manualidades especificas
A35: c. Criterio clínico y terapéutico
A36: 3. EJECUCIÓN DEL DESEMPEÑO 10%
A37: a. Capacidad para tomar decisiones | B37: 0.05 | D37: =AVERAGE(C37:C38)*5% ->  | E37: 0.05 | G37: =AVERAGE(F37:F38)*5% -> 
A38: b. Relaciones humanas, trabajo en equipo
A40: NOTA DEFINITIVA | D40: =D24+D30+D33+D37 ->  | G40: =G24+G30+G33+G37 ->  | H40: =AVERAGE(D40:G40) -> 
A43: 1. SABER 45% | B43: Dra. Olaya | E43: Dra. Galeano
A44: a. Casos Clínicos | B44: 0.25 | D44: =AVERAGE(C44:C48)*25% ->  | E44: 0.25 | G44: =AVERAGE(F44:F48)*25% -> 
A45: b. Seminarios
A46: c. Revisiones de tema
A47: d. Club de Revistas
A48: e. Rondas - Juntas
A50: f. Examen Escrito en la última semana de rotación | B50: 0.25 | D50: =C50*25% -> 0 | E50: 0.25 | G50: =F50*25% -> 0
A52: 2. HACER 45%
A53: a. Manejo de la historia clínica | B53: 0.45 | D53: =AVERAGE(C53:C55)*45% ->  | E53: 0.45 | G53: =AVERAGE(F53:F55)*45% -> 
A54: b. Destrezas y manualidades especificas
A55: c. Criterio clínico y terapéutico
A56: 3. EJECUCIÓN DEL DESEMPEÑO 10%
A57: a. Capacidad para tomar decisiones | B57: 0.05 | D57: =AVERAGE(C57:C58)*5% ->  | E57: 0.05 | G57: =AVERAGE(F57:F58)*5% -> 
A58: b. Relaciones humanas, trabajo en equipo
A60: NOTA DEFINITIVA | D60: =D44+D50+D53+D57 ->  | G60: =G44+G50+G53+G57 ->  | H60: =AVERAGE(D60:G60) -> 
A63: 1. SABER 45% | B63: Dr. Moya | E63: Dra. Henao
A64: a. Casos Clínicos | B64: 0.25 | D64: =AVERAGE(C64:C68)*25% ->  | E64: 0.25 | G64: =AVERAGE(F64:F68)*25% -> 
A65: b. Seminarios
A66: c. Revisiones de tema
A67: d. Club de Revistas
A68: e. Rondas - Juntas
A70: f. Examen Escrito en la última semana de rotación | B70: 0.25 | D70: =C70*25% -> 0 | E70: 0.25 | G70: =F70*25% -> 0
A72: 2. HACER 45%
A73: a. Manejo de la historia clínica | B73: 0.45 | D73: =AVERAGE(C73:C75)*45% ->  | E73: 0.45 | G73: =AVERAGE(F73:F75)*45% -> 
A74: b. Destrezas y manualidades especificas
A75: c. Criterio clínico y terapéutico
A76: 3. EJECUCIÓN DEL DESEMPEÑO 10%
A77: a. Capacidad para tomar decisiones | B77: 0.05 | D77: =AVERAGE(C77:C78)*5% ->  | E77: 0.05 | G77: =AVERAGE(F77:F78)*5% -> 
A78: b. Relaciones humanas, trabajo en equipo
A80: NOTA DEFINITIVA | D80: =D64+D70+D73+D77 ->  | G80: =G64+G70+G73+G77 ->  | H80: =AVERAGE(D80:G80) -> 
A83: 1. SABER 45% | B83: Dr. León | E83: Dr. Benavides
A84: a. Casos Clínicos | B84: 0.25 | E84: 0.25 | G84: =AVERAGE(F84:F88)*25% -> 
A85: b. Seminarios
A86: c. Revisiones de tema
A87: d. Club de Revistas
A88: e. Rondas - Juntas
A90: f. Examen Escrito en la última semana de rotación | B90: 0.25 | E90: 0.25 | G90: =F90*25% -> 0
A92: 2. HACER 45%
A93: a. Manejo de la historia clínica | B93: 0.45 | E93: 0.45 | G93: =AVERAGE(F93:F95)*45% -> 
A94: b. Destrezas y manualidades especificas
A95: c. Criterio clínico y terapéutico
A96: 3. EJECUCIÓN DEL DESEMPEÑO 10%
A97: a. Capacidad para tomar decisiones | B97: 0.05 | E97: 0.05 | G97: =AVERAGE(F97:F98)*5% -> 
A98: b. Relaciones humanas, trabajo en equipo
A100: NOTA DEFINITIVA | G100: =G84+G90+G93+G97 ->  | H100: =AVERAGE(D100:G100) -> 
A103: 1. SABER 45% | B103: Armida | E103: Dr.Marin
A104: a. Casos Clínicos | B104: 0.25 | D104: =AVERAGE(C104:C108)*25% ->  | E104: 0.25 | G104: =AVERAGE(F104:F108)*25% -> 
A105: b. Seminarios
A106: c. Revisiones de tema
A107: d. Club de Revistas
A108: e. Rondas - Juntas
A110: f. Examen Escrito en la última semana de rotación | B110: 0.25 | D110: =C110*25% -> 0 | E110: 0.25 | G110: =F110*25% -> 0
A112: 2. HACER 45%
A113: a. Manejo de la historia clínica | B113: 0.45 | D113: =AVERAGE(C113:C115)*45% ->  | E113: 0.45 | G113: =AVERAGE(F113:F115)*45% -> 
A114: b. Destrezas y manualidades especificas
A115: c. Criterio clínico y terapéutico
A116: 3. EJECUCIÓN DEL DESEMPEÑO 10%
A117: a. Capacidad para tomar decisiones | B117: 0.05 | D117: =AVERAGE(C117:C118)*5% ->  | E117: 0.05 | G117: =AVERAGE(F117:F118)*5% -> 
A118: b. Relaciones humanas, trabajo en equipo
A120: NOTA DEFINITIVA | D120: =D104+D110+D113+D117 ->  | G120: =G104+G110+G113+G117 ->  | H120: =AVERAGE(D120:G120) -> 

Sheet Notas7 (hidden)
A3: 1. SABER 45% | B3: Dra. Daza | E3: Dra. Rubiano
A4: a. Casos Clínicos | B4: 0.25 | D4: =AVERAGE(C4:C8)*25% ->  | E4: 0.25 | G4: =AVERAGE(F4:F8)*25% -> 
A5: b. Seminarios
A6: c. Revisiones de tema
A7: d. Club de Revistas
A8: e. Rondas - Juntas
A10: f. Examen Escrito en la última semana de rotación | B10: 0.25 | D10: =C10*25% -> 0 | E10: 0.25 | G10: =F10*25% -> 0
A12: 2. HACER 45%
A13: a. Manejo de la historia clínica | B13: 0.45 | D13: =AVERAGE(C13:C15)*45% ->  | E13: 0.45 | G13: =AVERAGE(F13:F15)*45% -> 
A14: b. Destrezas y manualidades especificas
A15: c. Criterio clínico y terapéutico
A16: 3. EJECUCIÓN DEL DESEMPEÑO 10%
A17: a. Capacidad para tomar decisiones | B17: 0.05 | D17: =AVERAGE(C17:C18)*5% ->  | E17: 0.05 | G17: =AVERAGE(F17:F18)*5% -> 
A18: b. Relaciones humanas, trabajo en equipo
A20: NOTA DEFINITIVA | D20: =D4+D10+D13+D17 ->  | G20: =G4+G10+G13+G17 ->  | H20: =AVERAGE(D20:G20) -> 
A23: 1. SABER 45% | B23: Dra. Bedoya | E23: Dr. Gaviria
A24: a. Casos Clínicos | B24: 0.25 | D24: =AVERAGE(C24:C28)*25% ->  | E24: 0.25 | G24: =AVERAGE(F24:F28)*25% -> 
A25: b. Seminarios
A26: c. Revisiones de tema
A27: d. Club de Revistas
A28: e. Rondas - Juntas
A30: f. Examen Escrito en la última semana de rotación | B30: 0.25 | D30: =C30*25% -> 0 | E30: 0.25 | G30: =F30*25% -> 0
A32: 2. HACER 45%
A33: a. Manejo de la historia clínica | B33: 0.45 | D33: =AVERAGE(C33:C35)*45% ->  | E33: 0.45 | G33: =AVERAGE(F33:F35)*45% -> 
A34: b. Destrezas y manualidades especificas
A35: c. Criterio clínico y terapéutico
A36: 3. EJECUCIÓN DEL DESEMPEÑO 10%
A37: a. Capacidad para tomar decisiones | B37: 0.05 | D37: =AVERAGE(C37:C38)*5% ->  | E37: 0.05 | G37: =AVERAGE(F37:F38)*5% -> 
A38: b. Relaciones humanas, trabajo en equipo
A40: NOTA DEFINITIVA | D40: =D24+D30+D33+D37 ->  | G40: =G24+G30+G33+G37 ->  | H40: =AVERAGE(D40:G40) -> 
A43: 1. SABER 45% | B43: Dra. Olaya | E43: Dra. Galeano
A44: a. Casos Clínicos | B44: 0.25 | D44: =AVERAGE(C44:C48)*25% ->  | E44: 0.25 | G44: =AVERAGE(F44:F48)*25% -> 
A45: b. Seminarios
A46: c. Revisiones de tema
A47: d. Club de Revistas
A48: e. Rondas - Juntas
A50: f. Examen Escrito en la última semana de rotación | B50: 0.25 | D50: =C50*25% -> 0 | E50: 0.25 | G50: =F50*25% -> 0
A52: 2. HACER 45%
A53: a. Manejo de la historia clínica | B53: 0.45 | D53: =AVERAGE(C53:C55)*45% ->  | E53: 0.45 | G53: =AVERAGE(F53:F55)*45% -> 
A54: b. Destrezas y manualidades especificas
A55: c. Criterio clínico y terapéutico
A56: 3. EJECUCIÓN DEL DESEMPEÑO 10%
A57: a. Capacidad para tomar decisiones | B57: 0.05 | D57: =AVERAGE(C57:C58)*5% ->  | E57: 0.05 | G57: =AVERAGE(F57:F58)*5% -> 
A58: b. Relaciones humanas, trabajo en equipo
A60: NOTA DEFINITIVA | D60: =D44+D50+D53+D57 ->  | G60: =G44+G50+G53+G57 ->  | H60: =AVERAGE(D60:G60) -> 
A63: 1. SABER 45% | B63: Dr. Moya | E63: Dra. Henao
A64: a. Casos Clínicos | B64: 0.25 | D64: =AVERAGE(C64:C68)*25% ->  | E64: 0.25 | G64: =AVERAGE(F64:F68)*25% -> 
A65: b. Seminarios
A66: c. Revisiones de tema
A67: d. Club de Revistas
A68: e. Rondas - Juntas
A70: f. Examen Escrito en la última semana de rotación | B70: 0.25 | D70: =C70*25% -> 0 | E70: 0.25 | G70: =F70*25% -> 0
A72: 2. HACER 45%
A73: a. Manejo de la historia clínica | B73: 0.45 | D73: =AVERAGE(C73:C75)*45% ->  | E73: 0.45 | G73: =AVERAGE(F73:F75)*45% -> 
A74: b. Destrezas y manualidades especificas
A75: c. Criterio clínico y terapéutico
A76: 3. EJECUCIÓN DEL DESEMPEÑO 10%
A77: a. Capacidad para tomar decisiones | B77: 0.05 | D77: =AVERAGE(C77:C78)*5% ->  | E77: 0.05 | G77: =AVERAGE(F77:F78)*5% -> 
A78: b. Relaciones humanas, trabajo en equipo
A80: NOTA DEFINITIVA | D80: =D64+D70+D73+D77 ->  | G80: =G64+G70+G73+G77 ->  | H80: =AVERAGE(D80:G80) -> 
A83: 1. SABER 45% | B83: Dr. León | E83: Dr. Benavides
A84: a. Casos Clínicos | B84: 0.25 | E84: 0.25 | G84: =AVERAGE(F84:F88)*25% -> 
A85: b. Seminarios
A86: c. Revisiones de tema
A87: d. Club de Revistas
A88: e. Rondas - Juntas
A90: f. Examen Escrito en la última semana de rotación | B90: 0.25 | E90: 0.25 | G90: =F90*25% -> 0
A92: 2. HACER 45%
A93: a. Manejo de la historia clínica | B93: 0.45 | E93: 0.45 | G93: =AVERAGE(F93:F95)*45% -> 
A94: b. Destrezas y manualidades especificas
A95: c. Criterio clínico y terapéutico
A96: 3. EJECUCIÓN DEL DESEMPEÑO 10%
A97: a. Capacidad para tomar decisiones | B97: 0.05 | E97: 0.05 | G97: =AVERAGE(F97:F98)*5% -> 
A98: b. Relaciones humanas, trabajo en equipo
A100: NOTA DEFINITIVA | G100: =G84+G90+G93+G97 ->  | H100: =AVERAGE(D100:G100) -> 
A103: 1. SABER 45% | B103: Armida | E103: Dr.Marin
A104: a. Casos Clínicos | B104: 0.25 | D104: =AVERAGE(C104:C108)*25% ->  | E104: 0.25 | G104: =AVERAGE(F104:F108)*25% -> 
A105: b. Seminarios
A106: c. Revisiones de tema
A107: d. Club de Revistas
A108: e. Rondas - Juntas
A110: f. Examen Escrito en la última semana de rotación | B110: 0.25 | D110: =C110*25% -> 0 | E110: 0.25 | G110: =F110*25% -> 0
A112: 2. HACER 45%
A113: a. Manejo de la historia clínica | B113: 0.45 | D113: =AVERAGE(C113:C115)*45% ->  | E113: 0.45 | G113: =AVERAGE(F113:F115)*45% -> 
A114: b. Destrezas y manualidades especificas
A115: c. Criterio clínico y terapéutico
A116: 3. EJECUCIÓN DEL DESEMPEÑO 10%
A117: a. Capacidad para tomar decisiones | B117: 0.05 | D117: =AVERAGE(C117:C118)*5% ->  | E117: 0.05 | G117: =AVERAGE(F117:F118)*5% -> 
A118: b. Relaciones humanas, trabajo en equipo
A120: NOTA DEFINITIVA | D120: =D104+D110+D113+D117 ->  | G120: =G104+G110+G113+G117 ->  | H120: =AVERAGE(D120:G120) -> 
A121: NOTA DEFINITIVA | D121: =D105+D111+D114+D118 -> 0 | G121: =G105+G111+G114+G118 -> 0 | H121: =AVERAGE(D121:G121) -> 0

Sheet Notas8 (hidden)
A3: 1. SABER 45% | B3: Dra. Daza | E3: Dra. Rubiano
A4: a. Casos Clínicos | B4: 0.25 | D4: =AVERAGE(C4:C8)*25% ->  | E4: 0.25 | G4: =AVERAGE(F4:F8)*25% -> 
A5: b. Seminarios
A6: c. Revisiones de tema
A7: d. Club de Revistas
A8: e. Rondas - Juntas
A10: f. Examen Escrito en la última semana de rotación | B10: 0.25 | D10: =C10*25% -> 0 | E10: 0.25 | G10: =F10*25% -> 0
A12: 2. HACER 45%
A13: a. Manejo de la historia clínica | B13: 0.45 | D13: =AVERAGE(C13:C15)*45% ->  | E13: 0.45 | G13: =AVERAGE(F13:F15)*45% -> 
A14: b. Destrezas y manualidades especificas
A15: c. Criterio clínico y terapéutico
A16: 3. EJECUCIÓN DEL DESEMPEÑO 10%
A17: a. Capacidad para tomar decisiones | B17: 0.05 | D17: =AVERAGE(C17:C18)*5% ->  | E17: 0.05 | G17: =AVERAGE(F17:F18)*5% -> 
A18: b. Relaciones humanas, trabajo en equipo
A20: NOTA DEFINITIVA | D20: =D4+D10+D13+D17 ->  | G20: =G4+G10+G13+G17 ->  | H20: =AVERAGE(D20:G20) -> 
A23: 1. SABER 45% | B23: Dra. Bedoya | E23: Dr. Gaviria
A24: a. Casos Clínicos | B24: 0.25 | D24: =AVERAGE(C24:C28)*25% ->  | E24: 0.25 | G24: =AVERAGE(F24:F28)*25% -> 
A25: b. Seminarios
A26: c. Revisiones de tema
A27: d. Club de Revistas
A28: e. Rondas - Juntas
A30: f. Examen Escrito en la última semana de rotación | B30: 0.25 | D30: =C30*25% -> 0 | E30: 0.25 | G30: =F30*25% -> 0
A32: 2. HACER 45%
A33: a. Manejo de la historia clínica | B33: 0.45 | D33: =AVERAGE(C33:C35)*45% ->  | E33: 0.45 | G33: =AVERAGE(F33:F35)*45% -> 
A34: b. Destrezas y manualidades especificas
A35: c. Criterio clínico y terapéutico
A36: 3. EJECUCIÓN DEL DESEMPEÑO 10%
A37: a. Capacidad para tomar decisiones | B37: 0.05 | D37: =AVERAGE(C37:C38)*5% ->  | E37: 0.05 | G37: =AVERAGE(F37:F38)*5% -> 
A38: b. Relaciones humanas, trabajo en equipo
A40: NOTA DEFINITIVA | D40: =D24+D30+D33+D37 ->  | G40: =G24+G30+G33+G37 ->  | H40: =AVERAGE(D40:G40) -> 
A43: 1. SABER 45% | B43: Dra. Olaya | E43: Dra. Galeano
A44: a. Casos Clínicos | B44: 0.25 | D44: =AVERAGE(C44:C48)*25% ->  | E44: 0.25 | G44: =AVERAGE(F44:F48)*25% -> 
A45: b. Seminarios
A46: c. Revisiones de tema
A47: d. Club de Revistas
A48: e. Rondas - Juntas
A50: f. Examen Escrito en la última semana de rotación | B50: 0.25 | E50: 0.25
A52: 2. HACER 45%
A53: a. Manejo de la historia clínica | B53: 0.45 | D53: =AVERAGE(C53:C55)*45% ->  | E53: 0.45 | G53: =AVERAGE(F53:F55)*45% -> 
A54: b. Destrezas y manualidades especificas
A55: c. Criterio clínico y terapéutico
A56: 3. EJECUCIÓN DEL DESEMPEÑO 10%
A57: a. Capacidad para tomar decisiones | B57: 0.05 | D57: =AVERAGE(C57:C58)*5% ->  | E57: 0.05 | G57: =AVERAGE(F57:F58)*5% -> 
A58: b. Relaciones humanas, trabajo en equipo
A60: NOTA DEFINITIVA | D60: =D44+D50+D53+D57 ->  | G60: =G44+G50+G53+G57 ->  | H60: =AVERAGE(D60:G60) -> 
A63: 1. SABER 45% | B63: Dr. Moya | E63: Dra. Henao
A64: a. Casos Clínicos | B64: 0.25 | D64: =AVERAGE(C64:C68)*25% ->  | E64: 0.25 | G64: =AVERAGE(F64:F68)*25% -> 
A65: b. Seminarios
A66: c. Revisiones de tema
A67: d. Club de Revistas
A68: e. Rondas - Juntas
A70: f. Examen Escrito en la última semana de rotación | B70: 0.25 | D70: =C70*25% -> 0 | E70: 0.25 | G70: =F70*25% -> 0
A72: 2. HACER 45%
A73: a. Manejo de la historia clínica | B73: 0.45 | D73: =AVERAGE(C73:C75)*45% ->  | E73: 0.45 | G73: =AVERAGE(F73:F75)*45% -> 
A74: b. Destrezas y manualidades especificas
A75: c. Criterio clínico y terapéutico
A76: 3. EJECUCIÓN DEL DESEMPEÑO 10%
A77: a. Capacidad para tomar decisiones | B77: 0.05 | D77: =AVERAGE(C77:C78)*5% ->  | E77: 0.05 | G77: =AVERAGE(F77:F78)*5% -> 
A78: b. Relaciones humanas, trabajo en equipo
A80: NOTA DEFINITIVA | D80: =D64+D70+D73+D77 ->  | G80: =G64+G70+G73+G77 ->  | H80: =AVERAGE(D80:G80) -> 
A83: 1. SABER 45% | B83: Dr. León | E83: Dr. Benavides
A84: a. Casos Clínicos | B84: 0.25 | E84: 0.25 | G84: =AVERAGE(F84:F88)*25% -> 
A85: b. Seminarios
A86: c. Revisiones de tema
A87: d. Club de Revistas
A88: e. Rondas - Juntas
A90: f. Examen Escrito en la última semana de rotación | B90: 0.25 | E90: 0.25 | G90: =F90*25% -> 0
A92: 2. HACER 45%
A93: a. Manejo de la historia clínica | B93: 0.45 | E93: 0.45 | G93: =AVERAGE(F93:F95)*45% -> 
A94: b. Destrezas y manualidades especificas
A95: c. Criterio clínico y terapéutico
A96: 3. EJECUCIÓN DEL DESEMPEÑO 10%
A97: a. Capacidad para tomar decisiones | B97: 0.05 | E97: 0.05 | G97: =AVERAGE(F97:F98)*5% -> 
A98: b. Relaciones humanas, trabajo en equipo
A100: NOTA DEFINITIVA | G100: =G84+G90+G93+G97 ->  | H100: =AVERAGE(D100:G100) -> 
A103: 1. SABER 45% | B103: Armida | E103: Dr.Marin
A104: a. Casos Clínicos | B104: 0.25 | D104: =AVERAGE(C104:C108)*25% ->  | E104: 0.25 | G104: =AVERAGE(F104:F108)*25% -> 
A105: b. Seminarios
A106: c. Revisiones de tema
A107: d. Club de Revistas
A108: e. Rondas - Juntas
A110: f. Examen Escrito en la última semana de rotación | B110: 0.25 | D110: =C110*25% -> 0 | E110: 0.25 | G110: =F110*25% -> 0
A112: 2. HACER 45%
A113: a. Manejo de la historia clínica | B113: 0.45 | D113: =AVERAGE(C113:C115)*45% ->  | E113: 0.45 | G113: =AVERAGE(F113:F115)*45% -> 
A114: b. Destrezas y manualidades especificas
A115: c. Criterio clínico y terapéutico
A116: 3. EJECUCIÓN DEL DESEMPEÑO 10%
A117: a. Capacidad para tomar decisiones | B117: 0.05 | D117: =AVERAGE(C117:C118)*5% ->  | E117: 0.05 | G117: =AVERAGE(F117:F118)*5% -> 
A118: b. Relaciones humanas, trabajo en equipo
A120: NOTA DEFINITIVA | D120: =D104+D110+D113+D117 ->  | G120: =G104+G110+G113+G117 ->  | H120: =AVERAGE(D120:G120) -> 

Sheet Notas9 (hidden)
A3: 1. SABER 45% | B3: Dra. Daza | E3: Dra. Rubiano
A4: a. Casos Clínicos | B4: 0.25 | D4: =AVERAGE(C4:C8)*25% ->  | E4: 0.25 | G4: =AVERAGE(F4:F8)*25% -> 
A5: b. Seminarios
A6: c. Revisiones de tema
A7: d. Club de Revistas
A8: e. Rondas - Juntas
A10: f. Examen Escrito en la última semana de rotación | B10: 0.25 | D10: =C10*25% -> 0 | E10: 0.25 | G10: =F10*25% -> 0
A12: 2. HACER 45%
A13: a. Manejo de la historia clínica | B13: 0.45 | D13: =AVERAGE(C13:C15)*45% ->  | E13: 0.45 | G13: =AVERAGE(F13:F15)*45% -> 
A14: b. Destrezas y manualidades especificas
A15: c. Criterio clínico y terapéutico
A16: 3. EJECUCIÓN DEL DESEMPEÑO 10%
A17: a. Capacidad para tomar decisiones | B17: 0.05 | D17: =AVERAGE(C17:C18)*5% ->  | E17: 0.05 | G17: =AVERAGE(F17:F18)*5% -> 
A18: b. Relaciones humanas, trabajo en equipo
A20: NOTA DEFINITIVA | D20: =D4+D10+D13+D17 ->  | G20: =G4+G10+G13+G17 ->  | H20: =AVERAGE(D20:G20) -> 
A23: 1. SABER 45% | B23: Dra. Bedoya | E23: Dr. Gaviria
A24: a. Casos Clínicos | B24: 0.25 | D24: =AVERAGE(C24:C28)*25% ->  | E24: 0.25 | G24: =AVERAGE(F24:F28)*25% -> 
A25: b. Seminarios
A26: c. Revisiones de tema
A27: d. Club de Revistas
A28: e. Rondas - Juntas
A30: f. Examen Escrito en la última semana de rotación | B30: 0.25 | D30: =C30*25% -> 0 | E30: 0.25 | G30: =F30*25% -> 0
A32: 2. HACER 45%
A33: a. Manejo de la historia clínica | B33: 0.45 | D33: =AVERAGE(C33:C35)*45% ->  | E33: 0.45 | G33: =AVERAGE(F33:F35)*45% -> 
A34: b. Destrezas y manualidades especificas
A35: c. Criterio clínico y terapéutico
A36: 3. EJECUCIÓN DEL DESEMPEÑO 10%
A37: a. Capacidad para tomar decisiones | B37: 0.05 | D37: =AVERAGE(C37:C38)*5% ->  | E37: 0.05 | G37: =AVERAGE(F37:F38)*5% -> 
A38: b. Relaciones humanas, trabajo en equipo
A40: NOTA DEFINITIVA | D40: =D24+D30+D33+D37 ->  | G40: =G24+G30+G33+G37 ->  | H40: =AVERAGE(D40:G40) -> 
A43: 1. SABER 45% | B43: Dra. Olaya | E43: Dra. Galeano
A44: a. Casos Clínicos | B44: 0.25 | D44: =AVERAGE(C44:C48)*25% ->  | E44: 0.25 | G44: =AVERAGE(F44:F48)*25% -> 
A45: b. Seminarios
A46: c. Revisiones de tema
A47: d. Club de Revistas
A48: e. Rondas - Juntas
A50: f. Examen Escrito en la última semana de rotación | B50: 0.25 | D50: =C50*25% -> 0 | E50: 0.25 | G50: =F50*25% -> 0
A52: 2. HACER 45%
A53: a. Manejo de la historia clínica | B53: 0.45 | D53: =AVERAGE(C53:C55)*45% ->  | E53: 0.45 | G53: =AVERAGE(F53:F55)*45% -> 
A54: b. Destrezas y manualidades especificas
A55: c. Criterio clínico y terapéutico
A56: 3. EJECUCIÓN DEL DESEMPEÑO 10%
A57: a. Capacidad para tomar decisiones | B57: 0.05 | D57: =AVERAGE(C57:C58)*5% ->  | E57: 0.05 | G57: =AVERAGE(F57:F58)*5% -> 
A58: b. Relaciones humanas, trabajo en equipo
A60: NOTA DEFINITIVA | D60: =D44+D50+D53+D57 ->  | G60: =G44+G50+G53+G57 ->  | H60: =AVERAGE(D60:G60) -> 
A63: 1. SABER 45% | B63: Dr. Moya | E63: Dra. Henao
A64: a. Casos Clínicos | B64: 0.25 | D64: =AVERAGE(C64:C68)*25% ->  | E64: 0.25 | G64: =AVERAGE(F64:F68)*25% -> 
A65: b. Seminarios
A66: c. Revisiones de tema
A67: d. Club de Revistas
A68: e. Rondas - Juntas
A70: f. Examen Escrito en la última semana de rotación | B70: 0.25 | D70: =C70*25% -> 0 | E70: 0.25 | G70: =F70*25% -> 0
A72: 2. HACER 45%
A73: a. Manejo de la historia clínica | B73: 0.45 | D73: =AVERAGE(C73:C75)*45% ->  | E73: 0.45 | G73: =AVERAGE(F73:F75)*45% -> 
A74: b. Destrezas y manualidades especificas
A75: c. Criterio clínico y terapéutico
A76: 3. EJECUCIÓN DEL DESEMPEÑO 10%
A77: a. Capacidad para tomar decisiones | B77: 0.05 | D77: =AVERAGE(C77:C78)*5% ->  | E77: 0.05 | G77: =AVERAGE(F77:F78)*5% -> 
A78: b. Relaciones humanas, trabajo en equipo
A80: NOTA DEFINITIVA | D80: =D64+D70+D73+D77 ->  | G80: =G64+G70+G73+G77 ->  | H80: =AVERAGE(D80:G80) -> 
A83: 1. SABER 45% | B83: Dr. León | E83: Dr. Benavides
A84: a. Casos Clínicos | B84: 0.25 | E84: 0.25 | G84: =AVERAGE(F84:F88)*25% -> 
A85: b. Seminarios
A86: c. Revisiones de tema
A87: d. Club de Revistas
A88: e. Rondas - Juntas
A90: f. Examen Escrito en la última semana de rotación | B90: 0.25 | E90: 0.25 | G90: =F90*25% -> 0
A92: 2. HACER 45%
A93: a. Manejo de la historia clínica | B93: 0.45 | E93: 0.45 | G93: =AVERAGE(F93:F95)*45% -> 
A94: b. Destrezas y manualidades especificas
A95: c. Criterio clínico y terapéutico
A96: 3. EJECUCIÓN DEL DESEMPEÑO 10%
A97: a. Capacidad para tomar decisiones | B97: 0.05 | E97: 0.05 | G97: =AVERAGE(F97:F98)*5% -> 
A98: b. Relaciones humanas, trabajo en equipo
A100: NOTA DEFINITIVA | G100: =G84+G90+G93+G97 ->  | H100: =AVERAGE(D100:G100) -> 
A103: 1. SABER 45% | B103: Armida | E103: Dr.Marin
A104: a. Casos Clínicos | B104: 0.25 | D104: =AVERAGE(C104:C108)*25% ->  | E104: 0.25 | G104: =AVERAGE(F104:F108)*25% -> 
A105: b. Seminarios
A106: c. Revisiones de tema
A107: d. Club de Revistas
A108: e. Rondas - Juntas
A110: f. Examen Escrito en la última semana de rotación | B110: 0.25 | D110: =C110*25% -> 0 | E110: 0.25 | G110: =F110*25% -> 0
A112: 2. HACER 45%
A113: a. Manejo de la historia clínica | B113: 0.45 | D113: =AVERAGE(C113:C115)*45% ->  | E113: 0.45 | G113: =AVERAGE(F113:F115)*45% -> 
A114: b. Destrezas y manualidades especificas
A115: c. Criterio clínico y terapéutico
A116: 3. EJECUCIÓN DEL DESEMPEÑO 10%
A117: a. Capacidad para tomar decisiones | B117: 0.05 | D117: =AVERAGE(C117:C118)*5% ->  | E117: 0.05 | G117: =AVERAGE(F117:F118)*5% -> 
A118: b. Relaciones humanas, trabajo en equipo
A120: NOTA DEFINITIVA | D120: =D104+D110+D113+D117 ->  | G120: =G104+G110+G113+G117 ->  | H120: =AVERAGE(D120:G120) -> 
A121: NOTA DEFINITIVA | D121: =D105+D111+D114+D118 -> 0 | G121: =G105+G111+G114+G118 -> 0 | H121: =AVERAGE(D121:G121) -> 0

Sheet Notas10 (hidden)
A3: 1. SABER 45% | B3: Dra. Daza | E3: Dra. Rubiano
A4: a. Casos Clínicos | B4: 0.25 | D4: =AVERAGE(C4:C8)*25% ->  | E4: 0.25 | G4: =AVERAGE(F4:F8)*25% -> 
A5: b. Seminarios
A6: c. Revisiones de tema
A7: d. Club de Revistas
A8: e. Rondas - Juntas
A10: f. Examen Escrito en la última semana de rotación | B10: 0.25 | D10: =C10*25% -> 0 | E10: 0.25 | G10: =F10*25% -> 0
A12: 2. HACER 45%
A13: a. Manejo de la historia clínica | B13: 0.45 | D13: =AVERAGE(C13:C15)*45% ->  | E13: 0.45 | G13: =AVERAGE(F13:F15)*45% -> 
A14: b. Destrezas y manualidades especificas
A15: c. Criterio clínico y terapéutico
A16: 3. EJECUCIÓN DEL DESEMPEÑO 10%
A17: a. Capacidad para tomar decisiones | B17: 0.05 | D17: =AVERAGE(C17:C18)*5% ->  | E17: 0.05 | G17: =AVERAGE(F17:F18)*5% -> 
A18: b. Relaciones humanas, trabajo en equipo
A20: NOTA DEFINITIVA | D20: =D4+D10+D13+D17 ->  | G20: =G4+G10+G13+G17 ->  | H20: =AVERAGE(D20:G20) -> 
A23: 1. SABER 45% | B23: Dra. Bedoya | E23: Dr. Gaviria
A24: a. Casos Clínicos | B24: 0.25 | D24: =AVERAGE(C24:C28)*25% ->  | E24: 0.25 | G24: =AVERAGE(F24:F28)*25% -> 
A25: b. Seminarios
A26: c. Revisiones de tema
A27: d. Club de Revistas
A28: e. Rondas - Juntas
A30: f. Examen Escrito en la última semana de rotación | B30: 0.25 | D30: =C30*25% -> 0 | E30: 0.25 | G30: =F30*25% -> 0
A32: 2. HACER 45%
A33: a. Manejo de la historia clínica | B33: 0.45 | D33: =AVERAGE(C33:C35)*45% ->  | E33: 0.45 | G33: =AVERAGE(F33:F35)*45% -> 
A34: b. Destrezas y manualidades especificas
A35: c. Criterio clínico y terapéutico
A36: 3. EJECUCIÓN DEL DESEMPEÑO 10%
A37: a. Capacidad para tomar decisiones | B37: 0.05 | D37: =AVERAGE(C37:C38)*5% ->  | E37: 0.05 | G37: =AVERAGE(F37:F38)*5% -> 
A38: b. Relaciones humanas, trabajo en equipo
A40: NOTA DEFINITIVA | D40: =D24+D30+D33+D37 ->  | G40: =G24+G30+G33+G37 ->  | H40: =AVERAGE(D40:G40) -> 
A43: 1. SABER 45% | B43: Dra. Olaya | E43: Dra. Galeano
A44: a. Casos Clínicos | B44: 0.25 | D44: =AVERAGE(C44:C48)*25% ->  | E44: 0.25 | G44: =AVERAGE(F44:F48)*25% -> 
A45: b. Seminarios
A46: c. Revisiones de tema
A47: d. Club de Revistas
A48: e. Rondas - Juntas
A50: f. Examen Escrito en la última semana de rotación | B50: 0.25 | D50: =C50*25% -> 0 | E50: 0.25 | G50: =F50*25% -> 0
A52: 2. HACER 45%
A53: a. Manejo de la historia clínica | B53: 0.45 | D53: =AVERAGE(C53:C55)*45% ->  | E53: 0.45 | G53: =AVERAGE(F53:F55)*45% -> 
A54: b. Destrezas y manualidades especificas
A55: c. Criterio clínico y terapéutico
A56: 3. EJECUCIÓN DEL DESEMPEÑO 10%
A57: a. Capacidad para tomar decisiones | B57: 0.05 | D57: =AVERAGE(C57:C58)*5% ->  | E57: 0.05 | G57: =AVERAGE(F57:F58)*5% -> 
A58: b. Relaciones humanas, trabajo en equipo
A60: NOTA DEFINITIVA | D60: =D44+D50+D53+D57 ->  | G60: =G44+G50+G53+G57 ->  | H60: =AVERAGE(D60:G60) -> 
A63: 1. SABER 45% | B63: Dr. Moya | E63: Dra. Henao
A64: a. Casos Clínicos | B64: 0.25 | D64: =AVERAGE(C64:C68)*25% ->  | E64: 0.25 | G64: =AVERAGE(F64:F68)*25% -> 
A65: b. Seminarios
A66: c. Revisiones de tema
A67: d. Club de Revistas
A68: e. Rondas - Juntas
A70: f. Examen Escrito en la última semana de rotación | B70: 0.25 | D70: =C70*25% -> 0 | E70: 0.25 | G70: =F70*25% -> 0
A72: 2. HACER 45%
A73: a. Manejo de la historia clínica | B73: 0.45 | D73: =AVERAGE(C73:C75)*45% ->  | E73: 0.45 | G73: =AVERAGE(F73:F75)*45% -> 
A74: b. Destrezas y manualidades especificas
A75: c. Criterio clínico y terapéutico
A76: 3. EJECUCIÓN DEL DESEMPEÑO 10%
A77: a. Capacidad para tomar decisiones | B77: 0.05 | D77: =AVERAGE(C77:C78)*5% ->  | E77: 0.05 | G77: =AVERAGE(F77:F78)*5% -> 
A78: b. Relaciones humanas, trabajo en equipo
A80: NOTA DEFINITIVA | D80: =D64+D70+D73+D77 ->  | G80: =G64+G70+G73+G77 ->  | H80: =AVERAGE(D80:G80) -> 
A83: 1. SABER 45% | B83: Dr. León | E83: Dr. Benavides
A84: a. Casos Clínicos | B84: 0.25 | E84: 0.25 | G84: =AVERAGE(F84:F88)*25% -> 
A85: b. Seminarios
A86: c. Revisiones de tema
A87: d. Club de Revistas
A88: e. Rondas - Juntas
A90: f. Examen Escrito en la última semana de rotación | B90: 0.25 | E90: 0.25 | G90: =F90*25% -> 0
A92: 2. HACER 45%
A93: a. Manejo de la historia clínica | B93: 0.45 | E93: 0.45 | G93: =AVERAGE(F93:F95)*45% -> 
A94: b. Destrezas y manualidades especificas
A95: c. Criterio clínico y terapéutico
A96: 3. EJECUCIÓN DEL DESEMPEÑO 10%
A97: a. Capacidad para tomar decisiones | B97: 0.05 | E97: 0.05 | G97: =AVERAGE(F97:F98)*5% -> 
A98: b. Relaciones humanas, trabajo en equipo
A100: NOTA DEFINITIVA | G100: =G84+G90+G93+G97 ->  | H100: =AVERAGE(D100:G100) -> 
A103: 1. SABER 45% | B103: Armida | E103: Dr.Marin
A104: a. Casos Clínicos | B104: 0.25 | D104: =AVERAGE(C104:C108)*25% ->  | E104: 0.25 | G104: =AVERAGE(F104:F108)*25% -> 
A105: b. Seminarios
A106: c. Revisiones de tema
A107: d. Club de Revistas
A108: e. Rondas - Juntas
A110: f. Examen Escrito en la última semana de rotación | B110: 0.25 | D110: =C110*25% -> 0 | E110: 0.25 | G110: =F110*25% -> 0
A112: 2. HACER 45%
A113: a. Manejo de la historia clínica | B113: 0.45 | D113: =AVERAGE(C113:C115)*45% ->  | E113: 0.45 | G113: =AVERAGE(F113:F115)*45% -> 
A114: b. Destrezas y manualidades especificas
A115: c. Criterio clínico y terapéutico
A116: 3. EJECUCIÓN DEL DESEMPEÑO 10%
A117: a. Capacidad para tomar decisiones | B117: 0.05 | D117: =AVERAGE(C117:C118)*5% ->  | E117: 0.05 | G117: =AVERAGE(F117:F118)*5% -> 
A118: b. Relaciones humanas, trabajo en equipo
A120: NOTA DEFINITIVA | D120: =D104+D110+D113+D117 ->  | G120: =G104+G110+G113+G117 ->  | H120: =AVERAGE(D120:G120) -> 
A121: NOTA DEFINITIVA | D121: =D105+D111+D114+D118 -> 0 | G121: =G105+G111+G114+G118 -> 0 | H121: =AVERAGE(D121:G121) -> 0

Sheet Notas11 (hidden)
A3: 1. SABER 45% | B3: Dra. Daza | E3: Dra. Rubiano
A4: a. Casos Clínicos | B4: 0.25 | D4: =AVERAGE(C4:C8)*25% ->  | E4: 0.25 | G4: =AVERAGE(F4:F8)*25% -> 
A5: b. Seminarios
A6: c. Revisiones de tema
A7: d. Club de Revistas
A8: e. Rondas - Juntas
A10: f. Examen Escrito en la última semana de rotación | B10: 0.25 | D10: =C10*25% -> 0 | E10: 0.25 | G10: =F10*25% -> 0
A12: 2. HACER 45%
A13: a. Manejo de la historia clínica | B13: 0.45 | D13: =AVERAGE(C13:C15)*45% ->  | E13: 0.45 | G13: =AVERAGE(F13:F15)*45% -> 
A14: b. Destrezas y manualidades especificas
A15: c. Criterio clínico y terapéutico
A16: 3. EJECUCIÓN DEL DESEMPEÑO 10%
A17: a. Capacidad para tomar decisiones | B17: 0.05 | D17: =AVERAGE(C17:C18)*5% ->  | E17: 0.05 | G17: =AVERAGE(F17:F18)*5% -> 
A18: b. Relaciones humanas, trabajo en equipo
A20: NOTA DEFINITIVA | D20: =D4+D10+D13+D17 ->  | G20: =G4+G10+G13+G17 ->  | H20: =AVERAGE(D20:G20) -> 
A23: 1. SABER 45% | B23: Dra. Bedoya | E23: Dr. Gaviria
A24: a. Casos Clínicos | B24: 0.25 | D24: =AVERAGE(C24:C28)*25% ->  | E24: 0.25 | G24: =AVERAGE(F24:F28)*25% -> 
A25: b. Seminarios
A26: c. Revisiones de tema
A27: d. Club de Revistas
A28: e. Rondas - Juntas
A30: f. Examen Escrito en la última semana de rotación | B30: 0.25 | D30: =C30*25% -> 0 | E30: 0.25 | G30: =F30*25% -> 0
A32: 2. HACER 45%
A33: a. Manejo de la historia clínica | B33: 0.45 | D33: =AVERAGE(C33:C35)*45% ->  | E33: 0.45 | G33: =AVERAGE(F33:F35)*45% -> 
A34: b. Destrezas y manualidades especificas
A35: c. Criterio clínico y terapéutico
A36: 3. EJECUCIÓN DEL DESEMPEÑO 10%
A37: a. Capacidad para tomar decisiones | B37: 0.05 | D37: =AVERAGE(C37:C38)*5% ->  | E37: 0.05 | G37: =AVERAGE(F37:F38)*5% -> 
A38: b. Relaciones humanas, trabajo en equipo
A40: NOTA DEFINITIVA | D40: =D24+D30+D33+D37 ->  | G40: =G24+G30+G33+G37 ->  | H40: =AVERAGE(D40:G40) -> 
A43: 1. SABER 45% | B43: Dra. Olaya | E43: Dra. Galeano
A44: a. Casos Clínicos | B44: 0.25 | D44: =AVERAGE(C44:C48)*25% ->  | E44: 0.25 | G44: =AVERAGE(F44:F48)*25% -> 
A45: b. Seminarios
A46: c. Revisiones de tema
A47: d. Club de Revistas
A48: e. Rondas - Juntas
A50: f. Examen Escrito en la última semana de rotación | B50: 0.25 | D50: =C50*25% -> 0 | E50: 0.25 | G50: =F50*25% -> 0
A52: 2. HACER 45%
A53: a. Manejo de la historia clínica | B53: 0.45 | D53: =AVERAGE(C53:C55)*45% ->  | E53: 0.45 | G53: =AVERAGE(F53:F55)*45% -> 
A54: b. Destrezas y manualidades especificas
A55: c. Criterio clínico y terapéutico
A56: 3. EJECUCIÓN DEL DESEMPEÑO 10%
A57: a. Capacidad para tomar decisiones | B57: 0.05 | D57: =AVERAGE(C57:C58)*5% ->  | E57: 0.05 | G57: =AVERAGE(F57:F58)*5% -> 
A58: b. Relaciones humanas, trabajo en equipo
A60: NOTA DEFINITIVA | D60: =D44+D50+D53+D57 ->  | G60: =G44+G50+G53+G57 ->  | H60: =AVERAGE(D60:G60) -> 
A63: 1. SABER 45% | B63: Dr. Moya | E63: Dra. Henao
A64: a. Casos Clínicos | B64: 0.25 | D64: =AVERAGE(C64:C68)*25% ->  | E64: 0.25 | G64: =AVERAGE(F64:F68)*25% -> 
A65: b. Seminarios
A66: c. Revisiones de tema
A67: d. Club de Revistas
A68: e. Rondas - Juntas
A70: f. Examen Escrito en la última semana de rotación | B70: 0.25 | D70: =C70*25% -> 0 | E70: 0.25 | G70: =F70*25% -> 0
A72: 2. HACER 45%
A73: a. Manejo de la historia clínica | B73: 0.45 | D73: =AVERAGE(C73:C75)*45% ->  | E73: 0.45 | G73: =AVERAGE(F73:F75)*45% -> 
A74: b. Destrezas y manualidades especificas
A75: c. Criterio clínico y terapéutico
A76: 3. EJECUCIÓN DEL DESEMPEÑO 10%
A77: a. Capacidad para tomar decisiones | B77: 0.05 | D77: =AVERAGE(C77:C78)*5% ->  | E77: 0.05 | G77: =AVERAGE(F77:F78)*5% -> 
A78: b. Relaciones humanas, trabajo en equipo
A80: NOTA DEFINITIVA | D80: =D64+D70+D73+D77 ->  | G80: =G64+G70+G73+G77 ->  | H80: =AVERAGE(D80:G80) -> 
A83: 1. SABER 45% | B83: Dr. León | E83: Dr. Benavides
A84: a. Casos Clínicos | B84: 0.25 | E84: 0.25 | G84: =AVERAGE(F84:F88)*25% -> 
A85: b. Seminarios
A86: c. Revisiones de tema
A87: d. Club de Revistas
A88: e. Rondas - Juntas
A90: f. Examen Escrito en la última semana de rotación | B90: 0.25 | E90: 0.25 | G90: =F90*25% -> 0
A92: 2. HACER 45%
A93: a. Manejo de la historia clínica | B93: 0.45 | E93: 0.45 | G93: =AVERAGE(F93:F95)*45% -> 
A94: b. Destrezas y manualidades especificas
A95: c. Criterio clínico y terapéutico
A96: 3. EJECUCIÓN DEL DESEMPEÑO 10%
A97: a. Capacidad para tomar decisiones | B97: 0.05 | E97: 0.05 | G97: =AVERAGE(F97:F98)*5% -> 
A98: b. Relaciones humanas, trabajo en equipo
A100: NOTA DEFINITIVA | G100: =G84+G90+G93+G97 ->  | H100: =AVERAGE(D100:G100) -> 
A103: 1. SABER 45% | B103: Armida | E103: Dr.Marin
A104: a. Casos Clínicos | B104: 0.25 | D104: =AVERAGE(C104:C108)*25% ->  | E104: 0.25 | G104: =AVERAGE(F104:F108)*25% -> 
A105: b. Seminarios
A106: c. Revisiones de tema
A107: d. Club de Revistas
A108: e. Rondas - Juntas
A110: f. Examen Escrito en la última semana de rotación | B110: 0.25 | D110: =C110*25% -> 0 | E110: 0.25 | G110: =F110*25% -> 0
A112: 2. HACER 45%
A113: a. Manejo de la historia clínica | B113: 0.45 | D113: =AVERAGE(C113:C115)*45% ->  | E113: 0.45 | G113: =AVERAGE(F113:F115)*45% -> 
A114: b. Destrezas y manualidades especificas
A115: c. Criterio clínico y terapéutico
A116: 3. EJECUCIÓN DEL DESEMPEÑO 10%
A117: a. Capacidad para tomar decisiones | B117: 0.05 | D117: =AVERAGE(C117:C118)*5% ->  | E117: 0.05 | G117: =AVERAGE(F117:F118)*5% -> 
A118: b. Relaciones humanas, trabajo en equipo
A120: NOTA DEFINITIVA | D120: =D104+D110+D113+D117 ->  | G120: =G104+G110+G113+G117 ->  | H120: =AVERAGE(D120:G120) -> 
A121: NOTA DEFINITIVA | D121: =D105+D111+D114+D118 -> 0 | G121: =G105+G111+G114+G118 -> 0 | H121: =AVERAGE(D121:G121) -> 0

Sheet Notas39 (hidden)
A3: 1. SABER 45% | B3: Dra. Daza | E3: Dra. Rubiano
A4: a. Casos Clínicos | B4: 0.25 | D4: =AVERAGE(C4:C8)*25% ->  | E4: 0.25 | G4: =AVERAGE(F4:F8)*25% -> 
A5: b. Seminarios
A6: c. Revisiones de tema
A7: d. Club de Revistas
A8: e. Rondas - Juntas
A10: f. Examen Escrito en la última semana de rotación | B10: 0.25 | D10: =C10*25% -> 0 | E10: 0.25 | G10: =F10*25% -> 0
A12: 2. HACER 45%
A13: a. Manejo de la historia clínica | B13: 0.45 | D13: =AVERAGE(C13:C15)*45% ->  | E13: 0.45 | G13: =AVERAGE(F13:F15)*45% -> 
A14: b. Destrezas y manualidades especificas
A15: c. Criterio clínico y terapéutico
A16: 3. EJECUCIÓN DEL DESEMPEÑO 10%
A17: a. Capacidad para tomar decisiones | B17: 0.05 | D17: =AVERAGE(C17:C18)*5% ->  | E17: 0.05 | G17: =AVERAGE(F17:F18)*5% -> 
A18: b. Relaciones humanas, trabajo en equipo
A20: NOTA DEFINITIVA | D20: =D4+D10+D13+D17 ->  | G20: =G4+G10+G13+G17 ->  | H20: =AVERAGE(D20:G20) -> 
A23: 1. SABER 45% | B23: Dra. Bedoya | E23: Dr. Gaviria
A24: a. Casos Clínicos | B24: 0.25 | D24: =AVERAGE(C24:C28)*25% -> 0.95 | E24: 0.25 | F24: 3.8 | G24: =AVERAGE(F24:F28)*25% -> 0.97
A25: b. Seminarios | F25: 3.8
A26: c. Revisiones de tema | C26: 3.8 | F26: 3.8
A27: d. Club de Revistas | F27: 4
A28: e. Rondas - Juntas | F28: 4
A30: f. Examen Escrito en la última semana de rotación | B30: 0.25 | C30: 2.6 | D30: =C30*25% -> 0.65 | E30: 0.25 | F30: 4 | G30: =F30*25% -> 1
A32: 2. HACER 45%
A33: a. Manejo de la historia clínica | B33: 0.45 | C33: 4 | D33: =AVERAGE(C33:C35)*45% -> 1.8 | E33: 0.45 | F33: 4 | G33: =AVERAGE(F33:F35)*45% -> 1.8
A34: b. Destrezas y manualidades especificas | F34: 4
A35: c. Criterio clínico y terapéutico | F35: 4
A36: 3. EJECUCIÓN DEL DESEMPEÑO 10%
A37: a. Capacidad para tomar decisiones | B37: 0.05 | C37: 3.5 | D37: =AVERAGE(C37:C38)*5% -> 0.175 | E37: 0.05 | F37: 5 | G37: =AVERAGE(F37:F38)*5% -> 0.25
A38: b. Relaciones humanas, trabajo en equipo | F38: 5
A40: NOTA DEFINITIVA | D40: =D24+D30+D33+D37 -> 3.575 | G40: =G24+G30+G33+G37 -> 4.02 | H40: =AVERAGE(D40:G40) -> 3.7975
A43: 1. SABER 45% | B43: Dra. Olaya | E43: Dr. Marín
A44: a. Casos Clínicos | B44: 0.25 | D44: =AVERAGE(C44:C48)*25% ->  | E44: 0.25 | G44: =AVERAGE(F44:F48)*25% -> 
A45: b. Seminarios
A46: c. Revisiones de tema
A47: d. Club de Revistas
A48: e. Rondas - Juntas
A50: f. Examen Escrito en la última semana de rotación | B50: 0.25 | D50: =C50*25% -> 0 | E50: 0.25 | G50: =F50*25% -> 0
A52: 2. HACER 45%
A53: a. Manejo de la historia clínica | B53: 0.45 | D53: =AVERAGE(C53:C55)*45% ->  | E53: 0.45 | G53: =AVERAGE(F53:F55)*45% -> 
A54: b. Destrezas y manualidades especificas
A55: c. Criterio clínico y terapéutico
A56: 3. EJECUCIÓN DEL DESEMPEÑO 10%
A57: a. Capacidad para tomar decisiones | B57: 0.05 | D57: =AVERAGE(C57:C58)*5% ->  | E57: 0.05 | G57: =AVERAGE(F57:F58)*5% -> 
A58: b. Relaciones humanas, trabajo en equipo
A60: NOTA DEFINITIVA | D60: =D44+D50+D53+D57 ->  | G60: =G44+G50+G53+G57 ->  | H60: =AVERAGE(D60:G60) -> 
A63: 1. SABER 45% | B63: Dr. Moya | E63: Dra. Henao - Hicapié
A64: a. Casos Clínicos | B64: 0.25 | C64: 2.8 | D64: =AVERAGE(C64:C68)*25% -> 0.68 | E64: 0.25 | G64: =AVERAGE(F64:F68)*25% -> 0.75
A65: b. Seminarios | C65: 2.7
A66: c. Revisiones de tema | C66: 2.6 | F66: 3
A67: d. Club de Revistas | C67: 2.7
A68: e. Rondas - Juntas | C68: 2.8
A70: f. Examen Escrito en la última semana de rotación | B70: 0.25 | C70: 2.75 | D70: =C70*25% -> 0.6875 | E70: 0.25 | F70: 4.4 | G70: =F70*25% -> 1.1
A72: 2. HACER 45%
A73: a. Manejo de la historia clínica | B73: 0.45 | C73: 3.2 | D73: =AVERAGE(C73:C75)*45% -> 1.26 | E73: 0.45 | G73: =AVERAGE(F73:F75)*45% -> 1.8
A74: b. Destrezas y manualidades especificas | C74: 2.9
A75: c. Criterio clínico y terapéutico | C75: 2.8 | F75: 4
A76: 3. EJECUCIÓN DEL DESEMPEÑO 10%
A77: a. Capacidad para tomar decisiones | B77: 0.05 | C77: 2.7 | D77: =AVERAGE(C77:C78)*5% -> 0.1575 | E77: 0.05 | G77: =AVERAGE(F77:F78)*5% -> 0.25
A78: b. Relaciones humanas, trabajo en equipo | C78: 3.6 | F78: 5
A80: NOTA DEFINITIVA | D80: =D64+D70+D73+D77 -> 2.785 | G80: =G64+G70+G73+G77 -> 3.9 | H80: =AVERAGE(D80:G80) -> 3.3425
A83: 1. SABER 45% | B83: Dr. León | E83: Dr. Benavides
A84: a. Casos Clínicos | B84: 0.25 | D84: =AVERAGE(C84:C88)*25% -> 0.75 | E84: 0.25 | F84: 4 | G84: =AVERAGE(F84:F88)*25% -> 1
A85: b. Seminarios | F85: 4
A86: c. Revisiones de tema | C86: 3 | F86: 4
A87: d. Club de Revistas | F87: 4
A88: e. Rondas - Juntas | C88: 3 | F88: 4
A90: f. Examen Escrito en la última semana de rotación | B90: 0.25 | C90: 2.5 | D90: =C90*25% -> 0.625 | E90: 0.25 | F90: 3 | G90: =F90*25% -> 0.75
A92: 2. HACER 45%
A93: a. Manejo de la historia clínica | B93: 0.45 | C93: 3 | D93: =AVERAGE(C93:C95)*45% -> 1.35 | E93: 0.45 | F93: 4 | G93: =AVERAGE(F93:F95)*45% -> 1.8
A94: b. Destrezas y manualidades especificas | F94: 4
A95: c. Criterio clínico y terapéutico | C95: 3 | F95: 4
A96: 3. EJECUCIÓN DEL DESEMPEÑO 10%
A97: a. Capacidad para tomar decisiones | B97: 0.05 | C97: 2.5 | D97: =AVERAGE(C97:C98)*5% -> 0.1875 | E97: 0.05 | F97: 4 | G97: =AVERAGE(F97:F98)*5% -> 0.2
A98: b. Relaciones humanas, trabajo en equipo | C98: 5 | F98: 4
A100: NOTA DEFINITIVA | D100: =D84+D90+D93+D97 -> 2.9125 | G100: =G84+G90+G93+G97 -> 3.75 | H100: =AVERAGE(D100:G100) -> 3.33125
A103: 1. SABER 45% | B103: Armida | E103: Dra. Galeano
A104: a. Casos Clínicos | B104: 0.25 | D104: =AVERAGE(C104:C108)*25% -> 1.15 | E104: 0.25 | G104: =AVERAGE(F104:F108)*25% -> 1.05
A105: b. Seminarios | F105: 4.2
A106: c. Revisiones de tema | C106: 4.6 | F106: 4.2
A107: d. Club de Revistas
A108: e. Rondas - Juntas
A110: f. Examen Escrito en la última semana de rotación | B110: 0.25 | C110: 4.85 | D110: =C110*25% -> 1.2125 | E110: 0.25 | F110: 4.6 | G110: =F110*25% -> 1.15
A112: 2. HACER 45%
A113: a. Manejo de la historia clínica | B113: 0.45 | C113: 4.2 | D113: =AVERAGE(C113:C115)*45% -> 2.07 | E113: 0.45 | F113: 4 | G113: =AVERAGE(F113:F115)*45% -> 1.8
A114: b. Destrezas y manualidades especificas | C114: 5 | F114: 4
A115: c. Criterio clínico y terapéutico | F115: 4
A116: 3. EJECUCIÓN DEL DESEMPEÑO 10%
A117: a. Capacidad para tomar decisiones | B117: 0.05 | C117: 5 | D117: =AVERAGE(C117:C118)*5% -> 0.25 | E117: 0.05 | F117: 4 | G117: =AVERAGE(F117:F118)*5% -> 0.225
A118: b. Relaciones humanas, trabajo en equipo | C118: 5 | F118: 5
A120: NOTA DEFINITIVA | D120: =D104+D110+D113+D117 -> 4.6825 | G120: =G104+G110+G113+G117 -> 4.225 | H120: =AVERAGE(D120:G120) -> 4.45375

Sheet Notas40 (hidden)
A2: 1. SABER 45% | B2: Dra. Daza | E2: Dra. Rubiano
A3: a. Casos Clínicos | B3: 0.25 | D3: =AVERAGE(C3:C7)*25% ->  | E3: 0.25 | G3: =AVERAGE(F3:F7)*25% -> 
A4: b. Seminarios
A5: c. Revisiones de tema
A6: d. Club de Revistas
A7: e. Rondas - Juntas
A9: f. Examen Escrito en la última semana de rotación | B9: 0.25 | D9: =C9*25% -> 0 | E9: 0.25 | G9: =F9*25% -> 0
A11: 2. HACER 45%
A12: a. Manejo de la historia clínica | B12: 0.45 | D12: =AVERAGE(C12:C14)*45% ->  | E12: 0.45 | G12: =AVERAGE(F12:F14)*45% -> 
A13: b. Destrezas y manualidades especificas
A14: c. Criterio clínico y terapéutico
A15: 3. EJECUCIÓN DEL DESEMPEÑO 10%
A16: a. Capacidad para tomar decisiones | B16: 0.05 | D16: =AVERAGE(C16:C17)*5% ->  | E16: 0.05 | G16: =AVERAGE(F16:F17)*5% -> 
A17: b. Relaciones humanas, trabajo en equipo
A19: NOTA DEFINITIVA | D19: =D3+D9+D12+D16 ->  | G19: =G3+G9+G12+G16 ->  | H19: =AVERAGE(D19:G19) -> 
A22: 1. SABER 45% | B22: Dra. Bedoya | E22: Dr. Gaviria
A23: a. Casos Clínicos | B23: 0.25 | D23: =AVERAGE(C23:C27)*25% -> 1.25 | E23: 0.25 | F23: 4.2 | G23: =AVERAGE(F23:F27)*25% -> 1.05
A24: b. Seminarios | F24: 4.2
A25: c. Revisiones de tema | C25: 5 | F25: 4.2
A26: d. Club de Revistas | F26: 4.2
A27: e. Rondas - Juntas | F27: 4.2
A29: f. Examen Escrito en la última semana de rotación | B29: 0.25 | C29: 5 | D29: =C29*25% -> 1.25 | E29: 0.25 | F29: 4 | G29: =F29*25% -> 1
A31: 2. HACER 45%
A32: a. Manejo de la historia clínica | B32: 0.45 | C32: 4 | D32: =AVERAGE(C32:C34)*45% -> 1.8 | E32: 0.45 | F32: 4 | G32: =AVERAGE(F32:F34)*45% -> 1.8
A33: b. Destrezas y manualidades especificas | F33: 4
A34: c. Criterio clínico y terapéutico | F34: 4
A35: 3. EJECUCIÓN DEL DESEMPEÑO 10%
A36: a. Capacidad para tomar decisiones | B36: 0.05 | C36: 3.5 | D36: =AVERAGE(C36:C37)*5% -> 0.175 | E36: 0.05 | F36: 5 | G36: =AVERAGE(F36:F37)*5% -> 0.25
A37: b. Relaciones humanas, trabajo en equipo | F37: 5
A39: NOTA DEFINITIVA | D39: =D23+D29+D32+D36 -> 4.475 | G39: =G23+G29+G32+G36 -> 4.1 | H39: =AVERAGE(D39:G39) -> 4.2875
A42: 1. SABER 45% | B42: Dra. Olaya | E42: Dr. Marín
A43: a. Casos Clínicos | B43: 0.25 | D43: =AVERAGE(C43:C47)*25% ->  | E43: 0.25 | G43: =AVERAGE(F43:F47)*25% -> 
A44: b. Seminarios
A45: c. Revisiones de tema
A46: d. Club de Revistas
A47: e. Rondas - Juntas
A49: f. Examen Escrito en la última semana de rotación | B49: 0.25 | D49: =C49*25% -> 0 | E49: 0.25 | G49: =F49*25% -> 0
A51: 2. HACER 45%
A52: a. Manejo de la historia clínica | B52: 0.45 | D52: =AVERAGE(C52:C54)*45% ->  | E52: 0.45 | G52: =AVERAGE(F52:F54)*45% -> 
A53: b. Destrezas y manualidades especificas
A54: c. Criterio clínico y terapéutico
A55: 3. EJECUCIÓN DEL DESEMPEÑO 10%
A56: a. Capacidad para tomar decisiones | B56: 0.05 | D56: =AVERAGE(C56:C57)*5% ->  | E56: 0.05 | G56: =AVERAGE(F56:F57)*5% -> 
A57: b. Relaciones humanas, trabajo en equipo
A59: NOTA DEFINITIVA | D59: =D43+D49+D52+D56 ->  | G59: =G43+G49+G52+G56 ->  | H59: =AVERAGE(D59:G59) -> 
A62: 1. SABER 45% | B62: Dr. Moya | E62: Dra. Henao - Hicapié
A63: a. Casos Clínicos | B63: 0.25 | C63: 3.6 | D63: =AVERAGE(C63:C67)*25% -> 0.89 | E63: 0.25 | G63: =AVERAGE(F63:F67)*25% -> 1.175
A64: b. Seminarios | C64: 3.5
A65: c. Revisiones de tema | C65: 3.7 | F65: 4.7
A66: d. Club de Revistas | C66: 3.6
A67: e. Rondas - Juntas | C67: 3.4
A69: f. Examen Escrito en la última semana de rotación | B69: 0.25 | C69: 3.27 | D69: =C69*25% -> 0.8175 | E69: 0.25 | F69: 3 | G69: =F69*25% -> 0.75
A71: 2. HACER 45%
A72: a. Manejo de la historia clínica | B72: 0.45 | C72: 4 | D72: =AVERAGE(C72:C74)*45% -> 1.68 | E72: 0.45 | G72: =AVERAGE(F72:F74)*45% -> 1.71
A73: b. Destrezas y manualidades especificas | C73: 3.7
A74: c. Criterio clínico y terapéutico | C74: 3.5 | F74: 3.8
A75: 3. EJECUCIÓN DEL DESEMPEÑO 10%
A76: a. Capacidad para tomar decisiones | B76: 0.05 | C76: 3.4 | D76: =AVERAGE(C76:C77)*5% -> 0.185 | E76: 0.05 | G76: =AVERAGE(F76:F77)*5% -> 0.25
A77: b. Relaciones humanas, trabajo en equipo | C77: 4 | F77: 5
A79: NOTA DEFINITIVA | D79: =D63+D69+D72+D76 -> 3.5725 | G79: =G63+G69+G72+G76 -> 3.885 | H79: =AVERAGE(D79:G79) -> 3.72875
A82: 1. SABER 45% | B82: Dr. León | E82: Dr. Benavides
A83: a. Casos Clínicos | B83: 0.25 | D83: =AVERAGE(C83:C87)*25% -> 0.825 | E83: 0.25 | F83: 4 | G83: =AVERAGE(F83:F87)*25% -> 1
A84: b. Seminarios | F84: 4
A85: c. Revisiones de tema | C85: 3.3 | F85: 4
A86: d. Club de Revistas | F86: 4
A87: e. Rondas - Juntas | C87: 3.3 | F87: 4
A89: f. Examen Escrito en la última semana de rotación | B89: 0.25 | C89: 2.8 | D89: =C89*25% -> 0.7 | E89: 0.25 | F89: 3.5 | G89: =F89*25% -> 0.875
A91: 2. HACER 45%
A92: a. Manejo de la historia clínica | B92: 0.45 | C92: 3.3 | D92: =AVERAGE(C92:C94)*45% -> 1.485 | E92: 0.45 | F92: 4 | G92: =AVERAGE(F92:F94)*45% -> 1.8
A93: b. Destrezas y manualidades especificas | F93: 4
A94: c. Criterio clínico y terapéutico | C94: 3.3 | F94: 4
A95: 3. EJECUCIÓN DEL DESEMPEÑO 10%
A96: a. Capacidad para tomar decisiones | B96: 0.05 | C96: 3.3 | D96: =AVERAGE(C96:C97)*5% -> 0.2075 | E96: 0.05 | F96: 4 | G96: =AVERAGE(F96:F97)*5% -> 0.2
A97: b. Relaciones humanas, trabajo en equipo | C97: 5 | F97: 4
A99: NOTA DEFINITIVA | D99: =D83+D89+D92+D96 -> 3.2175 | G99: =G83+G89+G92+G96 -> 3.875 | H99: =AVERAGE(D99:G99) -> 3.54625
A102: 1. SABER 45% | B102: Armida | E102: Dra. Galeano
A103: a. Casos Clínicos | B103: 0.25 | D103: =AVERAGE(C103:C107)*25% -> 1.15 | E103: 0.25 | G103: =AVERAGE(F103:F107)*25% -> 1
A104: b. Seminarios | F104: 4
A105: c. Revisiones de tema | C105: 4.6 | F105: 4
A106: d. Club de Revistas
A107: e. Rondas - Juntas
A109: f. Examen Escrito en la última semana de rotación | B109: 0.25 | C109: 4.85 | D109: =C109*25% -> 1.2125 | E109: 0.25 | F109: 4 | G109: =F109*25% -> 1
A111: 2. HACER 45%
A112: a. Manejo de la historia clínica | B112: 0.45 | C112: 4.2 | D112: =AVERAGE(C112:C114)*45% -> 2.07 | E112: 0.45 | F112: 4 | G112: =AVERAGE(F112:F114)*45% -> 1.8
A113: b. Destrezas y manualidades especificas | C113: 5 | F113: 4
A114: c. Criterio clínico y terapéutico | F114: 4
A115: 3. EJECUCIÓN DEL DESEMPEÑO 10%
A116: a. Capacidad para tomar decisiones | B116: 0.05 | C116: 5 | D116: =AVERAGE(C116:C117)*5% -> 0.25 | E116: 0.05 | F116: 4 | G116: =AVERAGE(F116:F117)*5% -> 0.225
A117: b. Relaciones humanas, trabajo en equipo | C117: 5 | F117: 5
A119: NOTA DEFINITIVA | D119: =D103+D109+D112+D116 -> 4.6825 | G119: =G103+G109+G112+G116 -> 4.025 | H119: =AVERAGE(D119:G119) -> 4.35375

Sheet Notas41 (hidden)
A2: 1. SABER 45% | B2: Dra. Daza | E2: Dra. Rubiano
A3: a. Casos Clínicos | B3: 0.25 | D3: =AVERAGE(C3:C7)*25% ->  | E3: 0.25 | G3: =AVERAGE(F3:F7)*25% -> 
A4: b. Seminarios
A5: c. Revisiones de tema
A6: d. Club de Revistas
A7: e. Rondas - Juntas
A9: f. Examen Escrito en la última semana de rotación | B9: 0.25 | D9: =C9*25% -> 0 | E9: 0.25 | G9: =F9*25% -> 0
A11: 2. HACER 45%
A12: a. Manejo de la historia clínica | B12: 0.45 | D12: =AVERAGE(C12:C14)*45% ->  | E12: 0.45 | G12: =AVERAGE(F12:F14)*45% -> 
A13: b. Destrezas y manualidades especificas
A14: c. Criterio clínico y terapéutico
A15: 3. EJECUCIÓN DEL DESEMPEÑO 10%
A16: a. Capacidad para tomar decisiones | B16: 0.05 | D16: =AVERAGE(C16:C17)*5% ->  | E16: 0.05 | G16: =AVERAGE(F16:F17)*5% -> 
A17: b. Relaciones humanas, trabajo en equipo
A19: NOTA DEFINITIVA | D19: =D3+D9+D12+D16 ->  | G19: =G3+G9+G12+G16 ->  | H19: =AVERAGE(D19:G19) -> 
A22: 1. SABER 45% | B22: Dra. Bedoya | E22: Dr. Gaviria
A23: a. Casos Clínicos | B23: 0.25 | D23: =AVERAGE(C23:C27)*25% -> 1 | E23: 0.25 | F23: 4 | G23: =AVERAGE(F23:F27)*25% -> 1
A24: b. Seminarios | F24: 4
A25: c. Revisiones de tema | C25: 4 | F25: 4
A26: d. Club de Revistas | F26: 4
A27: e. Rondas - Juntas | F27: 4
A29: f. Examen Escrito en la última semana de rotación | B29: 0.25 | C29: 4.6 | D29: =C29*25% -> 1.15 | E29: 0.25 | F29: 4.5 | G29: =F29*25% -> 1.125
A31: 2. HACER 45%
A32: a. Manejo de la historia clínica | B32: 0.45 | C32: 4 | D32: =AVERAGE(C32:C34)*45% -> 1.8 | E32: 0.45 | F32: 4 | G32: =AVERAGE(F32:F34)*45% -> 1.8
A33: b. Destrezas y manualidades especificas | F33: 4
A34: c. Criterio clínico y terapéutico | F34: 4
A35: 3. EJECUCIÓN DEL DESEMPEÑO 10%
A36: a. Capacidad para tomar decisiones | B36: 0.05 | C36: 3.5 | D36: =AVERAGE(C36:C37)*5% -> 0.175 | E36: 0.05 | F36: 5 | G36: =AVERAGE(F36:F37)*5% -> 0.25
A37: b. Relaciones humanas, trabajo en equipo | F37: 5
A39: NOTA DEFINITIVA | D39: =D23+D29+D32+D36 -> 4.125 | G39: =G23+G29+G32+G36 -> 4.175 | H39: =AVERAGE(D39:G39) -> 4.15
A42: 1. SABER 45% | B42: Dra. Olaya | E42: Dr. Marín
A43: a. Casos Clínicos | B43: 0.25 | D43: =AVERAGE(C43:C47)*25% ->  | E43: 0.25 | G43: =AVERAGE(F43:F47)*25% -> 
A44: b. Seminarios
A45: c. Revisiones de tema
A46: d. Club de Revistas
A47: e. Rondas - Juntas
A49: f. Examen Escrito en la última semana de rotación | B49: 0.25 | D49: =C49*25% -> 0 | E49: 0.25 | G49: =F49*25% -> 0
A51: 2. HACER 45%
A52: a. Manejo de la historia clínica | B52: 0.45 | D52: =AVERAGE(C52:C54)*45% ->  | E52: 0.45 | G52: =AVERAGE(F52:F54)*45% -> 
A53: b. Destrezas y manualidades especificas
A54: c. Criterio clínico y terapéutico
A55: 3. EJECUCIÓN DEL DESEMPEÑO 10%
A56: a. Capacidad para tomar decisiones | B56: 0.05 | D56: =AVERAGE(C56:C57)*5% ->  | E56: 0.05 | G56: =AVERAGE(F56:F57)*5% -> 
A57: b. Relaciones humanas, trabajo en equipo
A59: NOTA DEFINITIVA | D59: =D43+D49+D52+D56 ->  | G59: =G43+G49+G52+G56 ->  | H59: =AVERAGE(D59:G59) -> 
A62: 1. SABER 45% | B62: Dr. Moya | E62: Dra. Henao - Hicapié
A63: a. Casos Clínicos | B63: 0.25 | C63: 3.9 | D63: =AVERAGE(C63:C67)*25% -> 0.965 | E63: 0.25 | G63: =AVERAGE(F63:F67)*25% -> 0.9875
A64: b. Seminarios | C64: 3.8
A65: c. Revisiones de tema | C65: 4.2 | F65: 3.95
A66: d. Club de Revistas | C66: 3.7
A67: e. Rondas - Juntas | C67: 3.7
A69: f. Examen Escrito en la última semana de rotación | B69: 0.25 | C69: 3.75 | D69: =C69*25% -> 0.9375 | E69: 0.25 | F69: 4.2 | G69: =F69*25% -> 1.05
A71: 2. HACER 45%
A72: a. Manejo de la historia clínica | B72: 0.45 | C72: 4.1 | D72: =AVERAGE(C72:C74)*45% -> 1.74 | E72: 0.45 | G72: =AVERAGE(F72:F74)*45% -> 1.71
A73: b. Destrezas y manualidades especificas | C73: 3.7
A74: c. Criterio clínico y terapéutico | C74: 3.8 | F74: 3.8
A75: 3. EJECUCIÓN DEL DESEMPEÑO 10%
A76: a. Capacidad para tomar decisiones | B76: 0.05 | C76: 3.5 | D76: =AVERAGE(C76:C77)*5% -> 0.1875 | E76: 0.05 | G76: =AVERAGE(F76:F77)*5% -> 0.25
A77: b. Relaciones humanas, trabajo en equipo | C77: 4 | F77: 5
A79: NOTA DEFINITIVA | D79: =D63+D69+D72+D76 -> 3.83 | G79: =G63+G69+G72+G76 -> 3.9975 | H79: =AVERAGE(D79:G79) -> 3.91375
A82: 1. SABER 45% | B82: Dr. León | E82: Dr. Benavides
A83: a. Casos Clínicos | B83: 0.25 | D83: =AVERAGE(C83:C87)*25% -> 0.8 | E83: 0.25 | F83: 4 | G83: =AVERAGE(F83:F87)*25% -> 1
A84: b. Seminarios | F84: 4
A85: c. Revisiones de tema | C85: 3.2 | F85: 4
A86: d. Club de Revistas | F86: 4
A87: e. Rondas - Juntas | C87: 3.2 | F87: 4
A89: f. Examen Escrito en la última semana de rotación | B89: 0.25 | C89: 2.6 | D89: =C89*25% -> 0.65 | E89: 0.25 | F89: 4 | G89: =F89*25% -> 1
A91: 2. HACER 45%
A92: a. Manejo de la historia clínica | B92: 0.45 | C92: 3.2 | D92: =AVERAGE(C92:C94)*45% -> 1.44 | E92: 0.45 | F92: 4 | G92: =AVERAGE(F92:F94)*45% -> 1.8
A93: b. Destrezas y manualidades especificas | F93: 4
A94: c. Criterio clínico y terapéutico | C94: 3.2 | F94: 4
A95: 3. EJECUCIÓN DEL DESEMPEÑO 10%
A96: a. Capacidad para tomar decisiones | B96: 0.05 | C96: 3.2 | D96: =AVERAGE(C96:C97)*5% -> 0.205 | E96: 0.05 | F96: 4 | G96: =AVERAGE(F96:F97)*5% -> 0.2
A97: b. Relaciones humanas, trabajo en equipo | C97: 5 | F97: 4
A99: NOTA DEFINITIVA | D99: =D83+D89+D92+D96 -> 3.095 | G99: =G83+G89+G92+G96 -> 4 | H99: =AVERAGE(D99:G99) -> 3.5475
A102: 1. SABER 45% | B102: Armida | E102: Dra. Galeano
A103: a. Casos Clínicos | B103: 0.25 | D103: =AVERAGE(C103:C107)*25% -> 1.15 | E103: 0.25 | G103: =AVERAGE(F103:F107)*25% -> 0.95
A104: b. Seminarios | F104: 3.8
A105: c. Revisiones de tema | C105: 4.6 | F105: 3.8
A106: d. Club de Revistas
A107: e. Rondas - Juntas
A109: f. Examen Escrito en la última semana de rotación | B109: 0.25 | C109: 4.9 | D109: =C109*25% -> 1.225 | E109: 0.25 | F109: 4 | G109: =F109*25% -> 1
A111: 2. HACER 45%
A112: a. Manejo de la historia clínica | B112: 0.45 | C112: 4.2 | D112: =AVERAGE(C112:C114)*45% -> 2.07 | E112: 0.45 | F112: 3.8 | G112: =AVERAGE(F112:F114)*45% -> 1.725
A113: b. Destrezas y manualidades especificas | C113: 5 | F113: 3.9
A114: c. Criterio clínico y terapéutico | F114: 3.8
A115: 3. EJECUCIÓN DEL DESEMPEÑO 10%
A116: a. Capacidad para tomar decisiones | B116: 0.05 | C116: 5 | D116: =AVERAGE(C116:C117)*5% -> 0.25 | E116: 0.05 | F116: 3.8 | G116: =AVERAGE(F116:F117)*5% -> 0.22
A117: b. Relaciones humanas, trabajo en equipo | C117: 5 | F117: 5
A119: NOTA DEFINITIVA | D119: =D103+D109+D112+D116 -> 4.695 | G119: =G103+G109+G112+G116 -> 3.895 | H119: =AVERAGE(D119:G119) -> 4.295

Sheet Notas42 (hidden)
A1: 1. SABER 45%
A2: a. Casos Clínicos | B2: 0.2 | D2: =AVERAGE(C2:C6)*20% ->  | E2: 0.2 | G2: =AVERAGE(F2:F6)*20% -> 
A3: b. Seminarios
A4: c. Revisiones de tema
A5: d. Club de Revistas
A6: e. Rondas - Juntas
A8: f. Examen Escrito en la última semana de rotación | B8: 0.25 | D8: =C8*25% -> 0 | E8: 0.25 | G8: =F8*25% -> 0
A10: 2. HACER 45%
A11: a. Manejo de la historia clínica | B11: 0.45 | D11: =AVERAGE(C11:C13)*45% ->  | E11: 0.45 | G11: =AVERAGE(F11:F13)*45% -> 
A12: b. Destrezas y manualidades especificas
A13: c. Criterio clínico y terapéutico
A14: 3. EJECUCIÓN DEL DESEMPEÑO 10%
A15: a. Capacidad para tomar decisiones | B15: 0.05 | D15: =AVERAGE(C15:C17)*5% ->  | E15: 0.05 | G15: =AVERAGE(F15:F17)*5% -> 
A16: b. Relaciones humanas, trabajo en equipo
A17: c. Respeto por las normas institucionales y por el Reglamento
A19: d. Asistencia / Puntualidad / Respeto | B19: 0.05 | D19: =C19*5% -> 0 | E19: 0.05 | G19: =F19*5% -> 0
A21: NOTA DEFINITIVA | D21: =D2+D8+D11+D15+D19 ->  | G21: =G2+G8+G11+G15+G19 ->  | H21: =AVERAGE(D21,G21) -> 

Sheet Notas43 (hidden)
A2: 1. SABER 45%
A3: a. Casos Clínicos | B3: 0.2 | D3: =AVERAGE(C3:C7)*20% ->  | E3: 0.2 | G3: =AVERAGE(F3:F7)*20% -> 
A4: b. Seminarios
A5: c. Revisiones de tema
A6: d. Club de Revistas
A7: e. Rondas - Juntas
A9: f. Examen Escrito en la última semana de rotación | B9: 0.25 | D9: =C9*25% -> 0 | E9: 0.25 | G9: =F9*25% -> 0
A11: 2. HACER 45%
A12: a. Manejo de la historia clínica | B12: 0.45 | D12: =AVERAGE(C12:C14)*45% ->  | E12: 0.45 | G12: =AVERAGE(F12:F14)*45% -> 
A13: b. Destrezas y manualidades especificas
A14: c. Criterio clínico y terapéutico
A15: 3. EJECUCIÓN DEL DESEMPEÑO 10%
A16: a. Capacidad para tomar decisiones | B16: 0.05 | D16: =AVERAGE(C16:C18)*5% ->  | E16: 0.05 | G16: =AVERAGE(F16:F18)*5% -> 
A17: b. Relaciones humanas, trabajo en equipo
A18: c. Respeto por las normas institucionales y por el Reglamento
A20: d. Asistencia / Puntualidad / Respeto | B20: 0.05 | D20: =C20*5% -> 0 | E20: 0.05 | G20: =F20*5% -> 0
A22: NOTA DEFINITIVA | D22: =D3+D9+D12+D16+D20 ->  | G22: =(G3+G9+G12+G16+G20) ->  | H22: =AVERAGE(D22:G22) -> 

Sheet Notas44 (hidden)
A1: 1. SABER 45% | B1: Dr. Urrea | E1: Dr. Ramírez
A2: a. Casos Clínicos | B2: 0.2 | D2: =AVERAGE(C2:C6)*20% -> 0.76 | E2: 0.2 | G2: =AVERAGE(F2:F6)*20% -> 0.8
A3: b. Seminarios
A4: c. Revisiones de tema | C4: 3.8 | F4: 4
A5: d. Club de Revistas
A6: e. Rondas - Juntas
A8: f. Examen Escrito en la última semana de rotación | B8: 0.25 | C8: 4.1 | D8: =C8*25% -> 1.025 | E8: 0.25 | F8: 3.8 | G8: =F8*25% -> 0.95
A10: 2. HACER 45%
A11: a. Manejo de la historia clínica | B11: 0.45 | D11: =AVERAGE(C11:C13)*45% -> 1.8 | E11: 0.45 | F11: 3.8 | G11: =AVERAGE(F11:F13)*45% -> 1.7325
A12: b. Destrezas y manualidades especificas | C12: 4
A13: c. Criterio clínico y terapéutico | F13: 3.9
A14: 3. EJECUCIÓN DEL DESEMPEÑO 10%
A15: a. Capacidad para tomar decisiones | B15: 0.05 | D15: =AVERAGE(C15:C17)*5% -> 0.215 | E15: 0.05 | F15: 3.8 | G15: =AVERAGE(F15:F17)*5% -> 0.1966666667
A16: b. Relaciones humanas, trabajo en equipo | C16: 4.3 | F16: 4
A17: c. Respeto por las normas institucionales y por el Reglamento | F17: 4
A19: d. Asistencia / Puntualidad / Respeto | B19: 0.05 | C19: 4.5 | D19: =C19*5% -> 0.225 | E19: 0.05 | F19: 3 | G19: =F19*5% -> 0.15
A21: NOTA DEFINITIVA | D21: =D2+D8+D11+D15+D19 -> 4.025 | G21: =G2+G8+G11+G15+G19 -> 3.829166667 | H21: =AVERAGE(D21,G21) -> 3.927083333 | I21: 0.13
A24: 1. SABER 45% | B24: Dr. Zapata | E24: Dr. Martínez | H24: Dr. Montaño | K24: Dr. Mesa | N24: Dr. Ríos
A25: a. Casos Clínicos | B25: 0.2 | C25: 3.7 | D25: =AVERAGE(C25:C29)*20% -> 0.76 | E25: 0.2 | G25: =AVERAGE(F25:F29)*20% -> 0.8 | H25: 0.2 | J25: =AVERAGE(I25:I29)*20% -> 0.78 | K25: 0.2 | M25: =AVERAGE(L25:L29)*20% -> 0.5 | N25: 0.2 | P25: =AVERAGE(O25:O29)*20% -> 0.82
A26: b. Seminarios | C26: 4.1 | F26: 4 | I26: 3.7
A27: c. Revisiones de tema | C27: 3.2 | I27: 3.9 | L27: 2.5 | O27: 4.1
A28: d. Club de Revistas | C28: 4 | I28: 4
A29: e. Rondas - Juntas | C29: 4 | I29: 4
A31: f. Examen Escrito en la última semana de rotación | B31: 0.25 | C31: 3.9 | D31: =C31*25% -> 0.975 | E31: 0.25 | F31: 3.5 | G31: =F31*25% -> 0.875 | H31: 0.25 | I31: 3 | J31: =I31*25% -> 0.75 | K31: 0.25 | L31: 3.9 | M31: =L31*25% -> 0.975 | N31: 0.25 | O31: 3.5 | P31: =O31*25% -> 0.875
A33: 2. HACER 45%
A34: a. Manejo de la historia clínica | B34: 0.45 | C34: 3.8 | D34: =AVERAGE(C34:C36)*45% -> 1.6875 | E34: 0.45 | G34: =AVERAGE(F34:F36)*45% -> 1.8 | H34: 0.45 | I34: 4 | J34: =AVERAGE(I34:I36)*45% -> 1.8 | K34: 0.45 | L34: 4 | M34: =AVERAGE(L34:L36)*45% -> 1.725 | N34: 0.45 | P34: =AVERAGE(O34:O36)*45% -> 1.845
A35: b. Destrezas y manualidades especificas | F35: 4 | L35: 4 | O35: 4.1
A36: c. Criterio clínico y terapéutico | C36: 3.7 | I36: 4 | L36: 3.5
A37: 3. EJECUCIÓN DEL DESEMPEÑO 10%
A38: a. Capacidad para tomar decisiones | B38: 0.05 | D38: =AVERAGE(C38:C40)*5% -> 0.25 | E38: 0.05 | G38: =AVERAGE(F38:F40)*5% -> 0.2 | H38: 0.05 | I38: 4 | J38: =AVERAGE(I38:I40)*5% -> 0.2133333333 | K38: 0.05 | L38: 4 | M38: =AVERAGE(L38:L40)*5% -> 0.2333333333 | N38: 0.05 | P38: =AVERAGE(O38:O40)*5% -> 0.205
A39: b. Relaciones humanas, trabajo en equipo | C39: 5 | F39: 4 | I39: 4.4 | L39: 5 | O39: 4.1
A40: c. Respeto por las normas institucionales y por el Reglamento | C40: 5 | I40: 4.4 | L40: 5
A42: d. Asistencia / Puntualidad / Respeto | B42: 0.05 | C42: 5 | D42: =C42*5% -> 0.25 | E42: 0.05 | F42: 4.5 | G42: =F42*5% -> 0.225 | H42: 0.05 | I42: 2.5 | J42: =I42*5% -> 0.125 | K42: 0.05 | L42: 5 | M42: =L42*5% -> 0.25 | N42: 0.05 | O42: 5 | P42: =O42*5% -> 0.25
A44: NOTA DEFINITIVA | D44: =D25+D31+D34+D38+D42 -> 3.9225 | G44: =G25+G31+G34+G38+G42 -> 3.9 | J44: =J25+J31+J34+J38+J42 -> 3.668333333 | M44: =M25+M31+M34+M38+M42 -> 3.683333333 | P44: =P25+P31+P34+P38+P42 -> 3.995 | Q44: =AVERAGE(D44:P44) -> 3.833833333 | R44: 0.13
A47: 1. SABER 45% | B47: Dr. Gaviria | E47: Dra. Olaya | H47: Dr. Benavides | K47: Dra. Galeano | N47: Dra. Hincapié
A48: a. Casos Clínicos | B48: 0.2 | C48: 4.4 | D48: =AVERAGE(C48:C52)*20% -> 0.88 | E48: 0.2 | F48: 4 | G48: =AVERAGE(F48:F52)*20% -> 0.8 | H48: 0.2 | I48: 4 | J48: =AVERAGE(I48:I52)*20% -> 0.8 | K48: 0.2 | L48: 3.8 | M48: =AVERAGE(L48:L52)*20% -> 0.76 | N48: 0.2 | O48: 3.4 | P48: =AVERAGE(O48:O52)*20% -> 0.72
A49: b. Seminarios | C49: 4.4 | F49: 3.8 | I49: 4 | L49: 3.8
A50: c. Revisiones de tema | C50: 4.4 | F50: 3.9 | I50: 4 | L50: 3.6 | O50: 3.8
A51: d. Club de Revistas | C51: 4.4 | F51: 4.3 | I51: 4
A52: e. Rondas - Juntas | C52: 4.4 | F52: 4 | I52: 4 | L52: 4
A54: f. Examen Escrito en la última semana de rotación | B54: 0.25 | C54: 4.9 | D54: =C54*25% -> 1.225 | E54: 0.25 | F54: 4.3 | G54: =F54*25% -> 1.075 | H54: 0.25 | I54: 2 | J54: =I54*25% -> 0.5 | K54: 0.25 | L54: 3.6 | M54: =L54*25% -> 0.9 | N54: 0.25 | O54: 4.9 | P54: =O54*25% -> 1.225
A56: 2. HACER 45%
A57: a. Manejo de la historia clínica | B57: 0.45 | C57: 4.4 | D57: =AVERAGE(C57:C59)*45% -> 1.98 | E57: 0.45 | F57: 4.3 | G57: =AVERAGE(F57:F59)*45% -> 1.89 | H57: 0.45 | I57: 4 | J57: =AVERAGE(I57:I59)*45% -> 1.725 | K57: 0.45 | L57: 3.9 | M57: =AVERAGE(L57:L59)*45% -> 1.695 | N57: 0.45 | P57: =AVERAGE(O57:O59)*45% -> 1.575
A58: b. Destrezas y manualidades especificas | C58: 4.4 | F58: 4.3 | I58: 3.5 | L58: 3.9
A59: c. Criterio clínico y terapéutico | C59: 4.4 | F59: 4 | I59: 4 | L59: 3.5 | O59: 3.5
A60: 3. EJECUCIÓN DEL DESEMPEÑO 10%
A61: a. Capacidad para tomar decisiones | B61: 0.05 | C61: 5 | D61: =AVERAGE(C61:C63)*5% -> 0.25 | E61: 0.05 | F61: 4 | G61: =AVERAGE(F61:F63)*5% -> 0.205 | H61: 0.05 | I61: 4 | J61: =AVERAGE(I61:I63)*5% -> 0.2 | K61: 0.05 | L61: 4 | M61: =AVERAGE(L61:L63)*5% -> 0.2166666667 | N61: 0.05 | O61: 3.5 | P61: =AVERAGE(O61:O63)*5% -> 0.175
A62: b. Relaciones humanas, trabajo en equipo | C62: 5 | F62: 4.3 | I62: 4 | L62: 4.5
A63: c. Respeto por las normas institucionales y por el Reglamento | C63: 5 | F63: 4 | I63: 4 | L63: 4.5
A65: d. Asistencia / Puntualidad / Respeto | B65: 0.05 | C65: 5 | D65: =C65*5% -> 0.25 | E65: 0.05 | F65: 5 | G65: =F65*5% -> 0.25 | H65: 0.05 | I65: 4.5 | J65: =I65*5% -> 0.225 | K65: 0.05 | L65: 5 | M65: =L65*5% -> 0.25 | N65: 0.05 | O65: 5 | P65: =O65*5% -> 0.25
A67: NOTA DEFINITIVA | D67: =(D48+D54+D57+D61+D65) -> 4.585 | G67: =G48+G54+G57+G61+G65 -> 4.22 | J67: =J48+J54+J57+J61+J65 -> 3.45 | M67: =M48+M54+M57+M61+M65 -> 3.821666667 | P67: =(P48+P54+P57+P61+P65) -> 3.945 | Q67: =AVERAGE(D67:P67) -> 4.004333333 | R67: 0.13

Sheet Notas45 (hidden)
A1: 1. SABER 45% | B1: Dr. Urrea | E1: Dr. Ramírez
A2: a. Casos Clínicos | B2: 0.2 | D2: =AVERAGE(C2:C6)*20% -> 0.76 | E2: 0.2 | G2: =AVERAGE(F2:F6)*20% -> 0.82
A3: b. Seminarios
A4: c. Revisiones de tema | C4: 3.8 | F4: 4.1
A5: d. Club de Revistas
A6: e. Rondas - Juntas
A8: f. Examen Escrito en la última semana de rotación | B8: 0.25 | C8: 4 | D8: =C8*25% -> 1 | E8: 0.25 | F8: 3.22 | G8: =F8*25% -> 0.805
A10: 2. HACER 45%
A11: a. Manejo de la historia clínica | B11: 0.45 | D11: =AVERAGE(C11:C13)*45% -> 1.71 | E11: 0.45 | F11: 4 | G11: =AVERAGE(F11:F13)*45% -> 1.7775
A12: b. Destrezas y manualidades especificas | C12: 3.8
A13: c. Criterio clínico y terapéutico | F13: 3.9
A14: 3. EJECUCIÓN DEL DESEMPEÑO 10%
A15: a. Capacidad para tomar decisiones | B15: 0.05 | D15: =AVERAGE(C15:C17)*5% -> 0.2 | E15: 0.05 | F15: 3.9 | G15: =AVERAGE(F15:F17)*5% -> 0.1983333333
A16: b. Relaciones humanas, trabajo en equipo | C16: 4 | F16: 4
A17: c. Respeto por las normas institucionales y por el Reglamento | F17: 4
A19: d. Asistencia / Puntualidad / Respeto | B19: 0.05 | C19: 4 | D19: =C19*5% -> 0.2 | E19: 0.05 | F19: 4.2 | G19: =F19*5% -> 0.21
A21: NOTA DEFINITIVA | D21: =D2+D8+D11+D15+D19 -> 3.87 | G21: =G2+G8+G11+G15+G19 -> 3.810833333 | H21: =AVERAGE(D21,G21) -> 3.840416667 | I21: 0.13
A24: 1. SABER 45% | B24: Dr. Martínez | E24: Dr. Ríos | H24: Dr. Montaño | K24: Dr. Mesa | N24: Dr. Zapata
A25: a. Casos Clínicos | B25: 0.2 | D25: =AVERAGE(C25:C29)*20% -> 0.8 | E25: 0.2 | G25: =AVERAGE(F25:F29)*20% -> 0.46 | H25: 0.2 | I25: 4.2 | J25: =AVERAGE(I25:I29)*20% -> 0.824 | K25: 0.2 | M25: =AVERAGE(L25:L29)*20% -> 0.7 | N25: 0.2 | O25: 3.4 | P25: =AVERAGE(O25:O29)*20% -> 0.6076
A26: b. Seminarios | I26: 4 | O26: 3.5
A27: c. Revisiones de tema | C27: 4 | F27: 2.3 | I27: 4.2 | L27: 3.5 | O27: 1.09
A28: d. Club de Revistas | I28: 4.1 | O28: 3.7
A29: e. Rondas - Juntas | I29: 4.1 | O29: 3.5
A31: f. Examen Escrito en la última semana de rotación | B31: 0.25 | C31: 4.5 | D31: =C31*25% -> 1.125 | E31: 0.25 | F31: 1.6 | G31: =F31*25% -> 0.4 | H31: 0.25 | I31: 3.35 | J31: =I31*25% -> 0.8375 | K31: 0.25 | L31: 1.3 | M31: =L31*25% -> 0.325 | N31: 0.25 | O31: 1.2 | P31: =O31*25% -> 0.3
A33: 2. HACER 45%
A34: a. Manejo de la historia clínica | B34: 0.45 | D34: =AVERAGE(C34:C36)*45% -> 1.8 | E34: 0.45 | G34: =AVERAGE(F34:F36)*45% -> 1.035 | H34: 0.45 | I34: 4 | J34: =AVERAGE(I34:I36)*45% -> 1.7775 | K34: 0.45 | L34: 4 | M34: =AVERAGE(L34:L36)*45% -> 1.8 | N34: 0.45 | O34: 3.8 | P34: =AVERAGE(O34:O36)*45% -> 1.62
A35: b. Destrezas y manualidades especificas | C35: 4 | F35: 2.3 | L35: 4
A36: c. Criterio clínico y terapéutico | I36: 3.9 | L36: 4 | O36: 3.4
A37: 3. EJECUCIÓN DEL DESEMPEÑO 10%
A38: a. Capacidad para tomar decisiones | B38: 0.05 | D38: =AVERAGE(C38:C40)*5% -> 0.225 | E38: 0.05 | G38: =AVERAGE(F38:F40)*5% -> 0.15 | H38: 0.05 | I38: 3.9 | J38: =AVERAGE(I38:I40)*5% -> 0.2116666667 | K38: 0.05 | L38: 4 | M38: =AVERAGE(L38:L40)*5% -> 0.2 | N38: 0.05 | P38: =AVERAGE(O38:O40)*5% -> 0.25
A39: b. Relaciones humanas, trabajo en equipo | C39: 4.5 | F39: 3 | I39: 4.4 | L39: 4 | O39: 5
A40: c. Respeto por las normas institucionales y por el Reglamento | I40: 4.4 | L40: 4 | O40: 5
A42: d. Asistencia / Puntualidad / Respeto | B42: 0.05 | C42: 4.5 | D42: =C42*5% -> 0.225 | E42: 0.05 | F42: 3 | G42: =F42*5% -> 0.15 | H42: 0.05 | I42: 4.5 | J42: =I42*5% -> 0.225 | K42: 0.05 | L42: 4 | M42: =L42*5% -> 0.2 | N42: 0.05 | O42: 4.3 | P42: =O42*5% -> 0.215
A44: NOTA DEFINITIVA | D44: =D25+D31+D34+D38+D42 -> 4.175 | G44: =G25+G31+G34+G38+G42 -> 2.195 | J44: =J25+J31+J34+J38+J42 -> 3.875666667 | M44: =M25+M31+M34+M38+M42 -> 3.225 | P44: =P25+P31+P34+P38+P42 -> 2.9926 | Q44: =AVERAGE(D44:P44) -> 3.292653333 | R44: 0.13
A47: 1. SABER 45% | B47: Dr. Gaviria | E47: Dra. Olaya | H47: Dr. Benavides | K47: Dra. Galeano | N47: Dra. Hincapié
A48: a. Casos Clínicos | B48: 0.2 | C48: 4.2 | D48: =AVERAGE(C48:C52)*20% -> 0.84 | E48: 0.2 | F48: 4.3 | G48: =AVERAGE(F48:F52)*20% -> 0.868 | H48: 0.2 | I48: 3.5 | J48: =AVERAGE(I48:I52)*20% -> 0.7 | K48: 0.2 | L48: 3.5 | M48: =AVERAGE(L48:L52)*20% -> 0.73 | N48: 0.2 | O48: 3.8 | P48: =AVERAGE(O48:O52)*20% -> 0.72
A49: b. Seminarios | C49: 4.2 | F49: 4.2 | I49: 3.5 | L49: 3.5
A50: c. Revisiones de tema | C50: 4.2 | F50: 4.7 | I50: 3.5 | L50: 3.8 | O50: 3.4
A51: d. Club de Revistas | C51: 4.2 | F51: 4.6 | I51: 3.5
A52: e. Rondas - Juntas | C52: 4.2 | F52: 3.9 | I52: 3.5 | L52: 3.8
A54: f. Examen Escrito en la última semana de rotación | B54: 0.25 | C54: 4.1 | D54: =C54*25% -> 1.025 | E54: 0.25 | F54: 4.3 | G54: =F54*25% -> 1.075 | H54: 0.25 | I54: 2 | J54: =I54*25% -> 0.5 | K54: 0.25 | L54: 3 | M54: =L54*25% -> 0.75 | N54: 0.25 | O54: 3 | P54: =O54*25% -> 0.75
A56: 2. HACER 45%
A57: a. Manejo de la historia clínica | B57: 0.45 | C57: 4 | D57: =AVERAGE(C57:C59)*45% -> 1.8 | E57: 0.45 | F57: 4.2 | G57: =AVERAGE(F57:F59)*45% -> 1.935 | H57: 0.45 | I57: 3.2 | J57: =AVERAGE(I57:I59)*45% -> 1.44 | K57: 0.45 | L57: 3.5 | M57: =AVERAGE(L57:L59)*45% -> 1.605 | N57: 0.45 | P57: =AVERAGE(O57:O59)*45% -> 1.71
A58: b. Destrezas y manualidades especificas | C58: 4 | F58: 4 | I58: 3.2 | L58: 3.6 | O58: 3.8
A59: c. Criterio clínico y terapéutico | C59: 4 | F59: 4.7 | I59: 3.2 | L59: 3.6
A60: 3. EJECUCIÓN DEL DESEMPEÑO 10%
A61: a. Capacidad para tomar decisiones | B61: 0.05 | C61: 4.5 | D61: =AVERAGE(C61:C63)*5% -> 0.2416666667 | E61: 0.05 | F61: 4 | G61: =AVERAGE(F61:F63)*5% -> 0.2 | H61: 0.05 | I61: 3 | J61: =AVERAGE(I61:I63)*5% -> 0.15 | K61: 0.05 | L61: 3.8 | M61: =AVERAGE(L61:L63)*5% -> 0.2216666667 | N61: 0.05 | P61: =AVERAGE(O61:O63)*5% -> 0.185
A62: b. Relaciones humanas, trabajo en equipo | C62: 5 | F62: 4.2 | I62: 3 | L62: 4.5 | O62: 3.7
A63: c. Respeto por las normas institucionales y por el Reglamento | C63: 5 | F63: 3.8 | I63: 3 | L63: 5
A65: d. Asistencia / Puntualidad / Respeto | B65: 0.05 | C65: 5 | D65: =C65*5% -> 0.25 | E65: 0.05 | F65: 5 | G65: =F65*5% -> 0.25 | H65: 0.05 | I65: 4.5 | J65: =I65*5% -> 0.225 | K65: 0.05 | L65: 4.5 | M65: =L65*5% -> 0.225 | N65: 0.05 | O65: 5 | P65: =O65*5% -> 0.25
A67: NOTA DEFINITIVA | D67: =(D48+D54+D57+D61+D65) -> 4.156666667 | G67: =G48+G54+G57+G61+G65 -> 4.328 | J67: =J48+J54+J57+J61+J65 -> 3.015 | M67: =M48+M54+M57+M61+M65 -> 3.531666667 | P67: =(P48+P54+P57+P61+P65) -> 3.615 | Q67: =AVERAGE(D67:P67) -> 3.729266667 | R67: 0.13

Sheet Notas46 (hidden)
A1: 1. SABER 45% | B1: Dr. Urrea | E1: Dr. Ramírez
A2: a. Casos Clínicos | B2: 0.2 | D2: =AVERAGE(C2:C6)*20% -> 0.76 | E2: 0.2 | G2: =AVERAGE(F2:F6)*20% -> 0.82
A3: b. Seminarios
A4: c. Revisiones de tema | C4: 3.8 | F4: 4.1
A5: d. Club de Revistas
A6: e. Rondas - Juntas
A8: f. Examen Escrito en la última semana de rotación | B8: 0.25 | C8: 3.4 | D8: =C8*25% -> 0.85 | E8: 0.25 | F8: 3.27 | G8: =F8*25% -> 0.8175
A10: 2. HACER 45%
A11: a. Manejo de la historia clínica | B11: 0.45 | D11: =AVERAGE(C11:C13)*45% -> 1.8 | E11: 0.45 | F11: 4.2 | G11: =AVERAGE(F11:F13)*45% -> 1.845
A12: b. Destrezas y manualidades especificas | C12: 4
A13: c. Criterio clínico y terapéutico | F13: 4
A14: 3. EJECUCIÓN DEL DESEMPEÑO 10%
A15: a. Capacidad para tomar decisiones | B15: 0.05 | D15: =AVERAGE(C15:C17)*5% -> 0.2 | E15: 0.05 | F15: 4 | G15: =AVERAGE(F15:F17)*5% -> 0.2
A16: b. Relaciones humanas, trabajo en equipo | C16: 4 | F16: 4
A17: c. Respeto por las normas institucionales y por el Reglamento | F17: 4
A19: d. Asistencia / Puntualidad / Respeto | B19: 0.05 | C19: 4 | D19: =C19*5% -> 0.2 | E19: 0.05 | F19: 4.2 | G19: =F19*5% -> 0.21
A21: NOTA DEFINITIVA | D21: =D2+D8+D11+D15+D19 -> 3.81 | G21: =G2+G8+G11+G15+G19 -> 3.8925 | H21: =AVERAGE(D21,G21) -> 3.85125 | I21: 0.13
A24: 1. SABER 45% | B24: Dr. Martínez | E24: Dr. Ríos | H24: Dr. Montaño | K24: Dr. Mesa | N24: Dr. Zapata
A25: a. Casos Clínicos | B25: 0.2 | D25: =AVERAGE(C25:C29)*20% -> 0.76 | E25: 0.2 | G25: =AVERAGE(F25:F29)*20% -> 0.44 | H25: 0.2 | I25: 4.2 | J25: =AVERAGE(I25:I29)*20% -> 0.792 | K25: 0.2 | M25: =AVERAGE(L25:L29)*20% -> 0.7 | N25: 0.2 | O25: 3.7 | P25: =AVERAGE(O25:O29)*20% -> 0.673
A26: b. Seminarios | I26: 4 | O26: 4
A27: c. Revisiones de tema | F27: 2.2 | I27: 4 | L27: 3.5 | O27: 1.625
A28: d. Club de Revistas | C28: 3.8 | I28: 3.8 | O28: 3.7
A29: e. Rondas - Juntas | I29: 3.8 | O29: 3.8
A31: f. Examen Escrito en la última semana de rotación | B31: 0.25 | C31: 4.5 | D31: =C31*25% -> 1.125 | E31: 0.25 | F31: 1.5 | G31: =F31*25% -> 0.375 | H31: 0.25 | I31: 2.8 | J31: =I31*25% -> 0.7 | K31: 0.25 | L31: 3 | M31: =L31*25% -> 0.75 | N31: 0.25 | O31: 2.5 | P31: =O31*25% -> 0.625
A33: 2. HACER 45%
A34: a. Manejo de la historia clínica | B34: 0.45 | D34: =AVERAGE(C34:C36)*45% -> 1.665 | E34: 0.45 | G34: =AVERAGE(F34:F36)*45% -> 0.99 | H34: 0.45 | I34: 3.7 | J34: =AVERAGE(I34:I36)*45% -> 1.665 | K34: 0.45 | L34: 4 | M34: =AVERAGE(L34:L36)*45% -> 1.8 | N34: 0.45 | O34: 3.8 | P34: =AVERAGE(O34:O36)*45% -> 1.6425
A35: b. Destrezas y manualidades especificas | C35: 3.7 | F35: 2.2 | L35: 4
A36: c. Criterio clínico y terapéutico | I36: 3.7 | L36: 4 | O36: 3.5
A37: 3. EJECUCIÓN DEL DESEMPEÑO 10%
A38: a. Capacidad para tomar decisiones | B38: 0.05 | D38: =AVERAGE(C38:C40)*5% -> 0.2 | E38: 0.05 | G38: =AVERAGE(F38:F40)*5% -> 0.15 | H38: 0.05 | I38: 3.7 | J38: =AVERAGE(I38:I40)*5% -> 0.2083333333 | K38: 0.05 | L38: 4 | M38: =AVERAGE(L38:L40)*5% -> 0.2166666667 | N38: 0.05 | P38: =AVERAGE(O38:O40)*5% -> 0.25
A39: b. Relaciones humanas, trabajo en equipo | C39: 4 | F39: 3 | I39: 4.4 | L39: 4 | O39: 5
A40: c. Respeto por las normas institucionales y por el Reglamento | I40: 4.4 | L40: 5 | O40: 5
A42: d. Asistencia / Puntualidad / Respeto | B42: 0.05 | C42: 4.5 | D42: =C42*5% -> 0.225 | E42: 0.05 | F42: 3 | G42: =F42*5% -> 0.15 | H42: 0.05 | I42: 4.5 | J42: =I42*5% -> 0.225 | K42: 0.05 | L42: 4 | M42: =L42*5% -> 0.2 | N42: 0.05 | O42: 5 | P42: =O42*5% -> 0.25
A44: NOTA DEFINITIVA | D44: =D25+D31+D34+D38+D42 -> 3.975 | G44: =G25+G31+G34+G38+G42 -> 2.105 | J44: =J25+J31+J34+J38+J42 -> 3.590333333 | M44: =M25+M31+M34+M38+M42 -> 3.666666667 | P44: =P25+P31+P34+P38+P42 -> 3.4405 | Q44: =AVERAGE(D44:P44) -> 3.3555 | R44: 0.13
A47: 1. SABER 45% | B47: Dr. Gaviria | E47: Dra. Olaya | H47: Dr. Benavides | K47: Dra. Galeano | N47: Dra. Hincapié
A48: a. Casos Clínicos | B48: 0.2 | C48: 4.3 | D48: =AVERAGE(C48:C52)*20% -> 0.86 | E48: 0.2 | F48: 3.8 | G48: =AVERAGE(F48:F52)*20% -> 0.756 | H48: 0.2 | I48: 3 | J48: =AVERAGE(I48:I52)*20% -> 0.6 | K48: 0.2 | L48: 3.9 | M48: =AVERAGE(L48:L52)*20% -> 0.785 | N48: 0.2 | O48: 3.8 | P48: =AVERAGE(O48:O52)*20% -> 0.71
A49: b. Seminarios | C49: 4.3 | F49: 4 | I49: 3 | L49: 4
A50: c. Revisiones de tema | C50: 4.3 | F50: 3.8 | I50: 3 | L50: 4 | O50: 3.3
A51: d. Club de Revistas | C51: 4.3 | F51: 3.7 | I51: 3
A52: e. Rondas - Juntas | C52: 4.3 | F52: 3.6 | I52: 3 | L52: 3.8
A54: f. Examen Escrito en la última semana de rotación | B54: 0.25 | C54: 4.7 | D54: =C54*25% -> 1.175 | E54: 0.25 | F54: 4.3 | G54: =F54*25% -> 1.075 | H54: 0.25 | I54: 2 | J54: =I54*25% -> 0.5 | K54: 0.25 | L54: 3.7 | M54: =L54*25% -> 0.925 | N54: 0.25 | O54: 3.6 | P54: =O54*25% -> 0.9
A56: 2. HACER 45%
A57: a. Manejo de la historia clínica | B57: 0.45 | C57: 4 | D57: =AVERAGE(C57:C59)*45% -> 1.8 | E57: 0.45 | F57: 4.3 | G57: =AVERAGE(F57:F59)*45% -> 2.025 | H57: 0.45 | I57: 3.2 | J57: =AVERAGE(I57:I59)*45% -> 1.44 | K57: 0.45 | L57: 3.7 | M57: =AVERAGE(L57:L59)*45% -> 1.71 | N57: 0.45 | P57: =AVERAGE(O57:O59)*45% -> 1.71
A58: b. Destrezas y manualidades especificas | C58: 4 | F58: 4.5 | I58: 3.2 | L58: 3.9 | O58: 3.8
A59: c. Criterio clínico y terapéutico | C59: 4 | F59: 4.7 | I59: 3.2 | L59: 3.8
A60: 3. EJECUCIÓN DEL DESEMPEÑO 10%
A61: a. Capacidad para tomar decisiones | B61: 0.05 | C61: 4.5 | D61: =AVERAGE(C61:C63)*5% -> 0.2416666667 | E61: 0.05 | F61: 4.3 | G61: =AVERAGE(F61:F63)*5% -> 0.2116666667 | H61: 0.05 | I61: 3 | J61: =AVERAGE(I61:I63)*5% -> 0.15 | K61: 0.05 | L61: 3.8 | M61: =AVERAGE(L61:L63)*5% -> 0.2216666667 | N61: 0.05 | P61: =AVERAGE(O61:O63)*5% -> 0.19
A62: b. Relaciones humanas, trabajo en equipo | C62: 5 | F62: 4.2 | I62: 3 | L62: 4.5 | O62: 3.8
A63: c. Respeto por las normas institucionales y por el Reglamento | C63: 5 | F63: 4.2 | I63: 3 | L63: 5
A65: d. Asistencia / Puntualidad / Respeto | B65: 0.05 | C65: 5 | D65: =C65*5% -> 0.25 | E65: 0.05 | F65: 5 | G65: =F65*5% -> 0.25 | H65: 0.05 | I65: 3.5 | J65: =I65*5% -> 0.175 | K65: 0.05 | L65: 5 | M65: =L65*5% -> 0.25 | N65: 0.05 | O65: 5 | P65: =O65*5% -> 0.25
A67: NOTA DEFINITIVA | D67: =(D48+D54+D57+D61+D65) -> 4.326666667 | G67: =G48+G54+G57+G61+G65 -> 4.317666667 | J67: =J48+J54+J57+J61+J65 -> 2.865 | M67: =M48+M54+M57+M61+M65 -> 3.891666667 | P67: =(P48+P54+P57+P61+P65) -> 3.76 | Q67: =AVERAGE(D67:P67) -> 3.8322 | R67: 0.13

Sheet Notas47 (hidden)
A1: 1. SABER 45% | B1: Dr. Urrea | E1: Dr. Ramírez
A2: a. Casos Clínicos | B2: 0.2 | D2: =AVERAGE(C2:C6)*20% -> 0.9 | E2: 0.2 | G2: =AVERAGE(F2:F6)*20% -> 0.84
A3: b. Seminarios
A4: c. Revisiones de tema | C4: 4.5 | F4: 4.2
A5: d. Club de Revistas
A6: e. Rondas - Juntas
A8: f. Examen Escrito en la última semana de rotación | B8: 0.25 | C8: 4.8 | D8: =C8*25% -> 1.2 | E8: 0.25 | F8: 2.53 | G8: =F8*25% -> 0.6325
A10: 2. HACER 45%
A11: a. Manejo de la historia clínica | B11: 0.45 | D11: =AVERAGE(C11:C13)*45% -> 1.8 | E11: 0.45 | F11: 4 | G11: =AVERAGE(F11:F13)*45% -> 1.755
A12: b. Destrezas y manualidades especificas | C12: 4
A13: c. Criterio clínico y terapéutico | F13: 3.8
A14: 3. EJECUCIÓN DEL DESEMPEÑO 10%
A15: a. Capacidad para tomar decisiones | B15: 0.05 | D15: =AVERAGE(C15:C17)*5% -> 0.2 | E15: 0.05 | F15: 3.9 | G15: =AVERAGE(F15:F17)*5% -> 0.1975
A16: b. Relaciones humanas, trabajo en equipo | C16: 4 | F16: 4
A17: c. Respeto por las normas institucionales y por el Reglamento | F17: 3.5
A19: d. Asistencia / Puntualidad / Respeto | B19: 0.05 | C19: 3 | D19: =C19*5% -> 0.15 | E19: 0.05 | F19: 2.5 | G19: =F19*5% -> 0.125
A21: NOTA DEFINITIVA | D21: =D2+D8+D11+D15+D19 -> 4.25 | G21: =G2+G8+G11+G15+G19 -> 3.55 | H21: =AVERAGE(D21,G21) -> 3.9 | I21: 0.13
A24: 1. SABER 45% | B24: Dr. Martínez | E24: Dr. Ríos | H24: Dr. Montaño | K24: Dr. Mesa | N24: Dr. Zapata
A25: a. Casos Clínicos | B25: 0.2 | D25: =AVERAGE(C25:C29)*20% -> 0.8 | E25: 0.2 | G25: =AVERAGE(F25:F29)*20% -> 0.44 | H25: 0.2 | I25: 2.5 | J25: =AVERAGE(I25:I29)*20% -> 0.776 | K25: 0.2 | M25: =AVERAGE(L25:L29)*20% -> 0.7 | N25: 0.2 | O25: 4 | P25: =AVERAGE(O25:O29)*20% -> 0.706
A26: b. Seminarios | I26: 4 | O26: 4.2
A27: c. Revisiones de tema | C27: 4 | F27: 2.2 | I27: 4.5 | L27: 3.5 | O27: 1.45
A28: d. Club de Revistas | I28: 4.2 | O28: 4
A29: e. Rondas - Juntas | I29: 4.2 | O29: 4
A31: f. Examen Escrito en la última semana de rotación | B31: 0.25 | C31: 4.5 | D31: =C31*25% -> 1.125 | E31: 0.25 | F31: 1.5 | G31: =F31*25% -> 0.375 | H31: 0.25 | I31: 3.75 | J31: =I31*25% -> 0.9375 | K31: 0.25 | L31: 2.4 | M31: =L31*25% -> 0.6 | N31: 0.25 | O31: 2.9 | P31: =O31*25% -> 0.725
A33: 2. HACER 45%
A34: a. Manejo de la historia clínica | B34: 0.45 | D34: =AVERAGE(C34:C36)*45% -> 1.665 | E34: 0.45 | G34: =AVERAGE(F34:F36)*45% -> 0.99 | H34: 0.45 | I34: 4.2 | J34: =AVERAGE(I34:I36)*45% -> 1.845 | K34: 0.45 | L34: 4 | M34: =AVERAGE(L34:L36)*45% -> 1.8 | N34: 0.45 | O34: 3.8 | P34: =AVERAGE(O34:O36)*45% -> 1.71
A35: b. Destrezas y manualidades especificas | C35: 3.7 | F35: 2.2 | L35: 4
A36: c. Criterio clínico y terapéutico | I36: 4 | L36: 4 | O36: 3.8
A37: 3. EJECUCIÓN DEL DESEMPEÑO 10%
A38: a. Capacidad para tomar decisiones | B38: 0.05 | D38: =AVERAGE(C38:C40)*5% -> 0.225 | E38: 0.05 | G38: =AVERAGE(F38:F40)*5% -> 0.15 | H38: 0.05 | I38: 4 | J38: =AVERAGE(I38:I40)*5% -> 0.205 | K38: 0.05 | L38: 4 | M38: =AVERAGE(L38:L40)*5% -> 0.2 | N38: 0.05 | P38: =AVERAGE(O38:O40)*5% -> 0.25
A39: b. Relaciones humanas, trabajo en equipo | C39: 4.5 | F39: 3 | I39: 4.4 | L39: 4 | O39: 5
A40: c. Respeto por las normas institucionales y por el Reglamento | I40: 3.9 | L40: 4 | O40: 5
A42: d. Asistencia / Puntualidad / Respeto | B42: 0.05 | C42: 2.5 | D42: =C42*5% -> 0.125 | E42: 0.05 | F42: 1 | G42: =F42*5% -> 0.05 | H42: 0.05 | I42: 2.7 | J42: =I42*5% -> 0.135 | K42: 0.05 | L42: 4 | M42: =L42*5% -> 0.2 | N42: 0.05 | O42: 3.8 | P42: =O42*5% -> 0.19
A44: NOTA DEFINITIVA | D44: =D25+D31+D34+D38+D42 -> 3.94 | G44: =G25+G31+G34+G38+G42 -> 2.005 | J44: =J25+J31+J34+J38+J42 -> 3.8985 | M44: =M25+M31+M34+M38+M42 -> 3.5 | P44: =P25+P31+P34+P38+P42 -> 3.581 | Q44: =AVERAGE(D44:P44) -> 3.3849 | R44: 0.13
A47: 1. SABER 45% | B47: Dr. Gaviria | E47: Dra. Olaya | H47: Dr. Benavides | K47: Dra. Galeano | N47: Dra. Hincapié
A48: a. Casos Clínicos | B48: 0.2 | C48: 4 | D48: =AVERAGE(C48:C52)*20% -> 0.8 | E48: 0.2 | F48: 3.9 | G48: =AVERAGE(F48:F52)*20% -> 0.812 | H48: 0.2 | I48: 3 | J48: =AVERAGE(I48:I52)*20% -> 0.6 | K48: 0.2 | L48: 4 | M48: =AVERAGE(L48:L52)*20% -> 0.8 | N48: 0.2 | O48: 4.5 | P48: =AVERAGE(O48:O52)*20% -> 0.87
A49: b. Seminarios | C49: 4 | F49: 3.7 | I49: 3 | L49: 4
A50: c. Revisiones de tema | C50: 4 | F50: 4 | I50: 3 | L50: 4 | O50: 4.2
A51: d. Club de Revistas | C51: 4 | F51: 4.2 | I51: 3
A52: e. Rondas - Juntas | C52: 4 | F52: 4.5 | I52: 3 | L52: 4
A54: f. Examen Escrito en la última semana de rotación | B54: 0.25 | C54: 4.4 | D54: =C54*25% -> 1.1 | E54: 0.25 | F54: 4.3 | G54: =F54*25% -> 1.075 | H54: 0.25 | I54: 2 | J54: =I54*25% -> 0.5 | K54: 0.25 | L54: 3.5 | M54: =L54*25% -> 0.875 | N54: 0.25 | O54: 3.8 | P54: =O54*25% -> 0.95
A56: 2. HACER 45%
A57: a. Manejo de la historia clínica | B57: 0.45 | C57: 4 | D57: =AVERAGE(C57:C59)*45% -> 1.8 | E57: 0.45 | F57: 4 | G57: =AVERAGE(F57:F59)*45% -> 1.89 | H57: 0.45 | I57: 3.2 | J57: =AVERAGE(I57:I59)*45% -> 1.44 | K57: 0.45 | L57: 3.9 | M57: =AVERAGE(L57:L59)*45% -> 1.725 | N57: 0.45 | P57: =AVERAGE(O57:O59)*45% -> 1.71
A58: b. Destrezas y manualidades especificas | C58: 4 | F58: 4.3 | I58: 3.2 | L58: 3.8 | O58: 3.8
A59: c. Criterio clínico y terapéutico | C59: 4 | F59: 4.3 | I59: 3.2 | L59: 3.8
A60: 3. EJECUCIÓN DEL DESEMPEÑO 10%
A61: a. Capacidad para tomar decisiones | B61: 0.05 | C61: 4.5 | D61: =AVERAGE(C61:C63)*5% -> 0.2416666667 | E61: 0.05 | F61: 4 | G61: =AVERAGE(F61:F63)*5% -> 0.2083333333 | H61: 0.05 | I61: 3 | J61: =AVERAGE(I61:I63)*5% -> 0.15 | K61: 0.05 | L61: 4 | M61: =AVERAGE(L61:L63)*5% -> 0.225 | N61: 0.05 | P61: =AVERAGE(O61:O63)*5% -> 0.2
A62: b. Relaciones humanas, trabajo en equipo | C62: 5 | F62: 4.3 | I62: 3 | L62: 4.5 | O62: 4
A63: c. Respeto por las normas institucionales y por el Reglamento | C63: 5 | F63: 4.2 | I63: 3 | L63: 5
A65: d. Asistencia / Puntualidad / Respeto | B65: 0.05 | C65: 5 | D65: =C65*5% -> 0.25 | E65: 0.05 | F65: 5 | G65: =F65*5% -> 0.25 | H65: 0.05 | I65: 3.5 | J65: =I65*5% -> 0.175 | K65: 0.05 | L65: 5 | M65: =L65*5% -> 0.25 | N65: 0.05 | O65: 5 | P65: =O65*5% -> 0.25
A67: NOTA DEFINITIVA | D67: =(D48+D54+D57+D61+D65) -> 4.191666667 | G67: =G48+G54+G57+G61+G65 -> 4.235333333 | J67: =J48+J54+J57+J61+J65 -> 2.865 | M67: =M48+M54+M57+M61+M65 -> 3.875 | P67: =(P48+P54+P57+P61+P65) -> 3.98 | Q67: =AVERAGE(D67:P67) -> 3.8294 | R67: 0.13

Sheet Notas48 (hidden)
A1: 1. SABER 45% | B1: Dr. Urrea | E1: Dr. Ramírez
A2: a. Casos Clínicos | B2: 0.2 | D2: =AVERAGE(C2:C6)*20% -> 0.8 | E2: 0.2 | G2: =AVERAGE(F2:F6)*20% -> 0.8
A3: b. Seminarios
A4: c. Revisiones de tema | C4: 4 | F4: 4
A5: d. Club de Revistas
A6: e. Rondas - Juntas
A8: f. Examen Escrito en la última semana de rotación | B8: 0.25 | C8: 4.25 | D8: =C8*25% -> 1.0625 | E8: 0.25 | F8: 3.6 | G8: =F8*25% -> 0.9
A10: 2. HACER 45%
A11: a. Manejo de la historia clínica | B11: 0.45 | D11: =AVERAGE(C11:C13)*45% -> 1.8 | E11: 0.45 | F11: 4 | G11: =AVERAGE(F11:F13)*45% -> 1.755
A12: b. Destrezas y manualidades especificas | C12: 4
A13: c. Criterio clínico y terapéutico | F13: 3.8
A14: 3. EJECUCIÓN DEL DESEMPEÑO 10%
A15: a. Capacidad para tomar decisiones | B15: 0.05 | D15: =AVERAGE(C15:C17)*5% -> 0.2 | E15: 0.05 | F15: 3.9 | G15: =AVERAGE(F15:F17)*5% -> 0.19
A16: b. Relaciones humanas, trabajo en equipo | C16: 4 | F16: 4
A17: c. Respeto por las normas institucionales y por el Reglamento | F17: 3.5
A19: d. Asistencia / Puntualidad / Respeto | B19: 0.05 | C19: 3 | D19: =C19*5% -> 0.15 | E19: 0.05 | F19: 2.5 | G19: =F19*5% -> 0.125
A21: NOTA DEFINITIVA | D21: =D2+D8+D11+D15+D19 -> 4.0125 | G21: =G2+G8+G11+G15+G19 -> 3.77 | H21: =AVERAGE(D21,G21) -> 3.89125 | I21: 0.13
A24: 1. SABER 45% | B24: Dr. Martínez | E24: Dr. Ríos | H24: Dr. Montaño | K24: Dr. Mesa | N24: Dr. Zapata
A25: a. Casos Clínicos | B25: 0.2 | D25: =AVERAGE(C25:C29)*20% -> 0.8 | E25: 0.2 | G25: =AVERAGE(F25:F29)*20% -> 0.92 | H25: 0.2 | I25: 2.5 | J25: =AVERAGE(I25:I29)*20% -> 0.712 | K25: 0.2 | M25: =AVERAGE(L25:L29)*20% -> 0.4 | N25: 0.2 | O25: 4 | P25: =AVERAGE(O25:O29)*20% -> 0.666
A26: b. Seminarios | I26: 3.5 | O26: 4.3
A27: c. Revisiones de tema | C27: 4 | F27: 4.6 | I27: 3.8 | L27: 2 | O27: 0.65
A28: d. Club de Revistas | I28: 4 | O28: 3.7
A29: e. Rondas - Juntas | I29: 4 | O29: 4
A31: f. Examen Escrito en la última semana de rotación | B31: 0.25 | C31: 4.3 | D31: =C31*25% -> 1.075 | E31: 0.25 | F31: 4 | G31: =F31*25% -> 1 | H31: 0.25 | I31: 3.25 | J31: =I31*25% -> 0.8125 | K31: 0.25 | L31: 2.3 | M31: =L31*25% -> 0.575 | N31: 0.25 | O31: 1.5 | P31: =O31*25% -> 0.375
A33: 2. HACER 45%
A34: a. Manejo de la historia clínica | B34: 0.45 | D34: =AVERAGE(C34:C36)*45% -> 1.71 | E34: 0.45 | G34: =AVERAGE(F34:F36)*45% -> 2.115 | H34: 0.45 | I34: 3.9 | J34: =AVERAGE(I34:I36)*45% -> 1.755 | K34: 0.45 | L34: 4 | M34: =AVERAGE(L34:L36)*45% -> 1.8 | N34: 0.45 | O34: 3.8 | P34: =AVERAGE(O34:O36)*45% -> 1.8
A35: b. Destrezas y manualidades especificas | C35: 3.8 | F35: 4.7 | L35: 4
A36: c. Criterio clínico y terapéutico | I36: 3.9 | L36: 4 | O36: 4.2
A37: 3. EJECUCIÓN DEL DESEMPEÑO 10%
A38: a. Capacidad para tomar decisiones | B38: 0.05 | D38: =AVERAGE(C38:C40)*5% -> 0.225 | E38: 0.05 | G38: =AVERAGE(F38:F40)*5% -> 0.25 | H38: 0.05 | I38: 3.8 | J38: =AVERAGE(I38:I40)*5% -> 0.195 | K38: 0.05 | L38: 4 | M38: =AVERAGE(L38:L40)*5% -> 0.1833333333 | N38: 0.05 | P38: =AVERAGE(O38:O40)*5% -> 0.25
A39: b. Relaciones humanas, trabajo en equipo | C39: 4.5 | F39: 5 | I39: 4 | L39: 4 | O39: 5
A40: c. Respeto por las normas institucionales y por el Reglamento | I40: 3.9 | L40: 3 | O40: 5
A42: d. Asistencia / Puntualidad / Respeto | B42: 0.05 | C42: 1.5 | D42: =C42*5% -> 0.075 | E42: 0.05 | F42: 2 | G42: =F42*5% -> 0.1 | H42: 0.05 | I42: 1.7 | J42: =I42*5% -> 0.085 | K42: 0.05 | L42: 1 | M42: =L42*5% -> 0.05 | N42: 0.05 | O42: 2.5 | P42: =O42*5% -> 0.125
A44: NOTA DEFINITIVA | D44: =D25+D31+D34+D38+D42 -> 3.885 | G44: =G25+G31+G34+G38+G42 -> 4.385 | J44: =J25+J31+J34+J38+J42 -> 3.5595 | M44: =M25+M31+M34+M38+M42 -> 3.008333333 | P44: =P25+P31+P34+P38+P42 -> 3.216 | Q44: =AVERAGE(D44:P44) -> 3.610766667 | R44: 0.13
A47: 1. SABER 45% | B47: Dr. Gaviria | E47: Dra. Olaya | H47: Dr. Benavides | K47: Dra. Galeano | N47: Dra. Hincapié
A48: a. Casos Clínicos | B48: 0.2 | C48: 4 | D48: =AVERAGE(C48:C52)*20% -> 0.8 | E48: 0.2 | F48: 4 | G48: =AVERAGE(F48:F52)*20% -> 0.784 | H48: 0.2 | I48: 3.5 | J48: =AVERAGE(I48:I52)*20% -> 0.7 | K48: 0.2 | L48: 3.6 | M48: =AVERAGE(L48:L52)*20% -> 0.68 | N48: 0.2 | O48: 4.5 | P48: =AVERAGE(O48:O52)*20% -> 0.87
A49: b. Seminarios | C49: 4 | F49: 3.5 | I49: 3.5 | L49: 3.5
A50: c. Revisiones de tema | C50: 4 | F50: 3.8 | I50: 3.5 | L50: 3 | O50: 4.2
A51: d. Club de Revistas | C51: 4 | F51: 4.3 | I51: 3.5
A52: e. Rondas - Juntas | C52: 4 | F52: 4 | I52: 3.5 | L52: 3.5
A54: f. Examen Escrito en la última semana de rotación | B54: 0.25 | C54: 4.3 | D54: =C54*25% -> 1.075 | E54: 0.25 | F54: 4.3 | G54: =F54*25% -> 1.075 | H54: 0.25 | I54: 3 | J54: =I54*25% -> 0.75 | K54: 0.25 | L54: 3.2 | M54: =L54*25% -> 0.8 | N54: 0.25 | O54: 4.9 | P54: =O54*25% -> 1.225
A56: 2. HACER 45%
A57: a. Manejo de la historia clínica | B57: 0.45 | C57: 4 | D57: =AVERAGE(C57:C59)*45% -> 1.8 | E57: 0.45 | F57: 4.2 | G57: =AVERAGE(F57:F59)*45% -> 1.68 | H57: 0.45 | I57: 3.2 | J57: =AVERAGE(I57:I59)*45% -> 1.44 | K57: 0.45 | L57: 3.5 | M57: =AVERAGE(L57:L59)*45% -> 1.545 | N57: 0.45 | P57: =AVERAGE(O57:O59)*45% -> 1.71
A58: b. Destrezas y manualidades especificas | C58: 4 | F58: 3.2 | I58: 3.2 | L58: 3.5 | O58: 3.8
A59: c. Criterio clínico y terapéutico | C59: 4 | F59: 3.8 | I59: 3.2 | L59: 3.3
A60: 3. EJECUCIÓN DEL DESEMPEÑO 10%
A61: a. Capacidad para tomar decisiones | B61: 0.05 | C61: 4.5 | D61: =AVERAGE(C61:C63)*5% -> 0.2416666667 | E61: 0.05 | F61: 3.8 | G61: =AVERAGE(F61:F63)*5% -> 0.1933333333 | H61: 0.05 | I61: 3 | J61: =AVERAGE(I61:I63)*5% -> 0.15 | K61: 0.05 | L61: 3.8 | M61: =AVERAGE(L61:L63)*5% -> 0.2216666667 | N61: 0.05 | P61: =AVERAGE(O61:O63)*5% -> 0.2
A62: b. Relaciones humanas, trabajo en equipo | C62: 5 | F62: 4 | I62: 3 | L62: 4.5 | O62: 4
A63: c. Respeto por las normas institucionales y por el Reglamento | C63: 5 | F63: 3.8 | I63: 3 | L63: 5
A65: d. Asistencia / Puntualidad / Respeto | B65: 0.05 | C65: 4 | D65: =C65*5% -> 0.2 | E65: 0.05 | F65: 4 | G65: =F65*5% -> 0.2 | H65: 0.05 | I65: 2 | J65: =I65*5% -> 0.1 | K65: 0.05 | L65: 3 | M65: =L65*5% -> 0.15 | N65: 0.05 | O65: 5 | P65: =O65*5% -> 0.25
A67: NOTA DEFINITIVA | D67: =(D48+D54+D57+D61+D65) -> 4.116666667 | G67: =G48+G54+G57+G61+G65 -> 3.932333333 | J67: =J48+J54+J57+J61+J65 -> 3.14 | M67: =M48+M54+M57+M61+M65 -> 3.396666667 | P67: =(P48+P54+P57+P61+P65) -> 4.255 | Q67: =AVERAGE(D67:P67) -> 3.768133333 | R67: 0.13

Sheet Notas49 (hidden)
A1: 1. SABER 45% | B1: Dr. Urrea | E1: Dr. Ramírez
A2: a. Casos Clínicos | B2: 0.2 | D2: =AVERAGE(C2:C6)*20% -> 0.9 | E2: 0.2 | G2: =AVERAGE(F2:F6)*20% -> 0.84
A3: b. Seminarios
A4: c. Revisiones de tema | C4: 4.5 | F4: 4.2
A5: d. Club de Revistas
A6: e. Rondas - Juntas
A8: f. Examen Escrito en la última semana de rotación | B8: 0.25 | C8: 4.75 | D8: =C8*25% -> 1.1875 | E8: 0.25 | F8: 3.53 | G8: =F8*25% -> 0.8825
A10: 2. HACER 45%
A11: a. Manejo de la historia clínica | B11: 0.45 | D11: =AVERAGE(C11:C13)*45% -> 1.8 | E11: 0.45 | F11: 4.2 | G11: =AVERAGE(F11:F13)*45% -> 1.89
A12: b. Destrezas y manualidades especificas | C12: 4
A13: c. Criterio clínico y terapéutico | F13: 4.2
A14: 3. EJECUCIÓN DEL DESEMPEÑO 10%
A15: a. Capacidad para tomar decisiones | B15: 0.05 | D15: =AVERAGE(C15:C17)*5% -> 0.2 | E15: 0.05 | F15: 4 | G15: =AVERAGE(F15:F17)*5% -> 0.2
A16: b. Relaciones humanas, trabajo en equipo | C16: 4 | F16: 4
A17: c. Respeto por las normas institucionales y por el Reglamento | F17: 4
A19: d. Asistencia / Puntualidad / Respeto | B19: 0.05 | C19: 4 | D19: =C19*5% -> 0.2 | E19: 0.05 | F19: 4.2 | G19: =F19*5% -> 0.21
A21: NOTA DEFINITIVA | D21: =D2+D8+D11+D15+D19 -> 4.2875 | G21: =G2+G8+G11+G15+G19 -> 4.0225 | H21: =AVERAGE(D21,G21) -> 4.155 | I21: 0.13
A24: 1. SABER 45% | B24: Dr. Martínez | E24: Dr. Ríos | H24: Dr. Montaño | K24: Dr. Mesa | N24: Dr. Zapata
A25: a. Casos Clínicos | B25: 0.2 | D25: =AVERAGE(C25:C29)*20% -> 0.86 | E25: 0.2 | G25: =AVERAGE(F25:F29)*20% -> 1 | H25: 0.2 | I25: 4.2 | J25: =AVERAGE(I25:I29)*20% -> 0.824 | K25: 0.2 | M25: =AVERAGE(L25:L29)*20% -> 0.9 | N25: 0.2 | O25: 4.2 | P25: =AVERAGE(O25:O29)*20% -> 0.833
A26: b. Seminarios | I26: 4 | O26: 4.3
A27: c. Revisiones de tema | C27: 4.3 | F27: 5 | I27: 4 | L27: 4.5 | O27: 3.625
A28: d. Club de Revistas | I28: 4.2 | O28: 4.5
A29: e. Rondas - Juntas | I29: 4.2 | O29: 4.2
A31: f. Examen Escrito en la última semana de rotación | B31: 0.25 | C31: 4.7 | D31: =C31*25% -> 1.175 | E31: 0.25 | F31: 5 | G31: =F31*25% -> 1.25 | H31: 0.25 | I31: 3.8 | J31: =I31*25% -> 0.95 | K31: 0.25 | L31: 4.7 | M31: =L31*25% -> 1.175 | N31: 0.25 | O31: 4.9 | P31: =O31*25% -> 1.225
A33: 2. HACER 45%
A34: a. Manejo de la historia clínica | B34: 0.45 | D34: =AVERAGE(C34:C36)*45% -> 1.8 | E34: 0.45 | G34: =AVERAGE(F34:F36)*45% -> 2.25 | H34: 0.45 | I34: 4.2 | J34: =AVERAGE(I34:I36)*45% -> 1.9125 | K34: 0.45 | L34: 4 | M34: =AVERAGE(L34:L36)*45% -> 1.875 | N34: 0.45 | O34: 3.8 | P34: =AVERAGE(O34:O36)*45% -> 1.845
A35: b. Destrezas y manualidades especificas | C35: 4 | F35: 5 | L35: 4
A36: c. Criterio clínico y terapéutico | I36: 4.3 | L36: 4.5 | O36: 4.4
A37: 3. EJECUCIÓN DEL DESEMPEÑO 10%
A38: a. Capacidad para tomar decisiones | B38: 0.05 | D38: =AVERAGE(C38:C40)*5% -> 0.25 | E38: 0.05 | G38: =AVERAGE(F38:F40)*5% -> 0.25 | H38: 0.05 | I38: 4.2 | J38: =AVERAGE(I38:I40)*5% -> 0.2166666667 | K38: 0.05 | L38: 4.5 | M38: =AVERAGE(L38:L40)*5% -> 0.2416666667 | N38: 0.05 | P38: =AVERAGE(O38:O40)*5% -> 0.25
A39: b. Relaciones humanas, trabajo en equipo | C39: 5 | F39: 5 | I39: 4.4 | L39: 5 | O39: 5
A40: c. Respeto por las normas institucionales y por el Reglamento | I40: 4.4 | L40: 5 | O40: 5
A42: d. Asistencia / Puntualidad / Respeto | B42: 0.05 | C42: 3.5 | D42: =C42*5% -> 0.175 | E42: 0.05 | F42: 4 | G42: =F42*5% -> 0.2 | H42: 0.05 | I42: 3.5 | J42: =I42*5% -> 0.175 | K42: 0.05 | L42: 5 | M42: =L42*5% -> 0.25 | N42: 0.05 | O42: 5 | P42: =O42*5% -> 0.25
A44: NOTA DEFINITIVA | D44: =D25+D31+D34+D38+D42 -> 4.26 | G44: =G25+G31+G34+G38+G42 -> 4.95 | J44: =J25+J31+J34+J38+J42 -> 4.078166667 | M44: =M25+M31+M34+M38+M42 -> 4.441666667 | P44: =P25+P31+P34+P38+P42 -> 4.403 | Q44: =AVERAGE(D44:P44) -> 4.426566667 | R44: 0.13
A47: 1. SABER 45% | B47: Dr. Gaviria | E47: Dra. Olaya | H47: Dr. Benavides | K47: Dra. Galeano | N47: Dra. Hincapié
A48: a. Casos Clínicos | B48: 0.2 | C48: 4.5 | D48: =AVERAGE(C48:C52)*20% -> 0.9 | E48: 0.2 | F48: 4.7 | G48: =AVERAGE(F48:F52)*20% -> 0.888 | H48: 0.2 | I48: 4 | J48: =AVERAGE(I48:I52)*20% -> 0.8 | K48: 0.2 | L48: 4 | M48: =AVERAGE(L48:L52)*20% -> 0.82 | N48: 0.2 | O48: 4.8 | P48: =AVERAGE(O48:O52)*20% -> 0.98
A49: b. Seminarios | C49: 4.5 | F49: 4.2 | I49: 4 | L49: 4
A50: c. Revisiones de tema | C50: 4.5 | F50: 4.5 | I50: 4 | L50: 4.2 | O50: 5
A51: d. Club de Revistas | C51: 4.5 | F51: 4.2 | I51: 4
A52: e. Rondas - Juntas | C52: 4.5 | F52: 4.6 | I52: 4 | L52: 4.2
A54: f. Examen Escrito en la última semana de rotación | B54: 0.25 | C54: 4.5 | D54: =C54*25% -> 1.125 | E54: 0.25 | F54: 4.3 | G54: =F54*25% -> 1.075 | H54: 0.25 | I54: 3 | J54: =I54*25% -> 0.75 | K54: 0.25 | L54: 4.5 | M54: =L54*25% -> 1.125 | N54: 0.25 | O54: 5 | P54: =O54*25% -> 1.25
A56: 2. HACER 45%
A57: a. Manejo de la historia clínica | B57: 0.45 | C57: 4 | D57: =AVERAGE(C57:C59)*45% -> 1.8 | E57: 0.45 | F57: 4.2 | G57: =AVERAGE(F57:F59)*45% -> 1.95 | H57: 0.45 | I57: 4.5 | J57: =AVERAGE(I57:I59)*45% -> 2.025 | K57: 0.45 | L57: 4 | M57: =AVERAGE(L57:L59)*45% -> 1.8 | N57: 0.45 | P57: =AVERAGE(O57:O59)*45% -> 1.755
A58: b. Destrezas y manualidades especificas | C58: 4 | F58: 4.3 | I58: 4.5 | L58: 4 | O58: 3.9
A59: c. Criterio clínico y terapéutico | C59: 4 | F59: 4.5 | I59: 4.5 | L59: 4
A60: 3. EJECUCIÓN DEL DESEMPEÑO 10%
A61: a. Capacidad para tomar decisiones | B61: 0.05 | C61: 4.5 | D61: =AVERAGE(C61:C63)*5% -> 0.2416666667 | E61: 0.05 | F61: 4 | G61: =AVERAGE(F61:F63)*5% -> 0.21 | H61: 0.05 | I61: 4 | J61: =AVERAGE(I61:I63)*5% -> 0.2 | K61: 0.05 | L61: 4.5 | M61: =AVERAGE(L61:L63)*5% -> 0.2333333333 | N61: 0.05 | P61: =AVERAGE(O61:O63)*5% -> 0.2
A62: b. Relaciones humanas, trabajo en equipo | C62: 5 | F62: 4.3 | I62: 4 | L62: 4.5 | O62: 4
A63: c. Respeto por las normas institucionales y por el Reglamento | C63: 5 | F63: 4.3 | I63: 4 | L63: 5
A65: d. Asistencia / Puntualidad / Respeto | B65: 0.05 | C65: 5 | D65: =C65*5% -> 0.25 | E65: 0.05 | F65: 5 | G65: =F65*5% -> 0.25 | H65: 0.05 | I65: 4.5 | J65: =I65*5% -> 0.225 | K65: 0.05 | L65: 5 | M65: =L65*5% -> 0.25 | N65: 0.05 | O65: 5 | P65: =O65*5% -> 0.25
A67: NOTA DEFINITIVA | D67: =(D48+D54+D57+D61+D65) -> 4.316666667 | G67: =G48+G54+G57+G61+G65 -> 4.373 | J67: =J48+J54+J57+J61+J65 -> 4 | M67: =M48+M54+M57+M61+M65 -> 4.228333333 | P67: =(P48+P54+P57+P61+P65) -> 4.435 | Q67: =AVERAGE(D67:P67) -> 4.2706

Sheet Notas50 (hidden)
A1: 1. SABER 45% | B1: Dr. Urrea | E1: Dr. Ramírez
A2: a. Casos Clínicos | B2: 0.2 | D2: =AVERAGE(C2:C6)*20% -> 0.76 | E2: 0.2 | G2: =AVERAGE(F2:F6)*20% -> 0.8
A3: b. Seminarios
A4: c. Revisiones de tema | C4: 3.8 | F4: 4
A5: d. Club de Revistas
A6: e. Rondas - Juntas
A8: f. Examen Escrito en la última semana de rotación | B8: 0.25 | C8: 3.9 | D8: =C8*25% -> 0.975 | E8: 0.25 | F8: 3.08 | G8: =F8*25% -> 0.77
A10: 2. HACER 45%
A11: a. Manejo de la historia clínica | B11: 0.45 | D11: =AVERAGE(C11:C13)*45% -> 1.8 | E11: 0.45 | F11: 4 | G11: =AVERAGE(F11:F13)*45% -> 1.7325
A12: b. Destrezas y manualidades especificas | C12: 4
A13: c. Criterio clínico y terapéutico | F13: 3.7
A14: 3. EJECUCIÓN DEL DESEMPEÑO 10%
A15: a. Capacidad para tomar decisiones | B15: 0.05 | D15: =AVERAGE(C15:C17)*5% -> 0.2 | E15: 0.05 | F15: 4.1 | G15: =AVERAGE(F15:F17)*5% -> 0.2016666667
A16: b. Relaciones humanas, trabajo en equipo | C16: 4 | F16: 4
A17: c. Respeto por las normas institucionales y por el Reglamento | F17: 4
A19: d. Asistencia / Puntualidad / Respeto | B19: 0.05 | C19: 4.5 | D19: =C19*5% -> 0.225 | E19: 0.05 | F19: 4 | G19: =F19*5% -> 0.2
A21: NOTA DEFINITIVA | D21: =D2+D8+D11+D15+D19 -> 3.96 | G21: =G2+G8+G11+G15+G19 -> 3.704166667 | H21: =AVERAGE(D21,G21) -> 3.832083333 | I21: 0.13
A24: 1. SABER 45% | B24: Dr. Zapata | E24: Dr. Ríos | H24: Dr. Montaño | K24: Dr. Mesa | N24: Dr. Martínez
A25: a. Casos Clínicos | B25: 0.2 | C25: 4 | D25: =AVERAGE(C25:C29)*20% -> 0.768 | E25: 0.2 | G25: =AVERAGE(F25:F29)*20% -> 0.64 | H25: 0.2 | I25: 4.5 | J25: =AVERAGE(I25:I29)*20% -> 0.812 | K25: 0.2 | M25: =AVERAGE(L25:L29)*20% -> 0.8 | N25: 0.2 | P25: =AVERAGE(O25:O29)*20% -> 0.76
A26: b. Seminarios | C26: 4.2 | I26: 4
A27: c. Revisiones de tema | C27: 3 | F27: 3.2 | I27: 4 | L27: 4 | O27: 3.8
A28: d. Club de Revistas | C28: 4 | I28: 3.9
A29: e. Rondas - Juntas | C29: 4 | I29: 3.9
A31: f. Examen Escrito en la última semana de rotación | B31: 0.25 | C31: 2.45 | D31: =C31*25% -> 0.6125 | E31: 0.25 | F31: 2.5 | G31: =F31*25% -> 0.625 | H31: 0.25 | I31: 3.25 | J31: =I31*25% -> 0.8125 | K31: 0.25 | L31: 3.3 | M31: =L31*25% -> 0.825 | N31: 0.25 | O31: 4 | P31: =O31*25% -> 1
A33: 2. HACER 45%
A34: a. Manejo de la historia clínica | B34: 0.45 | D34: =AVERAGE(C34:C36)*45% -> 1.8 | E34: 0.45 | G34: =AVERAGE(F34:F36)*45% -> 1.44 | H34: 0.45 | I34: 3.8 | J34: =AVERAGE(I34:I36)*45% -> 1.71 | K34: 0.45 | L34: 4 | M34: =AVERAGE(L34:L36)*45% -> 1.8 | N34: 0.45 | P34: =AVERAGE(O34:O36)*45% -> 1.8
A35: b. Destrezas y manualidades especificas | F35: 3.2 | L35: 4 | O35: 4
A36: c. Criterio clínico y terapéutico | C36: 4 | I36: 3.8 | L36: 4
A37: 3. EJECUCIÓN DEL DESEMPEÑO 10%
A38: a. Capacidad para tomar decisiones | B38: 0.05 | D38: =AVERAGE(C38:C40)*5% -> 0.25 | E38: 0.05 | G38: =AVERAGE(F38:F40)*5% -> 0.15 | H38: 0.05 | I38: 3.8 | J38: =AVERAGE(I38:I40)*5% -> 0.2133333333 | K38: 0.05 | L38: 4 | M38: =AVERAGE(L38:L40)*5% -> 0.2333333333 | N38: 0.05 | P38: =AVERAGE(O38:O40)*5% -> 0.2
A39: b. Relaciones humanas, trabajo en equipo | C39: 5 | F39: 3 | I39: 4.5 | L39: 5 | O39: 4
A40: c. Respeto por las normas institucionales y por el Reglamento | C40: 5 | I40: 4.5 | L40: 5
A42: d. Asistencia / Puntualidad / Respeto | B42: 0.05 | C42: 5 | D42: =C42*5% -> 0.25 | E42: 0.05 | F42: 3 | G42: =F42*5% -> 0.15 | H42: 0.05 | I42: 4.5 | J42: =I42*5% -> 0.225 | K42: 0.05 | L42: 5 | M42: =L42*5% -> 0.25 | N42: 0.05 | O42: 4.5 | P42: =O42*5% -> 0.225
A44: NOTA DEFINITIVA | D44: =D25+D31+D34+D38+D42 -> 3.6805 | G44: =G25+G31+G34+G38+G42 -> 3.005 | J44: =J25+J31+J34+J38+J42 -> 3.772833333 | M44: =M25+M31+M34+M38+M42 -> 3.908333333 | P44: =P25+P31+P34+P38+P42 -> 3.985 | Q44: =AVERAGE(D44:P44) -> 3.670333333 | R44: 0.13
A47: 1. SABER 45% | B47: Dr. Gaviria | E47: Dra. Olaya | H47: Dr. Benavides | K47: Dra. Galeano | N47: Dra. Hincapié
A48: a. Casos Clínicos | B48: 0.2 | C48: 4.2 | D48: =AVERAGE(C48:C52)*20% -> 0.84 | E48: 0.2 | F48: 5 | G48: =AVERAGE(F48:F52)*20% -> 0.84 | H48: 0.2 | I48: 3.5 | J48: =AVERAGE(I48:I52)*20% -> 0.7 | K48: 0.2 | L48: 3.5 | M48: =AVERAGE(L48:L52)*20% -> 0.665 | N48: 0.2 | P48: =AVERAGE(O48:O52)*20% -> 0.8
A49: b. Seminarios | C49: 4.2 | F49: 4 | I49: 3.5 | L49: 3
A50: c. Revisiones de tema | C50: 4.2 | F50: 3 | I50: 3.5 | L50: 3.3 | O50: 4
A51: d. Club de Revistas | C51: 4.2 | F51: 5 | I51: 3.5
A52: e. Rondas - Juntas | C52: 4.2 | F52: 4 | I52: 3.5 | L52: 3.5
A54: f. Examen Escrito en la última semana de rotación | B54: 0.25 | C54: 3.9 | D54: =C54*25% -> 0.975 | E54: 0.25 | F54: 3 | G54: =F54*25% -> 0.75 | H54: 0.25 | I54: 3 | J54: =I54*25% -> 0.75 | K54: 0.25 | L54: 4 | M54: =L54*25% -> 1 | N54: 0.25 | O54: 4.4 | P54: =O54*25% -> 1.1
A56: 2. HACER 45%
A57: a. Manejo de la historia clínica | B57: 0.45 | C57: 4 | D57: =AVERAGE(C57:C59)*45% -> 1.8 | E57: 0.45 | F57: 4 | G57: =AVERAGE(F57:F59)*45% -> 1.8 | H57: 0.45 | I57: 3.7 | J57: =AVERAGE(I57:I59)*45% -> 1.665 | K57: 0.45 | L57: 3.4 | M57: =AVERAGE(L57:L59)*45% -> 1.575 | N57: 0.45 | P57: =AVERAGE(O57:O59)*45% -> 1.71
A58: b. Destrezas y manualidades especificas | C58: 4 | F58: 3 | I58: 3.7 | L58: 3.6 | O58: 3.8
A59: c. Criterio clínico y terapéutico | C59: 4 | F59: 5 | I59: 3.7 | L59: 3.5
A60: 3. EJECUCIÓN DEL DESEMPEÑO 10%
A61: a. Capacidad para tomar decisiones | B61: 0.05 | C61: 5 | D61: =AVERAGE(C61:C63)*5% -> 0.25 | E61: 0.05 | F61: 4 | G61: =AVERAGE(F61:F63)*5% -> 0.1833333333 | H61: 0.05 | I61: 3.8 | J61: =AVERAGE(I61:I63)*5% -> 0.19 | K61: 0.05 | L61: 3.5 | M61: =AVERAGE(L61:L63)*5% -> 0.2083333333 | N61: 0.05 | P61: =AVERAGE(O61:O63)*5% -> 0.19
A62: b. Relaciones humanas, trabajo en equipo | C62: 5 | F62: 4 | I62: 3.8 | L62: 4.5 | O62: 3.8
A63: c. Respeto por las normas institucionales y por el Reglamento | C63: 5 | F63: 3 | I63: 3.8 | L63: 4.5
A65: d. Asistencia / Puntualidad / Respeto | B65: 0.05 | C65: 5 | D65: =C65*5% -> 0.25 | E65: 0.05 | F65: 5 | G65: =F65*5% -> 0.25 | H65: 0.05 | I65: 3.8 | J65: =I65*5% -> 0.19 | K65: 0.05 | L65: 5 | M65: =L65*5% -> 0.25 | N65: 0.05 | O65: 5 | P65: =O65*5% -> 0.25
A67: NOTA DEFINITIVA | D67: =(D48+D54+D57+D61+D65) -> 4.115 | G67: =G48+G54+G57+G61+G65 -> 3.823333333 | J67: =J48+J54+J57+J61+J65 -> 3.495 | M67: =M48+M54+M57+M61+M65 -> 3.698333333 | P67: =(P48+P54+P57+P61+P65) -> 4.05 | Q67: =AVERAGE(D67:P67) -> 3.836333333 | R67: 0.13

Sheet Notas51 (hidden)
A1: 1. SABER 45% | B1: Dr. Urrea | E1: Dr. Ramírez
A2: a. Casos Clínicos | B2: 0.2 | D2: =AVERAGE(C2:C6)*20% -> 0.8 | E2: 0.2 | G2: =AVERAGE(F2:F6)*20% -> 0.84
A3: b. Seminarios
A4: c. Revisiones de tema | C4: 4 | F4: 4.2
A5: d. Club de Revistas
A6: e. Rondas - Juntas
A8: f. Examen Escrito en la última semana de rotación | B8: 0.25 | C8: 2.3 | D8: =C8*25% -> 0.575 | E8: 0.25 | F8: 2.98 | G8: =F8*25% -> 0.745
A10: 2. HACER 45%
A11: a. Manejo de la historia clínica | B11: 0.45 | D11: =AVERAGE(C11:C13)*45% -> 1.8 | E11: 0.45 | F11: 4.1 | G11: =AVERAGE(F11:F13)*45% -> 1.8225
A12: b. Destrezas y manualidades especificas | C12: 4
A13: c. Criterio clínico y terapéutico | F13: 4
A14: 3. EJECUCIÓN DEL DESEMPEÑO 10%
A15: a. Capacidad para tomar decisiones | B15: 0.05 | D15: =AVERAGE(C15:C17)*5% -> 0.225 | E15: 0.05 | F15: 4.3 | G15: =AVERAGE(F15:F17)*5% -> 0.2075
A16: b. Relaciones humanas, trabajo en equipo | C16: 4.5
A17: c. Respeto por las normas institucionales y por el Reglamento | F17: 4
A19: d. Asistencia / Puntualidad / Respeto | B19: 0.05 | C19: 3.5 | D19: =C19*5% -> 0.175 | E19: 0.05 | F19: 3 | G19: =F19*5% -> 0.15
A21: NOTA DEFINITIVA | D21: =D2+D8+D11+D15+D19 -> 3.575 | G21: =G2+G8+G11+G15+G19 -> 3.765 | H21: =AVERAGE(D21,G21) -> 3.67 | I21: 0.13
A24: 1. SABER 45% | B24: Dr. Zapata | E24: Dr. Ríos | H24: Dr. Montaño | K24: Dr. Mesa | N24: Dr. Martínez
A25: a. Casos Clínicos | B25: 0.2 | C25: 4 | D25: =AVERAGE(C25:C29)*20% -> 0.776 | E25: 0.2 | G25: =AVERAGE(F25:F29)*20% -> 0.5 | H25: 0.2 | I25: 4.5 | J25: =AVERAGE(I25:I29)*20% -> 0.788 | K25: 0.2 | M25: =AVERAGE(L25:L29)*20% -> 0.5 | N25: 0.2 | P25: =AVERAGE(O25:O29)*20% -> 0.74
A26: b. Seminarios | C26: 4.2 | I26: 4
A27: c. Revisiones de tema | C27: 3.2 | F27: 2.5 | I27: 4 | L27: 2.5 | O27: 3.7
A28: d. Club de Revistas | C28: 4 | I28: 3.6
A29: e. Rondas - Juntas | C29: 4 | I29: 3.6
A31: f. Examen Escrito en la última semana de rotación | B31: 0.25 | C31: 2.7 | D31: =C31*25% -> 0.675 | E31: 0.25 | F31: 1.35 | G31: =F31*25% -> 0.3375 | H31: 0.25 | I31: 2.05 | J31: =I31*25% -> 0.5125 | K31: 0.25 | L31: 2.2 | M31: =L31*25% -> 0.55 | N31: 0.25 | O31: 4 | P31: =O31*25% -> 1
A33: 2. HACER 45%
A34: a. Manejo de la historia clínica | B34: 0.45 | D34: =AVERAGE(C34:C36)*45% -> 1.8 | E34: 0.45 | G34: =AVERAGE(F34:F36)*45% -> 1.125 | H34: 0.45 | I34: 3.6 | J34: =AVERAGE(I34:I36)*45% -> 1.62 | K34: 0.45 | L34: 4 | M34: =AVERAGE(L34:L36)*45% -> 1.8 | N34: 0.45 | P34: =AVERAGE(O34:O36)*45% -> 1.8
A35: b. Destrezas y manualidades especificas | F35: 2.5 | L35: 4 | O35: 4
A36: c. Criterio clínico y terapéutico | C36: 4 | I36: 3.6 | L36: 4
A37: 3. EJECUCIÓN DEL DESEMPEÑO 10%
A38: a. Capacidad para tomar decisiones | B38: 0.05 | D38: =AVERAGE(C38:C40)*5% -> 0.25 | E38: 0.05 | G38: =AVERAGE(F38:F40)*5% -> 0.15 | H38: 0.05 | I38: 3.6 | J38: =AVERAGE(I38:I40)*5% -> 0.21 | K38: 0.05 | L38: 4 | M38: =AVERAGE(L38:L40)*5% -> 0.2333333333 | N38: 0.05 | P38: =AVERAGE(O38:O40)*5% -> 0.2
A39: b. Relaciones humanas, trabajo en equipo | C39: 5 | F39: 3 | I39: 4.5 | L39: 5 | O39: 4
A40: c. Respeto por las normas institucionales y por el Reglamento | C40: 5 | I40: 4.5 | L40: 5
A42: d. Asistencia / Puntualidad / Respeto | B42: 0.05 | C42: 4 | D42: =C42*5% -> 0.2 | E42: 0.05 | F42: 2 | G42: =F42*5% -> 0.1 | H42: 0.05 | I42: 3.5 | J42: =I42*5% -> 0.175 | K42: 0.05 | L42: 4 | M42: =L42*5% -> 0.2 | N42: 0.05 | O42: 3 | P42: =O42*5% -> 0.15
A44: NOTA DEFINITIVA | D44: =D25+D31+D34+D38+D42 -> 3.701 | G44: =G25+G31+G34+G38+G42 -> 2.2125 | J44: =J25+J31+J34+J38+J42 -> 3.3055 | M44: =M25+M31+M34+M38+M42 -> 3.283333333 | P44: =P25+P31+P34+P38+P42 -> 3.89 | Q44: =AVERAGE(D44:P44) -> 3.278466667 | R44: 0.13
A47: 1. SABER 45% | B47: Dr. Gaviria | E47: Dra. Olaya | H47: Dr. Benavides | K47: Dra. Galeano | N47: Dra. Hincapié
A48: a. Casos Clínicos | B48: 0.2 | C48: 3.9 | D48: =AVERAGE(C48:C52)*20% -> 0.744 | E48: 0.2 | F48: 4 | G48: =AVERAGE(F48:F52)*20% -> 0.68 | H48: 0.2 | I48: 3.5 | J48: =AVERAGE(I48:I52)*20% -> 0.7 | K48: 0.2 | L48: 3.5 | M48: =AVERAGE(L48:L52)*20% -> 0.65 | N48: 0.2 | P48: =AVERAGE(O48:O52)*20% -> 0.62
A49: b. Seminarios | C49: 3.9 | F49: 3 | I49: 3.5 | L49: 3
A50: c. Revisiones de tema | C50: 3.9 | F50: 4 | I50: 3.5 | L50: 3 | O50: 3.1
A51: d. Club de Revistas | C51: 3.9 | F51: 3 | I51: 3.5
A52: e. Rondas - Juntas | C52: 3 | F52: 3 | I52: 3.5 | L52: 3.5
A54: f. Examen Escrito en la última semana de rotación | B54: 0.25 | C54: 3 | D54: =C54*25% -> 0.75 | E54: 0.25 | F54: 3 | G54: =F54*25% -> 0.75 | H54: 0.25 | I54: 1 | J54: =I54*25% -> 0.25 | K54: 0.25 | L54: 2 | M54: =L54*25% -> 0.5 | N54: 0.25 | O54: 2.1 | P54: =O54*25% -> 0.525
A56: 2. HACER 45%
A57: a. Manejo de la historia clínica | B57: 0.45 | C57: 4 | D57: =AVERAGE(C57:C59)*45% -> 1.8 | E57: 0.45 | F57: 3 | G57: =AVERAGE(F57:F59)*45% -> 1.8 | H57: 0.45 | I57: 3.7 | J57: =AVERAGE(I57:I59)*45% -> 1.665 | K57: 0.45 | L57: 3 | M57: =AVERAGE(L57:L59)*45% -> 1.455 | N57: 0.45 | P57: =AVERAGE(O57:O59)*45% -> 1.575
A58: b. Destrezas y manualidades especificas | C58: 4 | F58: 4 | I58: 3.7 | L58: 3.5 | O58: 3.5
A59: c. Criterio clínico y terapéutico | C59: 4 | F59: 5 | I59: 3.7 | L59: 3.2
A60: 3. EJECUCIÓN DEL DESEMPEÑO 10%
A61: a. Capacidad para tomar decisiones | B61: 0.05 | C61: 5 | D61: =AVERAGE(C61:C63)*5% -> 0.25 | E61: 0.05 | F61: 4 | G61: =AVERAGE(F61:F63)*5% -> 0.205 | H61: 0.05 | I61: 3.8 | J61: =AVERAGE(I61:I63)*5% -> 0.19 | K61: 0.05 | L61: 3.3 | M61: =AVERAGE(L61:L63)*5% -> 0.205 | N61: 0.05 | P61: =AVERAGE(O61:O63)*5% -> 0.175
A62: b. Relaciones humanas, trabajo en equipo | C62: 5 | F62: 4.3 | I62: 3.8 | L62: 4.5 | O62: 3.5
A63: c. Respeto por las normas institucionales y por el Reglamento | C63: 5 | F63: 4 | I63: 3.8 | L63: 4.5
A65: d. Asistencia / Puntualidad / Respeto | B65: 0.05 | C65: 5 | D65: =C65*5% -> 0.25 | E65: 0.05 | F65: 5 | G65: =F65*5% -> 0.25 | H65: 0.05 | I65: 3.8 | J65: =I65*5% -> 0.19 | K65: 0.05 | L65: 5 | M65: =L65*5% -> 0.25 | N65: 0.05 | O65: 5 | P65: =O65*5% -> 0.25
A67: NOTA DEFINITIVA | D67: =(D48+D54+D57+D61+D65) -> 3.794 | G67: =G48+G54+G57+G61+G65 -> 3.685 | J67: =J48+J54+J57+J61+J65 -> 2.995 | M67: =M48+M54+M57+M61+M65 -> 3.06 | P67: =(P48+P54+P57+P61+P65) -> 3.145 | Q67: =AVERAGE(D67:P67) -> 3.3358 | R67: 0.13

Sheet Notas52 (hidden)
A5: 1. SABER 45% | B5: Dr. Gaviria | E5: Dra. Olaya | H5: Dr. Benavides | K5: Dra. Galeano | N5: Dra. Hincapié
A6: a. Casos Clínicos | B6: 0.2 | C6: 4.2 | D6: =AVERAGE(C6:C10)*20% -> 0.84 | E6: 0.2 | F6: 3.4 | G6: =AVERAGE(F6:F10)*20% -> 0.776 | H6: 0.2 | I6: 3.5 | J6: =AVERAGE(I6:I10)*20% -> 0.7 | K6: 0.2 | L6: 3.8 | M6: =AVERAGE(L6:L10)*20% -> 0.785 | N6: 0.2 | P6: =AVERAGE(O6:O10)*20% -> 0.88
A7: b. Seminarios | C7: 4.2 | F7: 4 | I7: 3.5 | L7: 3.9
A8: c. Revisiones de tema | C8: 4.2 | F8: 4 | I8: 3.5 | L8: 4 | O8: 4.4
A9: d. Club de Revistas | C9: 4.2 | F9: 5 | I9: 3.5
A10: e. Rondas - Juntas | C10: 4.2 | F10: 3 | I10: 3.5 | L10: 4
A12: f. Examen Escrito en la última semana de rotación | B12: 0.25 | C12: 4.5 | D12: =C12*25% -> 1.125 | E12: 0.25 | F12: 4 | G12: =F12*25% -> 1 | H12: 0.25 | I12: 5 | J12: =I12*25% -> 1.25 | K12: 0.25 | L12: 3.7 | M12: =L12*25% -> 0.925 | N12: 0.25 | O12: 5 | P12: =O12*25% -> 1.25
A14: 2. HACER 45%
A15: a. Manejo de la historia clínica | B15: 0.45 | C15: 4 | D15: =AVERAGE(C15:C17)*45% -> 1.8 | E15: 0.45 | F15: 3 | G15: =AVERAGE(F15:F17)*45% -> 1.65 | H15: 0.45 | I15: 3.7 | J15: =AVERAGE(I15:I17)*45% -> 1.665 | K15: 0.45 | L15: 3.9 | M15: =AVERAGE(L15:L17)*45% -> 1.755 | N15: 0.45 | P15: =AVERAGE(O15:O17)*45% -> 1.62
A16: b. Destrezas y manualidades especificas | C16: 4 | F16: 3 | I16: 3.7 | L16: 3.9 | O16: 3.6
A17: c. Criterio clínico y terapéutico | C17: 4 | F17: 5 | I17: 3.7 | L17: 3.9
A18: 3. EJECUCIÓN DEL DESEMPEÑO 10%
A19: a. Capacidad para tomar decisiones | B19: 0.05 | C19: 5 | D19: =AVERAGE(C19:C21)*5% -> 0.25 | E19: 0.05 | F19: 3 | G19: =AVERAGE(F19:F21)*5% -> 0.2166666667 | H19: 0.05 | I19: 3.8 | J19: =AVERAGE(I19:I21)*5% -> 0.19 | K19: 0.05 | L19: 3.9 | M19: =AVERAGE(L19:L21)*5% -> 0.215 | N19: 0.05 | P19: =AVERAGE(O19:O21)*5% -> 0.2
A20: b. Relaciones humanas, trabajo en equipo | C20: 5 | F20: 5 | I20: 3.8 | L20: 4.5 | O20: 4
A21: c. Respeto por las normas institucionales y por el Reglamento | C21: 5 | F21: 5 | I21: 3.8 | L21: 4.5
A23: d. Asistencia / Puntualidad / Respeto | B23: 0.05 | C23: 4 | D23: =C23*5% -> 0.2 | E23: 0.05 | F23: 5 | G23: =F23*5% -> 0.25 | H23: 0.05 | I23: 3.8 | J23: =I23*5% -> 0.19 | K23: 0.05 | L23: 4 | M23: =L23*5% -> 0.2 | N23: 0.05 | O23: 5 | P23: =O23*5% -> 0.25
A25: NOTA DEFINITIVA | D25: =D6+D12+D15+D19+D23 -> 4.215 | G25: =G6+G12+G15+G19+G23 -> 3.892666667 | J25: =J6+J12+J15+J19+J23 -> 3.995 | M25: =M6+M12+M15+M19+M23 -> 3.88 | P25: =P6+P12+P15+P19+P23 -> 4.2 | Q25: =AVERAGE(D25:P25) -> 4.036533333
A32: 1. SABER 45% | B32: Dr. Zapata | E32: Dr. Ríos | H32: Dr. Martínez | K32: Dr. Montaño | N32: Dr. Mesa
A33: a. Casos Clínicos | B33: 0.2 | C33: 4.2 | D33: =AVERAGE(C33:C37)*20% -> 0.796 | E33: 0.2 | G33: =AVERAGE(F33:F37)*20% -> 0.98 | H33: 0.2 | J33: =AVERAGE(I33:I37)*20% -> 0.9 | K33: 0.2 | L33: 3.5 | M33: =AVERAGE(L33:L37)*20% -> 0.804 | N33: 0.2 | P33: =AVERAGE(O33:O37)*20% -> 0.8
A34: b. Seminarios | C34: 4.2 | L34: 4.5
A35: c. Revisiones de tema | C35: 3.5 | F35: 4.9 | I35: 4.5 | L35: 4.5 | O35: 4
A36: d. Club de Revistas | C36: 4 | L36: 3.8
A37: e. Rondas - Juntas | C37: 4 | L37: 3.8
A39: f. Examen Escrito en la última semana de rotación | B39: 0.25 | C39: 4.9 | D39: =C39*25% -> 1.225 | E39: 0.25 | F39: 4.25 | G39: =F39*25% -> 1.0625 | H39: 0.25 | I39: 4.5 | J39: =I39*25% -> 1.125 | K39: 0.25 | L39: 3 | M39: =L39*25% -> 0.75 | N39: 0.25 | O39: 4.3 | P39: =O39*25% -> 1.075
A41: 2. HACER 45%
A42: a. Manejo de la historia clínica | B42: 0.45 | D42: =AVERAGE(C42:C44)*45% -> 1.8 | E42: 0.45 | G42: =AVERAGE(F42:F44)*45% -> 2.16 | H42: 0.45 | J42: =AVERAGE(I42:I44)*45% -> 1.8 | K42: 0.45 | L42: 3.7 | M42: =AVERAGE(L42:L44)*45% -> 1.665 | N42: 0.45 | O42: 4 | P42: =AVERAGE(O42:O44)*45% -> 1.8
A43: b. Destrezas y manualidades especificas | F43: 4.8 | I43: 4 | O43: 4
A44: c. Criterio clínico y terapéutico | C44: 4 | L44: 3.7 | O44: 4
A45: 3. EJECUCIÓN DEL DESEMPEÑO 10%
A46: a. Capacidad para tomar decisiones | B46: 0.05 | D46: =AVERAGE(C46:C48)*5% -> 0.25 | E46: 0.05 | G46: =AVERAGE(F46:F48)*5% -> 0.21 | H46: 0.05 | J46: =AVERAGE(I46:I48)*5% -> 0.225 | K46: 0.05 | L46: 3.7 | M46: =AVERAGE(L46:L48)*5% -> 0.1883333333 | N46: 0.05 | O46: 4 | P46: =AVERAGE(O46:O48)*5% -> 0.2333333333
A47: b. Relaciones humanas, trabajo en equipo | C47: 5 | F47: 4.2 | I47: 4.5 | L47: 3.8 | O47: 5
A48: c. Respeto por las normas institucionales y por el Reglamento | C48: 5 | L48: 3.8 | O48: 5
A50: d. Asistencia / Puntualidad / Respeto | B50: 0.05 | C50: 5 | D50: =C50*5% -> 0.25 | E50: 0.05 | F50: 4.8 | G50: =F50*5% -> 0.24 | H50: 0.05 | I50: 4.5 | J50: =I50*5% -> 0.225 | K50: 0.05 | L50: 3.5 | M50: =L50*5% -> 0.175 | N50: 0.05 | O50: 5 | P50: =O50*5% -> 0.25
A52: NOTA DEFINITIVA | D52: =D33+D39+D42+D46+D50 -> 4.321 | G52: =G33+G39+G42+G46+G50 -> 4.6525 | J52: =J33+J39+J42+J46+J50 -> 4.275 | M52: =M33+M39+M42+M46+M50 -> 3.582333333 | P52: =P33+P39+P42+P46+P50 -> 4.158333333 | Q52: =AVERAGE(D52:P52) -> 4.197833333 | R52: 0.13
A55: 1. SABER 45% | B55: Dr. Ramírez | E55: Dr. Urrea
A56: a. Casos Clínicos | B56: 0.2 | D56: =AVERAGE(C56:C60)*20% -> 0.86 | E56: 0.2 | G56: =AVERAGE(F56:F60)*20% -> 0.9
A57: b. Seminarios
A58: c. Revisiones de tema | C58: 4.3 | F58: 4.5
A59: d. Club de Revistas
A60: e. Rondas - Juntas
A62: f. Examen Escrito en la última semana de rotación | B62: 0.25 | C62: 4.48 | D62: =C62*25% -> 1.12 | E62: 0.25 | F62: 4.8 | G62: =F62*25% -> 1.2
A64: 2. HACER 45%
A65: a. Manejo de la historia clínica | B65: 0.45 | C65: 4.2 | D65: =AVERAGE(C65:C67)*45% -> 1.845 | E65: 0.45 | G65: =AVERAGE(F65:F67)*45% -> 2.025
A66: b. Destrezas y manualidades especificas | F66: 4.5
A67: c. Criterio clínico y terapéutico | C67: 4
A68: 3. EJECUCIÓN DEL DESEMPEÑO 10%
A69: a. Capacidad para tomar decisiones | B69: 0.05 | C69: 4.1 | D69: =AVERAGE(C69:C71)*5% -> 0.2025 | E69: 0.05 | G69: =AVERAGE(F69:F71)*5% -> 0.225
A70: b. Relaciones humanas, trabajo en equipo | F70: 4.5
A71: c. Respeto por las normas institucionales y por el Reglamento | C71: 4
A73: d. Asistencia / Puntualidad / Respeto | B73: 0.05 | C73: 4 | D73: =C73*5% -> 0.2 | E73: 0.05 | F73: 4.5 | G73: =F73*5% -> 0.225
A75: NOTA DEFINITIVA | D75: =D56+D62+D65+D69+D73 -> 4.2275 | G75: =G56+G62+G65+G69+G73 -> 4.575 | H75: =AVERAGE(D75:G75) -> 4.40125 | I75: 0.13

Sheet Notas53 (hidden)
A5: 1. SABER 45% | B5: Dr. Gaviria | E5: Dra. Olaya | H5: Dr. Benavides | K5: Dra. Galeano | N5: Dra. Hincapié
A6: a. Casos Clínicos | B6: 0.2 | C6: 4 | D6: =AVERAGE(C6:C10)*20% -> 0.8 | E6: 0.2 | F6: 3 | G6: =AVERAGE(F6:F10)*20% -> 0.816 | H6: 0.2 | I6: 3.5 | J6: =AVERAGE(I6:I10)*20% -> 0.7 | K6: 0.2 | L6: 3.9 | M6: =AVERAGE(L6:L10)*20% -> 0.785 | N6: 0.2 | P6: =AVERAGE(O6:O10)*20% -> 0.62
A7: b. Seminarios | C7: 4 | F7: 3.4 | I7: 3.5 | L7: 4
A8: c. Revisiones de tema | C8: 4 | F8: 4 | I8: 3.5 | L8: 3.9 | O8: 3.1
A9: d. Club de Revistas | C9: 4 | F9: 5 | I9: 3.5
A10: e. Rondas - Juntas | C10: 4 | F10: 5 | I10: 3.5 | L10: 3.9
A12: f. Examen Escrito en la última semana de rotación | B12: 0.25 | C12: 3.6 | D12: =C12*25% -> 0.9 | E12: 0.25 | F12: 3 | G12: =F12*25% -> 0.75 | H12: 0.25 | I12: 3 | J12: =I12*25% -> 0.75 | K12: 0.25 | L12: 4.3 | M12: =L12*25% -> 1.075 | N12: 0.25 | O12: 1.6 | P12: =O12*25% -> 0.4
A14: 2. HACER 45%
A15: a. Manejo de la historia clínica | B15: 0.45 | C15: 4 | D15: =AVERAGE(C15:C17)*45% -> 1.8 | E15: 0.45 | F15: 4 | G15: =AVERAGE(F15:F17)*45% -> 1.68 | H15: 0.45 | I15: 3.7 | J15: =AVERAGE(I15:I17)*45% -> 1.665 | K15: 0.45 | L15: 3.9 | M15: =AVERAGE(L15:L17)*45% -> 1.755 | N15: 0.45 | P15: =AVERAGE(O15:O17)*45% -> 1.71
A16: b. Destrezas y manualidades especificas | C16: 4 | F16: 4 | I16: 3.7 | L16: 3.9 | O16: 3.8
A17: c. Criterio clínico y terapéutico | C17: 4 | F17: 3.2 | I17: 3.7 | L17: 3.9
A18: 3. EJECUCIÓN DEL DESEMPEÑO 10%
A19: a. Capacidad para tomar decisiones | B19: 0.05 | C19: 5 | D19: =AVERAGE(C19:C21)*5% -> 0.25 | E19: 0.05 | F19: 5 | G19: =AVERAGE(F19:F21)*5% -> 0.24 | H19: 0.05 | I19: 3.8 | J19: =AVERAGE(I19:I21)*5% -> 0.19 | K19: 0.05 | L19: 4 | M19: =AVERAGE(L19:L21)*5% -> 0.2166666667 | N19: 0.05 | P19: =AVERAGE(O19:O21)*5% -> 0.2
A20: b. Relaciones humanas, trabajo en equipo | C20: 5 | F20: 4.4 | I20: 3.8 | L20: 4.5 | O20: 4
A21: c. Respeto por las normas institucionales y por el Reglamento | C21: 5 | F21: 5 | I21: 3.8 | L21: 4.5
A23: d. Asistencia / Puntualidad / Respeto | B23: 0.05 | C23: 5 | D23: =C23*5% -> 0.25 | E23: 0.05 | F23: 5 | G23: =F23*5% -> 0.25 | H23: 0.05 | I23: 3.8 | J23: =I23*5% -> 0.19 | K23: 0.05 | L23: 5 | M23: =L23*5% -> 0.25 | N23: 0.05 | O23: 5 | P23: =O23*5% -> 0.25
A25: NOTA DEFINITIVA | D25: =D6+D12+D15+D19+D23 -> 4 | G25: =G6+G12+G15+G19+G23 -> 3.736 | J25: =J6+J12+J15+J19+J23 -> 3.495 | M25: =M6+M12+M15+M19+M23 -> 4.081666667 | P25: =P6+P12+P15+P19+P23 -> 3.18 | Q25: =AVERAGE(D25:P25) -> 3.698533333
A32: 1. SABER 45% | B32: Dr. Zapata | E32: Dr. Rios | H32: Dr. Martínez | K32: Dr. Montaño | N32: Dr. Mesa
A33: a. Casos Clínicos | B33: 0.2 | C33: 4.1 | D33: =AVERAGE(C33:C37)*20% -> 0.802 | E33: 0.2 | G33: =AVERAGE(F33:F37)*20% -> 0.84 | H33: 0.2 | J33: =AVERAGE(I33:I37)*20% -> 0.8 | K33: 0.2 | L33: 4.5 | M33: =AVERAGE(L33:L37)*20% -> 0.82 | N33: 0.2 | P33: =AVERAGE(O33:O37)*20% -> 0.7
A34: b. Seminarios | C34: 4.2 | L34: 4
A35: c. Revisiones de tema | C35: 3.75 | F35: 4.2 | I35: 4 | L35: 4 | O35: 3.5
A36: d. Club de Revistas | C36: 4 | L36: 4
A37: e. Rondas - Juntas | C37: 4 | L37: 4
A39: f. Examen Escrito en la última semana de rotación | B39: 0.25 | C39: 3.6 | D39: =C39*25% -> 0.9 | E39: 0.25 | F39: 3.5 | G39: =F39*25% -> 0.875 | H39: 0.25 | I39: 4 | J39: =I39*25% -> 1 | K39: 0.25 | L39: 3.43 | M39: =L39*25% -> 0.8575 | N39: 0.25 | O39: 2.7 | P39: =O39*25% -> 0.675
A41: 2. HACER 45%
A42: a. Manejo de la historia clínica | B42: 0.45 | D42: =AVERAGE(C42:C44)*45% -> 1.8 | E42: 0.45 | G42: =AVERAGE(F42:F44)*45% -> 1.89 | H42: 0.45 | J42: =AVERAGE(I42:I44)*45% -> 1.8 | K42: 0.45 | L42: 3.9 | M42: =AVERAGE(L42:L44)*45% -> 1.755 | N42: 0.45 | O42: 4 | P42: =AVERAGE(O42:O44)*45% -> 1.8
A43: b. Destrezas y manualidades especificas | F43: 4.2 | I43: 4 | O43: 4
A44: c. Criterio clínico y terapéutico | C44: 4 | L44: 3.9 | O44: 4
A45: 3. EJECUCIÓN DEL DESEMPEÑO 10%
